{"text_format":"1","workbook":"xlsx","n_sheets":8,"sheets":["VPP Hand-Off Form","Supporting Documents","Instructions","Part # and Part Description","Output (BBY)","LOV","UOM Conversion","Sheet1"],"not_rendered":{"charts":0,"images":1,"macros":1,"external_links":0,"defined_names":7,"comments":2,"pivot_tables":0},"unopened":[],"bounds":{"document_bytes":16777216,"sheet_cells":100000,"rows_first":2000,"rows_last":500,"rows_between":2000,"halvings":0,"cell_chars":16384,"cell_head_chars":4096},"cells_cut":0,"cells_raw":0,"read":"whole","date_system":"1900"}

{"sheet":"VPP Hand-Off Form","index":0,"n_rows":9,"n_cols":30,"rows_kept":9,"cut":false,"hidden":false,"merged":[[0,0,0,5],[7,18,7,23],[7,24,7,29],[7,9,7,11],[2,3,2,5],[1,0,1,5]]}
["VPP/VPD Part Hand-Off Form - Updated 7.26.23"]
["To be Filled in by Best Buy Project Manager"]
["WRF Description:",null,"WRF #:"]
["Best Buy Contact:",null,"Category:",null,"Deployment Date:"]
["OEM Contact Name:",null,"Planogram Title:",null,"Deployment Labor:"]
["OEM Contact Email:",null,"Display Name:",null,"Delivery Method for Initial Deployment:"]
["….....................................................................................","…......................................................................................................................................................................................................................................................................................."]
["Max of 40 Characters - No Spaces","Max of 140 Characters","Is a requirment to be added to capture at time of part set up",null,"Full Kit should only be used for the Full Fixture. \nThis should only be on 1  line of this form.","How is this part \npackaged when ordered.","Graphic, Content, Fixture, Electronic","To be filled out by Space","Fill in version information if display is different in mulitple locations\n\nTo be filled out by Space","Kit/Part Dimensions - Entered in Inches without symbol (\")",null,null,null,null,"Per Store","Include Production & Shipping.  Provide in Days.",null,"These items require \nspecial disposal and \nmay cause additional \nfees to remove.","Who is the vendor/supplier for deploying the fixture for 1st time arrival in stores",null,null,null,null,null,"Who is the vendor/supplier that will hold inventory and fulfill Repair & Maintenance Orders"]
["VPP Part Number","VPP Description","Retek SKU Number","Add, Keep,  Obsolete","Full Kit, \nPartial Kit \nor Part","UOM","Part Type","Subtitle","Segment","Width          (Inches)","Height           (Inches)","Depth             (Inches)","Weight","Material Type","Maximum Order \nQuantity ","Total Lead \nTime","Delivery Method \nfor Repair & Maintenance \nOrders","Does this part \nhave any electronic \ncomponents: ","Supplier Name","Supplier Address","Email Address to receive PO","(If different than what is on record, this will not update iSupplier)\nAdministrator Name","Administrator Email Address","Administrator Phone #","Supplier Name","Supplier Address","Email Address to receive PO","(If different than what is on record, this will not update iSupplier)\nAdministrator Name","Administrator Email Address","Administrator Phone #"]

{"sheet":"Supporting Documents","index":1,"n_rows":1,"n_cols":2,"rows_kept":1,"cut":false,"hidden":false,"merged":[]}
["Install","Display Schematic"]

{"sheet":"Instructions","index":2,"n_rows":32,"n_cols":2,"rows_kept":32,"cut":false,"hidden":false,"merged":[[18,0,18,1],[25,0,25,1]]}
["Required Information","Instructions/Definitions"]
["VPP Part Number","See Part # and Part Description Tab"]
["VPP Description ","See Part # and Part Description Tab"]
["Retek Sku #","The Retek sku will be added in by Best Buy Project Management Team.  This will associate any Retek sku that will be used as a display, and will need to be updated when ever in changes out."]
["Add, Keep, Obsolete-All or Obsolete-Partial","If you are deploying the display for the first time in Best Buy stores, you will select \"Add\".  If you are refreshing components of an existing display already in Best Buy stores, you will identify each part with an \"Add\" for new parts, \"Keep\" for parts that are staying on the display, and \"Obsolete-All\" or \"Obsolete-Partial\" if parts are being removed from the display.   When selecting \"Obsolete-All\", you are indicating that this part is being removed from all displays supporting this Planogram Title.  When selecting \"Obsolete-Partial\", you are indicating that this part is only being removed from some display(s) that support an option or version of the same Planogram Title."]
["Identify option or version subtitle(s) if applicable","If there are different displays created to support different Plano Title Options or Versions, this column will be used to list out the option or version subtitle(s) at the part level for the corresponding display."]
["Obsolete Partial:  Identify which option or version subtitle(S) that should be made obsolete","If there are different displays created to support different Plano Title Options or Versions and only one or some of these are being removed from the stores, you will need to indicate which option or version subtitle(s) should be obsoleted.  "]
["Full Kit, Partial Kit or Part","A Full Kit is a single part number that will include all parts to make up an entire display.  The Full Kit part will only be orderable by Corporate for projects such as relocations, remodels, disaster recovery or future display expansion.   Partial Kit is a subset of parts within the full display that will be identified by 1 part number and will always be shipped together.  For example, this can be used for parts that require the vendor to put together prior to being sent to a store or for a refresh kit of parts.   A Part is an individual component of the complete display.  It is recommended that you breakdown your display as much as you can at the individual part level in order to keep repair & maintenance costs to a minimum.  If you do not supply individual part level hand-off of all parts required to build the full display, we will leave the Full Kit part number on PRiMe for repair & maintenance ordering."]
["Part Type","Identify if this is a Graphic, Content Device, Fixture or Electronic."]
["Width\n(See pic for example)"]
["Height\n(See pic for example)"]
["Depth\n(See pic for example)"]
["Weight","Identify the weight of the part or kit."]
["Material Type","Identify the predominant material that the part is built from.  Options are plastic/acrylic, metal, cardboard, cardstock, particle board/wood, or other."]
["Maximum Order \nQuantity ","Within PRiMe, we restrict the amount of times a part can be reordered by a store within a 30 day time period.  The maximum order quantity should be the total number of that individual part required to make the display complete.  For a full kit, the number should be 1."]
["Total Lead Time","Identify the total lead time of the part or kit that would account for all days needed from the time of receiving the PO to arrival at the store.  When a part is ordered thru PRiMe, it will calculate the required date (aka delivery date) based on the lead time provided. "]
["Delivery Method for Repair & Maintenance Orders","Identify how Repair & Maintenance orders will arrive at the store.  The options are direct ship or 3PL/2PL if reps will carry in."]
["Does this part have any electronic components: batteries, fluorescent  bulbs, refrigerants, or power wires? (Please identify which component(s))","It is important to Best Buy that we are disposing of all hazardous material properly in the stores.  We require that these items be identified during part set up as well as when they are being removed.  These items may require additional fees for disposal."]
["Who is the vendor/supplier for deploying the fixture for 1st time arrival in stores"]
["Supplier Name","Provide the Supplier Name"]
["Supplier Address","Provide the Supplier Shipping Address"]
["Email Address to receive PO","Provide email address for the group or person to receive the PO via email.  Best Buy recommends always using a group email address to ensure the PO is received."]
["Administrator Name","Provide the Administrator's name for this Supplier.  If this is a different name than the Administrator on record, this hand-off will not update iSupplier.  You must email SupplierSetup.APExpense@bestbuy.com to update Administrator contact information."]
["Administrator Email Address","Provide the Administrator's email address for this Supplier"]
["Administrator Phone #","Provide the Administrator's phone number for this Supplier"]
["Who is the vendor/supplier that will hold inventory and fulfill Repair & Maintenance Orders"]
["Supplier Name","Provide the Supplier Name"]
["Supplier Address","Provide the Supplier Shipping Address"]
["Email Address to receive PO","Provide email address for the group or person to receive the PO via email.  Best Buy recommends always using a group email address to ensure the PO is received."]
["Administrator Name","Provide the Administrator's name for this Supplier.  If this is a different name than the Administrator on record, this hand-off will not update iSupplier.  You must email SupplierSetup.APExpense@bestbuy.com to update Administrator contact information."]
["Administrator Email Address","Provide the Administrator's email address for this Supplier"]
["Administrator Phone #","Provide the Administrator's phone number for this Supplier"]

{"sheet":"Part # and Part Description","index":3,"n_rows":94,"n_cols":2,"rows_kept":94,"cut":false,"hidden":false,"merged":[[55,0,55,1],[56,0,56,1],[82,0,82,1],[83,0,83,1],[27,0,27,1],[28,0,28,1],[29,0,29,1],[30,0,30,1],[35,0,35,1],[37,0,37,1],[38,0,38,1],[40,0,40,1],[41,0,41,1],[42,0,42,1],[18,1,18,2],[19,0,19,1],[20,0,20,1],[21,0,21,1],[10,0,11,0],[10,1,10,2],[11,1,11,2],[12,1,12,2],[13,1,13,2],[14,1,14,2],[15,1,15,2],[16,1,16,2],[17,1,17,2],[6,0,6,1],[6,2,9,2],[7,0,7,1],[8,0,8,1],[9,0,9,1],[0,0,0,1],[1,0,1,1],[2,0,2,1],[3,0,3,1],[3,2,5,2],[4,0,4,1],[5,0,5,1],[44,2,45,2],[23,0,23,1],[24,0,24,1],[25,0,25,1],[26,0,26,1],[36,0,36,1]]}
["Part Number:"]
["Graphics & Content Delivery devices:  "]
["·         Best Buy will create and provide part numbers for these part types"]
["·         Best Buy part numbers MUST be printed on the bottom lower right corner for all graphic parts"]
[]
["Fixtures, Electronics, and Kits:"]
["·         The vendor/supplier will provide part numbers for these part types"]
["·         The VPP part numbers should be unique and specific to the parts within one display"]
["·         We require a full kit part number for future ordering of an entire display – i.e. for new store openings, future expansion of a display"]
["·         Requirements:"]
[null,"·         All vendor provided parts start with “VPP-”"]
[null,"·         Part number format is “VPP-XXXXX”.  Rules for “XXXXX” are as follows:"]
[null,"·         Limit part numbers to no more than 40 characters (NO SPACES).  "]
[null,"·         All part numbers need to be in UPPERCASE.  "]
[null,"·         No special characters can be used except for the “-“ (minus sign) "]
[null,"·         EXAMPLES:"]
[null,"o   VPP-12345"]
[null,"o   VPP-45678910"]
[null,"o   VPP-ABCDEF"]
[]
["Part Description: "]
["The vendor/supplier will provide a recommended part description for all part types and kits.  The intention of the part description is to provide Retail employees with a description of a part that will assist them in identifying the correct part/kit to order.   Best Buy owns the final part description and may make modifications to add further clarity for the store emloyees & project teams. "]
[]
["Description Classifications:"]
["·         Full Kit – Entire display "]
["·         Partial Kit – Multiple parts that are a subset of a full display"]
["·         Part – Single part"]
[]
["FULL and PARTIAL Kit Description Requirement:"]
["The VPP kit description should be unique and specific to one kit and within the requirements as follows:"]
["·         Limit part descriptions to no more than 140 characters including spaces"]
["·         All descriptions begin with “Vendor Name -”"]
["·         Followed by “Description Classification-“"]
["·         Followed by “Department Designation-“ (see list below)"]
["·         Ending with “Vendor/Supplier part or model #”"]
["Full Kit examples:  "]
["o   Sony-FULL KIT-HT-12345"]
["o   Samsung-FULL KIT-APL-12345"]
["o   APPLE-FULL KIT-BBM-Mobile2020-12345"]
["Partial Kit examples:  "]
["o   Sony-PARTIAL KIT-HT-54321"]
["o   Samsung-PARTIAL KIT-APL-54321"]
["o   APPLE-PARTIAL KIT-BBM-Mobile2020-54321"]
[]
["PART Description Requirements:"]
["The VPP part description should be unique and specific to one part and within the requirements as follows:"]
["·         Limit part description to no more than 140 characters including spaces"]
["·         All descriptions begin with “Vendor Name-“"]
["·         Followed by “Department Designation-“ (see list below)"]
["·         Followed by “Part Type Designation-“ (see list of examples below)"]
["·         Ending with “Vendor/Supplier part or model #”      "]
["Part description examples:"]
["o   Sony-HT-Holder-12345"]
["o   Samsung-APL-Security-12345"]
["o   APPLE-BBM-Mobile2020-Monitor-12345"]
[]
["Department Designations:"]
["APL-Appliances"]
["HT-Home Theater Core"]
["CPU-Computing/Tablets"]
["CAR-Connected Car (going forward) "]
[null,"·         ME-Mobile Electronics (historic) "]
["PAC-Pacific Sales"]
["PREM-Premium Audio/Home Theater (going forward) "]
[null,"·         MHT/MDC (historic)"]
[null,"·         MHT-Magnolia Home Theater (historic)"]
[null,"·         MDC-Magnolia Design Center (historic)"]
["GAM-Video Games/Gaming"]
["COS-Center of Store"]
["·         FIT"]
["·         PortAud "]
["BBM – Best Buy Mobile"]
["·         Mobile 2020"]
["·         Connections"]
["DI-Digital Imaging "]
["Smart-Smart Home"]
["FOS-Front of Store"]
["·         CashLanes, "]
["·         CustServ"]
["·         Geek"]
["·         SPU"]
["WHSE-Warehouse"]
[]
["Part Type Designation Examples:"]
["Sign-"]
["Holder-"]
["SignFrame-"]
["Panel-"]
["Bracket-"]
["UnivTbl-"]
["Security-"]
["Cable-"]
["PowerStrip-"]
["Basket-"]

{"sheet":"Output (BBY)","index":4,"n_rows":202,"n_cols":42,"rows_kept":202,"cut":false,"hidden":true,"merged":[]}
["Uncheck all 0's",null,null,null,"Status",null,null,"Grid","Formula Do Not Remove",null,"Item DFF"," Department","Warranty"," Capitalization","Web Active Date","Web Inactive Date","ABC Class","Product Group ID"," WRF Number"," Parent Item"," Item Replacement","Merch Kit - Customer's Name","Project / Campaign Name","POG Title","Supplier Name","Manufacturer Name",null,"UOM_Code",null,null,null,null,"Purchasing",null,null,null,null,"Physical","W","H","D","DO NOT DELETE"]
["Item Number","Description","Template",null,"Catalog Interface ID","Catalog Messages",null,"Category Set","Category",null,"Item Context","Item Attribute1","Item Attribute2","Item Attribute3","Item Attribute4","Item Attribute5","Item Attribute6",null,"Item Attribute12","Item Attribute13","Item Attribute14","Item Attribute15","Item Attribute16","Item Attribute17","Item Attribute20","Item Attribute21",null,"Primary UOM","User Item Type","Item Status","Long Description",null,"Unit of Issue","Hazard Class","Receipt Close Tolerance","Invoice Close Tolerance",null,"Dimension UOM","Width","Height","Depth"]
[{"$f":"IF('VPP Hand-Off Form'!D10=\"Obsolete\",0,IF('VPP Hand-Off Form'!D10=\"Keep\",0,IF('VPP Hand-Off Form'!D10=\"Obsolete-Partial\",0,'VPP Hand-Off Form'!A10)))","v":0},{"$f":"IF('VPP Hand-Off Form'!D10=\"Obsolete\",\"0\",IF('VPP Hand-Off Form'!D10=\"Keep\",\"0\",IF('VPP Hand-Off Form'!D10=\"Obsolete-Partial\",\"0\",'VPP Hand-Off Form'!B10)))","v":0},{"$f":"IFERROR(IF(A3=0,\"\",VLOOKUP(A3,parts,8,FALSE)),\"NA\")","v":""},null,null,null,null,{"$f":"IF(A3=0,\"\",\"BBY_PURCHASING\")","v":""},{"$f":"IF(A3=0,\"\",'VPP Hand-Off Form'!#REF!)","v":""},null,{"$f":"IF(A3=0,\"\",\"Non-Merch Inventory\")","v":""},{"$f":"IF(A3=0,\"\",'VPP Hand-Off Form'!#REF!)","v":""},{"$f":"IF(A3=0,\"\",\"\")","v":""},null,null,null,{"$f":"IF(LEFT(A3,3)=\"VPP\",\"V\",IF(LEFT(A3,2)=\"b0\",\"H\",IF(ISBLANK(A3),\"\",\"H\")))","v":"H"},{"$f":"IF(AP3=\"Full Kit\",16001,IF(AC3=\"VPP - SUPPLIES\",10100,IF(AC3=\"VPP - FIXTURE\",16002,IF(AC3=\"VPP - ELECTRONIC\",16003,IF(AC3=\"VPP - GRAPHIC PERM\",18000,IF(AC3=\"VPP - GRAPHIC-TEMP\",18000,\"\"))))))","v":""},{"$f":"IF(A3=0,\"\",'VPP Hand-Off Form'!$B$3)","v":""},null,null,{"$f":"IF(A3=0,\"\",'VPP Hand-Off Form'!$B$4)","v":""},{"$f":"IF(A3=0,\"\",'VPP Hand-Off Form'!#REF!)","v":""},{"$f":"IF(A3=0,\"\",'VPP Hand-Off Form'!#REF!)","v":""},{"$f":"IFERROR(IF(A3=0,\"\",VLOOKUP(A3,parts,25,FALSE)),\"NA\")","v":""},{"$f":"IFERROR(IF(A3=0,\"\",VLOOKUP(A3,parts,25,FALSE)),\"NA\")","v":""},null,{"$f":"IFERROR(IF(A3=0,\"\",VLOOKUP(A3,parts,8,FALSE)),\"NA\")","v":""},{"$f":"IFERROR(IF(A3=0,\"\",VLOOKUP(A3,parts,9,FALSE)),\"NA\")","v":""},{"$f":"IF(A3=0,\"\",IF(ISBLANK('Output (BBY)'!A3),\"\",\"Created\"))","v":""},null,null,null,{"$f":"IF(A3=0,\"\",IF(ISBLANK('VPP Hand-Off Form'!R10),\"\",\"99\"))","v":""},null,null,null,{"$f":"IF(A3=0,\"\",\"IN\")","v":""},{"$f":"IFERROR(IF(A3=0,\"\",VLOOKUP(A3,parts,10,FALSE)),\"NA\")","v":""},{"$f":"IFERROR(IF(A3=0,\"\",VLOOKUP(A3,parts,11,FALSE)),\"NA\")","v":""},{"$f":"IFERROR(IF(A3=0,\"\",VLOOKUP(A3,parts,12,FALSE)),\"NA\")","v":""},{"$f":"IF(ISBLANK('VPP Hand-Off Form'!E10),\"\",'VPP Hand-Off Form'!E10)","v":""}]
[{"$f":"IF('VPP Hand-Off Form'!D11=\"Obsolete\",0,IF('VPP Hand-Off Form'!D11=\"Keep\",0,IF('VPP Hand-Off Form'!D11=\"Obsolete-Partial\",0,'VPP Hand-Off Form'!A11)))","v":0},{"$f":"IF('VPP Hand-Off Form'!D11=\"Obsolete\",\"0\",IF('VPP Hand-Off Form'!D11=\"Keep\",\"0\",IF('VPP Hand-Off Form'!D11=\"Obsolete-Partial\",\"0\",'VPP Hand-Off Form'!B11)))","v":0},"",null,null,null,null,"",{"$f":"IF(A4=0,\"\",'VPP Hand-Off Form'!#REF!)","v":""},null,{"$f":"IF(A4=0,\"\",\"Non-Merch Inventory\")","v":""},{"$f":"IF(A4=0,\"\",'VPP Hand-Off Form'!#REF!)","v":""},{"$f":"IF(A4=0,\"\",\"\")","v":""},null,null,null,{"$f":"IF(LEFT(A4,3)=\"VPP\",\"V\",IF(LEFT(A4,2)=\"b0\",\"H\",IF(ISBLANK(A4),\"\",\"H\")))","v":"H"},{"$f":"IF(AP4=\"Full Kit\",16001,IF(AC4=\"VPP - SUPPLIES\",10100,IF(AC4=\"VPP - FIXTURE\",16002,IF(AC4=\"VPP - ELECTRONIC\",16003,IF(AC4=\"VPP - GRAPHIC PERM\",18000,IF(AC4=\"VPP - GRAPHIC-TEMP\",18000,\"\"))))))","v":""},{"$f":"IF(A4=0,\"\",'VPP Hand-Off Form'!$B$3)","v":""},null,null,{"$f":"IF(A4=0,\"\",'VPP Hand-Off Form'!$B$4)","v":""},{"$f":"IF(A4=0,\"\",'VPP Hand-Off Form'!#REF!)","v":""},{"$f":"IF(A4=0,\"\",'VPP Hand-Off Form'!#REF!)","v":""},"","",null,"","",{"$f":"IF(A4=0,\"\",IF(ISBLANK('Output (BBY)'!A4),\"\",\"Created\"))","v":""},null,null,null,{"$f":"IF(A4=0,\"\",IF(ISBLANK('VPP Hand-Off Form'!R11),\"\",\"99\"))","v":""},null,null,null,{"$f":"IF(A4=0,\"\",\"IN\")","v":""},"","","",{"$f":"IF(ISBLANK('VPP Hand-Off Form'!E11),\"\",'VPP Hand-Off Form'!E11)","v":""}]
[{"$f":"IF('VPP Hand-Off Form'!D12=\"Obsolete\",0,IF('VPP Hand-Off Form'!D12=\"Keep\",0,IF('VPP Hand-Off Form'!D12=\"Obsolete-Partial\",0,'VPP Hand-Off Form'!A12)))","v":0},{"$f":"IF('VPP Hand-Off Form'!D12=\"Obsolete\",\"0\",IF('VPP Hand-Off Form'!D12=\"Keep\",\"0\",IF('VPP Hand-Off Form'!D12=\"Obsolete-Partial\",\"0\",'VPP Hand-Off Form'!B12)))","v":0},"",null,null,null,null,{"$f":"IF(A5=0,\"\",\"BBY_PURCHASING\")","v":""},{"$f":"IF(A5=0,\"\",'VPP Hand-Off Form'!#REF!)","v":""},null,"",{"$f":"IF(A5=0,\"\",'VPP Hand-Off Form'!#REF!)","v":""},"",null,null,null,"H","",{"$f":"IF(A5=0,\"\",'VPP Hand-Off Form'!$B$3)","v":""},null,null,{"$f":"IF(A5=0,\"\",'VPP Hand-Off Form'!$B$4)","v":""},{"$f":"IF(A5=0,\"\",'VPP Hand-Off Form'!#REF!)","v":""},{"$f":"IF(A5=0,\"\",'VPP Hand-Off Form'!#REF!)","v":""},"","",null,"","",{"$f":"IF(A5=0,\"\",IF(ISBLANK('Output (BBY)'!A5),\"\",\"Created\"))","v":""},null,null,null,{"$f":"IF(A5=0,\"\",IF(ISBLANK('VPP Hand-Off Form'!R12),\"\",\"99\"))","v":""},null,null,null,"","","","",{"$f":"IF(ISBLANK('VPP Hand-Off Form'!E12),\"\",'VPP Hand-Off Form'!E12)","v":""}]
[{"$f":"IF('VPP Hand-Off Form'!D13=\"Obsolete\",0,IF('VPP Hand-Off Form'!D13=\"Keep\",0,IF('VPP Hand-Off Form'!D13=\"Obsolete-Partial\",0,'VPP Hand-Off Form'!A13)))","v":0},{"$f":"IF('VPP Hand-Off Form'!D13=\"Obsolete\",\"0\",IF('VPP Hand-Off Form'!D13=\"Keep\",\"0\",IF('VPP Hand-Off Form'!D13=\"Obsolete-Partial\",\"0\",'VPP Hand-Off Form'!B13)))","v":0},"",null,null,null,null,{"$f":"IF(A6=0,\"\",\"BBY_PURCHASING\")","v":""},{"$f":"IF(A6=0,\"\",'VPP Hand-Off Form'!#REF!)","v":""},null,"",{"$f":"IF(A6=0,\"\",'VPP Hand-Off Form'!#REF!)","v":""},"",null,null,null,"H","",{"$f":"IF(A6=0,\"\",'VPP Hand-Off Form'!$B$3)","v":""},null,null,{"$f":"IF(A6=0,\"\",'VPP Hand-Off Form'!$B$4)","v":""},{"$f":"IF(A6=0,\"\",'VPP Hand-Off Form'!#REF!)","v":""},{"$f":"IF(A6=0,\"\",'VPP Hand-Off Form'!#REF!)","v":""},"","",null,"","",{"$f":"IF(A6=0,\"\",IF(ISBLANK('Output (BBY)'!A6),\"\",\"Created\"))","v":""},null,null,null,{"$f":"IF(A6=0,\"\",IF(ISBLANK('VPP Hand-Off Form'!R13),\"\",\"99\"))","v":""},null,null,null,"","","","",{"$f":"IF(ISBLANK('VPP Hand-Off Form'!E13),\"\",'VPP Hand-Off Form'!E13)","v":""}]
[{"$f":"IF('VPP Hand-Off Form'!D14=\"Obsolete\",0,IF('VPP Hand-Off Form'!D14=\"Keep\",0,IF('VPP Hand-Off Form'!D14=\"Obsolete-Partial\",0,'VPP Hand-Off Form'!A14)))","v":0},{"$f":"IF('VPP Hand-Off Form'!D14=\"Obsolete\",\"0\",IF('VPP Hand-Off Form'!D14=\"Keep\",\"0\",IF('VPP Hand-Off Form'!D14=\"Obsolete-Partial\",\"0\",'VPP Hand-Off Form'!B14)))","v":0},"",null,null,null,null,"",{"$f":"IF(A7=0,\"\",'VPP Hand-Off Form'!#REF!)","v":""},null,"",{"$f":"IF(A7=0,\"\",'VPP Hand-Off Form'!#REF!)","v":""},"",null,null,null,"H","",{"$f":"IF(A7=0,\"\",'VPP Hand-Off Form'!$B$3)","v":""},null,null,{"$f":"IF(A7=0,\"\",'VPP Hand-Off Form'!$B$4)","v":""},{"$f":"IF(A7=0,\"\",'VPP Hand-Off Form'!#REF!)","v":""},{"$f":"IF(A7=0,\"\",'VPP Hand-Off Form'!#REF!)","v":""},"","",null,"","",{"$f":"IF(A7=0,\"\",IF(ISBLANK('Output (BBY)'!A7),\"\",\"Created\"))","v":""},null,null,null,{"$f":"IF(A7=0,\"\",IF(ISBLANK('VPP Hand-Off Form'!R14),\"\",\"99\"))","v":""},null,null,null,"","","","",{"$f":"IF(ISBLANK('VPP Hand-Off Form'!E14),\"\",'VPP Hand-Off Form'!E14)","v":""}]
[{"$f":"IF('VPP Hand-Off Form'!D15=\"Obsolete\",0,IF('VPP Hand-Off Form'!D15=\"Keep\",0,IF('VPP Hand-Off Form'!D15=\"Obsolete-Partial\",0,'VPP Hand-Off Form'!A15)))","v":0},{"$f":"IF('VPP Hand-Off Form'!D15=\"Obsolete\",\"0\",IF('VPP Hand-Off Form'!D15=\"Keep\",\"0\",IF('VPP Hand-Off Form'!D15=\"Obsolete-Partial\",\"0\",'VPP Hand-Off Form'!B15)))","v":0},"",null,null,null,null,"",{"$f":"IF(A8=0,\"\",'VPP Hand-Off Form'!#REF!)","v":""},null,"",{"$f":"IF(A8=0,\"\",'VPP Hand-Off Form'!#REF!)","v":""},"",null,null,null,"H","",{"$f":"IF(A8=0,\"\",'VPP Hand-Off Form'!$B$3)","v":""},null,null,{"$f":"IF(A8=0,\"\",'VPP Hand-Off Form'!$B$4)","v":""},{"$f":"IF(A8=0,\"\",'VPP Hand-Off Form'!#REF!)","v":""},{"$f":"IF(A8=0,\"\",'VPP Hand-Off Form'!#REF!)","v":""},"","",null,"","",{"$f":"IF(A8=0,\"\",IF(ISBLANK('Output (BBY)'!A8),\"\",\"Created\"))","v":""},null,null,null,{"$f":"IF(A8=0,\"\",IF(ISBLANK('VPP Hand-Off Form'!R15),\"\",\"99\"))","v":""},null,null,null,"","","","",{"$f":"IF(ISBLANK('VPP Hand-Off Form'!E15),\"\",'VPP Hand-Off Form'!E15)","v":""}]
[{"$f":"IF('VPP Hand-Off Form'!D16=\"Obsolete\",0,IF('VPP Hand-Off Form'!D16=\"Keep\",0,IF('VPP Hand-Off Form'!D16=\"Obsolete-Partial\",0,'VPP Hand-Off Form'!A16)))","v":0},{"$f":"IF('VPP Hand-Off Form'!D16=\"Obsolete\",\"0\",IF('VPP Hand-Off Form'!D16=\"Keep\",\"0\",IF('VPP Hand-Off Form'!D16=\"Obsolete-Partial\",\"0\",'VPP Hand-Off Form'!B16)))","v":0},"",null,null,null,null,"",{"$f":"IF(A9=0,\"\",'VPP Hand-Off Form'!#REF!)","v":""},null,"",{"$f":"IF(A9=0,\"\",'VPP Hand-Off Form'!#REF!)","v":""},"",null,null,null,"H","",{"$f":"IF(A9=0,\"\",'VPP Hand-Off Form'!$B$3)","v":""},null,null,{"$f":"IF(A9=0,\"\",'VPP Hand-Off Form'!$B$4)","v":""},{"$f":"IF(A9=0,\"\",'VPP Hand-Off Form'!#REF!)","v":""},{"$f":"IF(A9=0,\"\",'VPP Hand-Off Form'!#REF!)","v":""},"","",null,"","",{"$f":"IF(A9=0,\"\",IF(ISBLANK('Output (BBY)'!A9),\"\",\"Created\"))","v":""},null,null,null,{"$f":"IF(A9=0,\"\",IF(ISBLANK('VPP Hand-Off Form'!R16),\"\",\"99\"))","v":""},null,null,null,"","","","",{"$f":"IF(ISBLANK('VPP Hand-Off Form'!E16),\"\",'VPP Hand-Off Form'!E16)","v":""}]
[{"$f":"IF('VPP Hand-Off Form'!D17=\"Obsolete\",0,IF('VPP Hand-Off Form'!D17=\"Keep\",0,IF('VPP Hand-Off Form'!D17=\"Obsolete-Partial\",0,'VPP Hand-Off Form'!A17)))","v":0},{"$f":"IF('VPP Hand-Off Form'!D17=\"Obsolete\",\"0\",IF('VPP Hand-Off Form'!D17=\"Keep\",\"0\",IF('VPP Hand-Off Form'!D17=\"Obsolete-Partial\",\"0\",'VPP Hand-Off Form'!B17)))","v":0},"",null,null,null,null,"",{"$f":"IF(A10=0,\"\",'VPP Hand-Off Form'!#REF!)","v":""},null,"",{"$f":"IF(A10=0,\"\",'VPP Hand-Off Form'!#REF!)","v":""},"",null,null,null,"H","",{"$f":"IF(A10=0,\"\",'VPP Hand-Off Form'!$B$3)","v":""},null,null,{"$f":"IF(A10=0,\"\",'VPP Hand-Off Form'!$B$4)","v":""},{"$f":"IF(A10=0,\"\",'VPP Hand-Off Form'!#REF!)","v":""},{"$f":"IF(A10=0,\"\",'VPP Hand-Off Form'!#REF!)","v":""},"","",null,"","",{"$f":"IF(A10=0,\"\",IF(ISBLANK('Output (BBY)'!A10),\"\",\"Created\"))","v":""},null,null,null,{"$f":"IF(A10=0,\"\",IF(ISBLANK('VPP Hand-Off Form'!R17),\"\",\"99\"))","v":""},null,null,null,"","","","",{"$f":"IF(ISBLANK('VPP Hand-Off Form'!E17),\"\",'VPP Hand-Off Form'!E17)","v":""}]
[{"$f":"IF('VPP Hand-Off Form'!D18=\"Obsolete\",0,IF('VPP Hand-Off Form'!D18=\"Keep\",0,IF('VPP Hand-Off Form'!D18=\"Obsolete-Partial\",0,'VPP Hand-Off Form'!A18)))","v":0},{"$f":"IF('VPP Hand-Off Form'!D18=\"Obsolete\",\"0\",IF('VPP Hand-Off Form'!D18=\"Keep\",\"0\",IF('VPP Hand-Off Form'!D18=\"Obsolete-Partial\",\"0\",'VPP Hand-Off Form'!B18)))","v":0},"",null,null,null,null,"",{"$f":"IF(A11=0,\"\",'VPP Hand-Off Form'!#REF!)","v":""},null,"",{"$f":"IF(A11=0,\"\",'VPP Hand-Off Form'!#REF!)","v":""},"",null,null,null,"H","",{"$f":"IF(A11=0,\"\",'VPP Hand-Off Form'!$B$3)","v":""},null,null,{"$f":"IF(A11=0,\"\",'VPP Hand-Off Form'!$B$4)","v":""},{"$f":"IF(A11=0,\"\",'VPP Hand-Off Form'!#REF!)","v":""},{"$f":"IF(A11=0,\"\",'VPP Hand-Off Form'!#REF!)","v":""},"","",null,"","",{"$f":"IF(A11=0,\"\",IF(ISBLANK('Output (BBY)'!A11),\"\",\"Created\"))","v":""},null,null,null,{"$f":"IF(A11=0,\"\",IF(ISBLANK('VPP Hand-Off Form'!R18),\"\",\"99\"))","v":""},null,null,null,"","","","",{"$f":"IF(ISBLANK('VPP Hand-Off Form'!E18),\"\",'VPP Hand-Off Form'!E18)","v":""}]
[{"$f":"IF('VPP Hand-Off Form'!D19=\"Obsolete\",0,IF('VPP Hand-Off Form'!D19=\"Keep\",0,IF('VPP Hand-Off Form'!D19=\"Obsolete-Partial\",0,'VPP Hand-Off Form'!A19)))","v":0},{"$f":"IF('VPP Hand-Off Form'!D19=\"Obsolete\",\"0\",IF('VPP Hand-Off Form'!D19=\"Keep\",\"0\",IF('VPP Hand-Off Form'!D19=\"Obsolete-Partial\",\"0\",'VPP Hand-Off Form'!B19)))","v":0},"",null,null,null,null,"",{"$f":"IF(A12=0,\"\",'VPP Hand-Off Form'!#REF!)","v":""},null,"",{"$f":"IF(A12=0,\"\",'VPP Hand-Off Form'!#REF!)","v":""},"",null,null,null,"H","",{"$f":"IF(A12=0,\"\",'VPP Hand-Off Form'!$B$3)","v":""},null,null,{"$f":"IF(A12=0,\"\",'VPP Hand-Off Form'!$B$4)","v":""},{"$f":"IF(A12=0,\"\",'VPP Hand-Off Form'!#REF!)","v":""},{"$f":"IF(A12=0,\"\",'VPP Hand-Off Form'!#REF!)","v":""},"","",null,"","",{"$f":"IF(A12=0,\"\",IF(ISBLANK('Output (BBY)'!A12),\"\",\"Created\"))","v":""},null,null,null,{"$f":"IF(A12=0,\"\",IF(ISBLANK('VPP Hand-Off Form'!R19),\"\",\"99\"))","v":""},null,null,null,"","","","",{"$f":"IF(ISBLANK('VPP Hand-Off Form'!E19),\"\",'VPP Hand-Off Form'!E19)","v":""}]
[{"$f":"IF('VPP Hand-Off Form'!D20=\"Obsolete\",0,IF('VPP Hand-Off Form'!D20=\"Keep\",0,IF('VPP Hand-Off Form'!D20=\"Obsolete-Partial\",0,'VPP Hand-Off Form'!A20)))","v":0},{"$f":"IF('VPP Hand-Off Form'!D20=\"Obsolete\",\"0\",IF('VPP Hand-Off Form'!D20=\"Keep\",\"0\",IF('VPP Hand-Off Form'!D20=\"Obsolete-Partial\",\"0\",'VPP Hand-Off Form'!B20)))","v":0},"",null,null,null,null,"",{"$f":"IF(A13=0,\"\",'VPP Hand-Off Form'!#REF!)","v":""},null,"",{"$f":"IF(A13=0,\"\",'VPP Hand-Off Form'!#REF!)","v":""},"",null,null,null,"H","",{"$f":"IF(A13=0,\"\",'VPP Hand-Off Form'!$B$3)","v":""},null,null,{"$f":"IF(A13=0,\"\",'VPP Hand-Off Form'!$B$4)","v":""},{"$f":"IF(A13=0,\"\",'VPP Hand-Off Form'!#REF!)","v":""},{"$f":"IF(A13=0,\"\",'VPP Hand-Off Form'!#REF!)","v":""},"","",null,"","",{"$f":"IF(A13=0,\"\",IF(ISBLANK('Output (BBY)'!A13),\"\",\"Created\"))","v":""},null,null,null,{"$f":"IF(A13=0,\"\",IF(ISBLANK('VPP Hand-Off Form'!R20),\"\",\"99\"))","v":""},null,null,null,"","","","",{"$f":"IF(ISBLANK('VPP Hand-Off Form'!E20),\"\",'VPP Hand-Off Form'!E20)","v":""}]
[{"$f":"IF('VPP Hand-Off Form'!D21=\"Obsolete\",0,IF('VPP Hand-Off Form'!D21=\"Keep\",0,IF('VPP Hand-Off Form'!D21=\"Obsolete-Partial\",0,'VPP Hand-Off Form'!A21)))","v":0},{"$f":"IF('VPP Hand-Off Form'!D21=\"Obsolete\",\"0\",IF('VPP Hand-Off Form'!D21=\"Keep\",\"0\",IF('VPP Hand-Off Form'!D21=\"Obsolete-Partial\",\"0\",'VPP Hand-Off Form'!B21)))","v":0},"",null,null,null,null,"",{"$f":"IF(A14=0,\"\",'VPP Hand-Off Form'!#REF!)","v":""},null,"",{"$f":"IF(A14=0,\"\",'VPP Hand-Off Form'!#REF!)","v":""},"",null,null,null,"H","",{"$f":"IF(A14=0,\"\",'VPP Hand-Off Form'!$B$3)","v":""},null,null,{"$f":"IF(A14=0,\"\",'VPP Hand-Off Form'!$B$4)","v":""},{"$f":"IF(A14=0,\"\",'VPP Hand-Off Form'!#REF!)","v":""},{"$f":"IF(A14=0,\"\",'VPP Hand-Off Form'!#REF!)","v":""},"","",null,"","",{"$f":"IF(A14=0,\"\",IF(ISBLANK('Output (BBY)'!A14),\"\",\"Created\"))","v":""},null,null,null,{"$f":"IF(A14=0,\"\",IF(ISBLANK('VPP Hand-Off Form'!R21),\"\",\"99\"))","v":""},null,null,null,"","","","",{"$f":"IF(ISBLANK('VPP Hand-Off Form'!E21),\"\",'VPP Hand-Off Form'!E21)","v":""}]
[{"$f":"IF('VPP Hand-Off Form'!D22=\"Obsolete\",0,IF('VPP Hand-Off Form'!D22=\"Keep\",0,IF('VPP Hand-Off Form'!D22=\"Obsolete-Partial\",0,'VPP Hand-Off Form'!A22)))","v":0},{"$f":"IF('VPP Hand-Off Form'!D22=\"Obsolete\",\"0\",IF('VPP Hand-Off Form'!D22=\"Keep\",\"0\",IF('VPP Hand-Off Form'!D22=\"Obsolete-Partial\",\"0\",'VPP Hand-Off Form'!B22)))","v":0},"",null,null,null,null,"",{"$f":"IF(A15=0,\"\",'VPP Hand-Off Form'!#REF!)","v":""},null,"",{"$f":"IF(A15=0,\"\",'VPP Hand-Off Form'!#REF!)","v":""},"",null,null,null,"H","",{"$f":"IF(A15=0,\"\",'VPP Hand-Off Form'!$B$3)","v":""},null,null,{"$f":"IF(A15=0,\"\",'VPP Hand-Off Form'!$B$4)","v":""},{"$f":"IF(A15=0,\"\",'VPP Hand-Off Form'!#REF!)","v":""},{"$f":"IF(A15=0,\"\",'VPP Hand-Off Form'!#REF!)","v":""},"","",null,"","",{"$f":"IF(A15=0,\"\",IF(ISBLANK('Output (BBY)'!A15),\"\",\"Created\"))","v":""},null,null,null,{"$f":"IF(A15=0,\"\",IF(ISBLANK('VPP Hand-Off Form'!R22),\"\",\"99\"))","v":""},null,null,null,"","","","",{"$f":"IF(ISBLANK('VPP Hand-Off Form'!E22),\"\",'VPP Hand-Off Form'!E22)","v":""}]
[{"$f":"IF('VPP Hand-Off Form'!D23=\"Obsolete\",0,IF('VPP Hand-Off Form'!D23=\"Keep\",0,IF('VPP Hand-Off Form'!D23=\"Obsolete-Partial\",0,'VPP Hand-Off Form'!A23)))","v":0},{"$f":"IF('VPP Hand-Off Form'!D23=\"Obsolete\",\"0\",IF('VPP Hand-Off Form'!D23=\"Keep\",\"0\",IF('VPP Hand-Off Form'!D23=\"Obsolete-Partial\",\"0\",'VPP Hand-Off Form'!B23)))","v":0},"",null,null,null,null,"",{"$f":"IF(A16=0,\"\",'VPP Hand-Off Form'!#REF!)","v":""},null,"",{"$f":"IF(A16=0,\"\",'VPP Hand-Off Form'!#REF!)","v":""},"",null,null,null,"H","",{"$f":"IF(A16=0,\"\",'VPP Hand-Off Form'!$B$3)","v":""},null,null,{"$f":"IF(A16=0,\"\",'VPP Hand-Off Form'!$B$4)","v":""},{"$f":"IF(A16=0,\"\",'VPP Hand-Off Form'!#REF!)","v":""},{"$f":"IF(A16=0,\"\",'VPP Hand-Off Form'!#REF!)","v":""},"","",null,"","",{"$f":"IF(A16=0,\"\",IF(ISBLANK('Output (BBY)'!A16),\"\",\"Created\"))","v":""},null,null,null,{"$f":"IF(A16=0,\"\",IF(ISBLANK('VPP Hand-Off Form'!R23),\"\",\"99\"))","v":""},null,null,null,"","","","",{"$f":"IF(ISBLANK('VPP Hand-Off Form'!E23),\"\",'VPP Hand-Off Form'!E23)","v":""}]
[{"$f":"IF('VPP Hand-Off Form'!D24=\"Obsolete\",0,IF('VPP Hand-Off Form'!D24=\"Keep\",0,IF('VPP Hand-Off Form'!D24=\"Obsolete-Partial\",0,'VPP Hand-Off Form'!A24)))","v":0},{"$f":"IF('VPP Hand-Off Form'!D24=\"Obsolete\",\"0\",IF('VPP Hand-Off Form'!D24=\"Keep\",\"0\",IF('VPP Hand-Off Form'!D24=\"Obsolete-Partial\",\"0\",'VPP Hand-Off Form'!B24)))","v":0},"",null,null,null,null,"",{"$f":"IF(A17=0,\"\",'VPP Hand-Off Form'!#REF!)","v":""},null,"",{"$f":"IF(A17=0,\"\",'VPP Hand-Off Form'!#REF!)","v":""},"",null,null,null,"H","",{"$f":"IF(A17=0,\"\",'VPP Hand-Off Form'!$B$3)","v":""},null,null,{"$f":"IF(A17=0,\"\",'VPP Hand-Off Form'!$B$4)","v":""},{"$f":"IF(A17=0,\"\",'VPP Hand-Off Form'!#REF!)","v":""},{"$f":"IF(A17=0,\"\",'VPP Hand-Off Form'!#REF!)","v":""},"","",null,"","",{"$f":"IF(A17=0,\"\",IF(ISBLANK('Output (BBY)'!A17),\"\",\"Created\"))","v":""},null,null,null,{"$f":"IF(A17=0,\"\",IF(ISBLANK('VPP Hand-Off Form'!R24),\"\",\"99\"))","v":""},null,null,null,"","","","",{"$f":"IF(ISBLANK('VPP Hand-Off Form'!E24),\"\",'VPP Hand-Off Form'!E24)","v":""}]
[{"$f":"IF('VPP Hand-Off Form'!D25=\"Obsolete\",0,IF('VPP Hand-Off Form'!D25=\"Keep\",0,IF('VPP Hand-Off Form'!D25=\"Obsolete-Partial\",0,'VPP Hand-Off Form'!A25)))","v":0},{"$f":"IF('VPP Hand-Off Form'!D25=\"Obsolete\",\"0\",IF('VPP Hand-Off Form'!D25=\"Keep\",\"0\",IF('VPP Hand-Off Form'!D25=\"Obsolete-Partial\",\"0\",'VPP Hand-Off Form'!B25)))","v":0},"",null,null,null,null,"",{"$f":"IF(A18=0,\"\",'VPP Hand-Off Form'!#REF!)","v":""},null,"",{"$f":"IF(A18=0,\"\",'VPP Hand-Off Form'!#REF!)","v":""},"",null,null,null,"H","",{"$f":"IF(A18=0,\"\",'VPP Hand-Off Form'!$B$3)","v":""},null,null,{"$f":"IF(A18=0,\"\",'VPP Hand-Off Form'!$B$4)","v":""},{"$f":"IF(A18=0,\"\",'VPP Hand-Off Form'!#REF!)","v":""},{"$f":"IF(A18=0,\"\",'VPP Hand-Off Form'!#REF!)","v":""},"","",null,"","",{"$f":"IF(A18=0,\"\",IF(ISBLANK('Output (BBY)'!A18),\"\",\"Created\"))","v":""},null,null,null,{"$f":"IF(A18=0,\"\",IF(ISBLANK('VPP Hand-Off Form'!R25),\"\",\"99\"))","v":""},null,null,null,"","","","",{"$f":"IF(ISBLANK('VPP Hand-Off Form'!E25),\"\",'VPP Hand-Off Form'!E25)","v":""}]
[{"$f":"IF('VPP Hand-Off Form'!D26=\"Obsolete\",0,IF('VPP Hand-Off Form'!D26=\"Keep\",0,IF('VPP Hand-Off Form'!D26=\"Obsolete-Partial\",0,'VPP Hand-Off Form'!A26)))","v":0},{"$f":"IF('VPP Hand-Off Form'!D26=\"Obsolete\",\"0\",IF('VPP Hand-Off Form'!D26=\"Keep\",\"0\",IF('VPP Hand-Off Form'!D26=\"Obsolete-Partial\",\"0\",'VPP Hand-Off Form'!B26)))","v":0},"",null,null,null,null,"",{"$f":"IF(A19=0,\"\",'VPP Hand-Off Form'!#REF!)","v":""},null,"",{"$f":"IF(A19=0,\"\",'VPP Hand-Off Form'!#REF!)","v":""},"",null,null,null,"H","",{"$f":"IF(A19=0,\"\",'VPP Hand-Off Form'!$B$3)","v":""},null,null,{"$f":"IF(A19=0,\"\",'VPP Hand-Off Form'!$B$4)","v":""},{"$f":"IF(A19=0,\"\",'VPP Hand-Off Form'!#REF!)","v":""},{"$f":"IF(A19=0,\"\",'VPP Hand-Off Form'!#REF!)","v":""},"","",null,"","",{"$f":"IF(A19=0,\"\",IF(ISBLANK('Output (BBY)'!A19),\"\",\"Created\"))","v":""},null,null,null,{"$f":"IF(A19=0,\"\",IF(ISBLANK('VPP Hand-Off Form'!R26),\"\",\"99\"))","v":""},null,null,null,"","","","",{"$f":"IF(ISBLANK('VPP Hand-Off Form'!E26),\"\",'VPP Hand-Off Form'!E26)","v":""}]
[{"$f":"IF('VPP Hand-Off Form'!D27=\"Obsolete\",0,IF('VPP Hand-Off Form'!D27=\"Keep\",0,IF('VPP Hand-Off Form'!D27=\"Obsolete-Partial\",0,'VPP Hand-Off Form'!A27)))","v":0},{"$f":"IF('VPP Hand-Off Form'!D27=\"Obsolete\",\"0\",IF('VPP Hand-Off Form'!D27=\"Keep\",\"0\",IF('VPP Hand-Off Form'!D27=\"Obsolete-Partial\",\"0\",'VPP Hand-Off Form'!B27)))","v":0},"",null,null,null,null,"",{"$f":"IF(A20=0,\"\",'VPP Hand-Off Form'!#REF!)","v":""},null,"",{"$f":"IF(A20=0,\"\",'VPP Hand-Off Form'!#REF!)","v":""},"",null,null,null,"H","",{"$f":"IF(A20=0,\"\",'VPP Hand-Off Form'!$B$3)","v":""},null,null,{"$f":"IF(A20=0,\"\",'VPP Hand-Off Form'!$B$4)","v":""},{"$f":"IF(A20=0,\"\",'VPP Hand-Off Form'!#REF!)","v":""},{"$f":"IF(A20=0,\"\",'VPP Hand-Off Form'!#REF!)","v":""},"","",null,"","",{"$f":"IF(A20=0,\"\",IF(ISBLANK('Output (BBY)'!A20),\"\",\"Created\"))","v":""},null,null,null,{"$f":"IF(A20=0,\"\",IF(ISBLANK('VPP Hand-Off Form'!R27),\"\",\"99\"))","v":""},null,null,null,"","","","",{"$f":"IF(ISBLANK('VPP Hand-Off Form'!E27),\"\",'VPP Hand-Off Form'!E27)","v":""}]
[{"$f":"IF('VPP Hand-Off Form'!D28=\"Obsolete\",0,IF('VPP Hand-Off Form'!D28=\"Keep\",0,IF('VPP Hand-Off Form'!D28=\"Obsolete-Partial\",0,'VPP Hand-Off Form'!A28)))","v":0},{"$f":"IF('VPP Hand-Off Form'!D28=\"Obsolete\",\"0\",IF('VPP Hand-Off Form'!D28=\"Keep\",\"0\",IF('VPP Hand-Off Form'!D28=\"Obsolete-Partial\",\"0\",'VPP Hand-Off Form'!B28)))","v":0},"",null,null,null,null,"",{"$f":"IF(A21=0,\"\",'VPP Hand-Off Form'!#REF!)","v":""},null,"",{"$f":"IF(A21=0,\"\",'VPP Hand-Off Form'!#REF!)","v":""},"",null,null,null,"H","",{"$f":"IF(A21=0,\"\",'VPP Hand-Off Form'!$B$3)","v":""},null,null,{"$f":"IF(A21=0,\"\",'VPP Hand-Off Form'!$B$4)","v":""},{"$f":"IF(A21=0,\"\",'VPP Hand-Off Form'!#REF!)","v":""},{"$f":"IF(A21=0,\"\",'VPP Hand-Off Form'!#REF!)","v":""},"","",null,"","",{"$f":"IF(A21=0,\"\",IF(ISBLANK('Output (BBY)'!A21),\"\",\"Created\"))","v":""},null,null,null,{"$f":"IF(A21=0,\"\",IF(ISBLANK('VPP Hand-Off Form'!R28),\"\",\"99\"))","v":""},null,null,null,"","","","",{"$f":"IF(ISBLANK('VPP Hand-Off Form'!E28),\"\",'VPP Hand-Off Form'!E28)","v":""}]
[{"$f":"IF('VPP Hand-Off Form'!D29=\"Obsolete\",0,IF('VPP Hand-Off Form'!D29=\"Keep\",0,IF('VPP Hand-Off Form'!D29=\"Obsolete-Partial\",0,'VPP Hand-Off Form'!A29)))","v":0},{"$f":"IF('VPP Hand-Off Form'!D29=\"Obsolete\",\"0\",IF('VPP Hand-Off Form'!D29=\"Keep\",\"0\",IF('VPP Hand-Off Form'!D29=\"Obsolete-Partial\",\"0\",'VPP Hand-Off Form'!B29)))","v":0},"",null,null,null,null,"",{"$f":"IF(A22=0,\"\",'VPP Hand-Off Form'!#REF!)","v":""},null,"",{"$f":"IF(A22=0,\"\",'VPP Hand-Off Form'!#REF!)","v":""},"",null,null,null,"H","",{"$f":"IF(A22=0,\"\",'VPP Hand-Off Form'!$B$3)","v":""},null,null,{"$f":"IF(A22=0,\"\",'VPP Hand-Off Form'!$B$4)","v":""},{"$f":"IF(A22=0,\"\",'VPP Hand-Off Form'!#REF!)","v":""},{"$f":"IF(A22=0,\"\",'VPP Hand-Off Form'!#REF!)","v":""},"","",null,"","",{"$f":"IF(A22=0,\"\",IF(ISBLANK('Output (BBY)'!A22),\"\",\"Created\"))","v":""},null,null,null,{"$f":"IF(A22=0,\"\",IF(ISBLANK('VPP Hand-Off Form'!R29),\"\",\"99\"))","v":""},null,null,null,"","","","",{"$f":"IF(ISBLANK('VPP Hand-Off Form'!E29),\"\",'VPP Hand-Off Form'!E29)","v":""}]
[{"$f":"IF('VPP Hand-Off Form'!D30=\"Obsolete\",0,IF('VPP Hand-Off Form'!D30=\"Keep\",0,IF('VPP Hand-Off Form'!D30=\"Obsolete-Partial\",0,'VPP Hand-Off Form'!A30)))","v":0},{"$f":"IF('VPP Hand-Off Form'!D30=\"Obsolete\",\"0\",IF('VPP Hand-Off Form'!D30=\"Keep\",\"0\",IF('VPP Hand-Off Form'!D30=\"Obsolete-Partial\",\"0\",'VPP Hand-Off Form'!B30)))","v":0},"",null,null,null,null,"",{"$f":"IF(A23=0,\"\",'VPP Hand-Off Form'!#REF!)","v":""},null,"",{"$f":"IF(A23=0,\"\",'VPP Hand-Off Form'!#REF!)","v":""},"",null,null,null,"H","",{"$f":"IF(A23=0,\"\",'VPP Hand-Off Form'!$B$3)","v":""},null,null,{"$f":"IF(A23=0,\"\",'VPP Hand-Off Form'!$B$4)","v":""},{"$f":"IF(A23=0,\"\",'VPP Hand-Off Form'!#REF!)","v":""},{"$f":"IF(A23=0,\"\",'VPP Hand-Off Form'!#REF!)","v":""},"","",null,"","",{"$f":"IF(A23=0,\"\",IF(ISBLANK('Output (BBY)'!A23),\"\",\"Created\"))","v":""},null,null,null,{"$f":"IF(A23=0,\"\",IF(ISBLANK('VPP Hand-Off Form'!R30),\"\",\"99\"))","v":""},null,null,null,"","","","",{"$f":"IF(ISBLANK('VPP Hand-Off Form'!E30),\"\",'VPP Hand-Off Form'!E30)","v":""}]
[{"$f":"IF('VPP Hand-Off Form'!D31=\"Obsolete\",0,IF('VPP Hand-Off Form'!D31=\"Keep\",0,IF('VPP Hand-Off Form'!D31=\"Obsolete-Partial\",0,'VPP Hand-Off Form'!A31)))","v":0},{"$f":"IF('VPP Hand-Off Form'!D31=\"Obsolete\",\"0\",IF('VPP Hand-Off Form'!D31=\"Keep\",\"0\",IF('VPP Hand-Off Form'!D31=\"Obsolete-Partial\",\"0\",'VPP Hand-Off Form'!B31)))","v":0},"",null,null,null,null,"",{"$f":"IF(A24=0,\"\",'VPP Hand-Off Form'!#REF!)","v":""},null,"",{"$f":"IF(A24=0,\"\",'VPP Hand-Off Form'!#REF!)","v":""},"",null,null,null,"H","",{"$f":"IF(A24=0,\"\",'VPP Hand-Off Form'!$B$3)","v":""},null,null,{"$f":"IF(A24=0,\"\",'VPP Hand-Off Form'!$B$4)","v":""},{"$f":"IF(A24=0,\"\",'VPP Hand-Off Form'!#REF!)","v":""},{"$f":"IF(A24=0,\"\",'VPP Hand-Off Form'!#REF!)","v":""},"","",null,"","",{"$f":"IF(A24=0,\"\",IF(ISBLANK('Output (BBY)'!A24),\"\",\"Created\"))","v":""},null,null,null,{"$f":"IF(A24=0,\"\",IF(ISBLANK('VPP Hand-Off Form'!R31),\"\",\"99\"))","v":""},null,null,null,"","","","",{"$f":"IF(ISBLANK('VPP Hand-Off Form'!E31),\"\",'VPP Hand-Off Form'!E31)","v":""}]
[{"$f":"IF('VPP Hand-Off Form'!D32=\"Obsolete\",0,IF('VPP Hand-Off Form'!D32=\"Keep\",0,IF('VPP Hand-Off Form'!D32=\"Obsolete-Partial\",0,'VPP Hand-Off Form'!A32)))","v":0},{"$f":"IF('VPP Hand-Off Form'!D32=\"Obsolete\",\"0\",IF('VPP Hand-Off Form'!D32=\"Keep\",\"0\",IF('VPP Hand-Off Form'!D32=\"Obsolete-Partial\",\"0\",'VPP Hand-Off Form'!B32)))","v":0},"",null,null,null,null,"",{"$f":"IF(A25=0,\"\",'VPP Hand-Off Form'!#REF!)","v":""},null,"",{"$f":"IF(A25=0,\"\",'VPP Hand-Off Form'!#REF!)","v":""},"",null,null,null,"H","",{"$f":"IF(A25=0,\"\",'VPP Hand-Off Form'!$B$3)","v":""},null,null,{"$f":"IF(A25=0,\"\",'VPP Hand-Off Form'!$B$4)","v":""},{"$f":"IF(A25=0,\"\",'VPP Hand-Off Form'!#REF!)","v":""},{"$f":"IF(A25=0,\"\",'VPP Hand-Off Form'!#REF!)","v":""},"","",null,"","",{"$f":"IF(A25=0,\"\",IF(ISBLANK('Output (BBY)'!A25),\"\",\"Created\"))","v":""},null,null,null,{"$f":"IF(A25=0,\"\",IF(ISBLANK('VPP Hand-Off Form'!R32),\"\",\"99\"))","v":""},null,null,null,"","","","",{"$f":"IF(ISBLANK('VPP Hand-Off Form'!E32),\"\",'VPP Hand-Off Form'!E32)","v":""}]
[{"$f":"IF('VPP Hand-Off Form'!D33=\"Obsolete\",0,IF('VPP Hand-Off Form'!D33=\"Keep\",0,IF('VPP Hand-Off Form'!D33=\"Obsolete-Partial\",0,'VPP Hand-Off Form'!A33)))","v":0},{"$f":"IF('VPP Hand-Off Form'!D33=\"Obsolete\",\"0\",IF('VPP Hand-Off Form'!D33=\"Keep\",\"0\",IF('VPP Hand-Off Form'!D33=\"Obsolete-Partial\",\"0\",'VPP Hand-Off Form'!B33)))","v":0},"",null,null,null,null,"",{"$f":"IF(A26=0,\"\",'VPP Hand-Off Form'!#REF!)","v":""},null,"",{"$f":"IF(A26=0,\"\",'VPP Hand-Off Form'!#REF!)","v":""},"",null,null,null,"H","",{"$f":"IF(A26=0,\"\",'VPP Hand-Off Form'!$B$3)","v":""},null,null,{"$f":"IF(A26=0,\"\",'VPP Hand-Off Form'!$B$4)","v":""},{"$f":"IF(A26=0,\"\",'VPP Hand-Off Form'!#REF!)","v":""},{"$f":"IF(A26=0,\"\",'VPP Hand-Off Form'!#REF!)","v":""},"","",null,"","",{"$f":"IF(A26=0,\"\",IF(ISBLANK('Output (BBY)'!A26),\"\",\"Created\"))","v":""},null,null,null,{"$f":"IF(A26=0,\"\",IF(ISBLANK('VPP Hand-Off Form'!R33),\"\",\"99\"))","v":""},null,null,null,"","","","",{"$f":"IF(ISBLANK('VPP Hand-Off Form'!E33),\"\",'VPP Hand-Off Form'!E33)","v":""}]
[{"$f":"IF('VPP Hand-Off Form'!D34=\"Obsolete\",0,IF('VPP Hand-Off Form'!D34=\"Keep\",0,IF('VPP Hand-Off Form'!D34=\"Obsolete-Partial\",0,'VPP Hand-Off Form'!A34)))","v":0},{"$f":"IF('VPP Hand-Off Form'!D34=\"Obsolete\",\"0\",IF('VPP Hand-Off Form'!D34=\"Keep\",\"0\",IF('VPP Hand-Off Form'!D34=\"Obsolete-Partial\",\"0\",'VPP Hand-Off Form'!B34)))","v":0},"",null,null,null,null,"",{"$f":"IF(A27=0,\"\",'VPP Hand-Off Form'!#REF!)","v":""},null,"",{"$f":"IF(A27=0,\"\",'VPP Hand-Off Form'!#REF!)","v":""},"",null,null,null,"H","",{"$f":"IF(A27=0,\"\",'VPP Hand-Off Form'!$B$3)","v":""},null,null,{"$f":"IF(A27=0,\"\",'VPP Hand-Off Form'!$B$4)","v":""},{"$f":"IF(A27=0,\"\",'VPP Hand-Off Form'!#REF!)","v":""},{"$f":"IF(A27=0,\"\",'VPP Hand-Off Form'!#REF!)","v":""},"","",null,"","",{"$f":"IF(A27=0,\"\",IF(ISBLANK('Output (BBY)'!A27),\"\",\"Created\"))","v":""},null,null,null,{"$f":"IF(A27=0,\"\",IF(ISBLANK('VPP Hand-Off Form'!R34),\"\",\"99\"))","v":""},null,null,null,"","","","",{"$f":"IF(ISBLANK('VPP Hand-Off Form'!E34),\"\",'VPP Hand-Off Form'!E34)","v":""}]
[{"$f":"IF('VPP Hand-Off Form'!D35=\"Obsolete\",0,IF('VPP Hand-Off Form'!D35=\"Keep\",0,IF('VPP Hand-Off Form'!D35=\"Obsolete-Partial\",0,'VPP Hand-Off Form'!A35)))","v":0},{"$f":"IF('VPP Hand-Off Form'!D35=\"Obsolete\",\"0\",IF('VPP Hand-Off Form'!D35=\"Keep\",\"0\",IF('VPP Hand-Off Form'!D35=\"Obsolete-Partial\",\"0\",'VPP Hand-Off Form'!B35)))","v":0},"",null,null,null,null,"",{"$f":"IF(A28=0,\"\",'VPP Hand-Off Form'!#REF!)","v":""},null,"",{"$f":"IF(A28=0,\"\",'VPP Hand-Off Form'!#REF!)","v":""},"",null,null,null,"H","",{"$f":"IF(A28=0,\"\",'VPP Hand-Off Form'!$B$3)","v":""},null,null,{"$f":"IF(A28=0,\"\",'VPP Hand-Off Form'!$B$4)","v":""},{"$f":"IF(A28=0,\"\",'VPP Hand-Off Form'!#REF!)","v":""},{"$f":"IF(A28=0,\"\",'VPP Hand-Off Form'!#REF!)","v":""},"","",null,"","",{"$f":"IF(A28=0,\"\",IF(ISBLANK('Output (BBY)'!A28),\"\",\"Created\"))","v":""},null,null,null,{"$f":"IF(A28=0,\"\",IF(ISBLANK('VPP Hand-Off Form'!R35),\"\",\"99\"))","v":""},null,null,null,"","","","",{"$f":"IF(ISBLANK('VPP Hand-Off Form'!E35),\"\",'VPP Hand-Off Form'!E35)","v":""}]
[{"$f":"IF('VPP Hand-Off Form'!D36=\"Obsolete\",0,IF('VPP Hand-Off Form'!D36=\"Keep\",0,IF('VPP Hand-Off Form'!D36=\"Obsolete-Partial\",0,'VPP Hand-Off Form'!A36)))","v":0},{"$f":"IF('VPP Hand-Off Form'!D36=\"Obsolete\",\"0\",IF('VPP Hand-Off Form'!D36=\"Keep\",\"0\",IF('VPP Hand-Off Form'!D36=\"Obsolete-Partial\",\"0\",'VPP Hand-Off Form'!B36)))","v":0},"",null,null,null,null,"",{"$f":"IF(A29=0,\"\",'VPP Hand-Off Form'!#REF!)","v":""},null,"",{"$f":"IF(A29=0,\"\",'VPP Hand-Off Form'!#REF!)","v":""},"",null,null,null,"H","",{"$f":"IF(A29=0,\"\",'VPP Hand-Off Form'!$B$3)","v":""},null,null,{"$f":"IF(A29=0,\"\",'VPP Hand-Off Form'!$B$4)","v":""},{"$f":"IF(A29=0,\"\",'VPP Hand-Off Form'!#REF!)","v":""},{"$f":"IF(A29=0,\"\",'VPP Hand-Off Form'!#REF!)","v":""},"","",null,"","",{"$f":"IF(A29=0,\"\",IF(ISBLANK('Output (BBY)'!A29),\"\",\"Created\"))","v":""},null,null,null,{"$f":"IF(A29=0,\"\",IF(ISBLANK('VPP Hand-Off Form'!R36),\"\",\"99\"))","v":""},null,null,null,"","","","",{"$f":"IF(ISBLANK('VPP Hand-Off Form'!E36),\"\",'VPP Hand-Off Form'!E36)","v":""}]
[{"$f":"IF('VPP Hand-Off Form'!D37=\"Obsolete\",0,IF('VPP Hand-Off Form'!D37=\"Keep\",0,IF('VPP Hand-Off Form'!D37=\"Obsolete-Partial\",0,'VPP Hand-Off Form'!A37)))","v":0},{"$f":"IF('VPP Hand-Off Form'!D37=\"Obsolete\",\"0\",IF('VPP Hand-Off Form'!D37=\"Keep\",\"0\",IF('VPP Hand-Off Form'!D37=\"Obsolete-Partial\",\"0\",'VPP Hand-Off Form'!B37)))","v":0},"",null,null,null,null,"",{"$f":"IF(A30=0,\"\",'VPP Hand-Off Form'!#REF!)","v":""},null,"",{"$f":"IF(A30=0,\"\",'VPP Hand-Off Form'!#REF!)","v":""},"",null,null,null,"H","",{"$f":"IF(A30=0,\"\",'VPP Hand-Off Form'!$B$3)","v":""},null,null,{"$f":"IF(A30=0,\"\",'VPP Hand-Off Form'!$B$4)","v":""},{"$f":"IF(A30=0,\"\",'VPP Hand-Off Form'!#REF!)","v":""},{"$f":"IF(A30=0,\"\",'VPP Hand-Off Form'!#REF!)","v":""},"","",null,"","",{"$f":"IF(A30=0,\"\",IF(ISBLANK('Output (BBY)'!A30),\"\",\"Created\"))","v":""},null,null,null,{"$f":"IF(A30=0,\"\",IF(ISBLANK('VPP Hand-Off Form'!R37),\"\",\"99\"))","v":""},null,null,null,"","","","",{"$f":"IF(ISBLANK('VPP Hand-Off Form'!E37),\"\",'VPP Hand-Off Form'!E37)","v":""}]
[{"$f":"IF('VPP Hand-Off Form'!D38=\"Obsolete\",0,IF('VPP Hand-Off Form'!D38=\"Keep\",0,IF('VPP Hand-Off Form'!D38=\"Obsolete-Partial\",0,'VPP Hand-Off Form'!A38)))","v":0},{"$f":"IF('VPP Hand-Off Form'!D38=\"Obsolete\",\"0\",IF('VPP Hand-Off Form'!D38=\"Keep\",\"0\",IF('VPP Hand-Off Form'!D38=\"Obsolete-Partial\",\"0\",'VPP Hand-Off Form'!B38)))","v":0},"",null,null,null,null,"",{"$f":"IF(A31=0,\"\",'VPP Hand-Off Form'!#REF!)","v":""},null,"",{"$f":"IF(A31=0,\"\",'VPP Hand-Off Form'!#REF!)","v":""},"",null,null,null,"H","",{"$f":"IF(A31=0,\"\",'VPP Hand-Off Form'!$B$3)","v":""},null,null,{"$f":"IF(A31=0,\"\",'VPP Hand-Off Form'!$B$4)","v":""},{"$f":"IF(A31=0,\"\",'VPP Hand-Off Form'!#REF!)","v":""},{"$f":"IF(A31=0,\"\",'VPP Hand-Off Form'!#REF!)","v":""},"","",null,"","",{"$f":"IF(A31=0,\"\",IF(ISBLANK('Output (BBY)'!A31),\"\",\"Created\"))","v":""},null,null,null,{"$f":"IF(A31=0,\"\",IF(ISBLANK('VPP Hand-Off Form'!R38),\"\",\"99\"))","v":""},null,null,null,"","","","",{"$f":"IF(ISBLANK('VPP Hand-Off Form'!E38),\"\",'VPP Hand-Off Form'!E38)","v":""}]
[{"$f":"IF('VPP Hand-Off Form'!D39=\"Obsolete\",0,IF('VPP Hand-Off Form'!D39=\"Keep\",0,IF('VPP Hand-Off Form'!D39=\"Obsolete-Partial\",0,'VPP Hand-Off Form'!A39)))","v":0},{"$f":"IF('VPP Hand-Off Form'!D39=\"Obsolete\",\"0\",IF('VPP Hand-Off Form'!D39=\"Keep\",\"0\",IF('VPP Hand-Off Form'!D39=\"Obsolete-Partial\",\"0\",'VPP Hand-Off Form'!B39)))","v":0},"",null,null,null,null,"",{"$f":"IF(A32=0,\"\",'VPP Hand-Off Form'!#REF!)","v":""},null,"",{"$f":"IF(A32=0,\"\",'VPP Hand-Off Form'!#REF!)","v":""},"",null,null,null,"H","",{"$f":"IF(A32=0,\"\",'VPP Hand-Off Form'!$B$3)","v":""},null,null,{"$f":"IF(A32=0,\"\",'VPP Hand-Off Form'!$B$4)","v":""},{"$f":"IF(A32=0,\"\",'VPP Hand-Off Form'!#REF!)","v":""},{"$f":"IF(A32=0,\"\",'VPP Hand-Off Form'!#REF!)","v":""},"","",null,"","",{"$f":"IF(A32=0,\"\",IF(ISBLANK('Output (BBY)'!A32),\"\",\"Created\"))","v":""},null,null,null,{"$f":"IF(A32=0,\"\",IF(ISBLANK('VPP Hand-Off Form'!R39),\"\",\"99\"))","v":""},null,null,null,"","","","",{"$f":"IF(ISBLANK('VPP Hand-Off Form'!E39),\"\",'VPP Hand-Off Form'!E39)","v":""}]
[{"$f":"IF('VPP Hand-Off Form'!D40=\"Obsolete\",0,IF('VPP Hand-Off Form'!D40=\"Keep\",0,IF('VPP Hand-Off Form'!D40=\"Obsolete-Partial\",0,'VPP Hand-Off Form'!A40)))","v":0},{"$f":"IF('VPP Hand-Off Form'!D40=\"Obsolete\",\"0\",IF('VPP Hand-Off Form'!D40=\"Keep\",\"0\",IF('VPP Hand-Off Form'!D40=\"Obsolete-Partial\",\"0\",'VPP Hand-Off Form'!B40)))","v":0},"",null,null,null,null,"",{"$f":"IF(A33=0,\"\",'VPP Hand-Off Form'!#REF!)","v":""},null,"",{"$f":"IF(A33=0,\"\",'VPP Hand-Off Form'!#REF!)","v":""},"",null,null,null,"H","",{"$f":"IF(A33=0,\"\",'VPP Hand-Off Form'!$B$3)","v":""},null,null,{"$f":"IF(A33=0,\"\",'VPP Hand-Off Form'!$B$4)","v":""},{"$f":"IF(A33=0,\"\",'VPP Hand-Off Form'!#REF!)","v":""},{"$f":"IF(A33=0,\"\",'VPP Hand-Off Form'!#REF!)","v":""},"","",null,"","",{"$f":"IF(A33=0,\"\",IF(ISBLANK('Output (BBY)'!A33),\"\",\"Created\"))","v":""},null,null,null,{"$f":"IF(A33=0,\"\",IF(ISBLANK('VPP Hand-Off Form'!R40),\"\",\"99\"))","v":""},null,null,null,"","","","",{"$f":"IF(ISBLANK('VPP Hand-Off Form'!E40),\"\",'VPP Hand-Off Form'!E40)","v":""}]
[{"$f":"IF('VPP Hand-Off Form'!D41=\"Obsolete\",0,IF('VPP Hand-Off Form'!D41=\"Keep\",0,IF('VPP Hand-Off Form'!D41=\"Obsolete-Partial\",0,'VPP Hand-Off Form'!A41)))","v":0},{"$f":"IF('VPP Hand-Off Form'!D41=\"Obsolete\",\"0\",IF('VPP Hand-Off Form'!D41=\"Keep\",\"0\",IF('VPP Hand-Off Form'!D41=\"Obsolete-Partial\",\"0\",'VPP Hand-Off Form'!B41)))","v":0},"",null,null,null,null,"",{"$f":"IF(A34=0,\"\",'VPP Hand-Off Form'!#REF!)","v":""},null,"",{"$f":"IF(A34=0,\"\",'VPP Hand-Off Form'!#REF!)","v":""},"",null,null,null,"H","",{"$f":"IF(A34=0,\"\",'VPP Hand-Off Form'!$B$3)","v":""},null,null,{"$f":"IF(A34=0,\"\",'VPP Hand-Off Form'!$B$4)","v":""},{"$f":"IF(A34=0,\"\",'VPP Hand-Off Form'!#REF!)","v":""},{"$f":"IF(A34=0,\"\",'VPP Hand-Off Form'!#REF!)","v":""},"","",null,"","",{"$f":"IF(A34=0,\"\",IF(ISBLANK('Output (BBY)'!A34),\"\",\"Created\"))","v":""},null,null,null,{"$f":"IF(A34=0,\"\",IF(ISBLANK('VPP Hand-Off Form'!R41),\"\",\"99\"))","v":""},null,null,null,"","","","",{"$f":"IF(ISBLANK('VPP Hand-Off Form'!E41),\"\",'VPP Hand-Off Form'!E41)","v":""}]
[{"$f":"IF('VPP Hand-Off Form'!D42=\"Obsolete\",0,IF('VPP Hand-Off Form'!D42=\"Keep\",0,IF('VPP Hand-Off Form'!D42=\"Obsolete-Partial\",0,'VPP Hand-Off Form'!A42)))","v":0},{"$f":"IF('VPP Hand-Off Form'!D42=\"Obsolete\",\"0\",IF('VPP Hand-Off Form'!D42=\"Keep\",\"0\",IF('VPP Hand-Off Form'!D42=\"Obsolete-Partial\",\"0\",'VPP Hand-Off Form'!B42)))","v":0},{"$f":"IFERROR(IF(A35=0,\"\",VLOOKUP(A35,parts,8,FALSE)),\"NA\")","v":""},null,null,null,null,"",{"$f":"IF(A35=0,\"\",'VPP Hand-Off Form'!#REF!)","v":""},null,"",{"$f":"IF(A35=0,\"\",'VPP Hand-Off Form'!#REF!)","v":""},"",null,null,null,"H","",{"$f":"IF(A35=0,\"\",'VPP Hand-Off Form'!$B$3)","v":""},null,null,{"$f":"IF(A35=0,\"\",'VPP Hand-Off Form'!$B$4)","v":""},{"$f":"IF(A35=0,\"\",'VPP Hand-Off Form'!#REF!)","v":""},{"$f":"IF(A35=0,\"\",'VPP Hand-Off Form'!#REF!)","v":""},{"$f":"IFERROR(IF(A35=0,\"\",VLOOKUP(A35,parts,25,FALSE)),\"NA\")","v":""},{"$f":"IFERROR(IF(A35=0,\"\",VLOOKUP(A35,parts,25,FALSE)),\"NA\")","v":""},null,{"$f":"IFERROR(IF(A35=0,\"\",VLOOKUP(A35,parts,8,FALSE)),\"NA\")","v":""},{"$f":"IFERROR(IF(A35=0,\"\",VLOOKUP(A35,parts,9,FALSE)),\"NA\")","v":""},{"$f":"IF(A35=0,\"\",IF(ISBLANK('Output (BBY)'!A35),\"\",\"Created\"))","v":""},null,null,null,{"$f":"IF(A35=0,\"\",IF(ISBLANK('VPP Hand-Off Form'!R42),\"\",\"99\"))","v":""},null,null,null,"",{"$f":"IFERROR(IF(A35=0,\"\",VLOOKUP(A35,parts,10,FALSE)),\"NA\")","v":""},{"$f":"IFERROR(IF(A35=0,\"\",VLOOKUP(A35,parts,11,FALSE)),\"NA\")","v":""},{"$f":"IFERROR(IF(A35=0,\"\",VLOOKUP(A35,parts,12,FALSE)),\"NA\")","v":""},{"$f":"IF(ISBLANK('VPP Hand-Off Form'!E42),\"\",'VPP Hand-Off Form'!E42)","v":""}]
[{"$f":"IF('VPP Hand-Off Form'!D43=\"Obsolete\",0,IF('VPP Hand-Off Form'!D43=\"Keep\",0,IF('VPP Hand-Off Form'!D43=\"Obsolete-Partial\",0,'VPP Hand-Off Form'!A43)))","v":0},{"$f":"IF('VPP Hand-Off Form'!D43=\"Obsolete\",\"0\",IF('VPP Hand-Off Form'!D43=\"Keep\",\"0\",IF('VPP Hand-Off Form'!D43=\"Obsolete-Partial\",\"0\",'VPP Hand-Off Form'!B43)))","v":0},"",null,null,null,null,"",{"$f":"IF(A36=0,\"\",'VPP Hand-Off Form'!#REF!)","v":""},null,"",{"$f":"IF(A36=0,\"\",'VPP Hand-Off Form'!#REF!)","v":""},"",null,null,null,"H","",{"$f":"IF(A36=0,\"\",'VPP Hand-Off Form'!$B$3)","v":""},null,null,{"$f":"IF(A36=0,\"\",'VPP Hand-Off Form'!$B$4)","v":""},{"$f":"IF(A36=0,\"\",'VPP Hand-Off Form'!#REF!)","v":""},{"$f":"IF(A36=0,\"\",'VPP Hand-Off Form'!#REF!)","v":""},"","",null,"","",{"$f":"IF(A36=0,\"\",IF(ISBLANK('Output (BBY)'!A36),\"\",\"Created\"))","v":""},null,null,null,{"$f":"IF(A36=0,\"\",IF(ISBLANK('VPP Hand-Off Form'!R43),\"\",\"99\"))","v":""},null,null,null,"","","","",{"$f":"IF(ISBLANK('VPP Hand-Off Form'!E43),\"\",'VPP Hand-Off Form'!E43)","v":""}]
[{"$f":"IF('VPP Hand-Off Form'!D44=\"Obsolete\",0,IF('VPP Hand-Off Form'!D44=\"Keep\",0,IF('VPP Hand-Off Form'!D44=\"Obsolete-Partial\",0,'VPP Hand-Off Form'!A44)))","v":0},{"$f":"IF('VPP Hand-Off Form'!D44=\"Obsolete\",\"0\",IF('VPP Hand-Off Form'!D44=\"Keep\",\"0\",IF('VPP Hand-Off Form'!D44=\"Obsolete-Partial\",\"0\",'VPP Hand-Off Form'!B44)))","v":0},"",null,null,null,null,"",{"$f":"IF(A37=0,\"\",'VPP Hand-Off Form'!#REF!)","v":""},null,"",{"$f":"IF(A37=0,\"\",'VPP Hand-Off Form'!#REF!)","v":""},"",null,null,null,"H","",{"$f":"IF(A37=0,\"\",'VPP Hand-Off Form'!$B$3)","v":""},null,null,{"$f":"IF(A37=0,\"\",'VPP Hand-Off Form'!$B$4)","v":""},{"$f":"IF(A37=0,\"\",'VPP Hand-Off Form'!#REF!)","v":""},{"$f":"IF(A37=0,\"\",'VPP Hand-Off Form'!#REF!)","v":""},"","",null,"","",{"$f":"IF(A37=0,\"\",IF(ISBLANK('Output (BBY)'!A37),\"\",\"Created\"))","v":""},null,null,null,{"$f":"IF(A37=0,\"\",IF(ISBLANK('VPP Hand-Off Form'!R44),\"\",\"99\"))","v":""},null,null,null,"","","","",{"$f":"IF(ISBLANK('VPP Hand-Off Form'!E44),\"\",'VPP Hand-Off Form'!E44)","v":""}]
[{"$f":"IF('VPP Hand-Off Form'!D45=\"Obsolete\",0,IF('VPP Hand-Off Form'!D45=\"Keep\",0,IF('VPP Hand-Off Form'!D45=\"Obsolete-Partial\",0,'VPP Hand-Off Form'!A45)))","v":0},{"$f":"IF('VPP Hand-Off Form'!D45=\"Obsolete\",\"0\",IF('VPP Hand-Off Form'!D45=\"Keep\",\"0\",IF('VPP Hand-Off Form'!D45=\"Obsolete-Partial\",\"0\",'VPP Hand-Off Form'!B45)))","v":0},"",null,null,null,null,"",{"$f":"IF(A38=0,\"\",'VPP Hand-Off Form'!#REF!)","v":""},null,"",{"$f":"IF(A38=0,\"\",'VPP Hand-Off Form'!#REF!)","v":""},"",null,null,null,"H","",{"$f":"IF(A38=0,\"\",'VPP Hand-Off Form'!$B$3)","v":""},null,null,{"$f":"IF(A38=0,\"\",'VPP Hand-Off Form'!$B$4)","v":""},{"$f":"IF(A38=0,\"\",'VPP Hand-Off Form'!#REF!)","v":""},{"$f":"IF(A38=0,\"\",'VPP Hand-Off Form'!#REF!)","v":""},"","",null,"","",{"$f":"IF(A38=0,\"\",IF(ISBLANK('Output (BBY)'!A38),\"\",\"Created\"))","v":""},null,null,null,{"$f":"IF(A38=0,\"\",IF(ISBLANK('VPP Hand-Off Form'!R45),\"\",\"99\"))","v":""},null,null,null,"","","","",{"$f":"IF(ISBLANK('VPP Hand-Off Form'!E45),\"\",'VPP Hand-Off Form'!E45)","v":""}]
[{"$f":"IF('VPP Hand-Off Form'!D46=\"Obsolete\",0,IF('VPP Hand-Off Form'!D46=\"Keep\",0,IF('VPP Hand-Off Form'!D46=\"Obsolete-Partial\",0,'VPP Hand-Off Form'!A46)))","v":0},{"$f":"IF('VPP Hand-Off Form'!D46=\"Obsolete\",\"0\",IF('VPP Hand-Off Form'!D46=\"Keep\",\"0\",IF('VPP Hand-Off Form'!D46=\"Obsolete-Partial\",\"0\",'VPP Hand-Off Form'!B46)))","v":0},"",null,null,null,null,"",{"$f":"IF(A39=0,\"\",'VPP Hand-Off Form'!#REF!)","v":""},null,"",{"$f":"IF(A39=0,\"\",'VPP Hand-Off Form'!#REF!)","v":""},"",null,null,null,"H","",{"$f":"IF(A39=0,\"\",'VPP Hand-Off Form'!$B$3)","v":""},null,null,{"$f":"IF(A39=0,\"\",'VPP Hand-Off Form'!$B$4)","v":""},{"$f":"IF(A39=0,\"\",'VPP Hand-Off Form'!#REF!)","v":""},{"$f":"IF(A39=0,\"\",'VPP Hand-Off Form'!#REF!)","v":""},"","",null,"","",{"$f":"IF(A39=0,\"\",IF(ISBLANK('Output (BBY)'!A39),\"\",\"Created\"))","v":""},null,null,null,{"$f":"IF(A39=0,\"\",IF(ISBLANK('VPP Hand-Off Form'!R46),\"\",\"99\"))","v":""},null,null,null,"","","","",{"$f":"IF(ISBLANK('VPP Hand-Off Form'!E46),\"\",'VPP Hand-Off Form'!E46)","v":""}]
[{"$f":"IF('VPP Hand-Off Form'!D47=\"Obsolete\",0,IF('VPP Hand-Off Form'!D47=\"Keep\",0,IF('VPP Hand-Off Form'!D47=\"Obsolete-Partial\",0,'VPP Hand-Off Form'!A47)))","v":0},{"$f":"IF('VPP Hand-Off Form'!D47=\"Obsolete\",\"0\",IF('VPP Hand-Off Form'!D47=\"Keep\",\"0\",IF('VPP Hand-Off Form'!D47=\"Obsolete-Partial\",\"0\",'VPP Hand-Off Form'!B47)))","v":0},"",null,null,null,null,"",{"$f":"IF(A40=0,\"\",'VPP Hand-Off Form'!#REF!)","v":""},null,"",{"$f":"IF(A40=0,\"\",'VPP Hand-Off Form'!#REF!)","v":""},"",null,null,null,"H","",{"$f":"IF(A40=0,\"\",'VPP Hand-Off Form'!$B$3)","v":""},null,null,{"$f":"IF(A40=0,\"\",'VPP Hand-Off Form'!$B$4)","v":""},{"$f":"IF(A40=0,\"\",'VPP Hand-Off Form'!#REF!)","v":""},{"$f":"IF(A40=0,\"\",'VPP Hand-Off Form'!#REF!)","v":""},"","",null,"","",{"$f":"IF(A40=0,\"\",IF(ISBLANK('Output (BBY)'!A40),\"\",\"Created\"))","v":""},null,null,null,{"$f":"IF(A40=0,\"\",IF(ISBLANK('VPP Hand-Off Form'!R47),\"\",\"99\"))","v":""},null,null,null,"","","","",{"$f":"IF(ISBLANK('VPP Hand-Off Form'!E47),\"\",'VPP Hand-Off Form'!E47)","v":""}]
[{"$f":"IF('VPP Hand-Off Form'!D48=\"Obsolete\",0,IF('VPP Hand-Off Form'!D48=\"Keep\",0,IF('VPP Hand-Off Form'!D48=\"Obsolete-Partial\",0,'VPP Hand-Off Form'!A48)))","v":0},{"$f":"IF('VPP Hand-Off Form'!D48=\"Obsolete\",\"0\",IF('VPP Hand-Off Form'!D48=\"Keep\",\"0\",IF('VPP Hand-Off Form'!D48=\"Obsolete-Partial\",\"0\",'VPP Hand-Off Form'!B48)))","v":0},"",null,null,null,null,"",{"$f":"IF(A41=0,\"\",'VPP Hand-Off Form'!#REF!)","v":""},null,"",{"$f":"IF(A41=0,\"\",'VPP Hand-Off Form'!#REF!)","v":""},"",null,null,null,"H","",{"$f":"IF(A41=0,\"\",'VPP Hand-Off Form'!$B$3)","v":""},null,null,{"$f":"IF(A41=0,\"\",'VPP Hand-Off Form'!$B$4)","v":""},{"$f":"IF(A41=0,\"\",'VPP Hand-Off Form'!#REF!)","v":""},{"$f":"IF(A41=0,\"\",'VPP Hand-Off Form'!#REF!)","v":""},"","",null,"","",{"$f":"IF(A41=0,\"\",IF(ISBLANK('Output (BBY)'!A41),\"\",\"Created\"))","v":""},null,null,null,{"$f":"IF(A41=0,\"\",IF(ISBLANK('VPP Hand-Off Form'!R48),\"\",\"99\"))","v":""},null,null,null,"","","","",{"$f":"IF(ISBLANK('VPP Hand-Off Form'!E48),\"\",'VPP Hand-Off Form'!E48)","v":""}]
[{"$f":"IF('VPP Hand-Off Form'!D49=\"Obsolete\",0,IF('VPP Hand-Off Form'!D49=\"Keep\",0,IF('VPP Hand-Off Form'!D49=\"Obsolete-Partial\",0,'VPP Hand-Off Form'!A49)))","v":0},{"$f":"IF('VPP Hand-Off Form'!D49=\"Obsolete\",\"0\",IF('VPP Hand-Off Form'!D49=\"Keep\",\"0\",IF('VPP Hand-Off Form'!D49=\"Obsolete-Partial\",\"0\",'VPP Hand-Off Form'!B49)))","v":0},"",null,null,null,null,"",{"$f":"IF(A42=0,\"\",'VPP Hand-Off Form'!#REF!)","v":""},null,"",{"$f":"IF(A42=0,\"\",'VPP Hand-Off Form'!#REF!)","v":""},"",null,null,null,"H","",{"$f":"IF(A42=0,\"\",'VPP Hand-Off Form'!$B$3)","v":""},null,null,{"$f":"IF(A42=0,\"\",'VPP Hand-Off Form'!$B$4)","v":""},{"$f":"IF(A42=0,\"\",'VPP Hand-Off Form'!#REF!)","v":""},{"$f":"IF(A42=0,\"\",'VPP Hand-Off Form'!#REF!)","v":""},"","",null,"","",{"$f":"IF(A42=0,\"\",IF(ISBLANK('Output (BBY)'!A42),\"\",\"Created\"))","v":""},null,null,null,{"$f":"IF(A42=0,\"\",IF(ISBLANK('VPP Hand-Off Form'!R49),\"\",\"99\"))","v":""},null,null,null,"","","","",{"$f":"IF(ISBLANK('VPP Hand-Off Form'!E49),\"\",'VPP Hand-Off Form'!E49)","v":""}]
[{"$f":"IF('VPP Hand-Off Form'!D50=\"Obsolete\",0,IF('VPP Hand-Off Form'!D50=\"Keep\",0,IF('VPP Hand-Off Form'!D50=\"Obsolete-Partial\",0,'VPP Hand-Off Form'!A50)))","v":0},{"$f":"IF('VPP Hand-Off Form'!D50=\"Obsolete\",\"0\",IF('VPP Hand-Off Form'!D50=\"Keep\",\"0\",IF('VPP Hand-Off Form'!D50=\"Obsolete-Partial\",\"0\",'VPP Hand-Off Form'!B50)))","v":0},"",null,null,null,null,"",{"$f":"IF(A43=0,\"\",'VPP Hand-Off Form'!#REF!)","v":""},null,"",{"$f":"IF(A43=0,\"\",'VPP Hand-Off Form'!#REF!)","v":""},"",null,null,null,"H","",{"$f":"IF(A43=0,\"\",'VPP Hand-Off Form'!$B$3)","v":""},null,null,{"$f":"IF(A43=0,\"\",'VPP Hand-Off Form'!$B$4)","v":""},{"$f":"IF(A43=0,\"\",'VPP Hand-Off Form'!#REF!)","v":""},{"$f":"IF(A43=0,\"\",'VPP Hand-Off Form'!#REF!)","v":""},"","",null,"","",{"$f":"IF(A43=0,\"\",IF(ISBLANK('Output (BBY)'!A43),\"\",\"Created\"))","v":""},null,null,null,{"$f":"IF(A43=0,\"\",IF(ISBLANK('VPP Hand-Off Form'!R50),\"\",\"99\"))","v":""},null,null,null,"","","","",{"$f":"IF(ISBLANK('VPP Hand-Off Form'!E50),\"\",'VPP Hand-Off Form'!E50)","v":""}]
[{"$f":"IF('VPP Hand-Off Form'!D51=\"Obsolete\",0,IF('VPP Hand-Off Form'!D51=\"Keep\",0,IF('VPP Hand-Off Form'!D51=\"Obsolete-Partial\",0,'VPP Hand-Off Form'!A51)))","v":0},{"$f":"IF('VPP Hand-Off Form'!D51=\"Obsolete\",\"0\",IF('VPP Hand-Off Form'!D51=\"Keep\",\"0\",IF('VPP Hand-Off Form'!D51=\"Obsolete-Partial\",\"0\",'VPP Hand-Off Form'!B51)))","v":0},"",null,null,null,null,"",{"$f":"IF(A44=0,\"\",'VPP Hand-Off Form'!#REF!)","v":""},null,"",{"$f":"IF(A44=0,\"\",'VPP Hand-Off Form'!#REF!)","v":""},"",null,null,null,"H","",{"$f":"IF(A44=0,\"\",'VPP Hand-Off Form'!$B$3)","v":""},null,null,{"$f":"IF(A44=0,\"\",'VPP Hand-Off Form'!$B$4)","v":""},{"$f":"IF(A44=0,\"\",'VPP Hand-Off Form'!#REF!)","v":""},{"$f":"IF(A44=0,\"\",'VPP Hand-Off Form'!#REF!)","v":""},"","",null,"","",{"$f":"IF(A44=0,\"\",IF(ISBLANK('Output (BBY)'!A44),\"\",\"Created\"))","v":""},null,null,null,{"$f":"IF(A44=0,\"\",IF(ISBLANK('VPP Hand-Off Form'!R51),\"\",\"99\"))","v":""},null,null,null,"","","","",{"$f":"IF(ISBLANK('VPP Hand-Off Form'!E51),\"\",'VPP Hand-Off Form'!E51)","v":""}]
[{"$f":"IF('VPP Hand-Off Form'!D52=\"Obsolete\",0,IF('VPP Hand-Off Form'!D52=\"Keep\",0,IF('VPP Hand-Off Form'!D52=\"Obsolete-Partial\",0,'VPP Hand-Off Form'!A52)))","v":0},{"$f":"IF('VPP Hand-Off Form'!D52=\"Obsolete\",\"0\",IF('VPP Hand-Off Form'!D52=\"Keep\",\"0\",IF('VPP Hand-Off Form'!D52=\"Obsolete-Partial\",\"0\",'VPP Hand-Off Form'!B52)))","v":0},"",null,null,null,null,"",{"$f":"IF(A45=0,\"\",'VPP Hand-Off Form'!#REF!)","v":""},null,"",{"$f":"IF(A45=0,\"\",'VPP Hand-Off Form'!#REF!)","v":""},"",null,null,null,"H","",{"$f":"IF(A45=0,\"\",'VPP Hand-Off Form'!$B$3)","v":""},null,null,{"$f":"IF(A45=0,\"\",'VPP Hand-Off Form'!$B$4)","v":""},{"$f":"IF(A45=0,\"\",'VPP Hand-Off Form'!#REF!)","v":""},{"$f":"IF(A45=0,\"\",'VPP Hand-Off Form'!#REF!)","v":""},"","",null,"","",{"$f":"IF(A45=0,\"\",IF(ISBLANK('Output (BBY)'!A45),\"\",\"Created\"))","v":""},null,null,null,{"$f":"IF(A45=0,\"\",IF(ISBLANK('VPP Hand-Off Form'!R52),\"\",\"99\"))","v":""},null,null,null,"","","","",{"$f":"IF(ISBLANK('VPP Hand-Off Form'!E52),\"\",'VPP Hand-Off Form'!E52)","v":""}]
[{"$f":"IF('VPP Hand-Off Form'!D53=\"Obsolete\",0,IF('VPP Hand-Off Form'!D53=\"Keep\",0,IF('VPP Hand-Off Form'!D53=\"Obsolete-Partial\",0,'VPP Hand-Off Form'!A53)))","v":0},{"$f":"IF('VPP Hand-Off Form'!D53=\"Obsolete\",\"0\",IF('VPP Hand-Off Form'!D53=\"Keep\",\"0\",IF('VPP Hand-Off Form'!D53=\"Obsolete-Partial\",\"0\",'VPP Hand-Off Form'!B53)))","v":0},"",null,null,null,null,"",{"$f":"IF(A46=0,\"\",'VPP Hand-Off Form'!#REF!)","v":""},null,"",{"$f":"IF(A46=0,\"\",'VPP Hand-Off Form'!#REF!)","v":""},"",null,null,null,"H","",{"$f":"IF(A46=0,\"\",'VPP Hand-Off Form'!$B$3)","v":""},null,null,{"$f":"IF(A46=0,\"\",'VPP Hand-Off Form'!$B$4)","v":""},{"$f":"IF(A46=0,\"\",'VPP Hand-Off Form'!#REF!)","v":""},{"$f":"IF(A46=0,\"\",'VPP Hand-Off Form'!#REF!)","v":""},"","",null,"","",{"$f":"IF(A46=0,\"\",IF(ISBLANK('Output (BBY)'!A46),\"\",\"Created\"))","v":""},null,null,null,{"$f":"IF(A46=0,\"\",IF(ISBLANK('VPP Hand-Off Form'!R53),\"\",\"99\"))","v":""},null,null,null,"","","","",{"$f":"IF(ISBLANK('VPP Hand-Off Form'!E53),\"\",'VPP Hand-Off Form'!E53)","v":""}]
[{"$f":"IF('VPP Hand-Off Form'!D54=\"Obsolete\",0,IF('VPP Hand-Off Form'!D54=\"Keep\",0,IF('VPP Hand-Off Form'!D54=\"Obsolete-Partial\",0,'VPP Hand-Off Form'!A54)))","v":0},{"$f":"IF('VPP Hand-Off Form'!D54=\"Obsolete\",\"0\",IF('VPP Hand-Off Form'!D54=\"Keep\",\"0\",IF('VPP Hand-Off Form'!D54=\"Obsolete-Partial\",\"0\",'VPP Hand-Off Form'!B54)))","v":0},"",null,null,null,null,"",{"$f":"IF(A47=0,\"\",'VPP Hand-Off Form'!#REF!)","v":""},null,"",{"$f":"IF(A47=0,\"\",'VPP Hand-Off Form'!#REF!)","v":""},"",null,null,null,"H","",{"$f":"IF(A47=0,\"\",'VPP Hand-Off Form'!$B$3)","v":""},null,null,{"$f":"IF(A47=0,\"\",'VPP Hand-Off Form'!$B$4)","v":""},{"$f":"IF(A47=0,\"\",'VPP Hand-Off Form'!#REF!)","v":""},{"$f":"IF(A47=0,\"\",'VPP Hand-Off Form'!#REF!)","v":""},"","",null,"","",{"$f":"IF(A47=0,\"\",IF(ISBLANK('Output (BBY)'!A47),\"\",\"Created\"))","v":""},null,null,null,{"$f":"IF(A47=0,\"\",IF(ISBLANK('VPP Hand-Off Form'!R54),\"\",\"99\"))","v":""},null,null,null,"","","","",{"$f":"IF(ISBLANK('VPP Hand-Off Form'!E54),\"\",'VPP Hand-Off Form'!E54)","v":""}]
[{"$f":"IF('VPP Hand-Off Form'!D55=\"Obsolete\",0,IF('VPP Hand-Off Form'!D55=\"Keep\",0,IF('VPP Hand-Off Form'!D55=\"Obsolete-Partial\",0,'VPP Hand-Off Form'!A55)))","v":0},{"$f":"IF('VPP Hand-Off Form'!D55=\"Obsolete\",\"0\",IF('VPP Hand-Off Form'!D55=\"Keep\",\"0\",IF('VPP Hand-Off Form'!D55=\"Obsolete-Partial\",\"0\",'VPP Hand-Off Form'!B55)))","v":0},"",null,null,null,null,"",{"$f":"IF(A48=0,\"\",'VPP Hand-Off Form'!#REF!)","v":""},null,"",{"$f":"IF(A48=0,\"\",'VPP Hand-Off Form'!#REF!)","v":""},"",null,null,null,"H","",{"$f":"IF(A48=0,\"\",'VPP Hand-Off Form'!$B$3)","v":""},null,null,{"$f":"IF(A48=0,\"\",'VPP Hand-Off Form'!$B$4)","v":""},{"$f":"IF(A48=0,\"\",'VPP Hand-Off Form'!#REF!)","v":""},{"$f":"IF(A48=0,\"\",'VPP Hand-Off Form'!#REF!)","v":""},"","",null,"","",{"$f":"IF(A48=0,\"\",IF(ISBLANK('Output (BBY)'!A48),\"\",\"Created\"))","v":""},null,null,null,{"$f":"IF(A48=0,\"\",IF(ISBLANK('VPP Hand-Off Form'!R55),\"\",\"99\"))","v":""},null,null,null,"","","","",{"$f":"IF(ISBLANK('VPP Hand-Off Form'!E55),\"\",'VPP Hand-Off Form'!E55)","v":""}]
[{"$f":"IF('VPP Hand-Off Form'!D56=\"Obsolete\",0,IF('VPP Hand-Off Form'!D56=\"Keep\",0,IF('VPP Hand-Off Form'!D56=\"Obsolete-Partial\",0,'VPP Hand-Off Form'!A56)))","v":0},{"$f":"IF('VPP Hand-Off Form'!D56=\"Obsolete\",\"0\",IF('VPP Hand-Off Form'!D56=\"Keep\",\"0\",IF('VPP Hand-Off Form'!D56=\"Obsolete-Partial\",\"0\",'VPP Hand-Off Form'!B56)))","v":0},"",null,null,null,null,"",{"$f":"IF(A49=0,\"\",'VPP Hand-Off Form'!#REF!)","v":""},null,"",{"$f":"IF(A49=0,\"\",'VPP Hand-Off Form'!#REF!)","v":""},"",null,null,null,"H","",{"$f":"IF(A49=0,\"\",'VPP Hand-Off Form'!$B$3)","v":""},null,null,{"$f":"IF(A49=0,\"\",'VPP Hand-Off Form'!$B$4)","v":""},{"$f":"IF(A49=0,\"\",'VPP Hand-Off Form'!#REF!)","v":""},{"$f":"IF(A49=0,\"\",'VPP Hand-Off Form'!#REF!)","v":""},"","",null,"","",{"$f":"IF(A49=0,\"\",IF(ISBLANK('Output (BBY)'!A49),\"\",\"Created\"))","v":""},null,null,null,{"$f":"IF(A49=0,\"\",IF(ISBLANK('VPP Hand-Off Form'!R56),\"\",\"99\"))","v":""},null,null,null,"","","","",{"$f":"IF(ISBLANK('VPP Hand-Off Form'!E56),\"\",'VPP Hand-Off Form'!E56)","v":""}]
[{"$f":"IF('VPP Hand-Off Form'!D57=\"Obsolete\",0,IF('VPP Hand-Off Form'!D57=\"Keep\",0,IF('VPP Hand-Off Form'!D57=\"Obsolete-Partial\",0,'VPP Hand-Off Form'!A57)))","v":0},{"$f":"IF('VPP Hand-Off Form'!D57=\"Obsolete\",\"0\",IF('VPP Hand-Off Form'!D57=\"Keep\",\"0\",IF('VPP Hand-Off Form'!D57=\"Obsolete-Partial\",\"0\",'VPP Hand-Off Form'!B57)))","v":0},"",null,null,null,null,"",{"$f":"IF(A50=0,\"\",'VPP Hand-Off Form'!#REF!)","v":""},null,"",{"$f":"IF(A50=0,\"\",'VPP Hand-Off Form'!#REF!)","v":""},"",null,null,null,"H","",{"$f":"IF(A50=0,\"\",'VPP Hand-Off Form'!$B$3)","v":""},null,null,{"$f":"IF(A50=0,\"\",'VPP Hand-Off Form'!$B$4)","v":""},{"$f":"IF(A50=0,\"\",'VPP Hand-Off Form'!#REF!)","v":""},{"$f":"IF(A50=0,\"\",'VPP Hand-Off Form'!#REF!)","v":""},"","",null,"","",{"$f":"IF(A50=0,\"\",IF(ISBLANK('Output (BBY)'!A50),\"\",\"Created\"))","v":""},null,null,null,{"$f":"IF(A50=0,\"\",IF(ISBLANK('VPP Hand-Off Form'!R57),\"\",\"99\"))","v":""},null,null,null,"","","","",{"$f":"IF(ISBLANK('VPP Hand-Off Form'!E57),\"\",'VPP Hand-Off Form'!E57)","v":""}]
[{"$f":"IF('VPP Hand-Off Form'!D58=\"Obsolete\",0,IF('VPP Hand-Off Form'!D58=\"Keep\",0,IF('VPP Hand-Off Form'!D58=\"Obsolete-Partial\",0,'VPP Hand-Off Form'!A58)))","v":0},{"$f":"IF('VPP Hand-Off Form'!D58=\"Obsolete\",\"0\",IF('VPP Hand-Off Form'!D58=\"Keep\",\"0\",IF('VPP Hand-Off Form'!D58=\"Obsolete-Partial\",\"0\",'VPP Hand-Off Form'!B58)))","v":0},"",null,null,null,null,"",{"$f":"IF(A51=0,\"\",'VPP Hand-Off Form'!#REF!)","v":""},null,"",{"$f":"IF(A51=0,\"\",'VPP Hand-Off Form'!#REF!)","v":""},"",null,null,null,"H","",{"$f":"IF(A51=0,\"\",'VPP Hand-Off Form'!$B$3)","v":""},null,null,{"$f":"IF(A51=0,\"\",'VPP Hand-Off Form'!$B$4)","v":""},{"$f":"IF(A51=0,\"\",'VPP Hand-Off Form'!#REF!)","v":""},{"$f":"IF(A51=0,\"\",'VPP Hand-Off Form'!#REF!)","v":""},"","",null,"","",{"$f":"IF(A51=0,\"\",IF(ISBLANK('Output (BBY)'!A51),\"\",\"Created\"))","v":""},null,null,null,{"$f":"IF(A51=0,\"\",IF(ISBLANK('VPP Hand-Off Form'!R58),\"\",\"99\"))","v":""},null,null,null,"","","","",{"$f":"IF(ISBLANK('VPP Hand-Off Form'!E58),\"\",'VPP Hand-Off Form'!E58)","v":""}]
[{"$f":"IF('VPP Hand-Off Form'!D59=\"Obsolete\",0,IF('VPP Hand-Off Form'!D59=\"Keep\",0,IF('VPP Hand-Off Form'!D59=\"Obsolete-Partial\",0,'VPP Hand-Off Form'!A59)))","v":0},{"$f":"IF('VPP Hand-Off Form'!D59=\"Obsolete\",\"0\",IF('VPP Hand-Off Form'!D59=\"Keep\",\"0\",IF('VPP Hand-Off Form'!D59=\"Obsolete-Partial\",\"0\",'VPP Hand-Off Form'!B59)))","v":0},"",null,null,null,null,"",{"$f":"IF(A52=0,\"\",'VPP Hand-Off Form'!#REF!)","v":""},null,"",{"$f":"IF(A52=0,\"\",'VPP Hand-Off Form'!#REF!)","v":""},"",null,null,null,"H","",{"$f":"IF(A52=0,\"\",'VPP Hand-Off Form'!$B$3)","v":""},null,null,{"$f":"IF(A52=0,\"\",'VPP Hand-Off Form'!$B$4)","v":""},{"$f":"IF(A52=0,\"\",'VPP Hand-Off Form'!#REF!)","v":""},{"$f":"IF(A52=0,\"\",'VPP Hand-Off Form'!#REF!)","v":""},"","",null,"","",{"$f":"IF(A52=0,\"\",IF(ISBLANK('Output (BBY)'!A52),\"\",\"Created\"))","v":""},null,null,null,{"$f":"IF(A52=0,\"\",IF(ISBLANK('VPP Hand-Off Form'!R59),\"\",\"99\"))","v":""},null,null,null,"","","","",{"$f":"IF(ISBLANK('VPP Hand-Off Form'!E59),\"\",'VPP Hand-Off Form'!E59)","v":""}]
[{"$f":"IF('VPP Hand-Off Form'!D60=\"Obsolete\",0,IF('VPP Hand-Off Form'!D60=\"Keep\",0,IF('VPP Hand-Off Form'!D60=\"Obsolete-Partial\",0,'VPP Hand-Off Form'!A60)))","v":0},{"$f":"IF('VPP Hand-Off Form'!D60=\"Obsolete\",\"0\",IF('VPP Hand-Off Form'!D60=\"Keep\",\"0\",IF('VPP Hand-Off Form'!D60=\"Obsolete-Partial\",\"0\",'VPP Hand-Off Form'!B60)))","v":0},"",null,null,null,null,"",{"$f":"IF(A53=0,\"\",'VPP Hand-Off Form'!#REF!)","v":""},null,"",{"$f":"IF(A53=0,\"\",'VPP Hand-Off Form'!#REF!)","v":""},"",null,null,null,"H","",{"$f":"IF(A53=0,\"\",'VPP Hand-Off Form'!$B$3)","v":""},null,null,{"$f":"IF(A53=0,\"\",'VPP Hand-Off Form'!$B$4)","v":""},{"$f":"IF(A53=0,\"\",'VPP Hand-Off Form'!#REF!)","v":""},{"$f":"IF(A53=0,\"\",'VPP Hand-Off Form'!#REF!)","v":""},"","",null,"","",{"$f":"IF(A53=0,\"\",IF(ISBLANK('Output (BBY)'!A53),\"\",\"Created\"))","v":""},null,null,null,{"$f":"IF(A53=0,\"\",IF(ISBLANK('VPP Hand-Off Form'!R60),\"\",\"99\"))","v":""},null,null,null,"","","","",{"$f":"IF(ISBLANK('VPP Hand-Off Form'!E60),\"\",'VPP Hand-Off Form'!E60)","v":""}]
[{"$f":"IF('VPP Hand-Off Form'!D61=\"Obsolete\",0,IF('VPP Hand-Off Form'!D61=\"Keep\",0,IF('VPP Hand-Off Form'!D61=\"Obsolete-Partial\",0,'VPP Hand-Off Form'!A61)))","v":0},{"$f":"IF('VPP Hand-Off Form'!D61=\"Obsolete\",\"0\",IF('VPP Hand-Off Form'!D61=\"Keep\",\"0\",IF('VPP Hand-Off Form'!D61=\"Obsolete-Partial\",\"0\",'VPP Hand-Off Form'!B61)))","v":0},"",null,null,null,null,"",{"$f":"IF(A54=0,\"\",'VPP Hand-Off Form'!#REF!)","v":""},null,"",{"$f":"IF(A54=0,\"\",'VPP Hand-Off Form'!#REF!)","v":""},"",null,null,null,"H","",{"$f":"IF(A54=0,\"\",'VPP Hand-Off Form'!$B$3)","v":""},null,null,{"$f":"IF(A54=0,\"\",'VPP Hand-Off Form'!$B$4)","v":""},{"$f":"IF(A54=0,\"\",'VPP Hand-Off Form'!#REF!)","v":""},{"$f":"IF(A54=0,\"\",'VPP Hand-Off Form'!#REF!)","v":""},"","",null,"","",{"$f":"IF(A54=0,\"\",IF(ISBLANK('Output (BBY)'!A54),\"\",\"Created\"))","v":""},null,null,null,{"$f":"IF(A54=0,\"\",IF(ISBLANK('VPP Hand-Off Form'!R61),\"\",\"99\"))","v":""},null,null,null,"","","","",{"$f":"IF(ISBLANK('VPP Hand-Off Form'!E61),\"\",'VPP Hand-Off Form'!E61)","v":""}]
[{"$f":"IF('VPP Hand-Off Form'!D62=\"Obsolete\",0,IF('VPP Hand-Off Form'!D62=\"Keep\",0,IF('VPP Hand-Off Form'!D62=\"Obsolete-Partial\",0,'VPP Hand-Off Form'!A62)))","v":0},{"$f":"IF('VPP Hand-Off Form'!D62=\"Obsolete\",\"0\",IF('VPP Hand-Off Form'!D62=\"Keep\",\"0\",IF('VPP Hand-Off Form'!D62=\"Obsolete-Partial\",\"0\",'VPP Hand-Off Form'!B62)))","v":0},"",null,null,null,null,"",{"$f":"IF(A55=0,\"\",'VPP Hand-Off Form'!#REF!)","v":""},null,"",{"$f":"IF(A55=0,\"\",'VPP Hand-Off Form'!#REF!)","v":""},"",null,null,null,"H","",{"$f":"IF(A55=0,\"\",'VPP Hand-Off Form'!$B$3)","v":""},null,null,{"$f":"IF(A55=0,\"\",'VPP Hand-Off Form'!$B$4)","v":""},{"$f":"IF(A55=0,\"\",'VPP Hand-Off Form'!#REF!)","v":""},{"$f":"IF(A55=0,\"\",'VPP Hand-Off Form'!#REF!)","v":""},"","",null,"","",{"$f":"IF(A55=0,\"\",IF(ISBLANK('Output (BBY)'!A55),\"\",\"Created\"))","v":""},null,null,null,{"$f":"IF(A55=0,\"\",IF(ISBLANK('VPP Hand-Off Form'!R62),\"\",\"99\"))","v":""},null,null,null,"","","","",{"$f":"IF(ISBLANK('VPP Hand-Off Form'!E62),\"\",'VPP Hand-Off Form'!E62)","v":""}]
[{"$f":"IF('VPP Hand-Off Form'!D63=\"Obsolete\",0,IF('VPP Hand-Off Form'!D63=\"Keep\",0,IF('VPP Hand-Off Form'!D63=\"Obsolete-Partial\",0,'VPP Hand-Off Form'!A63)))","v":0},{"$f":"IF('VPP Hand-Off Form'!D63=\"Obsolete\",\"0\",IF('VPP Hand-Off Form'!D63=\"Keep\",\"0\",IF('VPP Hand-Off Form'!D63=\"Obsolete-Partial\",\"0\",'VPP Hand-Off Form'!B63)))","v":0},"",null,null,null,null,"",{"$f":"IF(A56=0,\"\",'VPP Hand-Off Form'!#REF!)","v":""},null,"",{"$f":"IF(A56=0,\"\",'VPP Hand-Off Form'!#REF!)","v":""},"",null,null,null,"H","",{"$f":"IF(A56=0,\"\",'VPP Hand-Off Form'!$B$3)","v":""},null,null,{"$f":"IF(A56=0,\"\",'VPP Hand-Off Form'!$B$4)","v":""},{"$f":"IF(A56=0,\"\",'VPP Hand-Off Form'!#REF!)","v":""},{"$f":"IF(A56=0,\"\",'VPP Hand-Off Form'!#REF!)","v":""},"","",null,"","",{"$f":"IF(A56=0,\"\",IF(ISBLANK('Output (BBY)'!A56),\"\",\"Created\"))","v":""},null,null,null,{"$f":"IF(A56=0,\"\",IF(ISBLANK('VPP Hand-Off Form'!R63),\"\",\"99\"))","v":""},null,null,null,"","","","",{"$f":"IF(ISBLANK('VPP Hand-Off Form'!E63),\"\",'VPP Hand-Off Form'!E63)","v":""}]
[{"$f":"IF('VPP Hand-Off Form'!D64=\"Obsolete\",0,IF('VPP Hand-Off Form'!D64=\"Keep\",0,IF('VPP Hand-Off Form'!D64=\"Obsolete-Partial\",0,'VPP Hand-Off Form'!A64)))","v":0},{"$f":"IF('VPP Hand-Off Form'!D64=\"Obsolete\",\"0\",IF('VPP Hand-Off Form'!D64=\"Keep\",\"0\",IF('VPP Hand-Off Form'!D64=\"Obsolete-Partial\",\"0\",'VPP Hand-Off Form'!B64)))","v":0},"",null,null,null,null,"",{"$f":"IF(A57=0,\"\",'VPP Hand-Off Form'!#REF!)","v":""},null,"",{"$f":"IF(A57=0,\"\",'VPP Hand-Off Form'!#REF!)","v":""},"",null,null,null,"H","",{"$f":"IF(A57=0,\"\",'VPP Hand-Off Form'!$B$3)","v":""},null,null,{"$f":"IF(A57=0,\"\",'VPP Hand-Off Form'!$B$4)","v":""},{"$f":"IF(A57=0,\"\",'VPP Hand-Off Form'!#REF!)","v":""},{"$f":"IF(A57=0,\"\",'VPP Hand-Off Form'!#REF!)","v":""},"","",null,"","",{"$f":"IF(A57=0,\"\",IF(ISBLANK('Output (BBY)'!A57),\"\",\"Created\"))","v":""},null,null,null,{"$f":"IF(A57=0,\"\",IF(ISBLANK('VPP Hand-Off Form'!R64),\"\",\"99\"))","v":""},null,null,null,"","","","",{"$f":"IF(ISBLANK('VPP Hand-Off Form'!E64),\"\",'VPP Hand-Off Form'!E64)","v":""}]
[{"$f":"IF('VPP Hand-Off Form'!D65=\"Obsolete\",0,IF('VPP Hand-Off Form'!D65=\"Keep\",0,IF('VPP Hand-Off Form'!D65=\"Obsolete-Partial\",0,'VPP Hand-Off Form'!A65)))","v":0},{"$f":"IF('VPP Hand-Off Form'!D65=\"Obsolete\",\"0\",IF('VPP Hand-Off Form'!D65=\"Keep\",\"0\",IF('VPP Hand-Off Form'!D65=\"Obsolete-Partial\",\"0\",'VPP Hand-Off Form'!B65)))","v":0},"",null,null,null,null,"",{"$f":"IF(A58=0,\"\",'VPP Hand-Off Form'!#REF!)","v":""},null,"",{"$f":"IF(A58=0,\"\",'VPP Hand-Off Form'!#REF!)","v":""},"",null,null,null,"H","",{"$f":"IF(A58=0,\"\",'VPP Hand-Off Form'!$B$3)","v":""},null,null,{"$f":"IF(A58=0,\"\",'VPP Hand-Off Form'!$B$4)","v":""},{"$f":"IF(A58=0,\"\",'VPP Hand-Off Form'!#REF!)","v":""},{"$f":"IF(A58=0,\"\",'VPP Hand-Off Form'!#REF!)","v":""},"","",null,"","",{"$f":"IF(A58=0,\"\",IF(ISBLANK('Output (BBY)'!A58),\"\",\"Created\"))","v":""},null,null,null,{"$f":"IF(A58=0,\"\",IF(ISBLANK('VPP Hand-Off Form'!R65),\"\",\"99\"))","v":""},null,null,null,"","","","",{"$f":"IF(ISBLANK('VPP Hand-Off Form'!E65),\"\",'VPP Hand-Off Form'!E65)","v":""}]
[{"$f":"IF('VPP Hand-Off Form'!D66=\"Obsolete\",0,IF('VPP Hand-Off Form'!D66=\"Keep\",0,IF('VPP Hand-Off Form'!D66=\"Obsolete-Partial\",0,'VPP Hand-Off Form'!A66)))","v":0},{"$f":"IF('VPP Hand-Off Form'!D66=\"Obsolete\",\"0\",IF('VPP Hand-Off Form'!D66=\"Keep\",\"0\",IF('VPP Hand-Off Form'!D66=\"Obsolete-Partial\",\"0\",'VPP Hand-Off Form'!B66)))","v":0},"",null,null,null,null,"",{"$f":"IF(A59=0,\"\",'VPP Hand-Off Form'!#REF!)","v":""},null,"",{"$f":"IF(A59=0,\"\",'VPP Hand-Off Form'!#REF!)","v":""},"",null,null,null,"H","",{"$f":"IF(A59=0,\"\",'VPP Hand-Off Form'!$B$3)","v":""},null,null,{"$f":"IF(A59=0,\"\",'VPP Hand-Off Form'!$B$4)","v":""},{"$f":"IF(A59=0,\"\",'VPP Hand-Off Form'!#REF!)","v":""},{"$f":"IF(A59=0,\"\",'VPP Hand-Off Form'!#REF!)","v":""},"","",null,"","",{"$f":"IF(A59=0,\"\",IF(ISBLANK('Output (BBY)'!A59),\"\",\"Created\"))","v":""},null,null,null,{"$f":"IF(A59=0,\"\",IF(ISBLANK('VPP Hand-Off Form'!R66),\"\",\"99\"))","v":""},null,null,null,"","","","",{"$f":"IF(ISBLANK('VPP Hand-Off Form'!E66),\"\",'VPP Hand-Off Form'!E66)","v":""}]
[{"$f":"IF('VPP Hand-Off Form'!D67=\"Obsolete\",0,IF('VPP Hand-Off Form'!D67=\"Keep\",0,IF('VPP Hand-Off Form'!D67=\"Obsolete-Partial\",0,'VPP Hand-Off Form'!A67)))","v":0},{"$f":"IF('VPP Hand-Off Form'!D67=\"Obsolete\",\"0\",IF('VPP Hand-Off Form'!D67=\"Keep\",\"0\",IF('VPP Hand-Off Form'!D67=\"Obsolete-Partial\",\"0\",'VPP Hand-Off Form'!B67)))","v":0},"",null,null,null,null,"",{"$f":"IF(A60=0,\"\",'VPP Hand-Off Form'!#REF!)","v":""},null,"",{"$f":"IF(A60=0,\"\",'VPP Hand-Off Form'!#REF!)","v":""},"",null,null,null,"H","",{"$f":"IF(A60=0,\"\",'VPP Hand-Off Form'!$B$3)","v":""},null,null,{"$f":"IF(A60=0,\"\",'VPP Hand-Off Form'!$B$4)","v":""},{"$f":"IF(A60=0,\"\",'VPP Hand-Off Form'!#REF!)","v":""},{"$f":"IF(A60=0,\"\",'VPP Hand-Off Form'!#REF!)","v":""},"","",null,"","",{"$f":"IF(A60=0,\"\",IF(ISBLANK('Output (BBY)'!A60),\"\",\"Created\"))","v":""},null,null,null,{"$f":"IF(A60=0,\"\",IF(ISBLANK('VPP Hand-Off Form'!R67),\"\",\"99\"))","v":""},null,null,null,"","","","",{"$f":"IF(ISBLANK('VPP Hand-Off Form'!E67),\"\",'VPP Hand-Off Form'!E67)","v":""}]
[{"$f":"IF('VPP Hand-Off Form'!D68=\"Obsolete\",0,IF('VPP Hand-Off Form'!D68=\"Keep\",0,IF('VPP Hand-Off Form'!D68=\"Obsolete-Partial\",0,'VPP Hand-Off Form'!A68)))","v":0},{"$f":"IF('VPP Hand-Off Form'!D68=\"Obsolete\",\"0\",IF('VPP Hand-Off Form'!D68=\"Keep\",\"0\",IF('VPP Hand-Off Form'!D68=\"Obsolete-Partial\",\"0\",'VPP Hand-Off Form'!B68)))","v":0},"",null,null,null,null,"",{"$f":"IF(A61=0,\"\",'VPP Hand-Off Form'!#REF!)","v":""},null,"",{"$f":"IF(A61=0,\"\",'VPP Hand-Off Form'!#REF!)","v":""},"",null,null,null,"H","",{"$f":"IF(A61=0,\"\",'VPP Hand-Off Form'!$B$3)","v":""},null,null,{"$f":"IF(A61=0,\"\",'VPP Hand-Off Form'!$B$4)","v":""},{"$f":"IF(A61=0,\"\",'VPP Hand-Off Form'!#REF!)","v":""},{"$f":"IF(A61=0,\"\",'VPP Hand-Off Form'!#REF!)","v":""},"","",null,"","",{"$f":"IF(A61=0,\"\",IF(ISBLANK('Output (BBY)'!A61),\"\",\"Created\"))","v":""},null,null,null,{"$f":"IF(A61=0,\"\",IF(ISBLANK('VPP Hand-Off Form'!R68),\"\",\"99\"))","v":""},null,null,null,"","","","",{"$f":"IF(ISBLANK('VPP Hand-Off Form'!E68),\"\",'VPP Hand-Off Form'!E68)","v":""}]
[{"$f":"IF('VPP Hand-Off Form'!D69=\"Obsolete\",0,IF('VPP Hand-Off Form'!D69=\"Keep\",0,IF('VPP Hand-Off Form'!D69=\"Obsolete-Partial\",0,'VPP Hand-Off Form'!A69)))","v":0},{"$f":"IF('VPP Hand-Off Form'!D69=\"Obsolete\",\"0\",IF('VPP Hand-Off Form'!D69=\"Keep\",\"0\",IF('VPP Hand-Off Form'!D69=\"Obsolete-Partial\",\"0\",'VPP Hand-Off Form'!B69)))","v":0},"",null,null,null,null,"",{"$f":"IF(A62=0,\"\",'VPP Hand-Off Form'!#REF!)","v":""},null,"",{"$f":"IF(A62=0,\"\",'VPP Hand-Off Form'!#REF!)","v":""},"",null,null,null,"H","",{"$f":"IF(A62=0,\"\",'VPP Hand-Off Form'!$B$3)","v":""},null,null,{"$f":"IF(A62=0,\"\",'VPP Hand-Off Form'!$B$4)","v":""},{"$f":"IF(A62=0,\"\",'VPP Hand-Off Form'!#REF!)","v":""},{"$f":"IF(A62=0,\"\",'VPP Hand-Off Form'!#REF!)","v":""},"","",null,"","",{"$f":"IF(A62=0,\"\",IF(ISBLANK('Output (BBY)'!A62),\"\",\"Created\"))","v":""},null,null,null,{"$f":"IF(A62=0,\"\",IF(ISBLANK('VPP Hand-Off Form'!R69),\"\",\"99\"))","v":""},null,null,null,"","","","",{"$f":"IF(ISBLANK('VPP Hand-Off Form'!E69),\"\",'VPP Hand-Off Form'!E69)","v":""}]
[{"$f":"IF('VPP Hand-Off Form'!D70=\"Obsolete\",0,IF('VPP Hand-Off Form'!D70=\"Keep\",0,IF('VPP Hand-Off Form'!D70=\"Obsolete-Partial\",0,'VPP Hand-Off Form'!A70)))","v":0},{"$f":"IF('VPP Hand-Off Form'!D70=\"Obsolete\",\"0\",IF('VPP Hand-Off Form'!D70=\"Keep\",\"0\",IF('VPP Hand-Off Form'!D70=\"Obsolete-Partial\",\"0\",'VPP Hand-Off Form'!B70)))","v":0},"",null,null,null,null,"",{"$f":"IF(A63=0,\"\",'VPP Hand-Off Form'!#REF!)","v":""},null,"",{"$f":"IF(A63=0,\"\",'VPP Hand-Off Form'!#REF!)","v":""},"",null,null,null,"H","",{"$f":"IF(A63=0,\"\",'VPP Hand-Off Form'!$B$3)","v":""},null,null,{"$f":"IF(A63=0,\"\",'VPP Hand-Off Form'!$B$4)","v":""},{"$f":"IF(A63=0,\"\",'VPP Hand-Off Form'!#REF!)","v":""},{"$f":"IF(A63=0,\"\",'VPP Hand-Off Form'!#REF!)","v":""},"","",null,"","",{"$f":"IF(A63=0,\"\",IF(ISBLANK('Output (BBY)'!A63),\"\",\"Created\"))","v":""},null,null,null,{"$f":"IF(A63=0,\"\",IF(ISBLANK('VPP Hand-Off Form'!R70),\"\",\"99\"))","v":""},null,null,null,"","","","",{"$f":"IF(ISBLANK('VPP Hand-Off Form'!E70),\"\",'VPP Hand-Off Form'!E70)","v":""}]
[{"$f":"IF('VPP Hand-Off Form'!D71=\"Obsolete\",0,IF('VPP Hand-Off Form'!D71=\"Keep\",0,IF('VPP Hand-Off Form'!D71=\"Obsolete-Partial\",0,'VPP Hand-Off Form'!A71)))","v":0},{"$f":"IF('VPP Hand-Off Form'!D71=\"Obsolete\",\"0\",IF('VPP Hand-Off Form'!D71=\"Keep\",\"0\",IF('VPP Hand-Off Form'!D71=\"Obsolete-Partial\",\"0\",'VPP Hand-Off Form'!B71)))","v":0},"",null,null,null,null,"",{"$f":"IF(A64=0,\"\",'VPP Hand-Off Form'!#REF!)","v":""},null,"",{"$f":"IF(A64=0,\"\",'VPP Hand-Off Form'!#REF!)","v":""},"",null,null,null,"H","",{"$f":"IF(A64=0,\"\",'VPP Hand-Off Form'!$B$3)","v":""},null,null,{"$f":"IF(A64=0,\"\",'VPP Hand-Off Form'!$B$4)","v":""},{"$f":"IF(A64=0,\"\",'VPP Hand-Off Form'!#REF!)","v":""},{"$f":"IF(A64=0,\"\",'VPP Hand-Off Form'!#REF!)","v":""},"","",null,"","",{"$f":"IF(A64=0,\"\",IF(ISBLANK('Output (BBY)'!A64),\"\",\"Created\"))","v":""},null,null,null,{"$f":"IF(A64=0,\"\",IF(ISBLANK('VPP Hand-Off Form'!R71),\"\",\"99\"))","v":""},null,null,null,"","","","",{"$f":"IF(ISBLANK('VPP Hand-Off Form'!E71),\"\",'VPP Hand-Off Form'!E71)","v":""}]
[{"$f":"IF('VPP Hand-Off Form'!D72=\"Obsolete\",0,IF('VPP Hand-Off Form'!D72=\"Keep\",0,IF('VPP Hand-Off Form'!D72=\"Obsolete-Partial\",0,'VPP Hand-Off Form'!A72)))","v":0},{"$f":"IF('VPP Hand-Off Form'!D72=\"Obsolete\",\"0\",IF('VPP Hand-Off Form'!D72=\"Keep\",\"0\",IF('VPP Hand-Off Form'!D72=\"Obsolete-Partial\",\"0\",'VPP Hand-Off Form'!B72)))","v":0},"",null,null,null,null,"",{"$f":"IF(A65=0,\"\",'VPP Hand-Off Form'!#REF!)","v":""},null,"",{"$f":"IF(A65=0,\"\",'VPP Hand-Off Form'!#REF!)","v":""},"",null,null,null,"H","",{"$f":"IF(A65=0,\"\",'VPP Hand-Off Form'!$B$3)","v":""},null,null,{"$f":"IF(A65=0,\"\",'VPP Hand-Off Form'!$B$4)","v":""},{"$f":"IF(A65=0,\"\",'VPP Hand-Off Form'!#REF!)","v":""},{"$f":"IF(A65=0,\"\",'VPP Hand-Off Form'!#REF!)","v":""},"","",null,"","",{"$f":"IF(A65=0,\"\",IF(ISBLANK('Output (BBY)'!A65),\"\",\"Created\"))","v":""},null,null,null,{"$f":"IF(A65=0,\"\",IF(ISBLANK('VPP Hand-Off Form'!R72),\"\",\"99\"))","v":""},null,null,null,"","","","",{"$f":"IF(ISBLANK('VPP Hand-Off Form'!E72),\"\",'VPP Hand-Off Form'!E72)","v":""}]
[{"$f":"IF('VPP Hand-Off Form'!D73=\"Obsolete\",0,IF('VPP Hand-Off Form'!D73=\"Keep\",0,IF('VPP Hand-Off Form'!D73=\"Obsolete-Partial\",0,'VPP Hand-Off Form'!A73)))","v":0},{"$f":"IF('VPP Hand-Off Form'!D73=\"Obsolete\",\"0\",IF('VPP Hand-Off Form'!D73=\"Keep\",\"0\",IF('VPP Hand-Off Form'!D73=\"Obsolete-Partial\",\"0\",'VPP Hand-Off Form'!B73)))","v":0},"",null,null,null,null,"",{"$f":"IF(A66=0,\"\",'VPP Hand-Off Form'!#REF!)","v":""},null,"",{"$f":"IF(A66=0,\"\",'VPP Hand-Off Form'!#REF!)","v":""},"",null,null,null,"H","",{"$f":"IF(A66=0,\"\",'VPP Hand-Off Form'!$B$3)","v":""},null,null,{"$f":"IF(A66=0,\"\",'VPP Hand-Off Form'!$B$4)","v":""},{"$f":"IF(A66=0,\"\",'VPP Hand-Off Form'!#REF!)","v":""},{"$f":"IF(A66=0,\"\",'VPP Hand-Off Form'!#REF!)","v":""},"","",null,"","",{"$f":"IF(A66=0,\"\",IF(ISBLANK('Output (BBY)'!A66),\"\",\"Created\"))","v":""},null,null,null,{"$f":"IF(A66=0,\"\",IF(ISBLANK('VPP Hand-Off Form'!R73),\"\",\"99\"))","v":""},null,null,null,"","","","",{"$f":"IF(ISBLANK('VPP Hand-Off Form'!E73),\"\",'VPP Hand-Off Form'!E73)","v":""}]
[{"$f":"IF('VPP Hand-Off Form'!D74=\"Obsolete\",0,IF('VPP Hand-Off Form'!D74=\"Keep\",0,IF('VPP Hand-Off Form'!D74=\"Obsolete-Partial\",0,'VPP Hand-Off Form'!A74)))","v":0},{"$f":"IF('VPP Hand-Off Form'!D74=\"Obsolete\",\"0\",IF('VPP Hand-Off Form'!D74=\"Keep\",\"0\",IF('VPP Hand-Off Form'!D74=\"Obsolete-Partial\",\"0\",'VPP Hand-Off Form'!B74)))","v":0},{"$f":"IFERROR(IF(A67=0,\"\",VLOOKUP(A67,parts,8,FALSE)),\"NA\")","v":""},null,null,null,null,"",{"$f":"IF(A67=0,\"\",'VPP Hand-Off Form'!#REF!)","v":""},null,"",{"$f":"IF(A67=0,\"\",'VPP Hand-Off Form'!#REF!)","v":""},"",null,null,null,"H","",{"$f":"IF(A67=0,\"\",'VPP Hand-Off Form'!$B$3)","v":""},null,null,{"$f":"IF(A67=0,\"\",'VPP Hand-Off Form'!$B$4)","v":""},{"$f":"IF(A67=0,\"\",'VPP Hand-Off Form'!#REF!)","v":""},{"$f":"IF(A67=0,\"\",'VPP Hand-Off Form'!#REF!)","v":""},{"$f":"IFERROR(IF(A67=0,\"\",VLOOKUP(A67,parts,25,FALSE)),\"NA\")","v":""},{"$f":"IFERROR(IF(A67=0,\"\",VLOOKUP(A67,parts,25,FALSE)),\"NA\")","v":""},null,{"$f":"IFERROR(IF(A67=0,\"\",VLOOKUP(A67,parts,8,FALSE)),\"NA\")","v":""},{"$f":"IFERROR(IF(A67=0,\"\",VLOOKUP(A67,parts,9,FALSE)),\"NA\")","v":""},{"$f":"IF(A67=0,\"\",IF(ISBLANK('Output (BBY)'!A67),\"\",\"Created\"))","v":""},null,null,null,{"$f":"IF(A67=0,\"\",IF(ISBLANK('VPP Hand-Off Form'!R74),\"\",\"99\"))","v":""},null,null,null,"",{"$f":"IFERROR(IF(A67=0,\"\",VLOOKUP(A67,parts,10,FALSE)),\"NA\")","v":""},{"$f":"IFERROR(IF(A67=0,\"\",VLOOKUP(A67,parts,11,FALSE)),\"NA\")","v":""},{"$f":"IFERROR(IF(A67=0,\"\",VLOOKUP(A67,parts,12,FALSE)),\"NA\")","v":""},{"$f":"IF(ISBLANK('VPP Hand-Off Form'!E74),\"\",'VPP Hand-Off Form'!E74)","v":""}]
[{"$f":"IF('VPP Hand-Off Form'!D75=\"Obsolete\",0,IF('VPP Hand-Off Form'!D75=\"Keep\",0,IF('VPP Hand-Off Form'!D75=\"Obsolete-Partial\",0,'VPP Hand-Off Form'!A75)))","v":0},{"$f":"IF('VPP Hand-Off Form'!D75=\"Obsolete\",\"0\",IF('VPP Hand-Off Form'!D75=\"Keep\",\"0\",IF('VPP Hand-Off Form'!D75=\"Obsolete-Partial\",\"0\",'VPP Hand-Off Form'!B75)))","v":0},"",null,null,null,null,"",{"$f":"IF(A68=0,\"\",'VPP Hand-Off Form'!#REF!)","v":""},null,{"$f":"IF(A68=0,\"\",\"Non-Merch Inventory\")","v":""},{"$f":"IF(A68=0,\"\",'VPP Hand-Off Form'!#REF!)","v":""},{"$f":"IF(A68=0,\"\",\"\")","v":""},null,null,null,{"$f":"IF(LEFT(A68,3)=\"VPP\",\"V\",IF(LEFT(A68,2)=\"b0\",\"H\",IF(ISBLANK(A68),\"\",\"H\")))","v":"H"},{"$f":"IF(AP68=\"Full Kit\",16001,IF(AC68=\"VPP - SUPPLIES\",10100,IF(AC68=\"VPP - FIXTURE\",16002,IF(AC68=\"VPP - ELECTRONIC\",16003,IF(AC68=\"VPP - GRAPHIC PERM\",18000,IF(AC68=\"VPP - GRAPHIC-TEMP\",18000,\"\"))))))","v":""},{"$f":"IF(A68=0,\"\",'VPP Hand-Off Form'!$B$3)","v":""},null,null,{"$f":"IF(A68=0,\"\",'VPP Hand-Off Form'!$B$4)","v":""},{"$f":"IF(A68=0,\"\",'VPP Hand-Off Form'!#REF!)","v":""},{"$f":"IF(A68=0,\"\",'VPP Hand-Off Form'!#REF!)","v":""},"","",null,"","",{"$f":"IF(A68=0,\"\",IF(ISBLANK('Output (BBY)'!A68),\"\",\"Created\"))","v":""},null,null,null,{"$f":"IF(A68=0,\"\",IF(ISBLANK('VPP Hand-Off Form'!R75),\"\",\"99\"))","v":""},null,null,null,{"$f":"IF(A68=0,\"\",\"IN\")","v":""},"","","",{"$f":"IF(ISBLANK('VPP Hand-Off Form'!E75),\"\",'VPP Hand-Off Form'!E75)","v":""}]
[{"$f":"IF('VPP Hand-Off Form'!D76=\"Obsolete\",0,IF('VPP Hand-Off Form'!D76=\"Keep\",0,IF('VPP Hand-Off Form'!D76=\"Obsolete-Partial\",0,'VPP Hand-Off Form'!A76)))","v":0},{"$f":"IF('VPP Hand-Off Form'!D76=\"Obsolete\",\"0\",IF('VPP Hand-Off Form'!D76=\"Keep\",\"0\",IF('VPP Hand-Off Form'!D76=\"Obsolete-Partial\",\"0\",'VPP Hand-Off Form'!B76)))","v":0},"",null,null,null,null,"",{"$f":"IF(A69=0,\"\",'VPP Hand-Off Form'!#REF!)","v":""},null,"",{"$f":"IF(A69=0,\"\",'VPP Hand-Off Form'!#REF!)","v":""},"",null,null,null,"H","",{"$f":"IF(A69=0,\"\",'VPP Hand-Off Form'!$B$3)","v":""},null,null,{"$f":"IF(A69=0,\"\",'VPP Hand-Off Form'!$B$4)","v":""},{"$f":"IF(A69=0,\"\",'VPP Hand-Off Form'!#REF!)","v":""},{"$f":"IF(A69=0,\"\",'VPP Hand-Off Form'!#REF!)","v":""},"","",null,"","",{"$f":"IF(A69=0,\"\",IF(ISBLANK('Output (BBY)'!A69),\"\",\"Created\"))","v":""},null,null,null,{"$f":"IF(A69=0,\"\",IF(ISBLANK('VPP Hand-Off Form'!R76),\"\",\"99\"))","v":""},null,null,null,"","","","",{"$f":"IF(ISBLANK('VPP Hand-Off Form'!E76),\"\",'VPP Hand-Off Form'!E76)","v":""}]
[{"$f":"IF('VPP Hand-Off Form'!D77=\"Obsolete\",0,IF('VPP Hand-Off Form'!D77=\"Keep\",0,IF('VPP Hand-Off Form'!D77=\"Obsolete-Partial\",0,'VPP Hand-Off Form'!A77)))","v":0},{"$f":"IF('VPP Hand-Off Form'!D77=\"Obsolete\",\"0\",IF('VPP Hand-Off Form'!D77=\"Keep\",\"0\",IF('VPP Hand-Off Form'!D77=\"Obsolete-Partial\",\"0\",'VPP Hand-Off Form'!B77)))","v":0},"",null,null,null,null,{"$f":"IF(A70=0,\"\",\"BBY_PURCHASING\")","v":""},{"$f":"IF(A70=0,\"\",'VPP Hand-Off Form'!#REF!)","v":""},null,"",{"$f":"IF(A70=0,\"\",'VPP Hand-Off Form'!#REF!)","v":""},"",null,null,null,"H","",{"$f":"IF(A70=0,\"\",'VPP Hand-Off Form'!$B$3)","v":""},null,null,{"$f":"IF(A70=0,\"\",'VPP Hand-Off Form'!$B$4)","v":""},{"$f":"IF(A70=0,\"\",'VPP Hand-Off Form'!#REF!)","v":""},{"$f":"IF(A70=0,\"\",'VPP Hand-Off Form'!#REF!)","v":""},"","",null,"","",{"$f":"IF(A70=0,\"\",IF(ISBLANK('Output (BBY)'!A70),\"\",\"Created\"))","v":""},null,null,null,{"$f":"IF(A70=0,\"\",IF(ISBLANK('VPP Hand-Off Form'!R77),\"\",\"99\"))","v":""},null,null,null,"","","","",{"$f":"IF(ISBLANK('VPP Hand-Off Form'!E77),\"\",'VPP Hand-Off Form'!E77)","v":""}]
[{"$f":"IF('VPP Hand-Off Form'!D78=\"Obsolete\",0,IF('VPP Hand-Off Form'!D78=\"Keep\",0,IF('VPP Hand-Off Form'!D78=\"Obsolete-Partial\",0,'VPP Hand-Off Form'!A78)))","v":0},{"$f":"IF('VPP Hand-Off Form'!D78=\"Obsolete\",\"0\",IF('VPP Hand-Off Form'!D78=\"Keep\",\"0\",IF('VPP Hand-Off Form'!D78=\"Obsolete-Partial\",\"0\",'VPP Hand-Off Form'!B78)))","v":0},"",null,null,null,null,"",{"$f":"IF(A71=0,\"\",'VPP Hand-Off Form'!#REF!)","v":""},null,"",{"$f":"IF(A71=0,\"\",'VPP Hand-Off Form'!#REF!)","v":""},"",null,null,null,"H","",{"$f":"IF(A71=0,\"\",'VPP Hand-Off Form'!$B$3)","v":""},null,null,{"$f":"IF(A71=0,\"\",'VPP Hand-Off Form'!$B$4)","v":""},{"$f":"IF(A71=0,\"\",'VPP Hand-Off Form'!#REF!)","v":""},{"$f":"IF(A71=0,\"\",'VPP Hand-Off Form'!#REF!)","v":""},"","",null,"","",{"$f":"IF(A71=0,\"\",IF(ISBLANK('Output (BBY)'!A71),\"\",\"Created\"))","v":""},null,null,null,{"$f":"IF(A71=0,\"\",IF(ISBLANK('VPP Hand-Off Form'!R78),\"\",\"99\"))","v":""},null,null,null,"","","","",{"$f":"IF(ISBLANK('VPP Hand-Off Form'!E78),\"\",'VPP Hand-Off Form'!E78)","v":""}]
[{"$f":"IF('VPP Hand-Off Form'!D79=\"Obsolete\",0,IF('VPP Hand-Off Form'!D79=\"Keep\",0,IF('VPP Hand-Off Form'!D79=\"Obsolete-Partial\",0,'VPP Hand-Off Form'!A79)))","v":0},{"$f":"IF('VPP Hand-Off Form'!D79=\"Obsolete\",\"0\",IF('VPP Hand-Off Form'!D79=\"Keep\",\"0\",IF('VPP Hand-Off Form'!D79=\"Obsolete-Partial\",\"0\",'VPP Hand-Off Form'!B79)))","v":0},"",null,null,null,null,"",{"$f":"IF(A72=0,\"\",'VPP Hand-Off Form'!#REF!)","v":""},null,"",{"$f":"IF(A72=0,\"\",'VPP Hand-Off Form'!#REF!)","v":""},"",null,null,null,"H","",{"$f":"IF(A72=0,\"\",'VPP Hand-Off Form'!$B$3)","v":""},null,null,{"$f":"IF(A72=0,\"\",'VPP Hand-Off Form'!$B$4)","v":""},{"$f":"IF(A72=0,\"\",'VPP Hand-Off Form'!#REF!)","v":""},{"$f":"IF(A72=0,\"\",'VPP Hand-Off Form'!#REF!)","v":""},"","",null,"","",{"$f":"IF(A72=0,\"\",IF(ISBLANK('Output (BBY)'!A72),\"\",\"Created\"))","v":""},null,null,null,{"$f":"IF(A72=0,\"\",IF(ISBLANK('VPP Hand-Off Form'!R79),\"\",\"99\"))","v":""},null,null,null,"","","","",{"$f":"IF(ISBLANK('VPP Hand-Off Form'!E79),\"\",'VPP Hand-Off Form'!E79)","v":""}]
[{"$f":"IF('VPP Hand-Off Form'!D80=\"Obsolete\",0,IF('VPP Hand-Off Form'!D80=\"Keep\",0,IF('VPP Hand-Off Form'!D80=\"Obsolete-Partial\",0,'VPP Hand-Off Form'!A80)))","v":0},{"$f":"IF('VPP Hand-Off Form'!D80=\"Obsolete\",\"0\",IF('VPP Hand-Off Form'!D80=\"Keep\",\"0\",IF('VPP Hand-Off Form'!D80=\"Obsolete-Partial\",\"0\",'VPP Hand-Off Form'!B80)))","v":0},"",null,null,null,null,"",{"$f":"IF(A73=0,\"\",'VPP Hand-Off Form'!#REF!)","v":""},null,"",{"$f":"IF(A73=0,\"\",'VPP Hand-Off Form'!#REF!)","v":""},"",null,null,null,"H","",{"$f":"IF(A73=0,\"\",'VPP Hand-Off Form'!$B$3)","v":""},null,null,{"$f":"IF(A73=0,\"\",'VPP Hand-Off Form'!$B$4)","v":""},{"$f":"IF(A73=0,\"\",'VPP Hand-Off Form'!#REF!)","v":""},{"$f":"IF(A73=0,\"\",'VPP Hand-Off Form'!#REF!)","v":""},"","",null,"","",{"$f":"IF(A73=0,\"\",IF(ISBLANK('Output (BBY)'!A73),\"\",\"Created\"))","v":""},null,null,null,{"$f":"IF(A73=0,\"\",IF(ISBLANK('VPP Hand-Off Form'!R80),\"\",\"99\"))","v":""},null,null,null,"","","","",{"$f":"IF(ISBLANK('VPP Hand-Off Form'!E80),\"\",'VPP Hand-Off Form'!E80)","v":""}]
[{"$f":"IF('VPP Hand-Off Form'!D81=\"Obsolete\",0,IF('VPP Hand-Off Form'!D81=\"Keep\",0,IF('VPP Hand-Off Form'!D81=\"Obsolete-Partial\",0,'VPP Hand-Off Form'!A81)))","v":0},{"$f":"IF('VPP Hand-Off Form'!D81=\"Obsolete\",\"0\",IF('VPP Hand-Off Form'!D81=\"Keep\",\"0\",IF('VPP Hand-Off Form'!D81=\"Obsolete-Partial\",\"0\",'VPP Hand-Off Form'!B81)))","v":0},"",null,null,null,null,"",{"$f":"IF(A74=0,\"\",'VPP Hand-Off Form'!#REF!)","v":""},null,"",{"$f":"IF(A74=0,\"\",'VPP Hand-Off Form'!#REF!)","v":""},"",null,null,null,"H","",{"$f":"IF(A74=0,\"\",'VPP Hand-Off Form'!$B$3)","v":""},null,null,{"$f":"IF(A74=0,\"\",'VPP Hand-Off Form'!$B$4)","v":""},{"$f":"IF(A74=0,\"\",'VPP Hand-Off Form'!#REF!)","v":""},{"$f":"IF(A74=0,\"\",'VPP Hand-Off Form'!#REF!)","v":""},"","",null,"","",{"$f":"IF(A74=0,\"\",IF(ISBLANK('Output (BBY)'!A74),\"\",\"Created\"))","v":""},null,null,null,{"$f":"IF(A74=0,\"\",IF(ISBLANK('VPP Hand-Off Form'!R81),\"\",\"99\"))","v":""},null,null,null,"","","","",{"$f":"IF(ISBLANK('VPP Hand-Off Form'!E81),\"\",'VPP Hand-Off Form'!E81)","v":""}]
[{"$f":"IF('VPP Hand-Off Form'!D82=\"Obsolete\",0,IF('VPP Hand-Off Form'!D82=\"Keep\",0,IF('VPP Hand-Off Form'!D82=\"Obsolete-Partial\",0,'VPP Hand-Off Form'!A82)))","v":0},{"$f":"IF('VPP Hand-Off Form'!D82=\"Obsolete\",\"0\",IF('VPP Hand-Off Form'!D82=\"Keep\",\"0\",IF('VPP Hand-Off Form'!D82=\"Obsolete-Partial\",\"0\",'VPP Hand-Off Form'!B82)))","v":0},"",null,null,null,null,"",{"$f":"IF(A75=0,\"\",'VPP Hand-Off Form'!#REF!)","v":""},null,"",{"$f":"IF(A75=0,\"\",'VPP Hand-Off Form'!#REF!)","v":""},"",null,null,null,"H","",{"$f":"IF(A75=0,\"\",'VPP Hand-Off Form'!$B$3)","v":""},null,null,{"$f":"IF(A75=0,\"\",'VPP Hand-Off Form'!$B$4)","v":""},{"$f":"IF(A75=0,\"\",'VPP Hand-Off Form'!#REF!)","v":""},{"$f":"IF(A75=0,\"\",'VPP Hand-Off Form'!#REF!)","v":""},"","",null,"","",{"$f":"IF(A75=0,\"\",IF(ISBLANK('Output (BBY)'!A75),\"\",\"Created\"))","v":""},null,null,null,{"$f":"IF(A75=0,\"\",IF(ISBLANK('VPP Hand-Off Form'!R82),\"\",\"99\"))","v":""},null,null,null,"","","","",{"$f":"IF(ISBLANK('VPP Hand-Off Form'!E82),\"\",'VPP Hand-Off Form'!E82)","v":""}]
[{"$f":"IF('VPP Hand-Off Form'!D83=\"Obsolete\",0,IF('VPP Hand-Off Form'!D83=\"Keep\",0,IF('VPP Hand-Off Form'!D83=\"Obsolete-Partial\",0,'VPP Hand-Off Form'!A83)))","v":0},{"$f":"IF('VPP Hand-Off Form'!D83=\"Obsolete\",\"0\",IF('VPP Hand-Off Form'!D83=\"Keep\",\"0\",IF('VPP Hand-Off Form'!D83=\"Obsolete-Partial\",\"0\",'VPP Hand-Off Form'!B83)))","v":0},"",null,null,null,null,"",{"$f":"IF(A76=0,\"\",'VPP Hand-Off Form'!#REF!)","v":""},null,"",{"$f":"IF(A76=0,\"\",'VPP Hand-Off Form'!#REF!)","v":""},"",null,null,null,"H","",{"$f":"IF(A76=0,\"\",'VPP Hand-Off Form'!$B$3)","v":""},null,null,{"$f":"IF(A76=0,\"\",'VPP Hand-Off Form'!$B$4)","v":""},{"$f":"IF(A76=0,\"\",'VPP Hand-Off Form'!#REF!)","v":""},{"$f":"IF(A76=0,\"\",'VPP Hand-Off Form'!#REF!)","v":""},"","",null,"","",{"$f":"IF(A76=0,\"\",IF(ISBLANK('Output (BBY)'!A76),\"\",\"Created\"))","v":""},null,null,null,{"$f":"IF(A76=0,\"\",IF(ISBLANK('VPP Hand-Off Form'!R83),\"\",\"99\"))","v":""},null,null,null,"","","","",{"$f":"IF(ISBLANK('VPP Hand-Off Form'!E83),\"\",'VPP Hand-Off Form'!E83)","v":""}]
[{"$f":"IF('VPP Hand-Off Form'!D84=\"Obsolete\",0,IF('VPP Hand-Off Form'!D84=\"Keep\",0,IF('VPP Hand-Off Form'!D84=\"Obsolete-Partial\",0,'VPP Hand-Off Form'!A84)))","v":0},{"$f":"IF('VPP Hand-Off Form'!D84=\"Obsolete\",\"0\",IF('VPP Hand-Off Form'!D84=\"Keep\",\"0\",IF('VPP Hand-Off Form'!D84=\"Obsolete-Partial\",\"0\",'VPP Hand-Off Form'!B84)))","v":0},"",null,null,null,null,"",{"$f":"IF(A77=0,\"\",'VPP Hand-Off Form'!#REF!)","v":""},null,"",{"$f":"IF(A77=0,\"\",'VPP Hand-Off Form'!#REF!)","v":""},"",null,null,null,"H","",{"$f":"IF(A77=0,\"\",'VPP Hand-Off Form'!$B$3)","v":""},null,null,{"$f":"IF(A77=0,\"\",'VPP Hand-Off Form'!$B$4)","v":""},{"$f":"IF(A77=0,\"\",'VPP Hand-Off Form'!#REF!)","v":""},{"$f":"IF(A77=0,\"\",'VPP Hand-Off Form'!#REF!)","v":""},"","",null,"","",{"$f":"IF(A77=0,\"\",IF(ISBLANK('Output (BBY)'!A77),\"\",\"Created\"))","v":""},null,null,null,{"$f":"IF(A77=0,\"\",IF(ISBLANK('VPP Hand-Off Form'!R84),\"\",\"99\"))","v":""},null,null,null,"","","","",{"$f":"IF(ISBLANK('VPP Hand-Off Form'!E84),\"\",'VPP Hand-Off Form'!E84)","v":""}]
[{"$f":"IF('VPP Hand-Off Form'!D85=\"Obsolete\",0,IF('VPP Hand-Off Form'!D85=\"Keep\",0,IF('VPP Hand-Off Form'!D85=\"Obsolete-Partial\",0,'VPP Hand-Off Form'!A85)))","v":0},{"$f":"IF('VPP Hand-Off Form'!D85=\"Obsolete\",\"0\",IF('VPP Hand-Off Form'!D85=\"Keep\",\"0\",IF('VPP Hand-Off Form'!D85=\"Obsolete-Partial\",\"0\",'VPP Hand-Off Form'!B85)))","v":0},"",null,null,null,null,"",{"$f":"IF(A78=0,\"\",'VPP Hand-Off Form'!#REF!)","v":""},null,"",{"$f":"IF(A78=0,\"\",'VPP Hand-Off Form'!#REF!)","v":""},"",null,null,null,"H","",{"$f":"IF(A78=0,\"\",'VPP Hand-Off Form'!$B$3)","v":""},null,null,{"$f":"IF(A78=0,\"\",'VPP Hand-Off Form'!$B$4)","v":""},{"$f":"IF(A78=0,\"\",'VPP Hand-Off Form'!#REF!)","v":""},{"$f":"IF(A78=0,\"\",'VPP Hand-Off Form'!#REF!)","v":""},"","",null,"","",{"$f":"IF(A78=0,\"\",IF(ISBLANK('Output (BBY)'!A78),\"\",\"Created\"))","v":""},null,null,null,{"$f":"IF(A78=0,\"\",IF(ISBLANK('VPP Hand-Off Form'!R85),\"\",\"99\"))","v":""},null,null,null,"","","","",{"$f":"IF(ISBLANK('VPP Hand-Off Form'!E85),\"\",'VPP Hand-Off Form'!E85)","v":""}]
[{"$f":"IF('VPP Hand-Off Form'!D86=\"Obsolete\",0,IF('VPP Hand-Off Form'!D86=\"Keep\",0,IF('VPP Hand-Off Form'!D86=\"Obsolete-Partial\",0,'VPP Hand-Off Form'!A86)))","v":0},{"$f":"IF('VPP Hand-Off Form'!D86=\"Obsolete\",\"0\",IF('VPP Hand-Off Form'!D86=\"Keep\",\"0\",IF('VPP Hand-Off Form'!D86=\"Obsolete-Partial\",\"0\",'VPP Hand-Off Form'!B86)))","v":0},"",null,null,null,null,"",{"$f":"IF(A79=0,\"\",'VPP Hand-Off Form'!#REF!)","v":""},null,"",{"$f":"IF(A79=0,\"\",'VPP Hand-Off Form'!#REF!)","v":""},"",null,null,null,"H","",{"$f":"IF(A79=0,\"\",'VPP Hand-Off Form'!$B$3)","v":""},null,null,{"$f":"IF(A79=0,\"\",'VPP Hand-Off Form'!$B$4)","v":""},{"$f":"IF(A79=0,\"\",'VPP Hand-Off Form'!#REF!)","v":""},{"$f":"IF(A79=0,\"\",'VPP Hand-Off Form'!#REF!)","v":""},"","",null,"","",{"$f":"IF(A79=0,\"\",IF(ISBLANK('Output (BBY)'!A79),\"\",\"Created\"))","v":""},null,null,null,{"$f":"IF(A79=0,\"\",IF(ISBLANK('VPP Hand-Off Form'!R86),\"\",\"99\"))","v":""},null,null,null,"","","","",{"$f":"IF(ISBLANK('VPP Hand-Off Form'!E86),\"\",'VPP Hand-Off Form'!E86)","v":""}]
[{"$f":"IF('VPP Hand-Off Form'!D87=\"Obsolete\",0,IF('VPP Hand-Off Form'!D87=\"Keep\",0,IF('VPP Hand-Off Form'!D87=\"Obsolete-Partial\",0,'VPP Hand-Off Form'!A87)))","v":0},{"$f":"IF('VPP Hand-Off Form'!D87=\"Obsolete\",\"0\",IF('VPP Hand-Off Form'!D87=\"Keep\",\"0\",IF('VPP Hand-Off Form'!D87=\"Obsolete-Partial\",\"0\",'VPP Hand-Off Form'!B87)))","v":0},"",null,null,null,null,"",{"$f":"IF(A80=0,\"\",'VPP Hand-Off Form'!#REF!)","v":""},null,"",{"$f":"IF(A80=0,\"\",'VPP Hand-Off Form'!#REF!)","v":""},"",null,null,null,"H","",{"$f":"IF(A80=0,\"\",'VPP Hand-Off Form'!$B$3)","v":""},null,null,{"$f":"IF(A80=0,\"\",'VPP Hand-Off Form'!$B$4)","v":""},{"$f":"IF(A80=0,\"\",'VPP Hand-Off Form'!#REF!)","v":""},{"$f":"IF(A80=0,\"\",'VPP Hand-Off Form'!#REF!)","v":""},"","",null,"","",{"$f":"IF(A80=0,\"\",IF(ISBLANK('Output (BBY)'!A80),\"\",\"Created\"))","v":""},null,null,null,{"$f":"IF(A80=0,\"\",IF(ISBLANK('VPP Hand-Off Form'!R87),\"\",\"99\"))","v":""},null,null,null,"","","","",{"$f":"IF(ISBLANK('VPP Hand-Off Form'!E87),\"\",'VPP Hand-Off Form'!E87)","v":""}]
[{"$f":"IF('VPP Hand-Off Form'!D88=\"Obsolete\",0,IF('VPP Hand-Off Form'!D88=\"Keep\",0,IF('VPP Hand-Off Form'!D88=\"Obsolete-Partial\",0,'VPP Hand-Off Form'!A88)))","v":0},{"$f":"IF('VPP Hand-Off Form'!D88=\"Obsolete\",\"0\",IF('VPP Hand-Off Form'!D88=\"Keep\",\"0\",IF('VPP Hand-Off Form'!D88=\"Obsolete-Partial\",\"0\",'VPP Hand-Off Form'!B88)))","v":0},"",null,null,null,null,"",{"$f":"IF(A81=0,\"\",'VPP Hand-Off Form'!#REF!)","v":""},null,"",{"$f":"IF(A81=0,\"\",'VPP Hand-Off Form'!#REF!)","v":""},"",null,null,null,"H","",{"$f":"IF(A81=0,\"\",'VPP Hand-Off Form'!$B$3)","v":""},null,null,{"$f":"IF(A81=0,\"\",'VPP Hand-Off Form'!$B$4)","v":""},{"$f":"IF(A81=0,\"\",'VPP Hand-Off Form'!#REF!)","v":""},{"$f":"IF(A81=0,\"\",'VPP Hand-Off Form'!#REF!)","v":""},"","",null,"","",{"$f":"IF(A81=0,\"\",IF(ISBLANK('Output (BBY)'!A81),\"\",\"Created\"))","v":""},null,null,null,{"$f":"IF(A81=0,\"\",IF(ISBLANK('VPP Hand-Off Form'!R88),\"\",\"99\"))","v":""},null,null,null,"","","","",{"$f":"IF(ISBLANK('VPP Hand-Off Form'!E88),\"\",'VPP Hand-Off Form'!E88)","v":""}]
[{"$f":"IF('VPP Hand-Off Form'!D89=\"Obsolete\",0,IF('VPP Hand-Off Form'!D89=\"Keep\",0,IF('VPP Hand-Off Form'!D89=\"Obsolete-Partial\",0,'VPP Hand-Off Form'!A89)))","v":0},{"$f":"IF('VPP Hand-Off Form'!D89=\"Obsolete\",\"0\",IF('VPP Hand-Off Form'!D89=\"Keep\",\"0\",IF('VPP Hand-Off Form'!D89=\"Obsolete-Partial\",\"0\",'VPP Hand-Off Form'!B89)))","v":0},"",null,null,null,null,"",{"$f":"IF(A82=0,\"\",'VPP Hand-Off Form'!#REF!)","v":""},null,"",{"$f":"IF(A82=0,\"\",'VPP Hand-Off Form'!#REF!)","v":""},"",null,null,null,"H","",{"$f":"IF(A82=0,\"\",'VPP Hand-Off Form'!$B$3)","v":""},null,null,{"$f":"IF(A82=0,\"\",'VPP Hand-Off Form'!$B$4)","v":""},{"$f":"IF(A82=0,\"\",'VPP Hand-Off Form'!#REF!)","v":""},{"$f":"IF(A82=0,\"\",'VPP Hand-Off Form'!#REF!)","v":""},"","",null,"","",{"$f":"IF(A82=0,\"\",IF(ISBLANK('Output (BBY)'!A82),\"\",\"Created\"))","v":""},null,null,null,{"$f":"IF(A82=0,\"\",IF(ISBLANK('VPP Hand-Off Form'!R89),\"\",\"99\"))","v":""},null,null,null,"","","","",{"$f":"IF(ISBLANK('VPP Hand-Off Form'!E89),\"\",'VPP Hand-Off Form'!E89)","v":""}]
[{"$f":"IF('VPP Hand-Off Form'!D90=\"Obsolete\",0,IF('VPP Hand-Off Form'!D90=\"Keep\",0,IF('VPP Hand-Off Form'!D90=\"Obsolete-Partial\",0,'VPP Hand-Off Form'!A90)))","v":0},{"$f":"IF('VPP Hand-Off Form'!D90=\"Obsolete\",\"0\",IF('VPP Hand-Off Form'!D90=\"Keep\",\"0\",IF('VPP Hand-Off Form'!D90=\"Obsolete-Partial\",\"0\",'VPP Hand-Off Form'!B90)))","v":0},"",null,null,null,null,"",{"$f":"IF(A83=0,\"\",'VPP Hand-Off Form'!#REF!)","v":""},null,"",{"$f":"IF(A83=0,\"\",'VPP Hand-Off Form'!#REF!)","v":""},"",null,null,null,"H","",{"$f":"IF(A83=0,\"\",'VPP Hand-Off Form'!$B$3)","v":""},null,null,{"$f":"IF(A83=0,\"\",'VPP Hand-Off Form'!$B$4)","v":""},{"$f":"IF(A83=0,\"\",'VPP Hand-Off Form'!#REF!)","v":""},{"$f":"IF(A83=0,\"\",'VPP Hand-Off Form'!#REF!)","v":""},"","",null,"","",{"$f":"IF(A83=0,\"\",IF(ISBLANK('Output (BBY)'!A83),\"\",\"Created\"))","v":""},null,null,null,{"$f":"IF(A83=0,\"\",IF(ISBLANK('VPP Hand-Off Form'!R90),\"\",\"99\"))","v":""},null,null,null,"","","","",{"$f":"IF(ISBLANK('VPP Hand-Off Form'!E90),\"\",'VPP Hand-Off Form'!E90)","v":""}]
[{"$f":"IF('VPP Hand-Off Form'!D91=\"Obsolete\",0,IF('VPP Hand-Off Form'!D91=\"Keep\",0,IF('VPP Hand-Off Form'!D91=\"Obsolete-Partial\",0,'VPP Hand-Off Form'!A91)))","v":0},{"$f":"IF('VPP Hand-Off Form'!D91=\"Obsolete\",\"0\",IF('VPP Hand-Off Form'!D91=\"Keep\",\"0\",IF('VPP Hand-Off Form'!D91=\"Obsolete-Partial\",\"0\",'VPP Hand-Off Form'!B91)))","v":0},"",null,null,null,null,"",{"$f":"IF(A84=0,\"\",'VPP Hand-Off Form'!#REF!)","v":""},null,"",{"$f":"IF(A84=0,\"\",'VPP Hand-Off Form'!#REF!)","v":""},"",null,null,null,"H","",{"$f":"IF(A84=0,\"\",'VPP Hand-Off Form'!$B$3)","v":""},null,null,{"$f":"IF(A84=0,\"\",'VPP Hand-Off Form'!$B$4)","v":""},{"$f":"IF(A84=0,\"\",'VPP Hand-Off Form'!#REF!)","v":""},{"$f":"IF(A84=0,\"\",'VPP Hand-Off Form'!#REF!)","v":""},"","",null,"","",{"$f":"IF(A84=0,\"\",IF(ISBLANK('Output (BBY)'!A84),\"\",\"Created\"))","v":""},null,null,null,{"$f":"IF(A84=0,\"\",IF(ISBLANK('VPP Hand-Off Form'!R91),\"\",\"99\"))","v":""},null,null,null,"","","","",{"$f":"IF(ISBLANK('VPP Hand-Off Form'!E91),\"\",'VPP Hand-Off Form'!E91)","v":""}]
[{"$f":"IF('VPP Hand-Off Form'!D92=\"Obsolete\",0,IF('VPP Hand-Off Form'!D92=\"Keep\",0,IF('VPP Hand-Off Form'!D92=\"Obsolete-Partial\",0,'VPP Hand-Off Form'!A92)))","v":0},{"$f":"IF('VPP Hand-Off Form'!D92=\"Obsolete\",\"0\",IF('VPP Hand-Off Form'!D92=\"Keep\",\"0\",IF('VPP Hand-Off Form'!D92=\"Obsolete-Partial\",\"0\",'VPP Hand-Off Form'!B92)))","v":0},"",null,null,null,null,"",{"$f":"IF(A85=0,\"\",'VPP Hand-Off Form'!#REF!)","v":""},null,"",{"$f":"IF(A85=0,\"\",'VPP Hand-Off Form'!#REF!)","v":""},"",null,null,null,"H","",{"$f":"IF(A85=0,\"\",'VPP Hand-Off Form'!$B$3)","v":""},null,null,{"$f":"IF(A85=0,\"\",'VPP Hand-Off Form'!$B$4)","v":""},{"$f":"IF(A85=0,\"\",'VPP Hand-Off Form'!#REF!)","v":""},{"$f":"IF(A85=0,\"\",'VPP Hand-Off Form'!#REF!)","v":""},"","",null,"","",{"$f":"IF(A85=0,\"\",IF(ISBLANK('Output (BBY)'!A85),\"\",\"Created\"))","v":""},null,null,null,{"$f":"IF(A85=0,\"\",IF(ISBLANK('VPP Hand-Off Form'!R92),\"\",\"99\"))","v":""},null,null,null,"","","","",{"$f":"IF(ISBLANK('VPP Hand-Off Form'!E92),\"\",'VPP Hand-Off Form'!E92)","v":""}]
[{"$f":"IF('VPP Hand-Off Form'!D93=\"Obsolete\",0,IF('VPP Hand-Off Form'!D93=\"Keep\",0,IF('VPP Hand-Off Form'!D93=\"Obsolete-Partial\",0,'VPP Hand-Off Form'!A93)))","v":0},{"$f":"IF('VPP Hand-Off Form'!D93=\"Obsolete\",\"0\",IF('VPP Hand-Off Form'!D93=\"Keep\",\"0\",IF('VPP Hand-Off Form'!D93=\"Obsolete-Partial\",\"0\",'VPP Hand-Off Form'!B93)))","v":0},"",null,null,null,null,"",{"$f":"IF(A86=0,\"\",'VPP Hand-Off Form'!#REF!)","v":""},null,"",{"$f":"IF(A86=0,\"\",'VPP Hand-Off Form'!#REF!)","v":""},"",null,null,null,"H","",{"$f":"IF(A86=0,\"\",'VPP Hand-Off Form'!$B$3)","v":""},null,null,{"$f":"IF(A86=0,\"\",'VPP Hand-Off Form'!$B$4)","v":""},{"$f":"IF(A86=0,\"\",'VPP Hand-Off Form'!#REF!)","v":""},{"$f":"IF(A86=0,\"\",'VPP Hand-Off Form'!#REF!)","v":""},"","",null,"","",{"$f":"IF(A86=0,\"\",IF(ISBLANK('Output (BBY)'!A86),\"\",\"Created\"))","v":""},null,null,null,{"$f":"IF(A86=0,\"\",IF(ISBLANK('VPP Hand-Off Form'!R93),\"\",\"99\"))","v":""},null,null,null,"","","","",{"$f":"IF(ISBLANK('VPP Hand-Off Form'!E93),\"\",'VPP Hand-Off Form'!E93)","v":""}]
[{"$f":"IF('VPP Hand-Off Form'!D94=\"Obsolete\",0,IF('VPP Hand-Off Form'!D94=\"Keep\",0,IF('VPP Hand-Off Form'!D94=\"Obsolete-Partial\",0,'VPP Hand-Off Form'!A94)))","v":0},{"$f":"IF('VPP Hand-Off Form'!D94=\"Obsolete\",\"0\",IF('VPP Hand-Off Form'!D94=\"Keep\",\"0\",IF('VPP Hand-Off Form'!D94=\"Obsolete-Partial\",\"0\",'VPP Hand-Off Form'!B94)))","v":0},"",null,null,null,null,"",{"$f":"IF(A87=0,\"\",'VPP Hand-Off Form'!#REF!)","v":""},null,"",{"$f":"IF(A87=0,\"\",'VPP Hand-Off Form'!#REF!)","v":""},"",null,null,null,"H","",{"$f":"IF(A87=0,\"\",'VPP Hand-Off Form'!$B$3)","v":""},null,null,{"$f":"IF(A87=0,\"\",'VPP Hand-Off Form'!$B$4)","v":""},{"$f":"IF(A87=0,\"\",'VPP Hand-Off Form'!#REF!)","v":""},{"$f":"IF(A87=0,\"\",'VPP Hand-Off Form'!#REF!)","v":""},"","",null,"","",{"$f":"IF(A87=0,\"\",IF(ISBLANK('Output (BBY)'!A87),\"\",\"Created\"))","v":""},null,null,null,{"$f":"IF(A87=0,\"\",IF(ISBLANK('VPP Hand-Off Form'!R94),\"\",\"99\"))","v":""},null,null,null,"","","","",{"$f":"IF(ISBLANK('VPP Hand-Off Form'!E94),\"\",'VPP Hand-Off Form'!E94)","v":""}]
[{"$f":"IF('VPP Hand-Off Form'!D95=\"Obsolete\",0,IF('VPP Hand-Off Form'!D95=\"Keep\",0,IF('VPP Hand-Off Form'!D95=\"Obsolete-Partial\",0,'VPP Hand-Off Form'!A95)))","v":0},{"$f":"IF('VPP Hand-Off Form'!D95=\"Obsolete\",\"0\",IF('VPP Hand-Off Form'!D95=\"Keep\",\"0\",IF('VPP Hand-Off Form'!D95=\"Obsolete-Partial\",\"0\",'VPP Hand-Off Form'!B95)))","v":0},"",null,null,null,null,"",{"$f":"IF(A88=0,\"\",'VPP Hand-Off Form'!#REF!)","v":""},null,"",{"$f":"IF(A88=0,\"\",'VPP Hand-Off Form'!#REF!)","v":""},"",null,null,null,"H","",{"$f":"IF(A88=0,\"\",'VPP Hand-Off Form'!$B$3)","v":""},null,null,{"$f":"IF(A88=0,\"\",'VPP Hand-Off Form'!$B$4)","v":""},{"$f":"IF(A88=0,\"\",'VPP Hand-Off Form'!#REF!)","v":""},{"$f":"IF(A88=0,\"\",'VPP Hand-Off Form'!#REF!)","v":""},"","",null,"","",{"$f":"IF(A88=0,\"\",IF(ISBLANK('Output (BBY)'!A88),\"\",\"Created\"))","v":""},null,null,null,{"$f":"IF(A88=0,\"\",IF(ISBLANK('VPP Hand-Off Form'!R95),\"\",\"99\"))","v":""},null,null,null,"","","","",{"$f":"IF(ISBLANK('VPP Hand-Off Form'!E95),\"\",'VPP Hand-Off Form'!E95)","v":""}]
[{"$f":"IF('VPP Hand-Off Form'!D96=\"Obsolete\",0,IF('VPP Hand-Off Form'!D96=\"Keep\",0,IF('VPP Hand-Off Form'!D96=\"Obsolete-Partial\",0,'VPP Hand-Off Form'!A96)))","v":0},{"$f":"IF('VPP Hand-Off Form'!D96=\"Obsolete\",\"0\",IF('VPP Hand-Off Form'!D96=\"Keep\",\"0\",IF('VPP Hand-Off Form'!D96=\"Obsolete-Partial\",\"0\",'VPP Hand-Off Form'!B96)))","v":0},"",null,null,null,null,"",{"$f":"IF(A89=0,\"\",'VPP Hand-Off Form'!#REF!)","v":""},null,"",{"$f":"IF(A89=0,\"\",'VPP Hand-Off Form'!#REF!)","v":""},"",null,null,null,"H","",{"$f":"IF(A89=0,\"\",'VPP Hand-Off Form'!$B$3)","v":""},null,null,{"$f":"IF(A89=0,\"\",'VPP Hand-Off Form'!$B$4)","v":""},{"$f":"IF(A89=0,\"\",'VPP Hand-Off Form'!#REF!)","v":""},{"$f":"IF(A89=0,\"\",'VPP Hand-Off Form'!#REF!)","v":""},"","",null,"","",{"$f":"IF(A89=0,\"\",IF(ISBLANK('Output (BBY)'!A89),\"\",\"Created\"))","v":""},null,null,null,{"$f":"IF(A89=0,\"\",IF(ISBLANK('VPP Hand-Off Form'!R96),\"\",\"99\"))","v":""},null,null,null,"","","","",{"$f":"IF(ISBLANK('VPP Hand-Off Form'!E96),\"\",'VPP Hand-Off Form'!E96)","v":""}]
[{"$f":"IF('VPP Hand-Off Form'!D97=\"Obsolete\",0,IF('VPP Hand-Off Form'!D97=\"Keep\",0,IF('VPP Hand-Off Form'!D97=\"Obsolete-Partial\",0,'VPP Hand-Off Form'!A97)))","v":0},{"$f":"IF('VPP Hand-Off Form'!D97=\"Obsolete\",\"0\",IF('VPP Hand-Off Form'!D97=\"Keep\",\"0\",IF('VPP Hand-Off Form'!D97=\"Obsolete-Partial\",\"0\",'VPP Hand-Off Form'!B97)))","v":0},"",null,null,null,null,"",{"$f":"IF(A90=0,\"\",'VPP Hand-Off Form'!#REF!)","v":""},null,"",{"$f":"IF(A90=0,\"\",'VPP Hand-Off Form'!#REF!)","v":""},"",null,null,null,"H","",{"$f":"IF(A90=0,\"\",'VPP Hand-Off Form'!$B$3)","v":""},null,null,{"$f":"IF(A90=0,\"\",'VPP Hand-Off Form'!$B$4)","v":""},{"$f":"IF(A90=0,\"\",'VPP Hand-Off Form'!#REF!)","v":""},{"$f":"IF(A90=0,\"\",'VPP Hand-Off Form'!#REF!)","v":""},"","",null,"","",{"$f":"IF(A90=0,\"\",IF(ISBLANK('Output (BBY)'!A90),\"\",\"Created\"))","v":""},null,null,null,{"$f":"IF(A90=0,\"\",IF(ISBLANK('VPP Hand-Off Form'!R97),\"\",\"99\"))","v":""},null,null,null,"","","","",{"$f":"IF(ISBLANK('VPP Hand-Off Form'!E97),\"\",'VPP Hand-Off Form'!E97)","v":""}]
[{"$f":"IF('VPP Hand-Off Form'!D98=\"Obsolete\",0,IF('VPP Hand-Off Form'!D98=\"Keep\",0,IF('VPP Hand-Off Form'!D98=\"Obsolete-Partial\",0,'VPP Hand-Off Form'!A98)))","v":0},{"$f":"IF('VPP Hand-Off Form'!D98=\"Obsolete\",\"0\",IF('VPP Hand-Off Form'!D98=\"Keep\",\"0\",IF('VPP Hand-Off Form'!D98=\"Obsolete-Partial\",\"0\",'VPP Hand-Off Form'!B98)))","v":0},"",null,null,null,null,"",{"$f":"IF(A91=0,\"\",'VPP Hand-Off Form'!#REF!)","v":""},null,"",{"$f":"IF(A91=0,\"\",'VPP Hand-Off Form'!#REF!)","v":""},"",null,null,null,"H","",{"$f":"IF(A91=0,\"\",'VPP Hand-Off Form'!$B$3)","v":""},null,null,{"$f":"IF(A91=0,\"\",'VPP Hand-Off Form'!$B$4)","v":""},{"$f":"IF(A91=0,\"\",'VPP Hand-Off Form'!#REF!)","v":""},{"$f":"IF(A91=0,\"\",'VPP Hand-Off Form'!#REF!)","v":""},"","",null,"","",{"$f":"IF(A91=0,\"\",IF(ISBLANK('Output (BBY)'!A91),\"\",\"Created\"))","v":""},null,null,null,{"$f":"IF(A91=0,\"\",IF(ISBLANK('VPP Hand-Off Form'!R98),\"\",\"99\"))","v":""},null,null,null,"","","","",{"$f":"IF(ISBLANK('VPP Hand-Off Form'!E98),\"\",'VPP Hand-Off Form'!E98)","v":""}]
[{"$f":"IF('VPP Hand-Off Form'!D99=\"Obsolete\",0,IF('VPP Hand-Off Form'!D99=\"Keep\",0,IF('VPP Hand-Off Form'!D99=\"Obsolete-Partial\",0,'VPP Hand-Off Form'!A99)))","v":0},{"$f":"IF('VPP Hand-Off Form'!D99=\"Obsolete\",\"0\",IF('VPP Hand-Off Form'!D99=\"Keep\",\"0\",IF('VPP Hand-Off Form'!D99=\"Obsolete-Partial\",\"0\",'VPP Hand-Off Form'!B99)))","v":0},"",null,null,null,null,"",{"$f":"IF(A92=0,\"\",'VPP Hand-Off Form'!#REF!)","v":""},null,"",{"$f":"IF(A92=0,\"\",'VPP Hand-Off Form'!#REF!)","v":""},"",null,null,null,"H","",{"$f":"IF(A92=0,\"\",'VPP Hand-Off Form'!$B$3)","v":""},null,null,{"$f":"IF(A92=0,\"\",'VPP Hand-Off Form'!$B$4)","v":""},{"$f":"IF(A92=0,\"\",'VPP Hand-Off Form'!#REF!)","v":""},{"$f":"IF(A92=0,\"\",'VPP Hand-Off Form'!#REF!)","v":""},"","",null,"","",{"$f":"IF(A92=0,\"\",IF(ISBLANK('Output (BBY)'!A92),\"\",\"Created\"))","v":""},null,null,null,{"$f":"IF(A92=0,\"\",IF(ISBLANK('VPP Hand-Off Form'!R99),\"\",\"99\"))","v":""},null,null,null,"","","","",{"$f":"IF(ISBLANK('VPP Hand-Off Form'!E99),\"\",'VPP Hand-Off Form'!E99)","v":""}]
[{"$f":"IF('VPP Hand-Off Form'!D100=\"Obsolete\",0,IF('VPP Hand-Off Form'!D100=\"Keep\",0,IF('VPP Hand-Off Form'!D100=\"Obsolete-Partial\",0,'VPP Hand-Off Form'!A100)))","v":0},{"$f":"IF('VPP Hand-Off Form'!D100=\"Obsolete\",\"0\",IF('VPP Hand-Off Form'!D100=\"Keep\",\"0\",IF('VPP Hand-Off Form'!D100=\"Obsolete-Partial\",\"0\",'VPP Hand-Off Form'!B100)))","v":0},"",null,null,null,null,"",{"$f":"IF(A93=0,\"\",'VPP Hand-Off Form'!#REF!)","v":""},null,"",{"$f":"IF(A93=0,\"\",'VPP Hand-Off Form'!#REF!)","v":""},"",null,null,null,"H","",{"$f":"IF(A93=0,\"\",'VPP Hand-Off Form'!$B$3)","v":""},null,null,{"$f":"IF(A93=0,\"\",'VPP Hand-Off Form'!$B$4)","v":""},{"$f":"IF(A93=0,\"\",'VPP Hand-Off Form'!#REF!)","v":""},{"$f":"IF(A93=0,\"\",'VPP Hand-Off Form'!#REF!)","v":""},"","",null,"","",{"$f":"IF(A93=0,\"\",IF(ISBLANK('Output (BBY)'!A93),\"\",\"Created\"))","v":""},null,null,null,{"$f":"IF(A93=0,\"\",IF(ISBLANK('VPP Hand-Off Form'!R100),\"\",\"99\"))","v":""},null,null,null,"","","","",{"$f":"IF(ISBLANK('VPP Hand-Off Form'!E100),\"\",'VPP Hand-Off Form'!E100)","v":""}]
[{"$f":"IF('VPP Hand-Off Form'!D101=\"Obsolete\",0,IF('VPP Hand-Off Form'!D101=\"Keep\",0,IF('VPP Hand-Off Form'!D101=\"Obsolete-Partial\",0,'VPP Hand-Off Form'!A101)))","v":0},{"$f":"IF('VPP Hand-Off Form'!D101=\"Obsolete\",\"0\",IF('VPP Hand-Off Form'!D101=\"Keep\",\"0\",IF('VPP Hand-Off Form'!D101=\"Obsolete-Partial\",\"0\",'VPP Hand-Off Form'!B101)))","v":0},"",null,null,null,null,"",{"$f":"IF(A94=0,\"\",'VPP Hand-Off Form'!#REF!)","v":""},null,"",{"$f":"IF(A94=0,\"\",'VPP Hand-Off Form'!#REF!)","v":""},"",null,null,null,"H","",{"$f":"IF(A94=0,\"\",'VPP Hand-Off Form'!$B$3)","v":""},null,null,{"$f":"IF(A94=0,\"\",'VPP Hand-Off Form'!$B$4)","v":""},{"$f":"IF(A94=0,\"\",'VPP Hand-Off Form'!#REF!)","v":""},{"$f":"IF(A94=0,\"\",'VPP Hand-Off Form'!#REF!)","v":""},"","",null,"","",{"$f":"IF(A94=0,\"\",IF(ISBLANK('Output (BBY)'!A94),\"\",\"Created\"))","v":""},null,null,null,{"$f":"IF(A94=0,\"\",IF(ISBLANK('VPP Hand-Off Form'!R101),\"\",\"99\"))","v":""},null,null,null,"","","","",{"$f":"IF(ISBLANK('VPP Hand-Off Form'!E101),\"\",'VPP Hand-Off Form'!E101)","v":""}]
[{"$f":"IF('VPP Hand-Off Form'!D102=\"Obsolete\",0,IF('VPP Hand-Off Form'!D102=\"Keep\",0,IF('VPP Hand-Off Form'!D102=\"Obsolete-Partial\",0,'VPP Hand-Off Form'!A102)))","v":0},{"$f":"IF('VPP Hand-Off Form'!D102=\"Obsolete\",\"0\",IF('VPP Hand-Off Form'!D102=\"Keep\",\"0\",IF('VPP Hand-Off Form'!D102=\"Obsolete-Partial\",\"0\",'VPP Hand-Off Form'!B102)))","v":0},"",null,null,null,null,"",{"$f":"IF(A95=0,\"\",'VPP Hand-Off Form'!#REF!)","v":""},null,"",{"$f":"IF(A95=0,\"\",'VPP Hand-Off Form'!#REF!)","v":""},"",null,null,null,"H","",{"$f":"IF(A95=0,\"\",'VPP Hand-Off Form'!$B$3)","v":""},null,null,{"$f":"IF(A95=0,\"\",'VPP Hand-Off Form'!$B$4)","v":""},{"$f":"IF(A95=0,\"\",'VPP Hand-Off Form'!#REF!)","v":""},{"$f":"IF(A95=0,\"\",'VPP Hand-Off Form'!#REF!)","v":""},"","",null,"","",{"$f":"IF(A95=0,\"\",IF(ISBLANK('Output (BBY)'!A95),\"\",\"Created\"))","v":""},null,null,null,{"$f":"IF(A95=0,\"\",IF(ISBLANK('VPP Hand-Off Form'!R102),\"\",\"99\"))","v":""},null,null,null,"","","","",{"$f":"IF(ISBLANK('VPP Hand-Off Form'!E102),\"\",'VPP Hand-Off Form'!E102)","v":""}]
[{"$f":"IF('VPP Hand-Off Form'!D103=\"Obsolete\",0,IF('VPP Hand-Off Form'!D103=\"Keep\",0,IF('VPP Hand-Off Form'!D103=\"Obsolete-Partial\",0,'VPP Hand-Off Form'!A103)))","v":0},{"$f":"IF('VPP Hand-Off Form'!D103=\"Obsolete\",\"0\",IF('VPP Hand-Off Form'!D103=\"Keep\",\"0\",IF('VPP Hand-Off Form'!D103=\"Obsolete-Partial\",\"0\",'VPP Hand-Off Form'!B103)))","v":0},"",null,null,null,null,"",{"$f":"IF(A96=0,\"\",'VPP Hand-Off Form'!#REF!)","v":""},null,"",{"$f":"IF(A96=0,\"\",'VPP Hand-Off Form'!#REF!)","v":""},"",null,null,null,"H","",{"$f":"IF(A96=0,\"\",'VPP Hand-Off Form'!$B$3)","v":""},null,null,{"$f":"IF(A96=0,\"\",'VPP Hand-Off Form'!$B$4)","v":""},{"$f":"IF(A96=0,\"\",'VPP Hand-Off Form'!#REF!)","v":""},{"$f":"IF(A96=0,\"\",'VPP Hand-Off Form'!#REF!)","v":""},"","",null,"","",{"$f":"IF(A96=0,\"\",IF(ISBLANK('Output (BBY)'!A96),\"\",\"Created\"))","v":""},null,null,null,{"$f":"IF(A96=0,\"\",IF(ISBLANK('VPP Hand-Off Form'!R103),\"\",\"99\"))","v":""},null,null,null,"","","","",{"$f":"IF(ISBLANK('VPP Hand-Off Form'!E103),\"\",'VPP Hand-Off Form'!E103)","v":""}]
[{"$f":"IF('VPP Hand-Off Form'!D104=\"Obsolete\",0,IF('VPP Hand-Off Form'!D104=\"Keep\",0,IF('VPP Hand-Off Form'!D104=\"Obsolete-Partial\",0,'VPP Hand-Off Form'!A104)))","v":0},{"$f":"IF('VPP Hand-Off Form'!D104=\"Obsolete\",\"0\",IF('VPP Hand-Off Form'!D104=\"Keep\",\"0\",IF('VPP Hand-Off Form'!D104=\"Obsolete-Partial\",\"0\",'VPP Hand-Off Form'!B104)))","v":0},"",null,null,null,null,"",{"$f":"IF(A97=0,\"\",'VPP Hand-Off Form'!#REF!)","v":""},null,"",{"$f":"IF(A97=0,\"\",'VPP Hand-Off Form'!#REF!)","v":""},"",null,null,null,"H","",{"$f":"IF(A97=0,\"\",'VPP Hand-Off Form'!$B$3)","v":""},null,null,{"$f":"IF(A97=0,\"\",'VPP Hand-Off Form'!$B$4)","v":""},{"$f":"IF(A97=0,\"\",'VPP Hand-Off Form'!#REF!)","v":""},{"$f":"IF(A97=0,\"\",'VPP Hand-Off Form'!#REF!)","v":""},"","",null,"","",{"$f":"IF(A97=0,\"\",IF(ISBLANK('Output (BBY)'!A97),\"\",\"Created\"))","v":""},null,null,null,{"$f":"IF(A97=0,\"\",IF(ISBLANK('VPP Hand-Off Form'!R104),\"\",\"99\"))","v":""},null,null,null,"","","","",{"$f":"IF(ISBLANK('VPP Hand-Off Form'!E104),\"\",'VPP Hand-Off Form'!E104)","v":""}]
[{"$f":"IF('VPP Hand-Off Form'!D105=\"Obsolete\",0,IF('VPP Hand-Off Form'!D105=\"Keep\",0,IF('VPP Hand-Off Form'!D105=\"Obsolete-Partial\",0,'VPP Hand-Off Form'!A105)))","v":0},{"$f":"IF('VPP Hand-Off Form'!D105=\"Obsolete\",\"0\",IF('VPP Hand-Off Form'!D105=\"Keep\",\"0\",IF('VPP Hand-Off Form'!D105=\"Obsolete-Partial\",\"0\",'VPP Hand-Off Form'!B105)))","v":0},"",null,null,null,null,"",{"$f":"IF(A98=0,\"\",'VPP Hand-Off Form'!#REF!)","v":""},null,"",{"$f":"IF(A98=0,\"\",'VPP Hand-Off Form'!#REF!)","v":""},"",null,null,null,"H","",{"$f":"IF(A98=0,\"\",'VPP Hand-Off Form'!$B$3)","v":""},null,null,{"$f":"IF(A98=0,\"\",'VPP Hand-Off Form'!$B$4)","v":""},{"$f":"IF(A98=0,\"\",'VPP Hand-Off Form'!#REF!)","v":""},{"$f":"IF(A98=0,\"\",'VPP Hand-Off Form'!#REF!)","v":""},"","",null,"","",{"$f":"IF(A98=0,\"\",IF(ISBLANK('Output (BBY)'!A98),\"\",\"Created\"))","v":""},null,null,null,{"$f":"IF(A98=0,\"\",IF(ISBLANK('VPP Hand-Off Form'!R105),\"\",\"99\"))","v":""},null,null,null,"","","","",{"$f":"IF(ISBLANK('VPP Hand-Off Form'!E105),\"\",'VPP Hand-Off Form'!E105)","v":""}]
[{"$f":"IF('VPP Hand-Off Form'!D106=\"Obsolete\",0,IF('VPP Hand-Off Form'!D106=\"Keep\",0,IF('VPP Hand-Off Form'!D106=\"Obsolete-Partial\",0,'VPP Hand-Off Form'!A106)))","v":0},{"$f":"IF('VPP Hand-Off Form'!D106=\"Obsolete\",\"0\",IF('VPP Hand-Off Form'!D106=\"Keep\",\"0\",IF('VPP Hand-Off Form'!D106=\"Obsolete-Partial\",\"0\",'VPP Hand-Off Form'!B106)))","v":0},{"$f":"IFERROR(IF(A99=0,\"\",VLOOKUP(A99,parts,8,FALSE)),\"NA\")","v":""},null,null,null,null,"",{"$f":"IF(A99=0,\"\",'VPP Hand-Off Form'!#REF!)","v":""},null,"",{"$f":"IF(A99=0,\"\",'VPP Hand-Off Form'!#REF!)","v":""},"",null,null,null,"H","",{"$f":"IF(A99=0,\"\",'VPP Hand-Off Form'!$B$3)","v":""},null,null,{"$f":"IF(A99=0,\"\",'VPP Hand-Off Form'!$B$4)","v":""},{"$f":"IF(A99=0,\"\",'VPP Hand-Off Form'!#REF!)","v":""},{"$f":"IF(A99=0,\"\",'VPP Hand-Off Form'!#REF!)","v":""},{"$f":"IFERROR(IF(A99=0,\"\",VLOOKUP(A99,parts,25,FALSE)),\"NA\")","v":""},{"$f":"IFERROR(IF(A99=0,\"\",VLOOKUP(A99,parts,25,FALSE)),\"NA\")","v":""},null,{"$f":"IFERROR(IF(A99=0,\"\",VLOOKUP(A99,parts,8,FALSE)),\"NA\")","v":""},{"$f":"IFERROR(IF(A99=0,\"\",VLOOKUP(A99,parts,9,FALSE)),\"NA\")","v":""},{"$f":"IF(A99=0,\"\",IF(ISBLANK('Output (BBY)'!A99),\"\",\"Created\"))","v":""},null,null,null,{"$f":"IF(A99=0,\"\",IF(ISBLANK('VPP Hand-Off Form'!R106),\"\",\"99\"))","v":""},null,null,null,"",{"$f":"IFERROR(IF(A99=0,\"\",VLOOKUP(A99,parts,10,FALSE)),\"NA\")","v":""},{"$f":"IFERROR(IF(A99=0,\"\",VLOOKUP(A99,parts,11,FALSE)),\"NA\")","v":""},{"$f":"IFERROR(IF(A99=0,\"\",VLOOKUP(A99,parts,12,FALSE)),\"NA\")","v":""},{"$f":"IF(ISBLANK('VPP Hand-Off Form'!E106),\"\",'VPP Hand-Off Form'!E106)","v":""}]
[{"$f":"IF('VPP Hand-Off Form'!D107=\"Obsolete\",0,IF('VPP Hand-Off Form'!D107=\"Keep\",0,IF('VPP Hand-Off Form'!D107=\"Obsolete-Partial\",0,'VPP Hand-Off Form'!A107)))","v":0},{"$f":"IF('VPP Hand-Off Form'!D107=\"Obsolete\",\"0\",IF('VPP Hand-Off Form'!D107=\"Keep\",\"0\",IF('VPP Hand-Off Form'!D107=\"Obsolete-Partial\",\"0\",'VPP Hand-Off Form'!B107)))","v":0},"",null,null,null,null,"",{"$f":"IF(A100=0,\"\",'VPP Hand-Off Form'!#REF!)","v":""},null,"",{"$f":"IF(A100=0,\"\",'VPP Hand-Off Form'!#REF!)","v":""},"",null,null,null,"H","",{"$f":"IF(A100=0,\"\",'VPP Hand-Off Form'!$B$3)","v":""},null,null,{"$f":"IF(A100=0,\"\",'VPP Hand-Off Form'!$B$4)","v":""},{"$f":"IF(A100=0,\"\",'VPP Hand-Off Form'!#REF!)","v":""},{"$f":"IF(A100=0,\"\",'VPP Hand-Off Form'!#REF!)","v":""},"","",null,"","",{"$f":"IF(A100=0,\"\",IF(ISBLANK('Output (BBY)'!A100),\"\",\"Created\"))","v":""},null,null,null,{"$f":"IF(A100=0,\"\",IF(ISBLANK('VPP Hand-Off Form'!R107),\"\",\"99\"))","v":""},null,null,null,"","","","",{"$f":"IF(ISBLANK('VPP Hand-Off Form'!E107),\"\",'VPP Hand-Off Form'!E107)","v":""}]
[{"$f":"IF('VPP Hand-Off Form'!D108=\"Obsolete\",0,IF('VPP Hand-Off Form'!D108=\"Keep\",0,IF('VPP Hand-Off Form'!D108=\"Obsolete-Partial\",0,'VPP Hand-Off Form'!A108)))","v":0},{"$f":"IF('VPP Hand-Off Form'!D108=\"Obsolete\",\"0\",IF('VPP Hand-Off Form'!D108=\"Keep\",\"0\",IF('VPP Hand-Off Form'!D108=\"Obsolete-Partial\",\"0\",'VPP Hand-Off Form'!B108)))","v":0},"",null,null,null,null,"",{"$f":"IF(A101=0,\"\",'VPP Hand-Off Form'!#REF!)","v":""},null,"",{"$f":"IF(A101=0,\"\",'VPP Hand-Off Form'!#REF!)","v":""},"",null,null,null,"H","",{"$f":"IF(A101=0,\"\",'VPP Hand-Off Form'!$B$3)","v":""},null,null,{"$f":"IF(A101=0,\"\",'VPP Hand-Off Form'!$B$4)","v":""},{"$f":"IF(A101=0,\"\",'VPP Hand-Off Form'!#REF!)","v":""},{"$f":"IF(A101=0,\"\",'VPP Hand-Off Form'!#REF!)","v":""},"","",null,"","",{"$f":"IF(A101=0,\"\",IF(ISBLANK('Output (BBY)'!A101),\"\",\"Created\"))","v":""},null,null,null,{"$f":"IF(A101=0,\"\",IF(ISBLANK('VPP Hand-Off Form'!R108),\"\",\"99\"))","v":""},null,null,null,"","","","",{"$f":"IF(ISBLANK('VPP Hand-Off Form'!E108),\"\",'VPP Hand-Off Form'!E108)","v":""}]
[{"$f":"IF('VPP Hand-Off Form'!D109=\"Obsolete\",0,IF('VPP Hand-Off Form'!D109=\"Keep\",0,IF('VPP Hand-Off Form'!D109=\"Obsolete-Partial\",0,'VPP Hand-Off Form'!A109)))","v":0},{"$f":"IF('VPP Hand-Off Form'!D109=\"Obsolete\",\"0\",IF('VPP Hand-Off Form'!D109=\"Keep\",\"0\",IF('VPP Hand-Off Form'!D109=\"Obsolete-Partial\",\"0\",'VPP Hand-Off Form'!B109)))","v":0},"",null,null,null,null,"",{"$f":"IF(A102=0,\"\",'VPP Hand-Off Form'!#REF!)","v":""},null,"",{"$f":"IF(A102=0,\"\",'VPP Hand-Off Form'!#REF!)","v":""},"",null,null,null,"H","",{"$f":"IF(A102=0,\"\",'VPP Hand-Off Form'!$B$3)","v":""},null,null,{"$f":"IF(A102=0,\"\",'VPP Hand-Off Form'!$B$4)","v":""},{"$f":"IF(A102=0,\"\",'VPP Hand-Off Form'!#REF!)","v":""},{"$f":"IF(A102=0,\"\",'VPP Hand-Off Form'!#REF!)","v":""},"","",null,"","",{"$f":"IF(A102=0,\"\",IF(ISBLANK('Output (BBY)'!A102),\"\",\"Created\"))","v":""},null,null,null,{"$f":"IF(A102=0,\"\",IF(ISBLANK('VPP Hand-Off Form'!R109),\"\",\"99\"))","v":""},null,null,null,"","","","",{"$f":"IF(ISBLANK('VPP Hand-Off Form'!E109),\"\",'VPP Hand-Off Form'!E109)","v":""}]
[{"$f":"IF('VPP Hand-Off Form'!D110=\"Obsolete\",0,IF('VPP Hand-Off Form'!D110=\"Keep\",0,IF('VPP Hand-Off Form'!D110=\"Obsolete-Partial\",0,'VPP Hand-Off Form'!A110)))","v":0},{"$f":"IF('VPP Hand-Off Form'!D110=\"Obsolete\",\"0\",IF('VPP Hand-Off Form'!D110=\"Keep\",\"0\",IF('VPP Hand-Off Form'!D110=\"Obsolete-Partial\",\"0\",'VPP Hand-Off Form'!B110)))","v":0},"",null,null,null,null,"",{"$f":"IF(A103=0,\"\",'VPP Hand-Off Form'!#REF!)","v":""},null,"",{"$f":"IF(A103=0,\"\",'VPP Hand-Off Form'!#REF!)","v":""},"",null,null,null,"H","",{"$f":"IF(A103=0,\"\",'VPP Hand-Off Form'!$B$3)","v":""},null,null,{"$f":"IF(A103=0,\"\",'VPP Hand-Off Form'!$B$4)","v":""},{"$f":"IF(A103=0,\"\",'VPP Hand-Off Form'!#REF!)","v":""},{"$f":"IF(A103=0,\"\",'VPP Hand-Off Form'!#REF!)","v":""},"","",null,"","",{"$f":"IF(A103=0,\"\",IF(ISBLANK('Output (BBY)'!A103),\"\",\"Created\"))","v":""},null,null,null,{"$f":"IF(A103=0,\"\",IF(ISBLANK('VPP Hand-Off Form'!R110),\"\",\"99\"))","v":""},null,null,null,"","","","",{"$f":"IF(ISBLANK('VPP Hand-Off Form'!E110),\"\",'VPP Hand-Off Form'!E110)","v":""}]
[{"$f":"IF('VPP Hand-Off Form'!D111=\"Obsolete\",0,IF('VPP Hand-Off Form'!D111=\"Keep\",0,IF('VPP Hand-Off Form'!D111=\"Obsolete-Partial\",0,'VPP Hand-Off Form'!A111)))","v":0},{"$f":"IF('VPP Hand-Off Form'!D111=\"Obsolete\",\"0\",IF('VPP Hand-Off Form'!D111=\"Keep\",\"0\",IF('VPP Hand-Off Form'!D111=\"Obsolete-Partial\",\"0\",'VPP Hand-Off Form'!B111)))","v":0},"",null,null,null,null,"",{"$f":"IF(A104=0,\"\",'VPP Hand-Off Form'!#REF!)","v":""},null,"",{"$f":"IF(A104=0,\"\",'VPP Hand-Off Form'!#REF!)","v":""},"",null,null,null,"H","",{"$f":"IF(A104=0,\"\",'VPP Hand-Off Form'!$B$3)","v":""},null,null,{"$f":"IF(A104=0,\"\",'VPP Hand-Off Form'!$B$4)","v":""},{"$f":"IF(A104=0,\"\",'VPP Hand-Off Form'!#REF!)","v":""},{"$f":"IF(A104=0,\"\",'VPP Hand-Off Form'!#REF!)","v":""},"","",null,"","",{"$f":"IF(A104=0,\"\",IF(ISBLANK('Output (BBY)'!A104),\"\",\"Created\"))","v":""},null,null,null,{"$f":"IF(A104=0,\"\",IF(ISBLANK('VPP Hand-Off Form'!R111),\"\",\"99\"))","v":""},null,null,null,"","","","",{"$f":"IF(ISBLANK('VPP Hand-Off Form'!E111),\"\",'VPP Hand-Off Form'!E111)","v":""}]
[{"$f":"IF('VPP Hand-Off Form'!D112=\"Obsolete\",0,IF('VPP Hand-Off Form'!D112=\"Keep\",0,IF('VPP Hand-Off Form'!D112=\"Obsolete-Partial\",0,'VPP Hand-Off Form'!A112)))","v":0},{"$f":"IF('VPP Hand-Off Form'!D112=\"Obsolete\",\"0\",IF('VPP Hand-Off Form'!D112=\"Keep\",\"0\",IF('VPP Hand-Off Form'!D112=\"Obsolete-Partial\",\"0\",'VPP Hand-Off Form'!B112)))","v":0},"",null,null,null,null,"",{"$f":"IF(A105=0,\"\",'VPP Hand-Off Form'!#REF!)","v":""},null,"",{"$f":"IF(A105=0,\"\",'VPP Hand-Off Form'!#REF!)","v":""},"",null,null,null,"H","",{"$f":"IF(A105=0,\"\",'VPP Hand-Off Form'!$B$3)","v":""},null,null,{"$f":"IF(A105=0,\"\",'VPP Hand-Off Form'!$B$4)","v":""},{"$f":"IF(A105=0,\"\",'VPP Hand-Off Form'!#REF!)","v":""},{"$f":"IF(A105=0,\"\",'VPP Hand-Off Form'!#REF!)","v":""},"","",null,"","",{"$f":"IF(A105=0,\"\",IF(ISBLANK('Output (BBY)'!A105),\"\",\"Created\"))","v":""},null,null,null,{"$f":"IF(A105=0,\"\",IF(ISBLANK('VPP Hand-Off Form'!R112),\"\",\"99\"))","v":""},null,null,null,"","","","",{"$f":"IF(ISBLANK('VPP Hand-Off Form'!E112),\"\",'VPP Hand-Off Form'!E112)","v":""}]
[{"$f":"IF('VPP Hand-Off Form'!D113=\"Obsolete\",0,IF('VPP Hand-Off Form'!D113=\"Keep\",0,IF('VPP Hand-Off Form'!D113=\"Obsolete-Partial\",0,'VPP Hand-Off Form'!A113)))","v":0},{"$f":"IF('VPP Hand-Off Form'!D113=\"Obsolete\",\"0\",IF('VPP Hand-Off Form'!D113=\"Keep\",\"0\",IF('VPP Hand-Off Form'!D113=\"Obsolete-Partial\",\"0\",'VPP Hand-Off Form'!B113)))","v":0},"",null,null,null,null,"",{"$f":"IF(A106=0,\"\",'VPP Hand-Off Form'!#REF!)","v":""},null,"",{"$f":"IF(A106=0,\"\",'VPP Hand-Off Form'!#REF!)","v":""},"",null,null,null,"H","",{"$f":"IF(A106=0,\"\",'VPP Hand-Off Form'!$B$3)","v":""},null,null,{"$f":"IF(A106=0,\"\",'VPP Hand-Off Form'!$B$4)","v":""},{"$f":"IF(A106=0,\"\",'VPP Hand-Off Form'!#REF!)","v":""},{"$f":"IF(A106=0,\"\",'VPP Hand-Off Form'!#REF!)","v":""},"","",null,"","",{"$f":"IF(A106=0,\"\",IF(ISBLANK('Output (BBY)'!A106),\"\",\"Created\"))","v":""},null,null,null,{"$f":"IF(A106=0,\"\",IF(ISBLANK('VPP Hand-Off Form'!R113),\"\",\"99\"))","v":""},null,null,null,"","","","",{"$f":"IF(ISBLANK('VPP Hand-Off Form'!E113),\"\",'VPP Hand-Off Form'!E113)","v":""}]
[{"$f":"IF('VPP Hand-Off Form'!D114=\"Obsolete\",0,IF('VPP Hand-Off Form'!D114=\"Keep\",0,IF('VPP Hand-Off Form'!D114=\"Obsolete-Partial\",0,'VPP Hand-Off Form'!A114)))","v":0},{"$f":"IF('VPP Hand-Off Form'!D114=\"Obsolete\",\"0\",IF('VPP Hand-Off Form'!D114=\"Keep\",\"0\",IF('VPP Hand-Off Form'!D114=\"Obsolete-Partial\",\"0\",'VPP Hand-Off Form'!B114)))","v":0},"",null,null,null,null,"",{"$f":"IF(A107=0,\"\",'VPP Hand-Off Form'!#REF!)","v":""},null,"",{"$f":"IF(A107=0,\"\",'VPP Hand-Off Form'!#REF!)","v":""},"",null,null,null,"H","",{"$f":"IF(A107=0,\"\",'VPP Hand-Off Form'!$B$3)","v":""},null,null,{"$f":"IF(A107=0,\"\",'VPP Hand-Off Form'!$B$4)","v":""},{"$f":"IF(A107=0,\"\",'VPP Hand-Off Form'!#REF!)","v":""},{"$f":"IF(A107=0,\"\",'VPP Hand-Off Form'!#REF!)","v":""},"","",null,"","",{"$f":"IF(A107=0,\"\",IF(ISBLANK('Output (BBY)'!A107),\"\",\"Created\"))","v":""},null,null,null,{"$f":"IF(A107=0,\"\",IF(ISBLANK('VPP Hand-Off Form'!R114),\"\",\"99\"))","v":""},null,null,null,"","","","",{"$f":"IF(ISBLANK('VPP Hand-Off Form'!E114),\"\",'VPP Hand-Off Form'!E114)","v":""}]
[{"$f":"IF('VPP Hand-Off Form'!D115=\"Obsolete\",0,IF('VPP Hand-Off Form'!D115=\"Keep\",0,IF('VPP Hand-Off Form'!D115=\"Obsolete-Partial\",0,'VPP Hand-Off Form'!A115)))","v":0},{"$f":"IF('VPP Hand-Off Form'!D115=\"Obsolete\",\"0\",IF('VPP Hand-Off Form'!D115=\"Keep\",\"0\",IF('VPP Hand-Off Form'!D115=\"Obsolete-Partial\",\"0\",'VPP Hand-Off Form'!B115)))","v":0},"",null,null,null,null,"",{"$f":"IF(A108=0,\"\",'VPP Hand-Off Form'!#REF!)","v":""},null,"",{"$f":"IF(A108=0,\"\",'VPP Hand-Off Form'!#REF!)","v":""},"",null,null,null,"H","",{"$f":"IF(A108=0,\"\",'VPP Hand-Off Form'!$B$3)","v":""},null,null,{"$f":"IF(A108=0,\"\",'VPP Hand-Off Form'!$B$4)","v":""},{"$f":"IF(A108=0,\"\",'VPP Hand-Off Form'!#REF!)","v":""},{"$f":"IF(A108=0,\"\",'VPP Hand-Off Form'!#REF!)","v":""},"","",null,"","",{"$f":"IF(A108=0,\"\",IF(ISBLANK('Output (BBY)'!A108),\"\",\"Created\"))","v":""},null,null,null,{"$f":"IF(A108=0,\"\",IF(ISBLANK('VPP Hand-Off Form'!R115),\"\",\"99\"))","v":""},null,null,null,"","","","",{"$f":"IF(ISBLANK('VPP Hand-Off Form'!E115),\"\",'VPP Hand-Off Form'!E115)","v":""}]
[{"$f":"IF('VPP Hand-Off Form'!D116=\"Obsolete\",0,IF('VPP Hand-Off Form'!D116=\"Keep\",0,IF('VPP Hand-Off Form'!D116=\"Obsolete-Partial\",0,'VPP Hand-Off Form'!A116)))","v":0},{"$f":"IF('VPP Hand-Off Form'!D116=\"Obsolete\",\"0\",IF('VPP Hand-Off Form'!D116=\"Keep\",\"0\",IF('VPP Hand-Off Form'!D116=\"Obsolete-Partial\",\"0\",'VPP Hand-Off Form'!B116)))","v":0},"",null,null,null,null,"",{"$f":"IF(A109=0,\"\",'VPP Hand-Off Form'!#REF!)","v":""},null,"",{"$f":"IF(A109=0,\"\",'VPP Hand-Off Form'!#REF!)","v":""},"",null,null,null,"H","",{"$f":"IF(A109=0,\"\",'VPP Hand-Off Form'!$B$3)","v":""},null,null,{"$f":"IF(A109=0,\"\",'VPP Hand-Off Form'!$B$4)","v":""},{"$f":"IF(A109=0,\"\",'VPP Hand-Off Form'!#REF!)","v":""},{"$f":"IF(A109=0,\"\",'VPP Hand-Off Form'!#REF!)","v":""},"","",null,"","",{"$f":"IF(A109=0,\"\",IF(ISBLANK('Output (BBY)'!A109),\"\",\"Created\"))","v":""},null,null,null,{"$f":"IF(A109=0,\"\",IF(ISBLANK('VPP Hand-Off Form'!R116),\"\",\"99\"))","v":""},null,null,null,"","","","",{"$f":"IF(ISBLANK('VPP Hand-Off Form'!E116),\"\",'VPP Hand-Off Form'!E116)","v":""}]
[{"$f":"IF('VPP Hand-Off Form'!D117=\"Obsolete\",0,IF('VPP Hand-Off Form'!D117=\"Keep\",0,IF('VPP Hand-Off Form'!D117=\"Obsolete-Partial\",0,'VPP Hand-Off Form'!A117)))","v":0},{"$f":"IF('VPP Hand-Off Form'!D117=\"Obsolete\",\"0\",IF('VPP Hand-Off Form'!D117=\"Keep\",\"0\",IF('VPP Hand-Off Form'!D117=\"Obsolete-Partial\",\"0\",'VPP Hand-Off Form'!B117)))","v":0},"",null,null,null,null,"",{"$f":"IF(A110=0,\"\",'VPP Hand-Off Form'!#REF!)","v":""},null,"",{"$f":"IF(A110=0,\"\",'VPP Hand-Off Form'!#REF!)","v":""},"",null,null,null,"H","",{"$f":"IF(A110=0,\"\",'VPP Hand-Off Form'!$B$3)","v":""},null,null,{"$f":"IF(A110=0,\"\",'VPP Hand-Off Form'!$B$4)","v":""},{"$f":"IF(A110=0,\"\",'VPP Hand-Off Form'!#REF!)","v":""},{"$f":"IF(A110=0,\"\",'VPP Hand-Off Form'!#REF!)","v":""},"","",null,"","",{"$f":"IF(A110=0,\"\",IF(ISBLANK('Output (BBY)'!A110),\"\",\"Created\"))","v":""},null,null,null,{"$f":"IF(A110=0,\"\",IF(ISBLANK('VPP Hand-Off Form'!R117),\"\",\"99\"))","v":""},null,null,null,"","","","",{"$f":"IF(ISBLANK('VPP Hand-Off Form'!E117),\"\",'VPP Hand-Off Form'!E117)","v":""}]
[{"$f":"IF('VPP Hand-Off Form'!D118=\"Obsolete\",0,IF('VPP Hand-Off Form'!D118=\"Keep\",0,IF('VPP Hand-Off Form'!D118=\"Obsolete-Partial\",0,'VPP Hand-Off Form'!A118)))","v":0},{"$f":"IF('VPP Hand-Off Form'!D118=\"Obsolete\",\"0\",IF('VPP Hand-Off Form'!D118=\"Keep\",\"0\",IF('VPP Hand-Off Form'!D118=\"Obsolete-Partial\",\"0\",'VPP Hand-Off Form'!B118)))","v":0},"",null,null,null,null,"",{"$f":"IF(A111=0,\"\",'VPP Hand-Off Form'!#REF!)","v":""},null,"",{"$f":"IF(A111=0,\"\",'VPP Hand-Off Form'!#REF!)","v":""},"",null,null,null,"H","",{"$f":"IF(A111=0,\"\",'VPP Hand-Off Form'!$B$3)","v":""},null,null,{"$f":"IF(A111=0,\"\",'VPP Hand-Off Form'!$B$4)","v":""},{"$f":"IF(A111=0,\"\",'VPP Hand-Off Form'!#REF!)","v":""},{"$f":"IF(A111=0,\"\",'VPP Hand-Off Form'!#REF!)","v":""},"","",null,"","",{"$f":"IF(A111=0,\"\",IF(ISBLANK('Output (BBY)'!A111),\"\",\"Created\"))","v":""},null,null,null,{"$f":"IF(A111=0,\"\",IF(ISBLANK('VPP Hand-Off Form'!R118),\"\",\"99\"))","v":""},null,null,null,"","","","",{"$f":"IF(ISBLANK('VPP Hand-Off Form'!E118),\"\",'VPP Hand-Off Form'!E118)","v":""}]
[{"$f":"IF('VPP Hand-Off Form'!D119=\"Obsolete\",0,IF('VPP Hand-Off Form'!D119=\"Keep\",0,IF('VPP Hand-Off Form'!D119=\"Obsolete-Partial\",0,'VPP Hand-Off Form'!A119)))","v":0},{"$f":"IF('VPP Hand-Off Form'!D119=\"Obsolete\",\"0\",IF('VPP Hand-Off Form'!D119=\"Keep\",\"0\",IF('VPP Hand-Off Form'!D119=\"Obsolete-Partial\",\"0\",'VPP Hand-Off Form'!B119)))","v":0},"",null,null,null,null,"",{"$f":"IF(A112=0,\"\",'VPP Hand-Off Form'!#REF!)","v":""},null,"",{"$f":"IF(A112=0,\"\",'VPP Hand-Off Form'!#REF!)","v":""},"",null,null,null,"H","",{"$f":"IF(A112=0,\"\",'VPP Hand-Off Form'!$B$3)","v":""},null,null,{"$f":"IF(A112=0,\"\",'VPP Hand-Off Form'!$B$4)","v":""},{"$f":"IF(A112=0,\"\",'VPP Hand-Off Form'!#REF!)","v":""},{"$f":"IF(A112=0,\"\",'VPP Hand-Off Form'!#REF!)","v":""},"","",null,"","",{"$f":"IF(A112=0,\"\",IF(ISBLANK('Output (BBY)'!A112),\"\",\"Created\"))","v":""},null,null,null,{"$f":"IF(A112=0,\"\",IF(ISBLANK('VPP Hand-Off Form'!R119),\"\",\"99\"))","v":""},null,null,null,"","","","",{"$f":"IF(ISBLANK('VPP Hand-Off Form'!E119),\"\",'VPP Hand-Off Form'!E119)","v":""}]
[{"$f":"IF('VPP Hand-Off Form'!D120=\"Obsolete\",0,IF('VPP Hand-Off Form'!D120=\"Keep\",0,IF('VPP Hand-Off Form'!D120=\"Obsolete-Partial\",0,'VPP Hand-Off Form'!A120)))","v":0},{"$f":"IF('VPP Hand-Off Form'!D120=\"Obsolete\",\"0\",IF('VPP Hand-Off Form'!D120=\"Keep\",\"0\",IF('VPP Hand-Off Form'!D120=\"Obsolete-Partial\",\"0\",'VPP Hand-Off Form'!B120)))","v":0},"",null,null,null,null,"",{"$f":"IF(A113=0,\"\",'VPP Hand-Off Form'!#REF!)","v":""},null,"",{"$f":"IF(A113=0,\"\",'VPP Hand-Off Form'!#REF!)","v":""},"",null,null,null,"H","",{"$f":"IF(A113=0,\"\",'VPP Hand-Off Form'!$B$3)","v":""},null,null,{"$f":"IF(A113=0,\"\",'VPP Hand-Off Form'!$B$4)","v":""},{"$f":"IF(A113=0,\"\",'VPP Hand-Off Form'!#REF!)","v":""},{"$f":"IF(A113=0,\"\",'VPP Hand-Off Form'!#REF!)","v":""},"","",null,"","",{"$f":"IF(A113=0,\"\",IF(ISBLANK('Output (BBY)'!A113),\"\",\"Created\"))","v":""},null,null,null,{"$f":"IF(A113=0,\"\",IF(ISBLANK('VPP Hand-Off Form'!R120),\"\",\"99\"))","v":""},null,null,null,"","","","",{"$f":"IF(ISBLANK('VPP Hand-Off Form'!E120),\"\",'VPP Hand-Off Form'!E120)","v":""}]
[{"$f":"IF('VPP Hand-Off Form'!D121=\"Obsolete\",0,IF('VPP Hand-Off Form'!D121=\"Keep\",0,IF('VPP Hand-Off Form'!D121=\"Obsolete-Partial\",0,'VPP Hand-Off Form'!A121)))","v":0},{"$f":"IF('VPP Hand-Off Form'!D121=\"Obsolete\",\"0\",IF('VPP Hand-Off Form'!D121=\"Keep\",\"0\",IF('VPP Hand-Off Form'!D121=\"Obsolete-Partial\",\"0\",'VPP Hand-Off Form'!B121)))","v":0},"",null,null,null,null,"",{"$f":"IF(A114=0,\"\",'VPP Hand-Off Form'!#REF!)","v":""},null,"",{"$f":"IF(A114=0,\"\",'VPP Hand-Off Form'!#REF!)","v":""},"",null,null,null,"H","",{"$f":"IF(A114=0,\"\",'VPP Hand-Off Form'!$B$3)","v":""},null,null,{"$f":"IF(A114=0,\"\",'VPP Hand-Off Form'!$B$4)","v":""},{"$f":"IF(A114=0,\"\",'VPP Hand-Off Form'!#REF!)","v":""},{"$f":"IF(A114=0,\"\",'VPP Hand-Off Form'!#REF!)","v":""},"","",null,"","",{"$f":"IF(A114=0,\"\",IF(ISBLANK('Output (BBY)'!A114),\"\",\"Created\"))","v":""},null,null,null,{"$f":"IF(A114=0,\"\",IF(ISBLANK('VPP Hand-Off Form'!R121),\"\",\"99\"))","v":""},null,null,null,"","","","",{"$f":"IF(ISBLANK('VPP Hand-Off Form'!E121),\"\",'VPP Hand-Off Form'!E121)","v":""}]
[{"$f":"IF('VPP Hand-Off Form'!D122=\"Obsolete\",0,IF('VPP Hand-Off Form'!D122=\"Keep\",0,IF('VPP Hand-Off Form'!D122=\"Obsolete-Partial\",0,'VPP Hand-Off Form'!A122)))","v":0},{"$f":"IF('VPP Hand-Off Form'!D122=\"Obsolete\",\"0\",IF('VPP Hand-Off Form'!D122=\"Keep\",\"0\",IF('VPP Hand-Off Form'!D122=\"Obsolete-Partial\",\"0\",'VPP Hand-Off Form'!B122)))","v":0},"",null,null,null,null,"",{"$f":"IF(A115=0,\"\",'VPP Hand-Off Form'!#REF!)","v":""},null,"",{"$f":"IF(A115=0,\"\",'VPP Hand-Off Form'!#REF!)","v":""},"",null,null,null,"H","",{"$f":"IF(A115=0,\"\",'VPP Hand-Off Form'!$B$3)","v":""},null,null,{"$f":"IF(A115=0,\"\",'VPP Hand-Off Form'!$B$4)","v":""},{"$f":"IF(A115=0,\"\",'VPP Hand-Off Form'!#REF!)","v":""},{"$f":"IF(A115=0,\"\",'VPP Hand-Off Form'!#REF!)","v":""},"","",null,"","",{"$f":"IF(A115=0,\"\",IF(ISBLANK('Output (BBY)'!A115),\"\",\"Created\"))","v":""},null,null,null,{"$f":"IF(A115=0,\"\",IF(ISBLANK('VPP Hand-Off Form'!R122),\"\",\"99\"))","v":""},null,null,null,"","","","",{"$f":"IF(ISBLANK('VPP Hand-Off Form'!E122),\"\",'VPP Hand-Off Form'!E122)","v":""}]
[{"$f":"IF('VPP Hand-Off Form'!D123=\"Obsolete\",0,IF('VPP Hand-Off Form'!D123=\"Keep\",0,IF('VPP Hand-Off Form'!D123=\"Obsolete-Partial\",0,'VPP Hand-Off Form'!A123)))","v":0},{"$f":"IF('VPP Hand-Off Form'!D123=\"Obsolete\",\"0\",IF('VPP Hand-Off Form'!D123=\"Keep\",\"0\",IF('VPP Hand-Off Form'!D123=\"Obsolete-Partial\",\"0\",'VPP Hand-Off Form'!B123)))","v":0},"",null,null,null,null,"",{"$f":"IF(A116=0,\"\",'VPP Hand-Off Form'!#REF!)","v":""},null,"",{"$f":"IF(A116=0,\"\",'VPP Hand-Off Form'!#REF!)","v":""},"",null,null,null,"H","",{"$f":"IF(A116=0,\"\",'VPP Hand-Off Form'!$B$3)","v":""},null,null,{"$f":"IF(A116=0,\"\",'VPP Hand-Off Form'!$B$4)","v":""},{"$f":"IF(A116=0,\"\",'VPP Hand-Off Form'!#REF!)","v":""},{"$f":"IF(A116=0,\"\",'VPP Hand-Off Form'!#REF!)","v":""},"","",null,"","",{"$f":"IF(A116=0,\"\",IF(ISBLANK('Output (BBY)'!A116),\"\",\"Created\"))","v":""},null,null,null,{"$f":"IF(A116=0,\"\",IF(ISBLANK('VPP Hand-Off Form'!R123),\"\",\"99\"))","v":""},null,null,null,"","","","",{"$f":"IF(ISBLANK('VPP Hand-Off Form'!E123),\"\",'VPP Hand-Off Form'!E123)","v":""}]
[{"$f":"IF('VPP Hand-Off Form'!D124=\"Obsolete\",0,IF('VPP Hand-Off Form'!D124=\"Keep\",0,IF('VPP Hand-Off Form'!D124=\"Obsolete-Partial\",0,'VPP Hand-Off Form'!A124)))","v":0},{"$f":"IF('VPP Hand-Off Form'!D124=\"Obsolete\",\"0\",IF('VPP Hand-Off Form'!D124=\"Keep\",\"0\",IF('VPP Hand-Off Form'!D124=\"Obsolete-Partial\",\"0\",'VPP Hand-Off Form'!B124)))","v":0},"",null,null,null,null,"",{"$f":"IF(A117=0,\"\",'VPP Hand-Off Form'!#REF!)","v":""},null,"",{"$f":"IF(A117=0,\"\",'VPP Hand-Off Form'!#REF!)","v":""},"",null,null,null,"H","",{"$f":"IF(A117=0,\"\",'VPP Hand-Off Form'!$B$3)","v":""},null,null,{"$f":"IF(A117=0,\"\",'VPP Hand-Off Form'!$B$4)","v":""},{"$f":"IF(A117=0,\"\",'VPP Hand-Off Form'!#REF!)","v":""},{"$f":"IF(A117=0,\"\",'VPP Hand-Off Form'!#REF!)","v":""},"","",null,"","",{"$f":"IF(A117=0,\"\",IF(ISBLANK('Output (BBY)'!A117),\"\",\"Created\"))","v":""},null,null,null,{"$f":"IF(A117=0,\"\",IF(ISBLANK('VPP Hand-Off Form'!R124),\"\",\"99\"))","v":""},null,null,null,"","","","",{"$f":"IF(ISBLANK('VPP Hand-Off Form'!E124),\"\",'VPP Hand-Off Form'!E124)","v":""}]
[{"$f":"IF('VPP Hand-Off Form'!D125=\"Obsolete\",0,IF('VPP Hand-Off Form'!D125=\"Keep\",0,IF('VPP Hand-Off Form'!D125=\"Obsolete-Partial\",0,'VPP Hand-Off Form'!A125)))","v":0},{"$f":"IF('VPP Hand-Off Form'!D125=\"Obsolete\",\"0\",IF('VPP Hand-Off Form'!D125=\"Keep\",\"0\",IF('VPP Hand-Off Form'!D125=\"Obsolete-Partial\",\"0\",'VPP Hand-Off Form'!B125)))","v":0},"",null,null,null,null,"",{"$f":"IF(A118=0,\"\",'VPP Hand-Off Form'!#REF!)","v":""},null,"",{"$f":"IF(A118=0,\"\",'VPP Hand-Off Form'!#REF!)","v":""},"",null,null,null,"H","",{"$f":"IF(A118=0,\"\",'VPP Hand-Off Form'!$B$3)","v":""},null,null,{"$f":"IF(A118=0,\"\",'VPP Hand-Off Form'!$B$4)","v":""},{"$f":"IF(A118=0,\"\",'VPP Hand-Off Form'!#REF!)","v":""},{"$f":"IF(A118=0,\"\",'VPP Hand-Off Form'!#REF!)","v":""},"","",null,"","",{"$f":"IF(A118=0,\"\",IF(ISBLANK('Output (BBY)'!A118),\"\",\"Created\"))","v":""},null,null,null,{"$f":"IF(A118=0,\"\",IF(ISBLANK('VPP Hand-Off Form'!R125),\"\",\"99\"))","v":""},null,null,null,"","","","",{"$f":"IF(ISBLANK('VPP Hand-Off Form'!E125),\"\",'VPP Hand-Off Form'!E125)","v":""}]
[{"$f":"IF('VPP Hand-Off Form'!D126=\"Obsolete\",0,IF('VPP Hand-Off Form'!D126=\"Keep\",0,IF('VPP Hand-Off Form'!D126=\"Obsolete-Partial\",0,'VPP Hand-Off Form'!A126)))","v":0},{"$f":"IF('VPP Hand-Off Form'!D126=\"Obsolete\",\"0\",IF('VPP Hand-Off Form'!D126=\"Keep\",\"0\",IF('VPP Hand-Off Form'!D126=\"Obsolete-Partial\",\"0\",'VPP Hand-Off Form'!B126)))","v":0},"",null,null,null,null,"",{"$f":"IF(A119=0,\"\",'VPP Hand-Off Form'!#REF!)","v":""},null,"",{"$f":"IF(A119=0,\"\",'VPP Hand-Off Form'!#REF!)","v":""},"",null,null,null,"H","",{"$f":"IF(A119=0,\"\",'VPP Hand-Off Form'!$B$3)","v":""},null,null,{"$f":"IF(A119=0,\"\",'VPP Hand-Off Form'!$B$4)","v":""},{"$f":"IF(A119=0,\"\",'VPP Hand-Off Form'!#REF!)","v":""},{"$f":"IF(A119=0,\"\",'VPP Hand-Off Form'!#REF!)","v":""},"","",null,"","",{"$f":"IF(A119=0,\"\",IF(ISBLANK('Output (BBY)'!A119),\"\",\"Created\"))","v":""},null,null,null,{"$f":"IF(A119=0,\"\",IF(ISBLANK('VPP Hand-Off Form'!R126),\"\",\"99\"))","v":""},null,null,null,"","","","",{"$f":"IF(ISBLANK('VPP Hand-Off Form'!E126),\"\",'VPP Hand-Off Form'!E126)","v":""}]
[{"$f":"IF('VPP Hand-Off Form'!D127=\"Obsolete\",0,IF('VPP Hand-Off Form'!D127=\"Keep\",0,IF('VPP Hand-Off Form'!D127=\"Obsolete-Partial\",0,'VPP Hand-Off Form'!A127)))","v":0},{"$f":"IF('VPP Hand-Off Form'!D127=\"Obsolete\",\"0\",IF('VPP Hand-Off Form'!D127=\"Keep\",\"0\",IF('VPP Hand-Off Form'!D127=\"Obsolete-Partial\",\"0\",'VPP Hand-Off Form'!B127)))","v":0},"",null,null,null,null,"",{"$f":"IF(A120=0,\"\",'VPP Hand-Off Form'!#REF!)","v":""},null,"",{"$f":"IF(A120=0,\"\",'VPP Hand-Off Form'!#REF!)","v":""},"",null,null,null,"H","",{"$f":"IF(A120=0,\"\",'VPP Hand-Off Form'!$B$3)","v":""},null,null,{"$f":"IF(A120=0,\"\",'VPP Hand-Off Form'!$B$4)","v":""},{"$f":"IF(A120=0,\"\",'VPP Hand-Off Form'!#REF!)","v":""},{"$f":"IF(A120=0,\"\",'VPP Hand-Off Form'!#REF!)","v":""},"","",null,"","",{"$f":"IF(A120=0,\"\",IF(ISBLANK('Output (BBY)'!A120),\"\",\"Created\"))","v":""},null,null,null,{"$f":"IF(A120=0,\"\",IF(ISBLANK('VPP Hand-Off Form'!R127),\"\",\"99\"))","v":""},null,null,null,"","","","",{"$f":"IF(ISBLANK('VPP Hand-Off Form'!E127),\"\",'VPP Hand-Off Form'!E127)","v":""}]
[{"$f":"IF('VPP Hand-Off Form'!D128=\"Obsolete\",0,IF('VPP Hand-Off Form'!D128=\"Keep\",0,IF('VPP Hand-Off Form'!D128=\"Obsolete-Partial\",0,'VPP Hand-Off Form'!A128)))","v":0},{"$f":"IF('VPP Hand-Off Form'!D128=\"Obsolete\",\"0\",IF('VPP Hand-Off Form'!D128=\"Keep\",\"0\",IF('VPP Hand-Off Form'!D128=\"Obsolete-Partial\",\"0\",'VPP Hand-Off Form'!B128)))","v":0},"",null,null,null,null,"",{"$f":"IF(A121=0,\"\",'VPP Hand-Off Form'!#REF!)","v":""},null,"",{"$f":"IF(A121=0,\"\",'VPP Hand-Off Form'!#REF!)","v":""},"",null,null,null,"H","",{"$f":"IF(A121=0,\"\",'VPP Hand-Off Form'!$B$3)","v":""},null,null,{"$f":"IF(A121=0,\"\",'VPP Hand-Off Form'!$B$4)","v":""},{"$f":"IF(A121=0,\"\",'VPP Hand-Off Form'!#REF!)","v":""},{"$f":"IF(A121=0,\"\",'VPP Hand-Off Form'!#REF!)","v":""},"","",null,"","",{"$f":"IF(A121=0,\"\",IF(ISBLANK('Output (BBY)'!A121),\"\",\"Created\"))","v":""},null,null,null,{"$f":"IF(A121=0,\"\",IF(ISBLANK('VPP Hand-Off Form'!R128),\"\",\"99\"))","v":""},null,null,null,"","","","",{"$f":"IF(ISBLANK('VPP Hand-Off Form'!E128),\"\",'VPP Hand-Off Form'!E128)","v":""}]
[{"$f":"IF('VPP Hand-Off Form'!D129=\"Obsolete\",0,IF('VPP Hand-Off Form'!D129=\"Keep\",0,IF('VPP Hand-Off Form'!D129=\"Obsolete-Partial\",0,'VPP Hand-Off Form'!A129)))","v":0},{"$f":"IF('VPP Hand-Off Form'!D129=\"Obsolete\",\"0\",IF('VPP Hand-Off Form'!D129=\"Keep\",\"0\",IF('VPP Hand-Off Form'!D129=\"Obsolete-Partial\",\"0\",'VPP Hand-Off Form'!B129)))","v":0},"",null,null,null,null,"",{"$f":"IF(A122=0,\"\",'VPP Hand-Off Form'!#REF!)","v":""},null,"",{"$f":"IF(A122=0,\"\",'VPP Hand-Off Form'!#REF!)","v":""},"",null,null,null,"H","",{"$f":"IF(A122=0,\"\",'VPP Hand-Off Form'!$B$3)","v":""},null,null,{"$f":"IF(A122=0,\"\",'VPP Hand-Off Form'!$B$4)","v":""},{"$f":"IF(A122=0,\"\",'VPP Hand-Off Form'!#REF!)","v":""},{"$f":"IF(A122=0,\"\",'VPP Hand-Off Form'!#REF!)","v":""},"","",null,"","",{"$f":"IF(A122=0,\"\",IF(ISBLANK('Output (BBY)'!A122),\"\",\"Created\"))","v":""},null,null,null,{"$f":"IF(A122=0,\"\",IF(ISBLANK('VPP Hand-Off Form'!R129),\"\",\"99\"))","v":""},null,null,null,"","","","",{"$f":"IF(ISBLANK('VPP Hand-Off Form'!E129),\"\",'VPP Hand-Off Form'!E129)","v":""}]
[{"$f":"IF('VPP Hand-Off Form'!D130=\"Obsolete\",0,IF('VPP Hand-Off Form'!D130=\"Keep\",0,IF('VPP Hand-Off Form'!D130=\"Obsolete-Partial\",0,'VPP Hand-Off Form'!A130)))","v":0},{"$f":"IF('VPP Hand-Off Form'!D130=\"Obsolete\",\"0\",IF('VPP Hand-Off Form'!D130=\"Keep\",\"0\",IF('VPP Hand-Off Form'!D130=\"Obsolete-Partial\",\"0\",'VPP Hand-Off Form'!B130)))","v":0},"",null,null,null,null,"",{"$f":"IF(A123=0,\"\",'VPP Hand-Off Form'!#REF!)","v":""},null,"",{"$f":"IF(A123=0,\"\",'VPP Hand-Off Form'!#REF!)","v":""},"",null,null,null,"H","",{"$f":"IF(A123=0,\"\",'VPP Hand-Off Form'!$B$3)","v":""},null,null,{"$f":"IF(A123=0,\"\",'VPP Hand-Off Form'!$B$4)","v":""},{"$f":"IF(A123=0,\"\",'VPP Hand-Off Form'!#REF!)","v":""},{"$f":"IF(A123=0,\"\",'VPP Hand-Off Form'!#REF!)","v":""},"","",null,"","",{"$f":"IF(A123=0,\"\",IF(ISBLANK('Output (BBY)'!A123),\"\",\"Created\"))","v":""},null,null,null,{"$f":"IF(A123=0,\"\",IF(ISBLANK('VPP Hand-Off Form'!R130),\"\",\"99\"))","v":""},null,null,null,"","","","",{"$f":"IF(ISBLANK('VPP Hand-Off Form'!E130),\"\",'VPP Hand-Off Form'!E130)","v":""}]
[{"$f":"IF('VPP Hand-Off Form'!D131=\"Obsolete\",0,IF('VPP Hand-Off Form'!D131=\"Keep\",0,IF('VPP Hand-Off Form'!D131=\"Obsolete-Partial\",0,'VPP Hand-Off Form'!A131)))","v":0},{"$f":"IF('VPP Hand-Off Form'!D131=\"Obsolete\",\"0\",IF('VPP Hand-Off Form'!D131=\"Keep\",\"0\",IF('VPP Hand-Off Form'!D131=\"Obsolete-Partial\",\"0\",'VPP Hand-Off Form'!B131)))","v":0},"",null,null,null,null,"",{"$f":"IF(A124=0,\"\",'VPP Hand-Off Form'!#REF!)","v":""},null,"",{"$f":"IF(A124=0,\"\",'VPP Hand-Off Form'!#REF!)","v":""},"",null,null,null,"H","",{"$f":"IF(A124=0,\"\",'VPP Hand-Off Form'!$B$3)","v":""},null,null,{"$f":"IF(A124=0,\"\",'VPP Hand-Off Form'!$B$4)","v":""},{"$f":"IF(A124=0,\"\",'VPP Hand-Off Form'!#REF!)","v":""},{"$f":"IF(A124=0,\"\",'VPP Hand-Off Form'!#REF!)","v":""},"","",null,"","",{"$f":"IF(A124=0,\"\",IF(ISBLANK('Output (BBY)'!A124),\"\",\"Created\"))","v":""},null,null,null,{"$f":"IF(A124=0,\"\",IF(ISBLANK('VPP Hand-Off Form'!R131),\"\",\"99\"))","v":""},null,null,null,"","","","",{"$f":"IF(ISBLANK('VPP Hand-Off Form'!E131),\"\",'VPP Hand-Off Form'!E131)","v":""}]
[{"$f":"IF('VPP Hand-Off Form'!D132=\"Obsolete\",0,IF('VPP Hand-Off Form'!D132=\"Keep\",0,IF('VPP Hand-Off Form'!D132=\"Obsolete-Partial\",0,'VPP Hand-Off Form'!A132)))","v":0},{"$f":"IF('VPP Hand-Off Form'!D132=\"Obsolete\",\"0\",IF('VPP Hand-Off Form'!D132=\"Keep\",\"0\",IF('VPP Hand-Off Form'!D132=\"Obsolete-Partial\",\"0\",'VPP Hand-Off Form'!B132)))","v":0},"",null,null,null,null,"",{"$f":"IF(A125=0,\"\",'VPP Hand-Off Form'!#REF!)","v":""},null,"",{"$f":"IF(A125=0,\"\",'VPP Hand-Off Form'!#REF!)","v":""},"",null,null,null,"H","",{"$f":"IF(A125=0,\"\",'VPP Hand-Off Form'!$B$3)","v":""},null,null,{"$f":"IF(A125=0,\"\",'VPP Hand-Off Form'!$B$4)","v":""},{"$f":"IF(A125=0,\"\",'VPP Hand-Off Form'!#REF!)","v":""},{"$f":"IF(A125=0,\"\",'VPP Hand-Off Form'!#REF!)","v":""},"","",null,"","",{"$f":"IF(A125=0,\"\",IF(ISBLANK('Output (BBY)'!A125),\"\",\"Created\"))","v":""},null,null,null,{"$f":"IF(A125=0,\"\",IF(ISBLANK('VPP Hand-Off Form'!R132),\"\",\"99\"))","v":""},null,null,null,"","","","",{"$f":"IF(ISBLANK('VPP Hand-Off Form'!E132),\"\",'VPP Hand-Off Form'!E132)","v":""}]
[{"$f":"IF('VPP Hand-Off Form'!D133=\"Obsolete\",0,IF('VPP Hand-Off Form'!D133=\"Keep\",0,IF('VPP Hand-Off Form'!D133=\"Obsolete-Partial\",0,'VPP Hand-Off Form'!A133)))","v":0},{"$f":"IF('VPP Hand-Off Form'!D133=\"Obsolete\",\"0\",IF('VPP Hand-Off Form'!D133=\"Keep\",\"0\",IF('VPP Hand-Off Form'!D133=\"Obsolete-Partial\",\"0\",'VPP Hand-Off Form'!B133)))","v":0},"",null,null,null,null,"",{"$f":"IF(A126=0,\"\",'VPP Hand-Off Form'!#REF!)","v":""},null,"",{"$f":"IF(A126=0,\"\",'VPP Hand-Off Form'!#REF!)","v":""},"",null,null,null,"H","",{"$f":"IF(A126=0,\"\",'VPP Hand-Off Form'!$B$3)","v":""},null,null,{"$f":"IF(A126=0,\"\",'VPP Hand-Off Form'!$B$4)","v":""},{"$f":"IF(A126=0,\"\",'VPP Hand-Off Form'!#REF!)","v":""},{"$f":"IF(A126=0,\"\",'VPP Hand-Off Form'!#REF!)","v":""},"","",null,"","",{"$f":"IF(A126=0,\"\",IF(ISBLANK('Output (BBY)'!A126),\"\",\"Created\"))","v":""},null,null,null,{"$f":"IF(A126=0,\"\",IF(ISBLANK('VPP Hand-Off Form'!R133),\"\",\"99\"))","v":""},null,null,null,"","","","",{"$f":"IF(ISBLANK('VPP Hand-Off Form'!E133),\"\",'VPP Hand-Off Form'!E133)","v":""}]
[{"$f":"IF('VPP Hand-Off Form'!D134=\"Obsolete\",0,IF('VPP Hand-Off Form'!D134=\"Keep\",0,IF('VPP Hand-Off Form'!D134=\"Obsolete-Partial\",0,'VPP Hand-Off Form'!A134)))","v":0},{"$f":"IF('VPP Hand-Off Form'!D134=\"Obsolete\",\"0\",IF('VPP Hand-Off Form'!D134=\"Keep\",\"0\",IF('VPP Hand-Off Form'!D134=\"Obsolete-Partial\",\"0\",'VPP Hand-Off Form'!B134)))","v":0},"",null,null,null,null,"",{"$f":"IF(A127=0,\"\",'VPP Hand-Off Form'!#REF!)","v":""},null,"",{"$f":"IF(A127=0,\"\",'VPP Hand-Off Form'!#REF!)","v":""},"",null,null,null,"H","",{"$f":"IF(A127=0,\"\",'VPP Hand-Off Form'!$B$3)","v":""},null,null,{"$f":"IF(A127=0,\"\",'VPP Hand-Off Form'!$B$4)","v":""},{"$f":"IF(A127=0,\"\",'VPP Hand-Off Form'!#REF!)","v":""},{"$f":"IF(A127=0,\"\",'VPP Hand-Off Form'!#REF!)","v":""},"","",null,"","",{"$f":"IF(A127=0,\"\",IF(ISBLANK('Output (BBY)'!A127),\"\",\"Created\"))","v":""},null,null,null,{"$f":"IF(A127=0,\"\",IF(ISBLANK('VPP Hand-Off Form'!R134),\"\",\"99\"))","v":""},null,null,null,"","","","",{"$f":"IF(ISBLANK('VPP Hand-Off Form'!E134),\"\",'VPP Hand-Off Form'!E134)","v":""}]
[{"$f":"IF('VPP Hand-Off Form'!D135=\"Obsolete\",0,IF('VPP Hand-Off Form'!D135=\"Keep\",0,IF('VPP Hand-Off Form'!D135=\"Obsolete-Partial\",0,'VPP Hand-Off Form'!A135)))","v":0},{"$f":"IF('VPP Hand-Off Form'!D135=\"Obsolete\",\"0\",IF('VPP Hand-Off Form'!D135=\"Keep\",\"0\",IF('VPP Hand-Off Form'!D135=\"Obsolete-Partial\",\"0\",'VPP Hand-Off Form'!B135)))","v":0},"",null,null,null,null,"",{"$f":"IF(A128=0,\"\",'VPP Hand-Off Form'!#REF!)","v":""},null,"",{"$f":"IF(A128=0,\"\",'VPP Hand-Off Form'!#REF!)","v":""},"",null,null,null,"H","",{"$f":"IF(A128=0,\"\",'VPP Hand-Off Form'!$B$3)","v":""},null,null,{"$f":"IF(A128=0,\"\",'VPP Hand-Off Form'!$B$4)","v":""},{"$f":"IF(A128=0,\"\",'VPP Hand-Off Form'!#REF!)","v":""},{"$f":"IF(A128=0,\"\",'VPP Hand-Off Form'!#REF!)","v":""},"","",null,"","",{"$f":"IF(A128=0,\"\",IF(ISBLANK('Output (BBY)'!A128),\"\",\"Created\"))","v":""},null,null,null,{"$f":"IF(A128=0,\"\",IF(ISBLANK('VPP Hand-Off Form'!R135),\"\",\"99\"))","v":""},null,null,null,"","","","",{"$f":"IF(ISBLANK('VPP Hand-Off Form'!E135),\"\",'VPP Hand-Off Form'!E135)","v":""}]
[{"$f":"IF('VPP Hand-Off Form'!D136=\"Obsolete\",0,IF('VPP Hand-Off Form'!D136=\"Keep\",0,IF('VPP Hand-Off Form'!D136=\"Obsolete-Partial\",0,'VPP Hand-Off Form'!A136)))","v":0},{"$f":"IF('VPP Hand-Off Form'!D136=\"Obsolete\",\"0\",IF('VPP Hand-Off Form'!D136=\"Keep\",\"0\",IF('VPP Hand-Off Form'!D136=\"Obsolete-Partial\",\"0\",'VPP Hand-Off Form'!B136)))","v":0},"",null,null,null,null,"",{"$f":"IF(A129=0,\"\",'VPP Hand-Off Form'!#REF!)","v":""},null,"",{"$f":"IF(A129=0,\"\",'VPP Hand-Off Form'!#REF!)","v":""},"",null,null,null,"H","",{"$f":"IF(A129=0,\"\",'VPP Hand-Off Form'!$B$3)","v":""},null,null,{"$f":"IF(A129=0,\"\",'VPP Hand-Off Form'!$B$4)","v":""},{"$f":"IF(A129=0,\"\",'VPP Hand-Off Form'!#REF!)","v":""},{"$f":"IF(A129=0,\"\",'VPP Hand-Off Form'!#REF!)","v":""},"","",null,"","",{"$f":"IF(A129=0,\"\",IF(ISBLANK('Output (BBY)'!A129),\"\",\"Created\"))","v":""},null,null,null,{"$f":"IF(A129=0,\"\",IF(ISBLANK('VPP Hand-Off Form'!R136),\"\",\"99\"))","v":""},null,null,null,"","","","",{"$f":"IF(ISBLANK('VPP Hand-Off Form'!E136),\"\",'VPP Hand-Off Form'!E136)","v":""}]
[{"$f":"IF('VPP Hand-Off Form'!D137=\"Obsolete\",0,IF('VPP Hand-Off Form'!D137=\"Keep\",0,IF('VPP Hand-Off Form'!D137=\"Obsolete-Partial\",0,'VPP Hand-Off Form'!A137)))","v":0},{"$f":"IF('VPP Hand-Off Form'!D137=\"Obsolete\",\"0\",IF('VPP Hand-Off Form'!D137=\"Keep\",\"0\",IF('VPP Hand-Off Form'!D137=\"Obsolete-Partial\",\"0\",'VPP Hand-Off Form'!B137)))","v":0},"",null,null,null,null,"",{"$f":"IF(A130=0,\"\",'VPP Hand-Off Form'!#REF!)","v":""},null,"",{"$f":"IF(A130=0,\"\",'VPP Hand-Off Form'!#REF!)","v":""},"",null,null,null,"H","",{"$f":"IF(A130=0,\"\",'VPP Hand-Off Form'!$B$3)","v":""},null,null,{"$f":"IF(A130=0,\"\",'VPP Hand-Off Form'!$B$4)","v":""},{"$f":"IF(A130=0,\"\",'VPP Hand-Off Form'!#REF!)","v":""},{"$f":"IF(A130=0,\"\",'VPP Hand-Off Form'!#REF!)","v":""},"","",null,"","",{"$f":"IF(A130=0,\"\",IF(ISBLANK('Output (BBY)'!A130),\"\",\"Created\"))","v":""},null,null,null,{"$f":"IF(A130=0,\"\",IF(ISBLANK('VPP Hand-Off Form'!R137),\"\",\"99\"))","v":""},null,null,null,"","","","",{"$f":"IF(ISBLANK('VPP Hand-Off Form'!E137),\"\",'VPP Hand-Off Form'!E137)","v":""}]
[{"$f":"IF('VPP Hand-Off Form'!D138=\"Obsolete\",0,IF('VPP Hand-Off Form'!D138=\"Keep\",0,IF('VPP Hand-Off Form'!D138=\"Obsolete-Partial\",0,'VPP Hand-Off Form'!A138)))","v":0},{"$f":"IF('VPP Hand-Off Form'!D138=\"Obsolete\",\"0\",IF('VPP Hand-Off Form'!D138=\"Keep\",\"0\",IF('VPP Hand-Off Form'!D138=\"Obsolete-Partial\",\"0\",'VPP Hand-Off Form'!B138)))","v":0},{"$f":"IFERROR(IF(A131=0,\"\",VLOOKUP(A131,parts,8,FALSE)),\"NA\")","v":""},null,null,null,null,"",{"$f":"IF(A131=0,\"\",'VPP Hand-Off Form'!#REF!)","v":""},null,"",{"$f":"IF(A131=0,\"\",'VPP Hand-Off Form'!#REF!)","v":""},"",null,null,null,"H","",{"$f":"IF(A131=0,\"\",'VPP Hand-Off Form'!$B$3)","v":""},null,null,{"$f":"IF(A131=0,\"\",'VPP Hand-Off Form'!$B$4)","v":""},{"$f":"IF(A131=0,\"\",'VPP Hand-Off Form'!#REF!)","v":""},{"$f":"IF(A131=0,\"\",'VPP Hand-Off Form'!#REF!)","v":""},{"$f":"IFERROR(IF(A131=0,\"\",VLOOKUP(A131,parts,25,FALSE)),\"NA\")","v":""},{"$f":"IFERROR(IF(A131=0,\"\",VLOOKUP(A131,parts,25,FALSE)),\"NA\")","v":""},null,{"$f":"IFERROR(IF(A131=0,\"\",VLOOKUP(A131,parts,8,FALSE)),\"NA\")","v":""},{"$f":"IFERROR(IF(A131=0,\"\",VLOOKUP(A131,parts,9,FALSE)),\"NA\")","v":""},{"$f":"IF(A131=0,\"\",IF(ISBLANK('Output (BBY)'!A131),\"\",\"Created\"))","v":""},null,null,null,{"$f":"IF(A131=0,\"\",IF(ISBLANK('VPP Hand-Off Form'!R138),\"\",\"99\"))","v":""},null,null,null,"",{"$f":"IFERROR(IF(A131=0,\"\",VLOOKUP(A131,parts,10,FALSE)),\"NA\")","v":""},{"$f":"IFERROR(IF(A131=0,\"\",VLOOKUP(A131,parts,11,FALSE)),\"NA\")","v":""},{"$f":"IFERROR(IF(A131=0,\"\",VLOOKUP(A131,parts,12,FALSE)),\"NA\")","v":""},{"$f":"IF(ISBLANK('VPP Hand-Off Form'!E138),\"\",'VPP Hand-Off Form'!E138)","v":""}]
[{"$f":"IF('VPP Hand-Off Form'!D139=\"Obsolete\",0,IF('VPP Hand-Off Form'!D139=\"Keep\",0,IF('VPP Hand-Off Form'!D139=\"Obsolete-Partial\",0,'VPP Hand-Off Form'!A139)))","v":0},{"$f":"IF('VPP Hand-Off Form'!D139=\"Obsolete\",\"0\",IF('VPP Hand-Off Form'!D139=\"Keep\",\"0\",IF('VPP Hand-Off Form'!D139=\"Obsolete-Partial\",\"0\",'VPP Hand-Off Form'!B139)))","v":0},"",null,null,null,null,"",{"$f":"IF(A132=0,\"\",'VPP Hand-Off Form'!#REF!)","v":""},null,{"$f":"IF(A132=0,\"\",\"Non-Merch Inventory\")","v":""},{"$f":"IF(A132=0,\"\",'VPP Hand-Off Form'!#REF!)","v":""},{"$f":"IF(A132=0,\"\",\"\")","v":""},null,null,null,{"$f":"IF(LEFT(A132,3)=\"VPP\",\"V\",IF(LEFT(A132,2)=\"b0\",\"H\",IF(ISBLANK(A132),\"\",\"H\")))","v":"H"},{"$f":"IF(AP132=\"Full Kit\",16001,IF(AC132=\"VPP - SUPPLIES\",10100,IF(AC132=\"VPP - FIXTURE\",16002,IF(AC132=\"VPP - ELECTRONIC\",16003,IF(AC132=\"VPP - GRAPHIC PERM\",18000,IF(AC132=\"VPP - GRAPHIC-TEMP\",18000,\"\"))))))","v":""},{"$f":"IF(A132=0,\"\",'VPP Hand-Off Form'!$B$3)","v":""},null,null,{"$f":"IF(A132=0,\"\",'VPP Hand-Off Form'!$B$4)","v":""},{"$f":"IF(A132=0,\"\",'VPP Hand-Off Form'!#REF!)","v":""},{"$f":"IF(A132=0,\"\",'VPP Hand-Off Form'!#REF!)","v":""},"","",null,"","",{"$f":"IF(A132=0,\"\",IF(ISBLANK('Output (BBY)'!A132),\"\",\"Created\"))","v":""},null,null,null,{"$f":"IF(A132=0,\"\",IF(ISBLANK('VPP Hand-Off Form'!R139),\"\",\"99\"))","v":""},null,null,null,{"$f":"IF(A132=0,\"\",\"IN\")","v":""},"","","",{"$f":"IF(ISBLANK('VPP Hand-Off Form'!E139),\"\",'VPP Hand-Off Form'!E139)","v":""}]
[{"$f":"IF('VPP Hand-Off Form'!D140=\"Obsolete\",0,IF('VPP Hand-Off Form'!D140=\"Keep\",0,IF('VPP Hand-Off Form'!D140=\"Obsolete-Partial\",0,'VPP Hand-Off Form'!A140)))","v":0},{"$f":"IF('VPP Hand-Off Form'!D140=\"Obsolete\",\"0\",IF('VPP Hand-Off Form'!D140=\"Keep\",\"0\",IF('VPP Hand-Off Form'!D140=\"Obsolete-Partial\",\"0\",'VPP Hand-Off Form'!B140)))","v":0},"",null,null,null,null,"",{"$f":"IF(A133=0,\"\",'VPP Hand-Off Form'!#REF!)","v":""},null,"",{"$f":"IF(A133=0,\"\",'VPP Hand-Off Form'!#REF!)","v":""},"",null,null,null,"H","",{"$f":"IF(A133=0,\"\",'VPP Hand-Off Form'!$B$3)","v":""},null,null,{"$f":"IF(A133=0,\"\",'VPP Hand-Off Form'!$B$4)","v":""},{"$f":"IF(A133=0,\"\",'VPP Hand-Off Form'!#REF!)","v":""},{"$f":"IF(A133=0,\"\",'VPP Hand-Off Form'!#REF!)","v":""},"","",null,"","",{"$f":"IF(A133=0,\"\",IF(ISBLANK('Output (BBY)'!A133),\"\",\"Created\"))","v":""},null,null,null,{"$f":"IF(A133=0,\"\",IF(ISBLANK('VPP Hand-Off Form'!R140),\"\",\"99\"))","v":""},null,null,null,"","","","",{"$f":"IF(ISBLANK('VPP Hand-Off Form'!E140),\"\",'VPP Hand-Off Form'!E140)","v":""}]
[{"$f":"IF('VPP Hand-Off Form'!D141=\"Obsolete\",0,IF('VPP Hand-Off Form'!D141=\"Keep\",0,IF('VPP Hand-Off Form'!D141=\"Obsolete-Partial\",0,'VPP Hand-Off Form'!A141)))","v":0},{"$f":"IF('VPP Hand-Off Form'!D141=\"Obsolete\",\"0\",IF('VPP Hand-Off Form'!D141=\"Keep\",\"0\",IF('VPP Hand-Off Form'!D141=\"Obsolete-Partial\",\"0\",'VPP Hand-Off Form'!B141)))","v":0},"",null,null,null,null,{"$f":"IF(A134=0,\"\",\"BBY_PURCHASING\")","v":""},{"$f":"IF(A134=0,\"\",'VPP Hand-Off Form'!#REF!)","v":""},null,"",{"$f":"IF(A134=0,\"\",'VPP Hand-Off Form'!#REF!)","v":""},"",null,null,null,"H","",{"$f":"IF(A134=0,\"\",'VPP Hand-Off Form'!$B$3)","v":""},null,null,{"$f":"IF(A134=0,\"\",'VPP Hand-Off Form'!$B$4)","v":""},{"$f":"IF(A134=0,\"\",'VPP Hand-Off Form'!#REF!)","v":""},{"$f":"IF(A134=0,\"\",'VPP Hand-Off Form'!#REF!)","v":""},"","",null,"","",{"$f":"IF(A134=0,\"\",IF(ISBLANK('Output (BBY)'!A134),\"\",\"Created\"))","v":""},null,null,null,{"$f":"IF(A134=0,\"\",IF(ISBLANK('VPP Hand-Off Form'!R141),\"\",\"99\"))","v":""},null,null,null,"","","","",{"$f":"IF(ISBLANK('VPP Hand-Off Form'!E141),\"\",'VPP Hand-Off Form'!E141)","v":""}]
[{"$f":"IF('VPP Hand-Off Form'!D142=\"Obsolete\",0,IF('VPP Hand-Off Form'!D142=\"Keep\",0,IF('VPP Hand-Off Form'!D142=\"Obsolete-Partial\",0,'VPP Hand-Off Form'!A142)))","v":0},{"$f":"IF('VPP Hand-Off Form'!D142=\"Obsolete\",\"0\",IF('VPP Hand-Off Form'!D142=\"Keep\",\"0\",IF('VPP Hand-Off Form'!D142=\"Obsolete-Partial\",\"0\",'VPP Hand-Off Form'!B142)))","v":0},"",null,null,null,null,"",{"$f":"IF(A135=0,\"\",'VPP Hand-Off Form'!#REF!)","v":""},null,"",{"$f":"IF(A135=0,\"\",'VPP Hand-Off Form'!#REF!)","v":""},"",null,null,null,"H","",{"$f":"IF(A135=0,\"\",'VPP Hand-Off Form'!$B$3)","v":""},null,null,{"$f":"IF(A135=0,\"\",'VPP Hand-Off Form'!$B$4)","v":""},{"$f":"IF(A135=0,\"\",'VPP Hand-Off Form'!#REF!)","v":""},{"$f":"IF(A135=0,\"\",'VPP Hand-Off Form'!#REF!)","v":""},"","",null,"","",{"$f":"IF(A135=0,\"\",IF(ISBLANK('Output (BBY)'!A135),\"\",\"Created\"))","v":""},null,null,null,{"$f":"IF(A135=0,\"\",IF(ISBLANK('VPP Hand-Off Form'!R142),\"\",\"99\"))","v":""},null,null,null,"","","","",{"$f":"IF(ISBLANK('VPP Hand-Off Form'!E142),\"\",'VPP Hand-Off Form'!E142)","v":""}]
[{"$f":"IF('VPP Hand-Off Form'!D143=\"Obsolete\",0,IF('VPP Hand-Off Form'!D143=\"Keep\",0,IF('VPP Hand-Off Form'!D143=\"Obsolete-Partial\",0,'VPP Hand-Off Form'!A143)))","v":0},{"$f":"IF('VPP Hand-Off Form'!D143=\"Obsolete\",\"0\",IF('VPP Hand-Off Form'!D143=\"Keep\",\"0\",IF('VPP Hand-Off Form'!D143=\"Obsolete-Partial\",\"0\",'VPP Hand-Off Form'!B143)))","v":0},"",null,null,null,null,"",{"$f":"IF(A136=0,\"\",'VPP Hand-Off Form'!#REF!)","v":""},null,"",{"$f":"IF(A136=0,\"\",'VPP Hand-Off Form'!#REF!)","v":""},"",null,null,null,"H","",{"$f":"IF(A136=0,\"\",'VPP Hand-Off Form'!$B$3)","v":""},null,null,{"$f":"IF(A136=0,\"\",'VPP Hand-Off Form'!$B$4)","v":""},{"$f":"IF(A136=0,\"\",'VPP Hand-Off Form'!#REF!)","v":""},{"$f":"IF(A136=0,\"\",'VPP Hand-Off Form'!#REF!)","v":""},"","",null,"","",{"$f":"IF(A136=0,\"\",IF(ISBLANK('Output (BBY)'!A136),\"\",\"Created\"))","v":""},null,null,null,{"$f":"IF(A136=0,\"\",IF(ISBLANK('VPP Hand-Off Form'!R143),\"\",\"99\"))","v":""},null,null,null,"","","","",{"$f":"IF(ISBLANK('VPP Hand-Off Form'!E143),\"\",'VPP Hand-Off Form'!E143)","v":""}]
[{"$f":"IF('VPP Hand-Off Form'!D144=\"Obsolete\",0,IF('VPP Hand-Off Form'!D144=\"Keep\",0,IF('VPP Hand-Off Form'!D144=\"Obsolete-Partial\",0,'VPP Hand-Off Form'!A144)))","v":0},{"$f":"IF('VPP Hand-Off Form'!D144=\"Obsolete\",\"0\",IF('VPP Hand-Off Form'!D144=\"Keep\",\"0\",IF('VPP Hand-Off Form'!D144=\"Obsolete-Partial\",\"0\",'VPP Hand-Off Form'!B144)))","v":0},"",null,null,null,null,"",{"$f":"IF(A137=0,\"\",'VPP Hand-Off Form'!#REF!)","v":""},null,"",{"$f":"IF(A137=0,\"\",'VPP Hand-Off Form'!#REF!)","v":""},"",null,null,null,"H","",{"$f":"IF(A137=0,\"\",'VPP Hand-Off Form'!$B$3)","v":""},null,null,{"$f":"IF(A137=0,\"\",'VPP Hand-Off Form'!$B$4)","v":""},{"$f":"IF(A137=0,\"\",'VPP Hand-Off Form'!#REF!)","v":""},{"$f":"IF(A137=0,\"\",'VPP Hand-Off Form'!#REF!)","v":""},"","",null,"","",{"$f":"IF(A137=0,\"\",IF(ISBLANK('Output (BBY)'!A137),\"\",\"Created\"))","v":""},null,null,null,{"$f":"IF(A137=0,\"\",IF(ISBLANK('VPP Hand-Off Form'!R144),\"\",\"99\"))","v":""},null,null,null,"","","","",{"$f":"IF(ISBLANK('VPP Hand-Off Form'!E144),\"\",'VPP Hand-Off Form'!E144)","v":""}]
[{"$f":"IF('VPP Hand-Off Form'!D145=\"Obsolete\",0,IF('VPP Hand-Off Form'!D145=\"Keep\",0,IF('VPP Hand-Off Form'!D145=\"Obsolete-Partial\",0,'VPP Hand-Off Form'!A145)))","v":0},{"$f":"IF('VPP Hand-Off Form'!D145=\"Obsolete\",\"0\",IF('VPP Hand-Off Form'!D145=\"Keep\",\"0\",IF('VPP Hand-Off Form'!D145=\"Obsolete-Partial\",\"0\",'VPP Hand-Off Form'!B145)))","v":0},"",null,null,null,null,"",{"$f":"IF(A138=0,\"\",'VPP Hand-Off Form'!#REF!)","v":""},null,"",{"$f":"IF(A138=0,\"\",'VPP Hand-Off Form'!#REF!)","v":""},"",null,null,null,"H","",{"$f":"IF(A138=0,\"\",'VPP Hand-Off Form'!$B$3)","v":""},null,null,{"$f":"IF(A138=0,\"\",'VPP Hand-Off Form'!$B$4)","v":""},{"$f":"IF(A138=0,\"\",'VPP Hand-Off Form'!#REF!)","v":""},{"$f":"IF(A138=0,\"\",'VPP Hand-Off Form'!#REF!)","v":""},"","",null,"","",{"$f":"IF(A138=0,\"\",IF(ISBLANK('Output (BBY)'!A138),\"\",\"Created\"))","v":""},null,null,null,{"$f":"IF(A138=0,\"\",IF(ISBLANK('VPP Hand-Off Form'!R145),\"\",\"99\"))","v":""},null,null,null,"","","","",{"$f":"IF(ISBLANK('VPP Hand-Off Form'!E145),\"\",'VPP Hand-Off Form'!E145)","v":""}]
[{"$f":"IF('VPP Hand-Off Form'!D146=\"Obsolete\",0,IF('VPP Hand-Off Form'!D146=\"Keep\",0,IF('VPP Hand-Off Form'!D146=\"Obsolete-Partial\",0,'VPP Hand-Off Form'!A146)))","v":0},{"$f":"IF('VPP Hand-Off Form'!D146=\"Obsolete\",\"0\",IF('VPP Hand-Off Form'!D146=\"Keep\",\"0\",IF('VPP Hand-Off Form'!D146=\"Obsolete-Partial\",\"0\",'VPP Hand-Off Form'!B146)))","v":0},"",null,null,null,null,"",{"$f":"IF(A139=0,\"\",'VPP Hand-Off Form'!#REF!)","v":""},null,"",{"$f":"IF(A139=0,\"\",'VPP Hand-Off Form'!#REF!)","v":""},"",null,null,null,"H","",{"$f":"IF(A139=0,\"\",'VPP Hand-Off Form'!$B$3)","v":""},null,null,{"$f":"IF(A139=0,\"\",'VPP Hand-Off Form'!$B$4)","v":""},{"$f":"IF(A139=0,\"\",'VPP Hand-Off Form'!#REF!)","v":""},{"$f":"IF(A139=0,\"\",'VPP Hand-Off Form'!#REF!)","v":""},"","",null,"","",{"$f":"IF(A139=0,\"\",IF(ISBLANK('Output (BBY)'!A139),\"\",\"Created\"))","v":""},null,null,null,{"$f":"IF(A139=0,\"\",IF(ISBLANK('VPP Hand-Off Form'!R146),\"\",\"99\"))","v":""},null,null,null,"","","","",{"$f":"IF(ISBLANK('VPP Hand-Off Form'!E146),\"\",'VPP Hand-Off Form'!E146)","v":""}]
[{"$f":"IF('VPP Hand-Off Form'!D147=\"Obsolete\",0,IF('VPP Hand-Off Form'!D147=\"Keep\",0,IF('VPP Hand-Off Form'!D147=\"Obsolete-Partial\",0,'VPP Hand-Off Form'!A147)))","v":0},{"$f":"IF('VPP Hand-Off Form'!D147=\"Obsolete\",\"0\",IF('VPP Hand-Off Form'!D147=\"Keep\",\"0\",IF('VPP Hand-Off Form'!D147=\"Obsolete-Partial\",\"0\",'VPP Hand-Off Form'!B147)))","v":0},"",null,null,null,null,"",{"$f":"IF(A140=0,\"\",'VPP Hand-Off Form'!#REF!)","v":""},null,"",{"$f":"IF(A140=0,\"\",'VPP Hand-Off Form'!#REF!)","v":""},"",null,null,null,"H","",{"$f":"IF(A140=0,\"\",'VPP Hand-Off Form'!$B$3)","v":""},null,null,{"$f":"IF(A140=0,\"\",'VPP Hand-Off Form'!$B$4)","v":""},{"$f":"IF(A140=0,\"\",'VPP Hand-Off Form'!#REF!)","v":""},{"$f":"IF(A140=0,\"\",'VPP Hand-Off Form'!#REF!)","v":""},"","",null,"","",{"$f":"IF(A140=0,\"\",IF(ISBLANK('Output (BBY)'!A140),\"\",\"Created\"))","v":""},null,null,null,{"$f":"IF(A140=0,\"\",IF(ISBLANK('VPP Hand-Off Form'!R147),\"\",\"99\"))","v":""},null,null,null,"","","","",{"$f":"IF(ISBLANK('VPP Hand-Off Form'!E147),\"\",'VPP Hand-Off Form'!E147)","v":""}]
[{"$f":"IF('VPP Hand-Off Form'!D148=\"Obsolete\",0,IF('VPP Hand-Off Form'!D148=\"Keep\",0,IF('VPP Hand-Off Form'!D148=\"Obsolete-Partial\",0,'VPP Hand-Off Form'!A148)))","v":0},{"$f":"IF('VPP Hand-Off Form'!D148=\"Obsolete\",\"0\",IF('VPP Hand-Off Form'!D148=\"Keep\",\"0\",IF('VPP Hand-Off Form'!D148=\"Obsolete-Partial\",\"0\",'VPP Hand-Off Form'!B148)))","v":0},"",null,null,null,null,"",{"$f":"IF(A141=0,\"\",'VPP Hand-Off Form'!#REF!)","v":""},null,"",{"$f":"IF(A141=0,\"\",'VPP Hand-Off Form'!#REF!)","v":""},"",null,null,null,"H","",{"$f":"IF(A141=0,\"\",'VPP Hand-Off Form'!$B$3)","v":""},null,null,{"$f":"IF(A141=0,\"\",'VPP Hand-Off Form'!$B$4)","v":""},{"$f":"IF(A141=0,\"\",'VPP Hand-Off Form'!#REF!)","v":""},{"$f":"IF(A141=0,\"\",'VPP Hand-Off Form'!#REF!)","v":""},"","",null,"","",{"$f":"IF(A141=0,\"\",IF(ISBLANK('Output (BBY)'!A141),\"\",\"Created\"))","v":""},null,null,null,{"$f":"IF(A141=0,\"\",IF(ISBLANK('VPP Hand-Off Form'!R148),\"\",\"99\"))","v":""},null,null,null,"","","","",{"$f":"IF(ISBLANK('VPP Hand-Off Form'!E148),\"\",'VPP Hand-Off Form'!E148)","v":""}]
[{"$f":"IF('VPP Hand-Off Form'!D149=\"Obsolete\",0,IF('VPP Hand-Off Form'!D149=\"Keep\",0,IF('VPP Hand-Off Form'!D149=\"Obsolete-Partial\",0,'VPP Hand-Off Form'!A149)))","v":0},{"$f":"IF('VPP Hand-Off Form'!D149=\"Obsolete\",\"0\",IF('VPP Hand-Off Form'!D149=\"Keep\",\"0\",IF('VPP Hand-Off Form'!D149=\"Obsolete-Partial\",\"0\",'VPP Hand-Off Form'!B149)))","v":0},"",null,null,null,null,"",{"$f":"IF(A142=0,\"\",'VPP Hand-Off Form'!#REF!)","v":""},null,"",{"$f":"IF(A142=0,\"\",'VPP Hand-Off Form'!#REF!)","v":""},"",null,null,null,"H","",{"$f":"IF(A142=0,\"\",'VPP Hand-Off Form'!$B$3)","v":""},null,null,{"$f":"IF(A142=0,\"\",'VPP Hand-Off Form'!$B$4)","v":""},{"$f":"IF(A142=0,\"\",'VPP Hand-Off Form'!#REF!)","v":""},{"$f":"IF(A142=0,\"\",'VPP Hand-Off Form'!#REF!)","v":""},"","",null,"","",{"$f":"IF(A142=0,\"\",IF(ISBLANK('Output (BBY)'!A142),\"\",\"Created\"))","v":""},null,null,null,{"$f":"IF(A142=0,\"\",IF(ISBLANK('VPP Hand-Off Form'!R149),\"\",\"99\"))","v":""},null,null,null,"","","","",{"$f":"IF(ISBLANK('VPP Hand-Off Form'!E149),\"\",'VPP Hand-Off Form'!E149)","v":""}]
[{"$f":"IF('VPP Hand-Off Form'!D150=\"Obsolete\",0,IF('VPP Hand-Off Form'!D150=\"Keep\",0,IF('VPP Hand-Off Form'!D150=\"Obsolete-Partial\",0,'VPP Hand-Off Form'!A150)))","v":0},{"$f":"IF('VPP Hand-Off Form'!D150=\"Obsolete\",\"0\",IF('VPP Hand-Off Form'!D150=\"Keep\",\"0\",IF('VPP Hand-Off Form'!D150=\"Obsolete-Partial\",\"0\",'VPP Hand-Off Form'!B150)))","v":0},"",null,null,null,null,"",{"$f":"IF(A143=0,\"\",'VPP Hand-Off Form'!#REF!)","v":""},null,"",{"$f":"IF(A143=0,\"\",'VPP Hand-Off Form'!#REF!)","v":""},"",null,null,null,"H","",{"$f":"IF(A143=0,\"\",'VPP Hand-Off Form'!$B$3)","v":""},null,null,{"$f":"IF(A143=0,\"\",'VPP Hand-Off Form'!$B$4)","v":""},{"$f":"IF(A143=0,\"\",'VPP Hand-Off Form'!#REF!)","v":""},{"$f":"IF(A143=0,\"\",'VPP Hand-Off Form'!#REF!)","v":""},"","",null,"","",{"$f":"IF(A143=0,\"\",IF(ISBLANK('Output (BBY)'!A143),\"\",\"Created\"))","v":""},null,null,null,{"$f":"IF(A143=0,\"\",IF(ISBLANK('VPP Hand-Off Form'!R150),\"\",\"99\"))","v":""},null,null,null,"","","","",{"$f":"IF(ISBLANK('VPP Hand-Off Form'!E150),\"\",'VPP Hand-Off Form'!E150)","v":""}]
[{"$f":"IF('VPP Hand-Off Form'!D151=\"Obsolete\",0,IF('VPP Hand-Off Form'!D151=\"Keep\",0,IF('VPP Hand-Off Form'!D151=\"Obsolete-Partial\",0,'VPP Hand-Off Form'!A151)))","v":0},{"$f":"IF('VPP Hand-Off Form'!D151=\"Obsolete\",\"0\",IF('VPP Hand-Off Form'!D151=\"Keep\",\"0\",IF('VPP Hand-Off Form'!D151=\"Obsolete-Partial\",\"0\",'VPP Hand-Off Form'!B151)))","v":0},"",null,null,null,null,"",{"$f":"IF(A144=0,\"\",'VPP Hand-Off Form'!#REF!)","v":""},null,"",{"$f":"IF(A144=0,\"\",'VPP Hand-Off Form'!#REF!)","v":""},"",null,null,null,"H","",{"$f":"IF(A144=0,\"\",'VPP Hand-Off Form'!$B$3)","v":""},null,null,{"$f":"IF(A144=0,\"\",'VPP Hand-Off Form'!$B$4)","v":""},{"$f":"IF(A144=0,\"\",'VPP Hand-Off Form'!#REF!)","v":""},{"$f":"IF(A144=0,\"\",'VPP Hand-Off Form'!#REF!)","v":""},"","",null,"","",{"$f":"IF(A144=0,\"\",IF(ISBLANK('Output (BBY)'!A144),\"\",\"Created\"))","v":""},null,null,null,{"$f":"IF(A144=0,\"\",IF(ISBLANK('VPP Hand-Off Form'!R151),\"\",\"99\"))","v":""},null,null,null,"","","","",{"$f":"IF(ISBLANK('VPP Hand-Off Form'!E151),\"\",'VPP Hand-Off Form'!E151)","v":""}]
[{"$f":"IF('VPP Hand-Off Form'!D152=\"Obsolete\",0,IF('VPP Hand-Off Form'!D152=\"Keep\",0,IF('VPP Hand-Off Form'!D152=\"Obsolete-Partial\",0,'VPP Hand-Off Form'!A152)))","v":0},{"$f":"IF('VPP Hand-Off Form'!D152=\"Obsolete\",\"0\",IF('VPP Hand-Off Form'!D152=\"Keep\",\"0\",IF('VPP Hand-Off Form'!D152=\"Obsolete-Partial\",\"0\",'VPP Hand-Off Form'!B152)))","v":0},"",null,null,null,null,"",{"$f":"IF(A145=0,\"\",'VPP Hand-Off Form'!#REF!)","v":""},null,"",{"$f":"IF(A145=0,\"\",'VPP Hand-Off Form'!#REF!)","v":""},"",null,null,null,"H","",{"$f":"IF(A145=0,\"\",'VPP Hand-Off Form'!$B$3)","v":""},null,null,{"$f":"IF(A145=0,\"\",'VPP Hand-Off Form'!$B$4)","v":""},{"$f":"IF(A145=0,\"\",'VPP Hand-Off Form'!#REF!)","v":""},{"$f":"IF(A145=0,\"\",'VPP Hand-Off Form'!#REF!)","v":""},"","",null,"","",{"$f":"IF(A145=0,\"\",IF(ISBLANK('Output (BBY)'!A145),\"\",\"Created\"))","v":""},null,null,null,{"$f":"IF(A145=0,\"\",IF(ISBLANK('VPP Hand-Off Form'!R152),\"\",\"99\"))","v":""},null,null,null,"","","","",{"$f":"IF(ISBLANK('VPP Hand-Off Form'!E152),\"\",'VPP Hand-Off Form'!E152)","v":""}]
[{"$f":"IF('VPP Hand-Off Form'!D153=\"Obsolete\",0,IF('VPP Hand-Off Form'!D153=\"Keep\",0,IF('VPP Hand-Off Form'!D153=\"Obsolete-Partial\",0,'VPP Hand-Off Form'!A153)))","v":0},{"$f":"IF('VPP Hand-Off Form'!D153=\"Obsolete\",\"0\",IF('VPP Hand-Off Form'!D153=\"Keep\",\"0\",IF('VPP Hand-Off Form'!D153=\"Obsolete-Partial\",\"0\",'VPP Hand-Off Form'!B153)))","v":0},"",null,null,null,null,"",{"$f":"IF(A146=0,\"\",'VPP Hand-Off Form'!#REF!)","v":""},null,"",{"$f":"IF(A146=0,\"\",'VPP Hand-Off Form'!#REF!)","v":""},"",null,null,null,"H","",{"$f":"IF(A146=0,\"\",'VPP Hand-Off Form'!$B$3)","v":""},null,null,{"$f":"IF(A146=0,\"\",'VPP Hand-Off Form'!$B$4)","v":""},{"$f":"IF(A146=0,\"\",'VPP Hand-Off Form'!#REF!)","v":""},{"$f":"IF(A146=0,\"\",'VPP Hand-Off Form'!#REF!)","v":""},"","",null,"","",{"$f":"IF(A146=0,\"\",IF(ISBLANK('Output (BBY)'!A146),\"\",\"Created\"))","v":""},null,null,null,{"$f":"IF(A146=0,\"\",IF(ISBLANK('VPP Hand-Off Form'!R153),\"\",\"99\"))","v":""},null,null,null,"","","","",{"$f":"IF(ISBLANK('VPP Hand-Off Form'!E153),\"\",'VPP Hand-Off Form'!E153)","v":""}]
[{"$f":"IF('VPP Hand-Off Form'!D154=\"Obsolete\",0,IF('VPP Hand-Off Form'!D154=\"Keep\",0,IF('VPP Hand-Off Form'!D154=\"Obsolete-Partial\",0,'VPP Hand-Off Form'!A154)))","v":0},{"$f":"IF('VPP Hand-Off Form'!D154=\"Obsolete\",\"0\",IF('VPP Hand-Off Form'!D154=\"Keep\",\"0\",IF('VPP Hand-Off Form'!D154=\"Obsolete-Partial\",\"0\",'VPP Hand-Off Form'!B154)))","v":0},"",null,null,null,null,"",{"$f":"IF(A147=0,\"\",'VPP Hand-Off Form'!#REF!)","v":""},null,"",{"$f":"IF(A147=0,\"\",'VPP Hand-Off Form'!#REF!)","v":""},"",null,null,null,"H","",{"$f":"IF(A147=0,\"\",'VPP Hand-Off Form'!$B$3)","v":""},null,null,{"$f":"IF(A147=0,\"\",'VPP Hand-Off Form'!$B$4)","v":""},{"$f":"IF(A147=0,\"\",'VPP Hand-Off Form'!#REF!)","v":""},{"$f":"IF(A147=0,\"\",'VPP Hand-Off Form'!#REF!)","v":""},"","",null,"","",{"$f":"IF(A147=0,\"\",IF(ISBLANK('Output (BBY)'!A147),\"\",\"Created\"))","v":""},null,null,null,{"$f":"IF(A147=0,\"\",IF(ISBLANK('VPP Hand-Off Form'!R154),\"\",\"99\"))","v":""},null,null,null,"","","","",{"$f":"IF(ISBLANK('VPP Hand-Off Form'!E154),\"\",'VPP Hand-Off Form'!E154)","v":""}]
[{"$f":"IF('VPP Hand-Off Form'!D155=\"Obsolete\",0,IF('VPP Hand-Off Form'!D155=\"Keep\",0,IF('VPP Hand-Off Form'!D155=\"Obsolete-Partial\",0,'VPP Hand-Off Form'!A155)))","v":0},{"$f":"IF('VPP Hand-Off Form'!D155=\"Obsolete\",\"0\",IF('VPP Hand-Off Form'!D155=\"Keep\",\"0\",IF('VPP Hand-Off Form'!D155=\"Obsolete-Partial\",\"0\",'VPP Hand-Off Form'!B155)))","v":0},"",null,null,null,null,"",{"$f":"IF(A148=0,\"\",'VPP Hand-Off Form'!#REF!)","v":""},null,"",{"$f":"IF(A148=0,\"\",'VPP Hand-Off Form'!#REF!)","v":""},"",null,null,null,"H","",{"$f":"IF(A148=0,\"\",'VPP Hand-Off Form'!$B$3)","v":""},null,null,{"$f":"IF(A148=0,\"\",'VPP Hand-Off Form'!$B$4)","v":""},{"$f":"IF(A148=0,\"\",'VPP Hand-Off Form'!#REF!)","v":""},{"$f":"IF(A148=0,\"\",'VPP Hand-Off Form'!#REF!)","v":""},"","",null,"","",{"$f":"IF(A148=0,\"\",IF(ISBLANK('Output (BBY)'!A148),\"\",\"Created\"))","v":""},null,null,null,{"$f":"IF(A148=0,\"\",IF(ISBLANK('VPP Hand-Off Form'!R155),\"\",\"99\"))","v":""},null,null,null,"","","","",{"$f":"IF(ISBLANK('VPP Hand-Off Form'!E155),\"\",'VPP Hand-Off Form'!E155)","v":""}]
[{"$f":"IF('VPP Hand-Off Form'!D156=\"Obsolete\",0,IF('VPP Hand-Off Form'!D156=\"Keep\",0,IF('VPP Hand-Off Form'!D156=\"Obsolete-Partial\",0,'VPP Hand-Off Form'!A156)))","v":0},{"$f":"IF('VPP Hand-Off Form'!D156=\"Obsolete\",\"0\",IF('VPP Hand-Off Form'!D156=\"Keep\",\"0\",IF('VPP Hand-Off Form'!D156=\"Obsolete-Partial\",\"0\",'VPP Hand-Off Form'!B156)))","v":0},"",null,null,null,null,"",{"$f":"IF(A149=0,\"\",'VPP Hand-Off Form'!#REF!)","v":""},null,"",{"$f":"IF(A149=0,\"\",'VPP Hand-Off Form'!#REF!)","v":""},"",null,null,null,"H","",{"$f":"IF(A149=0,\"\",'VPP Hand-Off Form'!$B$3)","v":""},null,null,{"$f":"IF(A149=0,\"\",'VPP Hand-Off Form'!$B$4)","v":""},{"$f":"IF(A149=0,\"\",'VPP Hand-Off Form'!#REF!)","v":""},{"$f":"IF(A149=0,\"\",'VPP Hand-Off Form'!#REF!)","v":""},"","",null,"","",{"$f":"IF(A149=0,\"\",IF(ISBLANK('Output (BBY)'!A149),\"\",\"Created\"))","v":""},null,null,null,{"$f":"IF(A149=0,\"\",IF(ISBLANK('VPP Hand-Off Form'!R156),\"\",\"99\"))","v":""},null,null,null,"","","","",{"$f":"IF(ISBLANK('VPP Hand-Off Form'!E156),\"\",'VPP Hand-Off Form'!E156)","v":""}]
[{"$f":"IF('VPP Hand-Off Form'!D157=\"Obsolete\",0,IF('VPP Hand-Off Form'!D157=\"Keep\",0,IF('VPP Hand-Off Form'!D157=\"Obsolete-Partial\",0,'VPP Hand-Off Form'!A157)))","v":0},{"$f":"IF('VPP Hand-Off Form'!D157=\"Obsolete\",\"0\",IF('VPP Hand-Off Form'!D157=\"Keep\",\"0\",IF('VPP Hand-Off Form'!D157=\"Obsolete-Partial\",\"0\",'VPP Hand-Off Form'!B157)))","v":0},"",null,null,null,null,"",{"$f":"IF(A150=0,\"\",'VPP Hand-Off Form'!#REF!)","v":""},null,"",{"$f":"IF(A150=0,\"\",'VPP Hand-Off Form'!#REF!)","v":""},"",null,null,null,"H","",{"$f":"IF(A150=0,\"\",'VPP Hand-Off Form'!$B$3)","v":""},null,null,{"$f":"IF(A150=0,\"\",'VPP Hand-Off Form'!$B$4)","v":""},{"$f":"IF(A150=0,\"\",'VPP Hand-Off Form'!#REF!)","v":""},{"$f":"IF(A150=0,\"\",'VPP Hand-Off Form'!#REF!)","v":""},"","",null,"","",{"$f":"IF(A150=0,\"\",IF(ISBLANK('Output (BBY)'!A150),\"\",\"Created\"))","v":""},null,null,null,{"$f":"IF(A150=0,\"\",IF(ISBLANK('VPP Hand-Off Form'!R157),\"\",\"99\"))","v":""},null,null,null,"","","","",{"$f":"IF(ISBLANK('VPP Hand-Off Form'!E157),\"\",'VPP Hand-Off Form'!E157)","v":""}]
[{"$f":"IF('VPP Hand-Off Form'!D158=\"Obsolete\",0,IF('VPP Hand-Off Form'!D158=\"Keep\",0,IF('VPP Hand-Off Form'!D158=\"Obsolete-Partial\",0,'VPP Hand-Off Form'!A158)))","v":0},{"$f":"IF('VPP Hand-Off Form'!D158=\"Obsolete\",\"0\",IF('VPP Hand-Off Form'!D158=\"Keep\",\"0\",IF('VPP Hand-Off Form'!D158=\"Obsolete-Partial\",\"0\",'VPP Hand-Off Form'!B158)))","v":0},"",null,null,null,null,"",{"$f":"IF(A151=0,\"\",'VPP Hand-Off Form'!#REF!)","v":""},null,"",{"$f":"IF(A151=0,\"\",'VPP Hand-Off Form'!#REF!)","v":""},"",null,null,null,"H","",{"$f":"IF(A151=0,\"\",'VPP Hand-Off Form'!$B$3)","v":""},null,null,{"$f":"IF(A151=0,\"\",'VPP Hand-Off Form'!$B$4)","v":""},{"$f":"IF(A151=0,\"\",'VPP Hand-Off Form'!#REF!)","v":""},{"$f":"IF(A151=0,\"\",'VPP Hand-Off Form'!#REF!)","v":""},"","",null,"","",{"$f":"IF(A151=0,\"\",IF(ISBLANK('Output (BBY)'!A151),\"\",\"Created\"))","v":""},null,null,null,{"$f":"IF(A151=0,\"\",IF(ISBLANK('VPP Hand-Off Form'!R158),\"\",\"99\"))","v":""},null,null,null,"","","","",{"$f":"IF(ISBLANK('VPP Hand-Off Form'!E158),\"\",'VPP Hand-Off Form'!E158)","v":""}]
[{"$f":"IF('VPP Hand-Off Form'!D159=\"Obsolete\",0,IF('VPP Hand-Off Form'!D159=\"Keep\",0,IF('VPP Hand-Off Form'!D159=\"Obsolete-Partial\",0,'VPP Hand-Off Form'!A159)))","v":0},{"$f":"IF('VPP Hand-Off Form'!D159=\"Obsolete\",\"0\",IF('VPP Hand-Off Form'!D159=\"Keep\",\"0\",IF('VPP Hand-Off Form'!D159=\"Obsolete-Partial\",\"0\",'VPP Hand-Off Form'!B159)))","v":0},"",null,null,null,null,"",{"$f":"IF(A152=0,\"\",'VPP Hand-Off Form'!#REF!)","v":""},null,"",{"$f":"IF(A152=0,\"\",'VPP Hand-Off Form'!#REF!)","v":""},"",null,null,null,"H","",{"$f":"IF(A152=0,\"\",'VPP Hand-Off Form'!$B$3)","v":""},null,null,{"$f":"IF(A152=0,\"\",'VPP Hand-Off Form'!$B$4)","v":""},{"$f":"IF(A152=0,\"\",'VPP Hand-Off Form'!#REF!)","v":""},{"$f":"IF(A152=0,\"\",'VPP Hand-Off Form'!#REF!)","v":""},"","",null,"","",{"$f":"IF(A152=0,\"\",IF(ISBLANK('Output (BBY)'!A152),\"\",\"Created\"))","v":""},null,null,null,{"$f":"IF(A152=0,\"\",IF(ISBLANK('VPP Hand-Off Form'!R159),\"\",\"99\"))","v":""},null,null,null,"","","","",{"$f":"IF(ISBLANK('VPP Hand-Off Form'!E159),\"\",'VPP Hand-Off Form'!E159)","v":""}]
[{"$f":"IF('VPP Hand-Off Form'!D160=\"Obsolete\",0,IF('VPP Hand-Off Form'!D160=\"Keep\",0,IF('VPP Hand-Off Form'!D160=\"Obsolete-Partial\",0,'VPP Hand-Off Form'!A160)))","v":0},{"$f":"IF('VPP Hand-Off Form'!D160=\"Obsolete\",\"0\",IF('VPP Hand-Off Form'!D160=\"Keep\",\"0\",IF('VPP Hand-Off Form'!D160=\"Obsolete-Partial\",\"0\",'VPP Hand-Off Form'!B160)))","v":0},"",null,null,null,null,"",{"$f":"IF(A153=0,\"\",'VPP Hand-Off Form'!#REF!)","v":""},null,"",{"$f":"IF(A153=0,\"\",'VPP Hand-Off Form'!#REF!)","v":""},"",null,null,null,"H","",{"$f":"IF(A153=0,\"\",'VPP Hand-Off Form'!$B$3)","v":""},null,null,{"$f":"IF(A153=0,\"\",'VPP Hand-Off Form'!$B$4)","v":""},{"$f":"IF(A153=0,\"\",'VPP Hand-Off Form'!#REF!)","v":""},{"$f":"IF(A153=0,\"\",'VPP Hand-Off Form'!#REF!)","v":""},"","",null,"","",{"$f":"IF(A153=0,\"\",IF(ISBLANK('Output (BBY)'!A153),\"\",\"Created\"))","v":""},null,null,null,{"$f":"IF(A153=0,\"\",IF(ISBLANK('VPP Hand-Off Form'!R160),\"\",\"99\"))","v":""},null,null,null,"","","","",{"$f":"IF(ISBLANK('VPP Hand-Off Form'!E160),\"\",'VPP Hand-Off Form'!E160)","v":""}]
[{"$f":"IF('VPP Hand-Off Form'!D161=\"Obsolete\",0,IF('VPP Hand-Off Form'!D161=\"Keep\",0,IF('VPP Hand-Off Form'!D161=\"Obsolete-Partial\",0,'VPP Hand-Off Form'!A161)))","v":0},{"$f":"IF('VPP Hand-Off Form'!D161=\"Obsolete\",\"0\",IF('VPP Hand-Off Form'!D161=\"Keep\",\"0\",IF('VPP Hand-Off Form'!D161=\"Obsolete-Partial\",\"0\",'VPP Hand-Off Form'!B161)))","v":0},"",null,null,null,null,"",{"$f":"IF(A154=0,\"\",'VPP Hand-Off Form'!#REF!)","v":""},null,"",{"$f":"IF(A154=0,\"\",'VPP Hand-Off Form'!#REF!)","v":""},"",null,null,null,"H","",{"$f":"IF(A154=0,\"\",'VPP Hand-Off Form'!$B$3)","v":""},null,null,{"$f":"IF(A154=0,\"\",'VPP Hand-Off Form'!$B$4)","v":""},{"$f":"IF(A154=0,\"\",'VPP Hand-Off Form'!#REF!)","v":""},{"$f":"IF(A154=0,\"\",'VPP Hand-Off Form'!#REF!)","v":""},"","",null,"","",{"$f":"IF(A154=0,\"\",IF(ISBLANK('Output (BBY)'!A154),\"\",\"Created\"))","v":""},null,null,null,{"$f":"IF(A154=0,\"\",IF(ISBLANK('VPP Hand-Off Form'!R161),\"\",\"99\"))","v":""},null,null,null,"","","","",{"$f":"IF(ISBLANK('VPP Hand-Off Form'!E161),\"\",'VPP Hand-Off Form'!E161)","v":""}]
[{"$f":"IF('VPP Hand-Off Form'!D162=\"Obsolete\",0,IF('VPP Hand-Off Form'!D162=\"Keep\",0,IF('VPP Hand-Off Form'!D162=\"Obsolete-Partial\",0,'VPP Hand-Off Form'!A162)))","v":0},{"$f":"IF('VPP Hand-Off Form'!D162=\"Obsolete\",\"0\",IF('VPP Hand-Off Form'!D162=\"Keep\",\"0\",IF('VPP Hand-Off Form'!D162=\"Obsolete-Partial\",\"0\",'VPP Hand-Off Form'!B162)))","v":0},"",null,null,null,null,"",{"$f":"IF(A155=0,\"\",'VPP Hand-Off Form'!#REF!)","v":""},null,"",{"$f":"IF(A155=0,\"\",'VPP Hand-Off Form'!#REF!)","v":""},"",null,null,null,"H","",{"$f":"IF(A155=0,\"\",'VPP Hand-Off Form'!$B$3)","v":""},null,null,{"$f":"IF(A155=0,\"\",'VPP Hand-Off Form'!$B$4)","v":""},{"$f":"IF(A155=0,\"\",'VPP Hand-Off Form'!#REF!)","v":""},{"$f":"IF(A155=0,\"\",'VPP Hand-Off Form'!#REF!)","v":""},"","",null,"","",{"$f":"IF(A155=0,\"\",IF(ISBLANK('Output (BBY)'!A155),\"\",\"Created\"))","v":""},null,null,null,{"$f":"IF(A155=0,\"\",IF(ISBLANK('VPP Hand-Off Form'!R162),\"\",\"99\"))","v":""},null,null,null,"","","","",{"$f":"IF(ISBLANK('VPP Hand-Off Form'!E162),\"\",'VPP Hand-Off Form'!E162)","v":""}]
[{"$f":"IF('VPP Hand-Off Form'!D163=\"Obsolete\",0,IF('VPP Hand-Off Form'!D163=\"Keep\",0,IF('VPP Hand-Off Form'!D163=\"Obsolete-Partial\",0,'VPP Hand-Off Form'!A163)))","v":0},{"$f":"IF('VPP Hand-Off Form'!D163=\"Obsolete\",\"0\",IF('VPP Hand-Off Form'!D163=\"Keep\",\"0\",IF('VPP Hand-Off Form'!D163=\"Obsolete-Partial\",\"0\",'VPP Hand-Off Form'!B163)))","v":0},"",null,null,null,null,"",{"$f":"IF(A156=0,\"\",'VPP Hand-Off Form'!#REF!)","v":""},null,"",{"$f":"IF(A156=0,\"\",'VPP Hand-Off Form'!#REF!)","v":""},"",null,null,null,"H","",{"$f":"IF(A156=0,\"\",'VPP Hand-Off Form'!$B$3)","v":""},null,null,{"$f":"IF(A156=0,\"\",'VPP Hand-Off Form'!$B$4)","v":""},{"$f":"IF(A156=0,\"\",'VPP Hand-Off Form'!#REF!)","v":""},{"$f":"IF(A156=0,\"\",'VPP Hand-Off Form'!#REF!)","v":""},"","",null,"","",{"$f":"IF(A156=0,\"\",IF(ISBLANK('Output (BBY)'!A156),\"\",\"Created\"))","v":""},null,null,null,{"$f":"IF(A156=0,\"\",IF(ISBLANK('VPP Hand-Off Form'!R163),\"\",\"99\"))","v":""},null,null,null,"","","","",{"$f":"IF(ISBLANK('VPP Hand-Off Form'!E163),\"\",'VPP Hand-Off Form'!E163)","v":""}]
[{"$f":"IF('VPP Hand-Off Form'!D164=\"Obsolete\",0,IF('VPP Hand-Off Form'!D164=\"Keep\",0,IF('VPP Hand-Off Form'!D164=\"Obsolete-Partial\",0,'VPP Hand-Off Form'!A164)))","v":0},{"$f":"IF('VPP Hand-Off Form'!D164=\"Obsolete\",\"0\",IF('VPP Hand-Off Form'!D164=\"Keep\",\"0\",IF('VPP Hand-Off Form'!D164=\"Obsolete-Partial\",\"0\",'VPP Hand-Off Form'!B164)))","v":0},"",null,null,null,null,"",{"$f":"IF(A157=0,\"\",'VPP Hand-Off Form'!#REF!)","v":""},null,"",{"$f":"IF(A157=0,\"\",'VPP Hand-Off Form'!#REF!)","v":""},"",null,null,null,"H","",{"$f":"IF(A157=0,\"\",'VPP Hand-Off Form'!$B$3)","v":""},null,null,{"$f":"IF(A157=0,\"\",'VPP Hand-Off Form'!$B$4)","v":""},{"$f":"IF(A157=0,\"\",'VPP Hand-Off Form'!#REF!)","v":""},{"$f":"IF(A157=0,\"\",'VPP Hand-Off Form'!#REF!)","v":""},"","",null,"","",{"$f":"IF(A157=0,\"\",IF(ISBLANK('Output (BBY)'!A157),\"\",\"Created\"))","v":""},null,null,null,{"$f":"IF(A157=0,\"\",IF(ISBLANK('VPP Hand-Off Form'!R164),\"\",\"99\"))","v":""},null,null,null,"","","","",{"$f":"IF(ISBLANK('VPP Hand-Off Form'!E164),\"\",'VPP Hand-Off Form'!E164)","v":""}]
[{"$f":"IF('VPP Hand-Off Form'!D165=\"Obsolete\",0,IF('VPP Hand-Off Form'!D165=\"Keep\",0,IF('VPP Hand-Off Form'!D165=\"Obsolete-Partial\",0,'VPP Hand-Off Form'!A165)))","v":0},{"$f":"IF('VPP Hand-Off Form'!D165=\"Obsolete\",\"0\",IF('VPP Hand-Off Form'!D165=\"Keep\",\"0\",IF('VPP Hand-Off Form'!D165=\"Obsolete-Partial\",\"0\",'VPP Hand-Off Form'!B165)))","v":0},"",null,null,null,null,"",{"$f":"IF(A158=0,\"\",'VPP Hand-Off Form'!#REF!)","v":""},null,"",{"$f":"IF(A158=0,\"\",'VPP Hand-Off Form'!#REF!)","v":""},"",null,null,null,"H","",{"$f":"IF(A158=0,\"\",'VPP Hand-Off Form'!$B$3)","v":""},null,null,{"$f":"IF(A158=0,\"\",'VPP Hand-Off Form'!$B$4)","v":""},{"$f":"IF(A158=0,\"\",'VPP Hand-Off Form'!#REF!)","v":""},{"$f":"IF(A158=0,\"\",'VPP Hand-Off Form'!#REF!)","v":""},"","",null,"","",{"$f":"IF(A158=0,\"\",IF(ISBLANK('Output (BBY)'!A158),\"\",\"Created\"))","v":""},null,null,null,{"$f":"IF(A158=0,\"\",IF(ISBLANK('VPP Hand-Off Form'!R165),\"\",\"99\"))","v":""},null,null,null,"","","","",{"$f":"IF(ISBLANK('VPP Hand-Off Form'!E165),\"\",'VPP Hand-Off Form'!E165)","v":""}]
[{"$f":"IF('VPP Hand-Off Form'!D166=\"Obsolete\",0,IF('VPP Hand-Off Form'!D166=\"Keep\",0,IF('VPP Hand-Off Form'!D166=\"Obsolete-Partial\",0,'VPP Hand-Off Form'!A166)))","v":0},{"$f":"IF('VPP Hand-Off Form'!D166=\"Obsolete\",\"0\",IF('VPP Hand-Off Form'!D166=\"Keep\",\"0\",IF('VPP Hand-Off Form'!D166=\"Obsolete-Partial\",\"0\",'VPP Hand-Off Form'!B166)))","v":0},"",null,null,null,null,"",{"$f":"IF(A159=0,\"\",'VPP Hand-Off Form'!#REF!)","v":""},null,"",{"$f":"IF(A159=0,\"\",'VPP Hand-Off Form'!#REF!)","v":""},"",null,null,null,"H","",{"$f":"IF(A159=0,\"\",'VPP Hand-Off Form'!$B$3)","v":""},null,null,{"$f":"IF(A159=0,\"\",'VPP Hand-Off Form'!$B$4)","v":""},{"$f":"IF(A159=0,\"\",'VPP Hand-Off Form'!#REF!)","v":""},{"$f":"IF(A159=0,\"\",'VPP Hand-Off Form'!#REF!)","v":""},"","",null,"","",{"$f":"IF(A159=0,\"\",IF(ISBLANK('Output (BBY)'!A159),\"\",\"Created\"))","v":""},null,null,null,{"$f":"IF(A159=0,\"\",IF(ISBLANK('VPP Hand-Off Form'!R166),\"\",\"99\"))","v":""},null,null,null,"","","","",{"$f":"IF(ISBLANK('VPP Hand-Off Form'!E166),\"\",'VPP Hand-Off Form'!E166)","v":""}]
[{"$f":"IF('VPP Hand-Off Form'!D167=\"Obsolete\",0,IF('VPP Hand-Off Form'!D167=\"Keep\",0,IF('VPP Hand-Off Form'!D167=\"Obsolete-Partial\",0,'VPP Hand-Off Form'!A167)))","v":0},{"$f":"IF('VPP Hand-Off Form'!D167=\"Obsolete\",\"0\",IF('VPP Hand-Off Form'!D167=\"Keep\",\"0\",IF('VPP Hand-Off Form'!D167=\"Obsolete-Partial\",\"0\",'VPP Hand-Off Form'!B167)))","v":0},"",null,null,null,null,"",{"$f":"IF(A160=0,\"\",'VPP Hand-Off Form'!#REF!)","v":""},null,"",{"$f":"IF(A160=0,\"\",'VPP Hand-Off Form'!#REF!)","v":""},"",null,null,null,"H","",{"$f":"IF(A160=0,\"\",'VPP Hand-Off Form'!$B$3)","v":""},null,null,{"$f":"IF(A160=0,\"\",'VPP Hand-Off Form'!$B$4)","v":""},{"$f":"IF(A160=0,\"\",'VPP Hand-Off Form'!#REF!)","v":""},{"$f":"IF(A160=0,\"\",'VPP Hand-Off Form'!#REF!)","v":""},"","",null,"","",{"$f":"IF(A160=0,\"\",IF(ISBLANK('Output (BBY)'!A160),\"\",\"Created\"))","v":""},null,null,null,{"$f":"IF(A160=0,\"\",IF(ISBLANK('VPP Hand-Off Form'!R167),\"\",\"99\"))","v":""},null,null,null,"","","","",{"$f":"IF(ISBLANK('VPP Hand-Off Form'!E167),\"\",'VPP Hand-Off Form'!E167)","v":""}]
[{"$f":"IF('VPP Hand-Off Form'!D168=\"Obsolete\",0,IF('VPP Hand-Off Form'!D168=\"Keep\",0,IF('VPP Hand-Off Form'!D168=\"Obsolete-Partial\",0,'VPP Hand-Off Form'!A168)))","v":0},{"$f":"IF('VPP Hand-Off Form'!D168=\"Obsolete\",\"0\",IF('VPP Hand-Off Form'!D168=\"Keep\",\"0\",IF('VPP Hand-Off Form'!D168=\"Obsolete-Partial\",\"0\",'VPP Hand-Off Form'!B168)))","v":0},"",null,null,null,null,"",{"$f":"IF(A161=0,\"\",'VPP Hand-Off Form'!#REF!)","v":""},null,"",{"$f":"IF(A161=0,\"\",'VPP Hand-Off Form'!#REF!)","v":""},"",null,null,null,"H","",{"$f":"IF(A161=0,\"\",'VPP Hand-Off Form'!$B$3)","v":""},null,null,{"$f":"IF(A161=0,\"\",'VPP Hand-Off Form'!$B$4)","v":""},{"$f":"IF(A161=0,\"\",'VPP Hand-Off Form'!#REF!)","v":""},{"$f":"IF(A161=0,\"\",'VPP Hand-Off Form'!#REF!)","v":""},"","",null,"","",{"$f":"IF(A161=0,\"\",IF(ISBLANK('Output (BBY)'!A161),\"\",\"Created\"))","v":""},null,null,null,{"$f":"IF(A161=0,\"\",IF(ISBLANK('VPP Hand-Off Form'!R168),\"\",\"99\"))","v":""},null,null,null,"","","","",{"$f":"IF(ISBLANK('VPP Hand-Off Form'!E168),\"\",'VPP Hand-Off Form'!E168)","v":""}]
[{"$f":"IF('VPP Hand-Off Form'!D169=\"Obsolete\",0,IF('VPP Hand-Off Form'!D169=\"Keep\",0,IF('VPP Hand-Off Form'!D169=\"Obsolete-Partial\",0,'VPP Hand-Off Form'!A169)))","v":0},{"$f":"IF('VPP Hand-Off Form'!D169=\"Obsolete\",\"0\",IF('VPP Hand-Off Form'!D169=\"Keep\",\"0\",IF('VPP Hand-Off Form'!D169=\"Obsolete-Partial\",\"0\",'VPP Hand-Off Form'!B169)))","v":0},"",null,null,null,null,"",{"$f":"IF(A162=0,\"\",'VPP Hand-Off Form'!#REF!)","v":""},null,"",{"$f":"IF(A162=0,\"\",'VPP Hand-Off Form'!#REF!)","v":""},"",null,null,null,"H","",{"$f":"IF(A162=0,\"\",'VPP Hand-Off Form'!$B$3)","v":""},null,null,{"$f":"IF(A162=0,\"\",'VPP Hand-Off Form'!$B$4)","v":""},{"$f":"IF(A162=0,\"\",'VPP Hand-Off Form'!#REF!)","v":""},{"$f":"IF(A162=0,\"\",'VPP Hand-Off Form'!#REF!)","v":""},"","",null,"","",{"$f":"IF(A162=0,\"\",IF(ISBLANK('Output (BBY)'!A162),\"\",\"Created\"))","v":""},null,null,null,{"$f":"IF(A162=0,\"\",IF(ISBLANK('VPP Hand-Off Form'!R169),\"\",\"99\"))","v":""},null,null,null,"","","","",{"$f":"IF(ISBLANK('VPP Hand-Off Form'!E169),\"\",'VPP Hand-Off Form'!E169)","v":""}]
[{"$f":"IF('VPP Hand-Off Form'!D170=\"Obsolete\",0,IF('VPP Hand-Off Form'!D170=\"Keep\",0,IF('VPP Hand-Off Form'!D170=\"Obsolete-Partial\",0,'VPP Hand-Off Form'!A170)))","v":0},{"$f":"IF('VPP Hand-Off Form'!D170=\"Obsolete\",\"0\",IF('VPP Hand-Off Form'!D170=\"Keep\",\"0\",IF('VPP Hand-Off Form'!D170=\"Obsolete-Partial\",\"0\",'VPP Hand-Off Form'!B170)))","v":0},{"$f":"IFERROR(IF(A163=0,\"\",VLOOKUP(A163,parts,8,FALSE)),\"NA\")","v":""},null,null,null,null,"",{"$f":"IF(A163=0,\"\",'VPP Hand-Off Form'!#REF!)","v":""},null,"",{"$f":"IF(A163=0,\"\",'VPP Hand-Off Form'!#REF!)","v":""},"",null,null,null,"H","",{"$f":"IF(A163=0,\"\",'VPP Hand-Off Form'!$B$3)","v":""},null,null,{"$f":"IF(A163=0,\"\",'VPP Hand-Off Form'!$B$4)","v":""},{"$f":"IF(A163=0,\"\",'VPP Hand-Off Form'!#REF!)","v":""},{"$f":"IF(A163=0,\"\",'VPP Hand-Off Form'!#REF!)","v":""},{"$f":"IFERROR(IF(A163=0,\"\",VLOOKUP(A163,parts,25,FALSE)),\"NA\")","v":""},{"$f":"IFERROR(IF(A163=0,\"\",VLOOKUP(A163,parts,25,FALSE)),\"NA\")","v":""},null,{"$f":"IFERROR(IF(A163=0,\"\",VLOOKUP(A163,parts,8,FALSE)),\"NA\")","v":""},{"$f":"IFERROR(IF(A163=0,\"\",VLOOKUP(A163,parts,9,FALSE)),\"NA\")","v":""},{"$f":"IF(A163=0,\"\",IF(ISBLANK('Output (BBY)'!A163),\"\",\"Created\"))","v":""},null,null,null,{"$f":"IF(A163=0,\"\",IF(ISBLANK('VPP Hand-Off Form'!R170),\"\",\"99\"))","v":""},null,null,null,"",{"$f":"IFERROR(IF(A163=0,\"\",VLOOKUP(A163,parts,10,FALSE)),\"NA\")","v":""},{"$f":"IFERROR(IF(A163=0,\"\",VLOOKUP(A163,parts,11,FALSE)),\"NA\")","v":""},{"$f":"IFERROR(IF(A163=0,\"\",VLOOKUP(A163,parts,12,FALSE)),\"NA\")","v":""},{"$f":"IF(ISBLANK('VPP Hand-Off Form'!E170),\"\",'VPP Hand-Off Form'!E170)","v":""}]
[{"$f":"IF('VPP Hand-Off Form'!D171=\"Obsolete\",0,IF('VPP Hand-Off Form'!D171=\"Keep\",0,IF('VPP Hand-Off Form'!D171=\"Obsolete-Partial\",0,'VPP Hand-Off Form'!A171)))","v":0},{"$f":"IF('VPP Hand-Off Form'!D171=\"Obsolete\",\"0\",IF('VPP Hand-Off Form'!D171=\"Keep\",\"0\",IF('VPP Hand-Off Form'!D171=\"Obsolete-Partial\",\"0\",'VPP Hand-Off Form'!B171)))","v":0},"",null,null,null,null,"",{"$f":"IF(A164=0,\"\",'VPP Hand-Off Form'!#REF!)","v":""},null,"",{"$f":"IF(A164=0,\"\",'VPP Hand-Off Form'!#REF!)","v":""},"",null,null,null,"H","",{"$f":"IF(A164=0,\"\",'VPP Hand-Off Form'!$B$3)","v":""},null,null,{"$f":"IF(A164=0,\"\",'VPP Hand-Off Form'!$B$4)","v":""},{"$f":"IF(A164=0,\"\",'VPP Hand-Off Form'!#REF!)","v":""},{"$f":"IF(A164=0,\"\",'VPP Hand-Off Form'!#REF!)","v":""},"","",null,"","",{"$f":"IF(A164=0,\"\",IF(ISBLANK('Output (BBY)'!A164),\"\",\"Created\"))","v":""},null,null,null,{"$f":"IF(A164=0,\"\",IF(ISBLANK('VPP Hand-Off Form'!R171),\"\",\"99\"))","v":""},null,null,null,"","","","",{"$f":"IF(ISBLANK('VPP Hand-Off Form'!E171),\"\",'VPP Hand-Off Form'!E171)","v":""}]
[{"$f":"IF('VPP Hand-Off Form'!D172=\"Obsolete\",0,IF('VPP Hand-Off Form'!D172=\"Keep\",0,IF('VPP Hand-Off Form'!D172=\"Obsolete-Partial\",0,'VPP Hand-Off Form'!A172)))","v":0},{"$f":"IF('VPP Hand-Off Form'!D172=\"Obsolete\",\"0\",IF('VPP Hand-Off Form'!D172=\"Keep\",\"0\",IF('VPP Hand-Off Form'!D172=\"Obsolete-Partial\",\"0\",'VPP Hand-Off Form'!B172)))","v":0},"",null,null,null,null,"",{"$f":"IF(A165=0,\"\",'VPP Hand-Off Form'!#REF!)","v":""},null,"",{"$f":"IF(A165=0,\"\",'VPP Hand-Off Form'!#REF!)","v":""},"",null,null,null,"H","",{"$f":"IF(A165=0,\"\",'VPP Hand-Off Form'!$B$3)","v":""},null,null,{"$f":"IF(A165=0,\"\",'VPP Hand-Off Form'!$B$4)","v":""},{"$f":"IF(A165=0,\"\",'VPP Hand-Off Form'!#REF!)","v":""},{"$f":"IF(A165=0,\"\",'VPP Hand-Off Form'!#REF!)","v":""},"","",null,"","",{"$f":"IF(A165=0,\"\",IF(ISBLANK('Output (BBY)'!A165),\"\",\"Created\"))","v":""},null,null,null,{"$f":"IF(A165=0,\"\",IF(ISBLANK('VPP Hand-Off Form'!R172),\"\",\"99\"))","v":""},null,null,null,"","","","",{"$f":"IF(ISBLANK('VPP Hand-Off Form'!E172),\"\",'VPP Hand-Off Form'!E172)","v":""}]
[{"$f":"IF('VPP Hand-Off Form'!D173=\"Obsolete\",0,IF('VPP Hand-Off Form'!D173=\"Keep\",0,IF('VPP Hand-Off Form'!D173=\"Obsolete-Partial\",0,'VPP Hand-Off Form'!A173)))","v":0},{"$f":"IF('VPP Hand-Off Form'!D173=\"Obsolete\",\"0\",IF('VPP Hand-Off Form'!D173=\"Keep\",\"0\",IF('VPP Hand-Off Form'!D173=\"Obsolete-Partial\",\"0\",'VPP Hand-Off Form'!B173)))","v":0},"",null,null,null,null,"",{"$f":"IF(A166=0,\"\",'VPP Hand-Off Form'!#REF!)","v":""},null,"",{"$f":"IF(A166=0,\"\",'VPP Hand-Off Form'!#REF!)","v":""},"",null,null,null,"H","",{"$f":"IF(A166=0,\"\",'VPP Hand-Off Form'!$B$3)","v":""},null,null,{"$f":"IF(A166=0,\"\",'VPP Hand-Off Form'!$B$4)","v":""},{"$f":"IF(A166=0,\"\",'VPP Hand-Off Form'!#REF!)","v":""},{"$f":"IF(A166=0,\"\",'VPP Hand-Off Form'!#REF!)","v":""},"","",null,"","",{"$f":"IF(A166=0,\"\",IF(ISBLANK('Output (BBY)'!A166),\"\",\"Created\"))","v":""},null,null,null,{"$f":"IF(A166=0,\"\",IF(ISBLANK('VPP Hand-Off Form'!R173),\"\",\"99\"))","v":""},null,null,null,"","","","",{"$f":"IF(ISBLANK('VPP Hand-Off Form'!E173),\"\",'VPP Hand-Off Form'!E173)","v":""}]
[{"$f":"IF('VPP Hand-Off Form'!D174=\"Obsolete\",0,IF('VPP Hand-Off Form'!D174=\"Keep\",0,IF('VPP Hand-Off Form'!D174=\"Obsolete-Partial\",0,'VPP Hand-Off Form'!A174)))","v":0},{"$f":"IF('VPP Hand-Off Form'!D174=\"Obsolete\",\"0\",IF('VPP Hand-Off Form'!D174=\"Keep\",\"0\",IF('VPP Hand-Off Form'!D174=\"Obsolete-Partial\",\"0\",'VPP Hand-Off Form'!B174)))","v":0},"",null,null,null,null,"",{"$f":"IF(A167=0,\"\",'VPP Hand-Off Form'!#REF!)","v":""},null,"",{"$f":"IF(A167=0,\"\",'VPP Hand-Off Form'!#REF!)","v":""},"",null,null,null,"H","",{"$f":"IF(A167=0,\"\",'VPP Hand-Off Form'!$B$3)","v":""},null,null,{"$f":"IF(A167=0,\"\",'VPP Hand-Off Form'!$B$4)","v":""},{"$f":"IF(A167=0,\"\",'VPP Hand-Off Form'!#REF!)","v":""},{"$f":"IF(A167=0,\"\",'VPP Hand-Off Form'!#REF!)","v":""},"","",null,"","",{"$f":"IF(A167=0,\"\",IF(ISBLANK('Output (BBY)'!A167),\"\",\"Created\"))","v":""},null,null,null,{"$f":"IF(A167=0,\"\",IF(ISBLANK('VPP Hand-Off Form'!R174),\"\",\"99\"))","v":""},null,null,null,"","","","",{"$f":"IF(ISBLANK('VPP Hand-Off Form'!E174),\"\",'VPP Hand-Off Form'!E174)","v":""}]
[{"$f":"IF('VPP Hand-Off Form'!D175=\"Obsolete\",0,IF('VPP Hand-Off Form'!D175=\"Keep\",0,IF('VPP Hand-Off Form'!D175=\"Obsolete-Partial\",0,'VPP Hand-Off Form'!A175)))","v":0},{"$f":"IF('VPP Hand-Off Form'!D175=\"Obsolete\",\"0\",IF('VPP Hand-Off Form'!D175=\"Keep\",\"0\",IF('VPP Hand-Off Form'!D175=\"Obsolete-Partial\",\"0\",'VPP Hand-Off Form'!B175)))","v":0},"",null,null,null,null,"",{"$f":"IF(A168=0,\"\",'VPP Hand-Off Form'!#REF!)","v":""},null,"",{"$f":"IF(A168=0,\"\",'VPP Hand-Off Form'!#REF!)","v":""},"",null,null,null,"H","",{"$f":"IF(A168=0,\"\",'VPP Hand-Off Form'!$B$3)","v":""},null,null,{"$f":"IF(A168=0,\"\",'VPP Hand-Off Form'!$B$4)","v":""},{"$f":"IF(A168=0,\"\",'VPP Hand-Off Form'!#REF!)","v":""},{"$f":"IF(A168=0,\"\",'VPP Hand-Off Form'!#REF!)","v":""},"","",null,"","",{"$f":"IF(A168=0,\"\",IF(ISBLANK('Output (BBY)'!A168),\"\",\"Created\"))","v":""},null,null,null,{"$f":"IF(A168=0,\"\",IF(ISBLANK('VPP Hand-Off Form'!R175),\"\",\"99\"))","v":""},null,null,null,"","","","",{"$f":"IF(ISBLANK('VPP Hand-Off Form'!E175),\"\",'VPP Hand-Off Form'!E175)","v":""}]
[{"$f":"IF('VPP Hand-Off Form'!D176=\"Obsolete\",0,IF('VPP Hand-Off Form'!D176=\"Keep\",0,IF('VPP Hand-Off Form'!D176=\"Obsolete-Partial\",0,'VPP Hand-Off Form'!A176)))","v":0},{"$f":"IF('VPP Hand-Off Form'!D176=\"Obsolete\",\"0\",IF('VPP Hand-Off Form'!D176=\"Keep\",\"0\",IF('VPP Hand-Off Form'!D176=\"Obsolete-Partial\",\"0\",'VPP Hand-Off Form'!B176)))","v":0},"",null,null,null,null,"",{"$f":"IF(A169=0,\"\",'VPP Hand-Off Form'!#REF!)","v":""},null,"",{"$f":"IF(A169=0,\"\",'VPP Hand-Off Form'!#REF!)","v":""},"",null,null,null,"H","",{"$f":"IF(A169=0,\"\",'VPP Hand-Off Form'!$B$3)","v":""},null,null,{"$f":"IF(A169=0,\"\",'VPP Hand-Off Form'!$B$4)","v":""},{"$f":"IF(A169=0,\"\",'VPP Hand-Off Form'!#REF!)","v":""},{"$f":"IF(A169=0,\"\",'VPP Hand-Off Form'!#REF!)","v":""},"","",null,"","",{"$f":"IF(A169=0,\"\",IF(ISBLANK('Output (BBY)'!A169),\"\",\"Created\"))","v":""},null,null,null,{"$f":"IF(A169=0,\"\",IF(ISBLANK('VPP Hand-Off Form'!R176),\"\",\"99\"))","v":""},null,null,null,"","","","",{"$f":"IF(ISBLANK('VPP Hand-Off Form'!E176),\"\",'VPP Hand-Off Form'!E176)","v":""}]
[{"$f":"IF('VPP Hand-Off Form'!D177=\"Obsolete\",0,IF('VPP Hand-Off Form'!D177=\"Keep\",0,IF('VPP Hand-Off Form'!D177=\"Obsolete-Partial\",0,'VPP Hand-Off Form'!A177)))","v":0},{"$f":"IF('VPP Hand-Off Form'!D177=\"Obsolete\",\"0\",IF('VPP Hand-Off Form'!D177=\"Keep\",\"0\",IF('VPP Hand-Off Form'!D177=\"Obsolete-Partial\",\"0\",'VPP Hand-Off Form'!B177)))","v":0},"",null,null,null,null,"",{"$f":"IF(A170=0,\"\",'VPP Hand-Off Form'!#REF!)","v":""},null,"",{"$f":"IF(A170=0,\"\",'VPP Hand-Off Form'!#REF!)","v":""},"",null,null,null,"H","",{"$f":"IF(A170=0,\"\",'VPP Hand-Off Form'!$B$3)","v":""},null,null,{"$f":"IF(A170=0,\"\",'VPP Hand-Off Form'!$B$4)","v":""},{"$f":"IF(A170=0,\"\",'VPP Hand-Off Form'!#REF!)","v":""},{"$f":"IF(A170=0,\"\",'VPP Hand-Off Form'!#REF!)","v":""},"","",null,"","",{"$f":"IF(A170=0,\"\",IF(ISBLANK('Output (BBY)'!A170),\"\",\"Created\"))","v":""},null,null,null,{"$f":"IF(A170=0,\"\",IF(ISBLANK('VPP Hand-Off Form'!R177),\"\",\"99\"))","v":""},null,null,null,"","","","",{"$f":"IF(ISBLANK('VPP Hand-Off Form'!E177),\"\",'VPP Hand-Off Form'!E177)","v":""}]
[{"$f":"IF('VPP Hand-Off Form'!D178=\"Obsolete\",0,IF('VPP Hand-Off Form'!D178=\"Keep\",0,IF('VPP Hand-Off Form'!D178=\"Obsolete-Partial\",0,'VPP Hand-Off Form'!A178)))","v":0},{"$f":"IF('VPP Hand-Off Form'!D178=\"Obsolete\",\"0\",IF('VPP Hand-Off Form'!D178=\"Keep\",\"0\",IF('VPP Hand-Off Form'!D178=\"Obsolete-Partial\",\"0\",'VPP Hand-Off Form'!B178)))","v":0},"",null,null,null,null,"",{"$f":"IF(A171=0,\"\",'VPP Hand-Off Form'!#REF!)","v":""},null,"",{"$f":"IF(A171=0,\"\",'VPP Hand-Off Form'!#REF!)","v":""},"",null,null,null,"H","",{"$f":"IF(A171=0,\"\",'VPP Hand-Off Form'!$B$3)","v":""},null,null,{"$f":"IF(A171=0,\"\",'VPP Hand-Off Form'!$B$4)","v":""},{"$f":"IF(A171=0,\"\",'VPP Hand-Off Form'!#REF!)","v":""},{"$f":"IF(A171=0,\"\",'VPP Hand-Off Form'!#REF!)","v":""},"","",null,"","",{"$f":"IF(A171=0,\"\",IF(ISBLANK('Output (BBY)'!A171),\"\",\"Created\"))","v":""},null,null,null,{"$f":"IF(A171=0,\"\",IF(ISBLANK('VPP Hand-Off Form'!R178),\"\",\"99\"))","v":""},null,null,null,"","","","",{"$f":"IF(ISBLANK('VPP Hand-Off Form'!E178),\"\",'VPP Hand-Off Form'!E178)","v":""}]
[{"$f":"IF('VPP Hand-Off Form'!D179=\"Obsolete\",0,IF('VPP Hand-Off Form'!D179=\"Keep\",0,IF('VPP Hand-Off Form'!D179=\"Obsolete-Partial\",0,'VPP Hand-Off Form'!A179)))","v":0},{"$f":"IF('VPP Hand-Off Form'!D179=\"Obsolete\",\"0\",IF('VPP Hand-Off Form'!D179=\"Keep\",\"0\",IF('VPP Hand-Off Form'!D179=\"Obsolete-Partial\",\"0\",'VPP Hand-Off Form'!B179)))","v":0},"",null,null,null,null,"",{"$f":"IF(A172=0,\"\",'VPP Hand-Off Form'!#REF!)","v":""},null,"",{"$f":"IF(A172=0,\"\",'VPP Hand-Off Form'!#REF!)","v":""},"",null,null,null,"H","",{"$f":"IF(A172=0,\"\",'VPP Hand-Off Form'!$B$3)","v":""},null,null,{"$f":"IF(A172=0,\"\",'VPP Hand-Off Form'!$B$4)","v":""},{"$f":"IF(A172=0,\"\",'VPP Hand-Off Form'!#REF!)","v":""},{"$f":"IF(A172=0,\"\",'VPP Hand-Off Form'!#REF!)","v":""},"","",null,"","",{"$f":"IF(A172=0,\"\",IF(ISBLANK('Output (BBY)'!A172),\"\",\"Created\"))","v":""},null,null,null,{"$f":"IF(A172=0,\"\",IF(ISBLANK('VPP Hand-Off Form'!R179),\"\",\"99\"))","v":""},null,null,null,"","","","",{"$f":"IF(ISBLANK('VPP Hand-Off Form'!E179),\"\",'VPP Hand-Off Form'!E179)","v":""}]
[{"$f":"IF('VPP Hand-Off Form'!D180=\"Obsolete\",0,IF('VPP Hand-Off Form'!D180=\"Keep\",0,IF('VPP Hand-Off Form'!D180=\"Obsolete-Partial\",0,'VPP Hand-Off Form'!A180)))","v":0},{"$f":"IF('VPP Hand-Off Form'!D180=\"Obsolete\",\"0\",IF('VPP Hand-Off Form'!D180=\"Keep\",\"0\",IF('VPP Hand-Off Form'!D180=\"Obsolete-Partial\",\"0\",'VPP Hand-Off Form'!B180)))","v":0},"",null,null,null,null,"",{"$f":"IF(A173=0,\"\",'VPP Hand-Off Form'!#REF!)","v":""},null,"",{"$f":"IF(A173=0,\"\",'VPP Hand-Off Form'!#REF!)","v":""},"",null,null,null,"H","",{"$f":"IF(A173=0,\"\",'VPP Hand-Off Form'!$B$3)","v":""},null,null,{"$f":"IF(A173=0,\"\",'VPP Hand-Off Form'!$B$4)","v":""},{"$f":"IF(A173=0,\"\",'VPP Hand-Off Form'!#REF!)","v":""},{"$f":"IF(A173=0,\"\",'VPP Hand-Off Form'!#REF!)","v":""},"","",null,"","",{"$f":"IF(A173=0,\"\",IF(ISBLANK('Output (BBY)'!A173),\"\",\"Created\"))","v":""},null,null,null,{"$f":"IF(A173=0,\"\",IF(ISBLANK('VPP Hand-Off Form'!R180),\"\",\"99\"))","v":""},null,null,null,"","","","",{"$f":"IF(ISBLANK('VPP Hand-Off Form'!E180),\"\",'VPP Hand-Off Form'!E180)","v":""}]
[{"$f":"IF('VPP Hand-Off Form'!D181=\"Obsolete\",0,IF('VPP Hand-Off Form'!D181=\"Keep\",0,IF('VPP Hand-Off Form'!D181=\"Obsolete-Partial\",0,'VPP Hand-Off Form'!A181)))","v":0},{"$f":"IF('VPP Hand-Off Form'!D181=\"Obsolete\",\"0\",IF('VPP Hand-Off Form'!D181=\"Keep\",\"0\",IF('VPP Hand-Off Form'!D181=\"Obsolete-Partial\",\"0\",'VPP Hand-Off Form'!B181)))","v":0},"",null,null,null,null,"",{"$f":"IF(A174=0,\"\",'VPP Hand-Off Form'!#REF!)","v":""},null,"",{"$f":"IF(A174=0,\"\",'VPP Hand-Off Form'!#REF!)","v":""},"",null,null,null,"H","",{"$f":"IF(A174=0,\"\",'VPP Hand-Off Form'!$B$3)","v":""},null,null,{"$f":"IF(A174=0,\"\",'VPP Hand-Off Form'!$B$4)","v":""},{"$f":"IF(A174=0,\"\",'VPP Hand-Off Form'!#REF!)","v":""},{"$f":"IF(A174=0,\"\",'VPP Hand-Off Form'!#REF!)","v":""},"","",null,"","",{"$f":"IF(A174=0,\"\",IF(ISBLANK('Output (BBY)'!A174),\"\",\"Created\"))","v":""},null,null,null,{"$f":"IF(A174=0,\"\",IF(ISBLANK('VPP Hand-Off Form'!R181),\"\",\"99\"))","v":""},null,null,null,"","","","",{"$f":"IF(ISBLANK('VPP Hand-Off Form'!E181),\"\",'VPP Hand-Off Form'!E181)","v":""}]
[{"$f":"IF('VPP Hand-Off Form'!D182=\"Obsolete\",0,IF('VPP Hand-Off Form'!D182=\"Keep\",0,IF('VPP Hand-Off Form'!D182=\"Obsolete-Partial\",0,'VPP Hand-Off Form'!A182)))","v":0},{"$f":"IF('VPP Hand-Off Form'!D182=\"Obsolete\",\"0\",IF('VPP Hand-Off Form'!D182=\"Keep\",\"0\",IF('VPP Hand-Off Form'!D182=\"Obsolete-Partial\",\"0\",'VPP Hand-Off Form'!B182)))","v":0},"",null,null,null,null,"",{"$f":"IF(A175=0,\"\",'VPP Hand-Off Form'!#REF!)","v":""},null,"",{"$f":"IF(A175=0,\"\",'VPP Hand-Off Form'!#REF!)","v":""},"",null,null,null,"H","",{"$f":"IF(A175=0,\"\",'VPP Hand-Off Form'!$B$3)","v":""},null,null,{"$f":"IF(A175=0,\"\",'VPP Hand-Off Form'!$B$4)","v":""},{"$f":"IF(A175=0,\"\",'VPP Hand-Off Form'!#REF!)","v":""},{"$f":"IF(A175=0,\"\",'VPP Hand-Off Form'!#REF!)","v":""},"","",null,"","",{"$f":"IF(A175=0,\"\",IF(ISBLANK('Output (BBY)'!A175),\"\",\"Created\"))","v":""},null,null,null,{"$f":"IF(A175=0,\"\",IF(ISBLANK('VPP Hand-Off Form'!R182),\"\",\"99\"))","v":""},null,null,null,"","","","",{"$f":"IF(ISBLANK('VPP Hand-Off Form'!E182),\"\",'VPP Hand-Off Form'!E182)","v":""}]
[{"$f":"IF('VPP Hand-Off Form'!D183=\"Obsolete\",0,IF('VPP Hand-Off Form'!D183=\"Keep\",0,IF('VPP Hand-Off Form'!D183=\"Obsolete-Partial\",0,'VPP Hand-Off Form'!A183)))","v":0},{"$f":"IF('VPP Hand-Off Form'!D183=\"Obsolete\",\"0\",IF('VPP Hand-Off Form'!D183=\"Keep\",\"0\",IF('VPP Hand-Off Form'!D183=\"Obsolete-Partial\",\"0\",'VPP Hand-Off Form'!B183)))","v":0},"",null,null,null,null,"",{"$f":"IF(A176=0,\"\",'VPP Hand-Off Form'!#REF!)","v":""},null,"",{"$f":"IF(A176=0,\"\",'VPP Hand-Off Form'!#REF!)","v":""},"",null,null,null,"H","",{"$f":"IF(A176=0,\"\",'VPP Hand-Off Form'!$B$3)","v":""},null,null,{"$f":"IF(A176=0,\"\",'VPP Hand-Off Form'!$B$4)","v":""},{"$f":"IF(A176=0,\"\",'VPP Hand-Off Form'!#REF!)","v":""},{"$f":"IF(A176=0,\"\",'VPP Hand-Off Form'!#REF!)","v":""},"","",null,"","",{"$f":"IF(A176=0,\"\",IF(ISBLANK('Output (BBY)'!A176),\"\",\"Created\"))","v":""},null,null,null,{"$f":"IF(A176=0,\"\",IF(ISBLANK('VPP Hand-Off Form'!R183),\"\",\"99\"))","v":""},null,null,null,"","","","",{"$f":"IF(ISBLANK('VPP Hand-Off Form'!E183),\"\",'VPP Hand-Off Form'!E183)","v":""}]
[{"$f":"IF('VPP Hand-Off Form'!D184=\"Obsolete\",0,IF('VPP Hand-Off Form'!D184=\"Keep\",0,IF('VPP Hand-Off Form'!D184=\"Obsolete-Partial\",0,'VPP Hand-Off Form'!A184)))","v":0},{"$f":"IF('VPP Hand-Off Form'!D184=\"Obsolete\",\"0\",IF('VPP Hand-Off Form'!D184=\"Keep\",\"0\",IF('VPP Hand-Off Form'!D184=\"Obsolete-Partial\",\"0\",'VPP Hand-Off Form'!B184)))","v":0},"",null,null,null,null,"",{"$f":"IF(A177=0,\"\",'VPP Hand-Off Form'!#REF!)","v":""},null,"",{"$f":"IF(A177=0,\"\",'VPP Hand-Off Form'!#REF!)","v":""},"",null,null,null,"H","",{"$f":"IF(A177=0,\"\",'VPP Hand-Off Form'!$B$3)","v":""},null,null,{"$f":"IF(A177=0,\"\",'VPP Hand-Off Form'!$B$4)","v":""},{"$f":"IF(A177=0,\"\",'VPP Hand-Off Form'!#REF!)","v":""},{"$f":"IF(A177=0,\"\",'VPP Hand-Off Form'!#REF!)","v":""},"","",null,"","",{"$f":"IF(A177=0,\"\",IF(ISBLANK('Output (BBY)'!A177),\"\",\"Created\"))","v":""},null,null,null,{"$f":"IF(A177=0,\"\",IF(ISBLANK('VPP Hand-Off Form'!R184),\"\",\"99\"))","v":""},null,null,null,"","","","",{"$f":"IF(ISBLANK('VPP Hand-Off Form'!E184),\"\",'VPP Hand-Off Form'!E184)","v":""}]
[{"$f":"IF('VPP Hand-Off Form'!D185=\"Obsolete\",0,IF('VPP Hand-Off Form'!D185=\"Keep\",0,IF('VPP Hand-Off Form'!D185=\"Obsolete-Partial\",0,'VPP Hand-Off Form'!A185)))","v":0},{"$f":"IF('VPP Hand-Off Form'!D185=\"Obsolete\",\"0\",IF('VPP Hand-Off Form'!D185=\"Keep\",\"0\",IF('VPP Hand-Off Form'!D185=\"Obsolete-Partial\",\"0\",'VPP Hand-Off Form'!B185)))","v":0},"",null,null,null,null,"",{"$f":"IF(A178=0,\"\",'VPP Hand-Off Form'!#REF!)","v":""},null,"",{"$f":"IF(A178=0,\"\",'VPP Hand-Off Form'!#REF!)","v":""},"",null,null,null,"H","",{"$f":"IF(A178=0,\"\",'VPP Hand-Off Form'!$B$3)","v":""},null,null,{"$f":"IF(A178=0,\"\",'VPP Hand-Off Form'!$B$4)","v":""},{"$f":"IF(A178=0,\"\",'VPP Hand-Off Form'!#REF!)","v":""},{"$f":"IF(A178=0,\"\",'VPP Hand-Off Form'!#REF!)","v":""},"","",null,"","",{"$f":"IF(A178=0,\"\",IF(ISBLANK('Output (BBY)'!A178),\"\",\"Created\"))","v":""},null,null,null,{"$f":"IF(A178=0,\"\",IF(ISBLANK('VPP Hand-Off Form'!R185),\"\",\"99\"))","v":""},null,null,null,"","","","",{"$f":"IF(ISBLANK('VPP Hand-Off Form'!E185),\"\",'VPP Hand-Off Form'!E185)","v":""}]
[{"$f":"IF('VPP Hand-Off Form'!D186=\"Obsolete\",0,IF('VPP Hand-Off Form'!D186=\"Keep\",0,IF('VPP Hand-Off Form'!D186=\"Obsolete-Partial\",0,'VPP Hand-Off Form'!A186)))","v":0},{"$f":"IF('VPP Hand-Off Form'!D186=\"Obsolete\",\"0\",IF('VPP Hand-Off Form'!D186=\"Keep\",\"0\",IF('VPP Hand-Off Form'!D186=\"Obsolete-Partial\",\"0\",'VPP Hand-Off Form'!B186)))","v":0},"",null,null,null,null,"",{"$f":"IF(A179=0,\"\",'VPP Hand-Off Form'!#REF!)","v":""},null,"",{"$f":"IF(A179=0,\"\",'VPP Hand-Off Form'!#REF!)","v":""},"",null,null,null,"H","",{"$f":"IF(A179=0,\"\",'VPP Hand-Off Form'!$B$3)","v":""},null,null,{"$f":"IF(A179=0,\"\",'VPP Hand-Off Form'!$B$4)","v":""},{"$f":"IF(A179=0,\"\",'VPP Hand-Off Form'!#REF!)","v":""},{"$f":"IF(A179=0,\"\",'VPP Hand-Off Form'!#REF!)","v":""},"","",null,"","",{"$f":"IF(A179=0,\"\",IF(ISBLANK('Output (BBY)'!A179),\"\",\"Created\"))","v":""},null,null,null,{"$f":"IF(A179=0,\"\",IF(ISBLANK('VPP Hand-Off Form'!R186),\"\",\"99\"))","v":""},null,null,null,"","","","",{"$f":"IF(ISBLANK('VPP Hand-Off Form'!E186),\"\",'VPP Hand-Off Form'!E186)","v":""}]
[{"$f":"IF('VPP Hand-Off Form'!D187=\"Obsolete\",0,IF('VPP Hand-Off Form'!D187=\"Keep\",0,IF('VPP Hand-Off Form'!D187=\"Obsolete-Partial\",0,'VPP Hand-Off Form'!A187)))","v":0},{"$f":"IF('VPP Hand-Off Form'!D187=\"Obsolete\",\"0\",IF('VPP Hand-Off Form'!D187=\"Keep\",\"0\",IF('VPP Hand-Off Form'!D187=\"Obsolete-Partial\",\"0\",'VPP Hand-Off Form'!B187)))","v":0},"",null,null,null,null,"",{"$f":"IF(A180=0,\"\",'VPP Hand-Off Form'!#REF!)","v":""},null,"",{"$f":"IF(A180=0,\"\",'VPP Hand-Off Form'!#REF!)","v":""},"",null,null,null,"H","",{"$f":"IF(A180=0,\"\",'VPP Hand-Off Form'!$B$3)","v":""},null,null,{"$f":"IF(A180=0,\"\",'VPP Hand-Off Form'!$B$4)","v":""},{"$f":"IF(A180=0,\"\",'VPP Hand-Off Form'!#REF!)","v":""},{"$f":"IF(A180=0,\"\",'VPP Hand-Off Form'!#REF!)","v":""},"","",null,"","",{"$f":"IF(A180=0,\"\",IF(ISBLANK('Output (BBY)'!A180),\"\",\"Created\"))","v":""},null,null,null,{"$f":"IF(A180=0,\"\",IF(ISBLANK('VPP Hand-Off Form'!R187),\"\",\"99\"))","v":""},null,null,null,"","","","",{"$f":"IF(ISBLANK('VPP Hand-Off Form'!E187),\"\",'VPP Hand-Off Form'!E187)","v":""}]
[{"$f":"IF('VPP Hand-Off Form'!D188=\"Obsolete\",0,IF('VPP Hand-Off Form'!D188=\"Keep\",0,IF('VPP Hand-Off Form'!D188=\"Obsolete-Partial\",0,'VPP Hand-Off Form'!A188)))","v":0},{"$f":"IF('VPP Hand-Off Form'!D188=\"Obsolete\",\"0\",IF('VPP Hand-Off Form'!D188=\"Keep\",\"0\",IF('VPP Hand-Off Form'!D188=\"Obsolete-Partial\",\"0\",'VPP Hand-Off Form'!B188)))","v":0},"",null,null,null,null,"",{"$f":"IF(A181=0,\"\",'VPP Hand-Off Form'!#REF!)","v":""},null,"",{"$f":"IF(A181=0,\"\",'VPP Hand-Off Form'!#REF!)","v":""},"",null,null,null,"H","",{"$f":"IF(A181=0,\"\",'VPP Hand-Off Form'!$B$3)","v":""},null,null,{"$f":"IF(A181=0,\"\",'VPP Hand-Off Form'!$B$4)","v":""},{"$f":"IF(A181=0,\"\",'VPP Hand-Off Form'!#REF!)","v":""},{"$f":"IF(A181=0,\"\",'VPP Hand-Off Form'!#REF!)","v":""},"","",null,"","",{"$f":"IF(A181=0,\"\",IF(ISBLANK('Output (BBY)'!A181),\"\",\"Created\"))","v":""},null,null,null,{"$f":"IF(A181=0,\"\",IF(ISBLANK('VPP Hand-Off Form'!R188),\"\",\"99\"))","v":""},null,null,null,"","","","",{"$f":"IF(ISBLANK('VPP Hand-Off Form'!E188),\"\",'VPP Hand-Off Form'!E188)","v":""}]
[{"$f":"IF('VPP Hand-Off Form'!D189=\"Obsolete\",0,IF('VPP Hand-Off Form'!D189=\"Keep\",0,IF('VPP Hand-Off Form'!D189=\"Obsolete-Partial\",0,'VPP Hand-Off Form'!A189)))","v":0},{"$f":"IF('VPP Hand-Off Form'!D189=\"Obsolete\",\"0\",IF('VPP Hand-Off Form'!D189=\"Keep\",\"0\",IF('VPP Hand-Off Form'!D189=\"Obsolete-Partial\",\"0\",'VPP Hand-Off Form'!B189)))","v":0},"",null,null,null,null,"",{"$f":"IF(A182=0,\"\",'VPP Hand-Off Form'!#REF!)","v":""},null,"",{"$f":"IF(A182=0,\"\",'VPP Hand-Off Form'!#REF!)","v":""},"",null,null,null,"H","",{"$f":"IF(A182=0,\"\",'VPP Hand-Off Form'!$B$3)","v":""},null,null,{"$f":"IF(A182=0,\"\",'VPP Hand-Off Form'!$B$4)","v":""},{"$f":"IF(A182=0,\"\",'VPP Hand-Off Form'!#REF!)","v":""},{"$f":"IF(A182=0,\"\",'VPP Hand-Off Form'!#REF!)","v":""},"","",null,"","",{"$f":"IF(A182=0,\"\",IF(ISBLANK('Output (BBY)'!A182),\"\",\"Created\"))","v":""},null,null,null,{"$f":"IF(A182=0,\"\",IF(ISBLANK('VPP Hand-Off Form'!R189),\"\",\"99\"))","v":""},null,null,null,"","","","",{"$f":"IF(ISBLANK('VPP Hand-Off Form'!E189),\"\",'VPP Hand-Off Form'!E189)","v":""}]
[{"$f":"IF('VPP Hand-Off Form'!D190=\"Obsolete\",0,IF('VPP Hand-Off Form'!D190=\"Keep\",0,IF('VPP Hand-Off Form'!D190=\"Obsolete-Partial\",0,'VPP Hand-Off Form'!A190)))","v":0},{"$f":"IF('VPP Hand-Off Form'!D190=\"Obsolete\",\"0\",IF('VPP Hand-Off Form'!D190=\"Keep\",\"0\",IF('VPP Hand-Off Form'!D190=\"Obsolete-Partial\",\"0\",'VPP Hand-Off Form'!B190)))","v":0},"",null,null,null,null,"",{"$f":"IF(A183=0,\"\",'VPP Hand-Off Form'!#REF!)","v":""},null,"",{"$f":"IF(A183=0,\"\",'VPP Hand-Off Form'!#REF!)","v":""},"",null,null,null,"H","",{"$f":"IF(A183=0,\"\",'VPP Hand-Off Form'!$B$3)","v":""},null,null,{"$f":"IF(A183=0,\"\",'VPP Hand-Off Form'!$B$4)","v":""},{"$f":"IF(A183=0,\"\",'VPP Hand-Off Form'!#REF!)","v":""},{"$f":"IF(A183=0,\"\",'VPP Hand-Off Form'!#REF!)","v":""},"","",null,"","",{"$f":"IF(A183=0,\"\",IF(ISBLANK('Output (BBY)'!A183),\"\",\"Created\"))","v":""},null,null,null,{"$f":"IF(A183=0,\"\",IF(ISBLANK('VPP Hand-Off Form'!R190),\"\",\"99\"))","v":""},null,null,null,"","","","",{"$f":"IF(ISBLANK('VPP Hand-Off Form'!E190),\"\",'VPP Hand-Off Form'!E190)","v":""}]
[{"$f":"IF('VPP Hand-Off Form'!D191=\"Obsolete\",0,IF('VPP Hand-Off Form'!D191=\"Keep\",0,IF('VPP Hand-Off Form'!D191=\"Obsolete-Partial\",0,'VPP Hand-Off Form'!A191)))","v":0},{"$f":"IF('VPP Hand-Off Form'!D191=\"Obsolete\",\"0\",IF('VPP Hand-Off Form'!D191=\"Keep\",\"0\",IF('VPP Hand-Off Form'!D191=\"Obsolete-Partial\",\"0\",'VPP Hand-Off Form'!B191)))","v":0},"",null,null,null,null,"",{"$f":"IF(A184=0,\"\",'VPP Hand-Off Form'!#REF!)","v":""},null,"",{"$f":"IF(A184=0,\"\",'VPP Hand-Off Form'!#REF!)","v":""},"",null,null,null,"H","",{"$f":"IF(A184=0,\"\",'VPP Hand-Off Form'!$B$3)","v":""},null,null,{"$f":"IF(A184=0,\"\",'VPP Hand-Off Form'!$B$4)","v":""},{"$f":"IF(A184=0,\"\",'VPP Hand-Off Form'!#REF!)","v":""},{"$f":"IF(A184=0,\"\",'VPP Hand-Off Form'!#REF!)","v":""},"","",null,"","",{"$f":"IF(A184=0,\"\",IF(ISBLANK('Output (BBY)'!A184),\"\",\"Created\"))","v":""},null,null,null,{"$f":"IF(A184=0,\"\",IF(ISBLANK('VPP Hand-Off Form'!R191),\"\",\"99\"))","v":""},null,null,null,"","","","",{"$f":"IF(ISBLANK('VPP Hand-Off Form'!E191),\"\",'VPP Hand-Off Form'!E191)","v":""}]
[{"$f":"IF('VPP Hand-Off Form'!D192=\"Obsolete\",0,IF('VPP Hand-Off Form'!D192=\"Keep\",0,IF('VPP Hand-Off Form'!D192=\"Obsolete-Partial\",0,'VPP Hand-Off Form'!A192)))","v":0},{"$f":"IF('VPP Hand-Off Form'!D192=\"Obsolete\",\"0\",IF('VPP Hand-Off Form'!D192=\"Keep\",\"0\",IF('VPP Hand-Off Form'!D192=\"Obsolete-Partial\",\"0\",'VPP Hand-Off Form'!B192)))","v":0},"",null,null,null,null,"",{"$f":"IF(A185=0,\"\",'VPP Hand-Off Form'!#REF!)","v":""},null,"",{"$f":"IF(A185=0,\"\",'VPP Hand-Off Form'!#REF!)","v":""},"",null,null,null,"H","",{"$f":"IF(A185=0,\"\",'VPP Hand-Off Form'!$B$3)","v":""},null,null,{"$f":"IF(A185=0,\"\",'VPP Hand-Off Form'!$B$4)","v":""},{"$f":"IF(A185=0,\"\",'VPP Hand-Off Form'!#REF!)","v":""},{"$f":"IF(A185=0,\"\",'VPP Hand-Off Form'!#REF!)","v":""},"","",null,"","",{"$f":"IF(A185=0,\"\",IF(ISBLANK('Output (BBY)'!A185),\"\",\"Created\"))","v":""},null,null,null,{"$f":"IF(A185=0,\"\",IF(ISBLANK('VPP Hand-Off Form'!R192),\"\",\"99\"))","v":""},null,null,null,"","","","",{"$f":"IF(ISBLANK('VPP Hand-Off Form'!E192),\"\",'VPP Hand-Off Form'!E192)","v":""}]
[{"$f":"IF('VPP Hand-Off Form'!D193=\"Obsolete\",0,IF('VPP Hand-Off Form'!D193=\"Keep\",0,IF('VPP Hand-Off Form'!D193=\"Obsolete-Partial\",0,'VPP Hand-Off Form'!A193)))","v":0},{"$f":"IF('VPP Hand-Off Form'!D193=\"Obsolete\",\"0\",IF('VPP Hand-Off Form'!D193=\"Keep\",\"0\",IF('VPP Hand-Off Form'!D193=\"Obsolete-Partial\",\"0\",'VPP Hand-Off Form'!B193)))","v":0},"",null,null,null,null,"",{"$f":"IF(A186=0,\"\",'VPP Hand-Off Form'!#REF!)","v":""},null,"",{"$f":"IF(A186=0,\"\",'VPP Hand-Off Form'!#REF!)","v":""},"",null,null,null,"H","",{"$f":"IF(A186=0,\"\",'VPP Hand-Off Form'!$B$3)","v":""},null,null,{"$f":"IF(A186=0,\"\",'VPP Hand-Off Form'!$B$4)","v":""},{"$f":"IF(A186=0,\"\",'VPP Hand-Off Form'!#REF!)","v":""},{"$f":"IF(A186=0,\"\",'VPP Hand-Off Form'!#REF!)","v":""},"","",null,"","",{"$f":"IF(A186=0,\"\",IF(ISBLANK('Output (BBY)'!A186),\"\",\"Created\"))","v":""},null,null,null,{"$f":"IF(A186=0,\"\",IF(ISBLANK('VPP Hand-Off Form'!R193),\"\",\"99\"))","v":""},null,null,null,"","","","",{"$f":"IF(ISBLANK('VPP Hand-Off Form'!E193),\"\",'VPP Hand-Off Form'!E193)","v":""}]
[{"$f":"IF('VPP Hand-Off Form'!D194=\"Obsolete\",0,IF('VPP Hand-Off Form'!D194=\"Keep\",0,IF('VPP Hand-Off Form'!D194=\"Obsolete-Partial\",0,'VPP Hand-Off Form'!A194)))","v":0},{"$f":"IF('VPP Hand-Off Form'!D194=\"Obsolete\",\"0\",IF('VPP Hand-Off Form'!D194=\"Keep\",\"0\",IF('VPP Hand-Off Form'!D194=\"Obsolete-Partial\",\"0\",'VPP Hand-Off Form'!B194)))","v":0},"",null,null,null,null,"",{"$f":"IF(A187=0,\"\",'VPP Hand-Off Form'!#REF!)","v":""},null,"",{"$f":"IF(A187=0,\"\",'VPP Hand-Off Form'!#REF!)","v":""},"",null,null,null,"H","",{"$f":"IF(A187=0,\"\",'VPP Hand-Off Form'!$B$3)","v":""},null,null,{"$f":"IF(A187=0,\"\",'VPP Hand-Off Form'!$B$4)","v":""},{"$f":"IF(A187=0,\"\",'VPP Hand-Off Form'!#REF!)","v":""},{"$f":"IF(A187=0,\"\",'VPP Hand-Off Form'!#REF!)","v":""},"","",null,"","",{"$f":"IF(A187=0,\"\",IF(ISBLANK('Output (BBY)'!A187),\"\",\"Created\"))","v":""},null,null,null,{"$f":"IF(A187=0,\"\",IF(ISBLANK('VPP Hand-Off Form'!R194),\"\",\"99\"))","v":""},null,null,null,"","","","",{"$f":"IF(ISBLANK('VPP Hand-Off Form'!E194),\"\",'VPP Hand-Off Form'!E194)","v":""}]
[{"$f":"IF('VPP Hand-Off Form'!D195=\"Obsolete\",0,IF('VPP Hand-Off Form'!D195=\"Keep\",0,IF('VPP Hand-Off Form'!D195=\"Obsolete-Partial\",0,'VPP Hand-Off Form'!A195)))","v":0},{"$f":"IF('VPP Hand-Off Form'!D195=\"Obsolete\",\"0\",IF('VPP Hand-Off Form'!D195=\"Keep\",\"0\",IF('VPP Hand-Off Form'!D195=\"Obsolete-Partial\",\"0\",'VPP Hand-Off Form'!B195)))","v":0},"",null,null,null,null,"",{"$f":"IF(A188=0,\"\",'VPP Hand-Off Form'!#REF!)","v":""},null,"",{"$f":"IF(A188=0,\"\",'VPP Hand-Off Form'!#REF!)","v":""},"",null,null,null,"H","",{"$f":"IF(A188=0,\"\",'VPP Hand-Off Form'!$B$3)","v":""},null,null,{"$f":"IF(A188=0,\"\",'VPP Hand-Off Form'!$B$4)","v":""},{"$f":"IF(A188=0,\"\",'VPP Hand-Off Form'!#REF!)","v":""},{"$f":"IF(A188=0,\"\",'VPP Hand-Off Form'!#REF!)","v":""},"","",null,"","",{"$f":"IF(A188=0,\"\",IF(ISBLANK('Output (BBY)'!A188),\"\",\"Created\"))","v":""},null,null,null,{"$f":"IF(A188=0,\"\",IF(ISBLANK('VPP Hand-Off Form'!R195),\"\",\"99\"))","v":""},null,null,null,"","","","",{"$f":"IF(ISBLANK('VPP Hand-Off Form'!E195),\"\",'VPP Hand-Off Form'!E195)","v":""}]
[{"$f":"IF('VPP Hand-Off Form'!D196=\"Obsolete\",0,IF('VPP Hand-Off Form'!D196=\"Keep\",0,IF('VPP Hand-Off Form'!D196=\"Obsolete-Partial\",0,'VPP Hand-Off Form'!A196)))","v":0},{"$f":"IF('VPP Hand-Off Form'!D196=\"Obsolete\",\"0\",IF('VPP Hand-Off Form'!D196=\"Keep\",\"0\",IF('VPP Hand-Off Form'!D196=\"Obsolete-Partial\",\"0\",'VPP Hand-Off Form'!B196)))","v":0},"",null,null,null,null,"",{"$f":"IF(A189=0,\"\",'VPP Hand-Off Form'!#REF!)","v":""},null,"",{"$f":"IF(A189=0,\"\",'VPP Hand-Off Form'!#REF!)","v":""},"",null,null,null,"H","",{"$f":"IF(A189=0,\"\",'VPP Hand-Off Form'!$B$3)","v":""},null,null,{"$f":"IF(A189=0,\"\",'VPP Hand-Off Form'!$B$4)","v":""},{"$f":"IF(A189=0,\"\",'VPP Hand-Off Form'!#REF!)","v":""},{"$f":"IF(A189=0,\"\",'VPP Hand-Off Form'!#REF!)","v":""},"","",null,"","",{"$f":"IF(A189=0,\"\",IF(ISBLANK('Output (BBY)'!A189),\"\",\"Created\"))","v":""},null,null,null,{"$f":"IF(A189=0,\"\",IF(ISBLANK('VPP Hand-Off Form'!R196),\"\",\"99\"))","v":""},null,null,null,"","","","",{"$f":"IF(ISBLANK('VPP Hand-Off Form'!E196),\"\",'VPP Hand-Off Form'!E196)","v":""}]
[{"$f":"IF('VPP Hand-Off Form'!D197=\"Obsolete\",0,IF('VPP Hand-Off Form'!D197=\"Keep\",0,IF('VPP Hand-Off Form'!D197=\"Obsolete-Partial\",0,'VPP Hand-Off Form'!A197)))","v":0},{"$f":"IF('VPP Hand-Off Form'!D197=\"Obsolete\",\"0\",IF('VPP Hand-Off Form'!D197=\"Keep\",\"0\",IF('VPP Hand-Off Form'!D197=\"Obsolete-Partial\",\"0\",'VPP Hand-Off Form'!B197)))","v":0},"",null,null,null,null,"",{"$f":"IF(A190=0,\"\",'VPP Hand-Off Form'!#REF!)","v":""},null,"",{"$f":"IF(A190=0,\"\",'VPP Hand-Off Form'!#REF!)","v":""},"",null,null,null,"H","",{"$f":"IF(A190=0,\"\",'VPP Hand-Off Form'!$B$3)","v":""},null,null,{"$f":"IF(A190=0,\"\",'VPP Hand-Off Form'!$B$4)","v":""},{"$f":"IF(A190=0,\"\",'VPP Hand-Off Form'!#REF!)","v":""},{"$f":"IF(A190=0,\"\",'VPP Hand-Off Form'!#REF!)","v":""},"","",null,"","",{"$f":"IF(A190=0,\"\",IF(ISBLANK('Output (BBY)'!A190),\"\",\"Created\"))","v":""},null,null,null,{"$f":"IF(A190=0,\"\",IF(ISBLANK('VPP Hand-Off Form'!R197),\"\",\"99\"))","v":""},null,null,null,"","","","",{"$f":"IF(ISBLANK('VPP Hand-Off Form'!E197),\"\",'VPP Hand-Off Form'!E197)","v":""}]
[{"$f":"IF('VPP Hand-Off Form'!D198=\"Obsolete\",0,IF('VPP Hand-Off Form'!D198=\"Keep\",0,IF('VPP Hand-Off Form'!D198=\"Obsolete-Partial\",0,'VPP Hand-Off Form'!A198)))","v":0},{"$f":"IF('VPP Hand-Off Form'!D198=\"Obsolete\",\"0\",IF('VPP Hand-Off Form'!D198=\"Keep\",\"0\",IF('VPP Hand-Off Form'!D198=\"Obsolete-Partial\",\"0\",'VPP Hand-Off Form'!B198)))","v":0},"",null,null,null,null,"",{"$f":"IF(A191=0,\"\",'VPP Hand-Off Form'!#REF!)","v":""},null,"",{"$f":"IF(A191=0,\"\",'VPP Hand-Off Form'!#REF!)","v":""},"",null,null,null,"H","",{"$f":"IF(A191=0,\"\",'VPP Hand-Off Form'!$B$3)","v":""},null,null,{"$f":"IF(A191=0,\"\",'VPP Hand-Off Form'!$B$4)","v":""},{"$f":"IF(A191=0,\"\",'VPP Hand-Off Form'!#REF!)","v":""},{"$f":"IF(A191=0,\"\",'VPP Hand-Off Form'!#REF!)","v":""},"","",null,"","",{"$f":"IF(A191=0,\"\",IF(ISBLANK('Output (BBY)'!A191),\"\",\"Created\"))","v":""},null,null,null,{"$f":"IF(A191=0,\"\",IF(ISBLANK('VPP Hand-Off Form'!R198),\"\",\"99\"))","v":""},null,null,null,"","","","",{"$f":"IF(ISBLANK('VPP Hand-Off Form'!E198),\"\",'VPP Hand-Off Form'!E198)","v":""}]
[{"$f":"IF('VPP Hand-Off Form'!D199=\"Obsolete\",0,IF('VPP Hand-Off Form'!D199=\"Keep\",0,IF('VPP Hand-Off Form'!D199=\"Obsolete-Partial\",0,'VPP Hand-Off Form'!A199)))","v":0},{"$f":"IF('VPP Hand-Off Form'!D199=\"Obsolete\",\"0\",IF('VPP Hand-Off Form'!D199=\"Keep\",\"0\",IF('VPP Hand-Off Form'!D199=\"Obsolete-Partial\",\"0\",'VPP Hand-Off Form'!B199)))","v":0},"",null,null,null,null,"",{"$f":"IF(A192=0,\"\",'VPP Hand-Off Form'!#REF!)","v":""},null,"",{"$f":"IF(A192=0,\"\",'VPP Hand-Off Form'!#REF!)","v":""},"",null,null,null,"H","",{"$f":"IF(A192=0,\"\",'VPP Hand-Off Form'!$B$3)","v":""},null,null,{"$f":"IF(A192=0,\"\",'VPP Hand-Off Form'!$B$4)","v":""},{"$f":"IF(A192=0,\"\",'VPP Hand-Off Form'!#REF!)","v":""},{"$f":"IF(A192=0,\"\",'VPP Hand-Off Form'!#REF!)","v":""},"","",null,"","",{"$f":"IF(A192=0,\"\",IF(ISBLANK('Output (BBY)'!A192),\"\",\"Created\"))","v":""},null,null,null,{"$f":"IF(A192=0,\"\",IF(ISBLANK('VPP Hand-Off Form'!R199),\"\",\"99\"))","v":""},null,null,null,"","","","",{"$f":"IF(ISBLANK('VPP Hand-Off Form'!E199),\"\",'VPP Hand-Off Form'!E199)","v":""}]
[{"$f":"IF('VPP Hand-Off Form'!D200=\"Obsolete\",0,IF('VPP Hand-Off Form'!D200=\"Keep\",0,IF('VPP Hand-Off Form'!D200=\"Obsolete-Partial\",0,'VPP Hand-Off Form'!A200)))","v":0},{"$f":"IF('VPP Hand-Off Form'!D200=\"Obsolete\",\"0\",IF('VPP Hand-Off Form'!D200=\"Keep\",\"0\",IF('VPP Hand-Off Form'!D200=\"Obsolete-Partial\",\"0\",'VPP Hand-Off Form'!B200)))","v":0},"",null,null,null,null,"",{"$f":"IF(A193=0,\"\",'VPP Hand-Off Form'!#REF!)","v":""},null,"",{"$f":"IF(A193=0,\"\",'VPP Hand-Off Form'!#REF!)","v":""},"",null,null,null,"H","",{"$f":"IF(A193=0,\"\",'VPP Hand-Off Form'!$B$3)","v":""},null,null,{"$f":"IF(A193=0,\"\",'VPP Hand-Off Form'!$B$4)","v":""},{"$f":"IF(A193=0,\"\",'VPP Hand-Off Form'!#REF!)","v":""},{"$f":"IF(A193=0,\"\",'VPP Hand-Off Form'!#REF!)","v":""},"","",null,"","",{"$f":"IF(A193=0,\"\",IF(ISBLANK('Output (BBY)'!A193),\"\",\"Created\"))","v":""},null,null,null,{"$f":"IF(A193=0,\"\",IF(ISBLANK('VPP Hand-Off Form'!R200),\"\",\"99\"))","v":""},null,null,null,"","","","",{"$f":"IF(ISBLANK('VPP Hand-Off Form'!E200),\"\",'VPP Hand-Off Form'!E200)","v":""}]
[{"$f":"IF('VPP Hand-Off Form'!D201=\"Obsolete\",0,IF('VPP Hand-Off Form'!D201=\"Keep\",0,IF('VPP Hand-Off Form'!D201=\"Obsolete-Partial\",0,'VPP Hand-Off Form'!A201)))","v":0},{"$f":"IF('VPP Hand-Off Form'!D201=\"Obsolete\",\"0\",IF('VPP Hand-Off Form'!D201=\"Keep\",\"0\",IF('VPP Hand-Off Form'!D201=\"Obsolete-Partial\",\"0\",'VPP Hand-Off Form'!B201)))","v":0},"",null,null,null,null,"",{"$f":"IF(A194=0,\"\",'VPP Hand-Off Form'!#REF!)","v":""},null,"",{"$f":"IF(A194=0,\"\",'VPP Hand-Off Form'!#REF!)","v":""},"",null,null,null,"H","",{"$f":"IF(A194=0,\"\",'VPP Hand-Off Form'!$B$3)","v":""},null,null,{"$f":"IF(A194=0,\"\",'VPP Hand-Off Form'!$B$4)","v":""},{"$f":"IF(A194=0,\"\",'VPP Hand-Off Form'!#REF!)","v":""},{"$f":"IF(A194=0,\"\",'VPP Hand-Off Form'!#REF!)","v":""},"","",null,"","",{"$f":"IF(A194=0,\"\",IF(ISBLANK('Output (BBY)'!A194),\"\",\"Created\"))","v":""},null,null,null,{"$f":"IF(A194=0,\"\",IF(ISBLANK('VPP Hand-Off Form'!R201),\"\",\"99\"))","v":""},null,null,null,"","","","",{"$f":"IF(ISBLANK('VPP Hand-Off Form'!E201),\"\",'VPP Hand-Off Form'!E201)","v":""}]
[{"$f":"IF('VPP Hand-Off Form'!D202=\"Obsolete\",0,IF('VPP Hand-Off Form'!D202=\"Keep\",0,IF('VPP Hand-Off Form'!D202=\"Obsolete-Partial\",0,'VPP Hand-Off Form'!A202)))","v":0},{"$f":"IF('VPP Hand-Off Form'!D202=\"Obsolete\",\"0\",IF('VPP Hand-Off Form'!D202=\"Keep\",\"0\",IF('VPP Hand-Off Form'!D202=\"Obsolete-Partial\",\"0\",'VPP Hand-Off Form'!B202)))","v":0},{"$f":"IFERROR(IF(A195=0,\"\",VLOOKUP(A195,parts,8,FALSE)),\"NA\")","v":""},null,null,null,null,"",{"$f":"IF(A195=0,\"\",'VPP Hand-Off Form'!#REF!)","v":""},null,"",{"$f":"IF(A195=0,\"\",'VPP Hand-Off Form'!#REF!)","v":""},"",null,null,null,"H","",{"$f":"IF(A195=0,\"\",'VPP Hand-Off Form'!$B$3)","v":""},null,null,{"$f":"IF(A195=0,\"\",'VPP Hand-Off Form'!$B$4)","v":""},{"$f":"IF(A195=0,\"\",'VPP Hand-Off Form'!#REF!)","v":""},{"$f":"IF(A195=0,\"\",'VPP Hand-Off Form'!#REF!)","v":""},{"$f":"IFERROR(IF(A195=0,\"\",VLOOKUP(A195,parts,25,FALSE)),\"NA\")","v":""},{"$f":"IFERROR(IF(A195=0,\"\",VLOOKUP(A195,parts,25,FALSE)),\"NA\")","v":""},null,{"$f":"IFERROR(IF(A195=0,\"\",VLOOKUP(A195,parts,8,FALSE)),\"NA\")","v":""},{"$f":"IFERROR(IF(A195=0,\"\",VLOOKUP(A195,parts,9,FALSE)),\"NA\")","v":""},{"$f":"IF(A195=0,\"\",IF(ISBLANK('Output (BBY)'!A195),\"\",\"Created\"))","v":""},null,null,null,{"$f":"IF(A195=0,\"\",IF(ISBLANK('VPP Hand-Off Form'!R202),\"\",\"99\"))","v":""},null,null,null,"",{"$f":"IFERROR(IF(A195=0,\"\",VLOOKUP(A195,parts,10,FALSE)),\"NA\")","v":""},{"$f":"IFERROR(IF(A195=0,\"\",VLOOKUP(A195,parts,11,FALSE)),\"NA\")","v":""},{"$f":"IFERROR(IF(A195=0,\"\",VLOOKUP(A195,parts,12,FALSE)),\"NA\")","v":""},{"$f":"IF(ISBLANK('VPP Hand-Off Form'!E202),\"\",'VPP Hand-Off Form'!E202)","v":""}]
[{"$f":"IF('VPP Hand-Off Form'!D203=\"Obsolete\",0,IF('VPP Hand-Off Form'!D203=\"Keep\",0,IF('VPP Hand-Off Form'!D203=\"Obsolete-Partial\",0,'VPP Hand-Off Form'!A203)))","v":0},{"$f":"IF('VPP Hand-Off Form'!D203=\"Obsolete\",\"0\",IF('VPP Hand-Off Form'!D203=\"Keep\",\"0\",IF('VPP Hand-Off Form'!D203=\"Obsolete-Partial\",\"0\",'VPP Hand-Off Form'!B203)))","v":0},"",null,null,null,null,"",{"$f":"IF(A196=0,\"\",'VPP Hand-Off Form'!#REF!)","v":""},null,{"$f":"IF(A196=0,\"\",\"Non-Merch Inventory\")","v":""},{"$f":"IF(A196=0,\"\",'VPP Hand-Off Form'!#REF!)","v":""},{"$f":"IF(A196=0,\"\",\"\")","v":""},null,null,null,{"$f":"IF(LEFT(A196,3)=\"VPP\",\"V\",IF(LEFT(A196,2)=\"b0\",\"H\",IF(ISBLANK(A196),\"\",\"H\")))","v":"H"},{"$f":"IF(AP196=\"Full Kit\",16001,IF(AC196=\"VPP - SUPPLIES\",10100,IF(AC196=\"VPP - FIXTURE\",16002,IF(AC196=\"VPP - ELECTRONIC\",16003,IF(AC196=\"VPP - GRAPHIC PERM\",18000,IF(AC196=\"VPP - GRAPHIC-TEMP\",18000,\"\"))))))","v":""},{"$f":"IF(A196=0,\"\",'VPP Hand-Off Form'!$B$3)","v":""},null,null,{"$f":"IF(A196=0,\"\",'VPP Hand-Off Form'!$B$4)","v":""},{"$f":"IF(A196=0,\"\",'VPP Hand-Off Form'!#REF!)","v":""},{"$f":"IF(A196=0,\"\",'VPP Hand-Off Form'!#REF!)","v":""},"","",null,"","",{"$f":"IF(A196=0,\"\",IF(ISBLANK('Output (BBY)'!A196),\"\",\"Created\"))","v":""},null,null,null,{"$f":"IF(A196=0,\"\",IF(ISBLANK('VPP Hand-Off Form'!R203),\"\",\"99\"))","v":""},null,null,null,{"$f":"IF(A196=0,\"\",\"IN\")","v":""},"","","",{"$f":"IF(ISBLANK('VPP Hand-Off Form'!E203),\"\",'VPP Hand-Off Form'!E203)","v":""}]
[{"$f":"IF('VPP Hand-Off Form'!D204=\"Obsolete\",0,IF('VPP Hand-Off Form'!D204=\"Keep\",0,IF('VPP Hand-Off Form'!D204=\"Obsolete-Partial\",0,'VPP Hand-Off Form'!A204)))","v":0},{"$f":"IF('VPP Hand-Off Form'!D204=\"Obsolete\",\"0\",IF('VPP Hand-Off Form'!D204=\"Keep\",\"0\",IF('VPP Hand-Off Form'!D204=\"Obsolete-Partial\",\"0\",'VPP Hand-Off Form'!B204)))","v":0},"",null,null,null,null,"",{"$f":"IF(A197=0,\"\",'VPP Hand-Off Form'!#REF!)","v":""},null,"",{"$f":"IF(A197=0,\"\",'VPP Hand-Off Form'!#REF!)","v":""},"",null,null,null,"H","",{"$f":"IF(A197=0,\"\",'VPP Hand-Off Form'!$B$3)","v":""},null,null,{"$f":"IF(A197=0,\"\",'VPP Hand-Off Form'!$B$4)","v":""},{"$f":"IF(A197=0,\"\",'VPP Hand-Off Form'!#REF!)","v":""},{"$f":"IF(A197=0,\"\",'VPP Hand-Off Form'!#REF!)","v":""},"","",null,"","",{"$f":"IF(A197=0,\"\",IF(ISBLANK('Output (BBY)'!A197),\"\",\"Created\"))","v":""},null,null,null,{"$f":"IF(A197=0,\"\",IF(ISBLANK('VPP Hand-Off Form'!R204),\"\",\"99\"))","v":""},null,null,null,"","","","",{"$f":"IF(ISBLANK('VPP Hand-Off Form'!E204),\"\",'VPP Hand-Off Form'!E204)","v":""}]
[{"$f":"IF('VPP Hand-Off Form'!D205=\"Obsolete\",0,IF('VPP Hand-Off Form'!D205=\"Keep\",0,IF('VPP Hand-Off Form'!D205=\"Obsolete-Partial\",0,'VPP Hand-Off Form'!A205)))","v":0},{"$f":"IF('VPP Hand-Off Form'!D205=\"Obsolete\",\"0\",IF('VPP Hand-Off Form'!D205=\"Keep\",\"0\",IF('VPP Hand-Off Form'!D205=\"Obsolete-Partial\",\"0\",'VPP Hand-Off Form'!B205)))","v":0},"",null,null,null,null,{"$f":"IF(A198=0,\"\",\"BBY_PURCHASING\")","v":""},{"$f":"IF(A198=0,\"\",'VPP Hand-Off Form'!#REF!)","v":""},null,"",{"$f":"IF(A198=0,\"\",'VPP Hand-Off Form'!#REF!)","v":""},"",null,null,null,"H","",{"$f":"IF(A198=0,\"\",'VPP Hand-Off Form'!$B$3)","v":""},null,null,{"$f":"IF(A198=0,\"\",'VPP Hand-Off Form'!$B$4)","v":""},{"$f":"IF(A198=0,\"\",'VPP Hand-Off Form'!#REF!)","v":""},{"$f":"IF(A198=0,\"\",'VPP Hand-Off Form'!#REF!)","v":""},"","",null,"","",{"$f":"IF(A198=0,\"\",IF(ISBLANK('Output (BBY)'!A198),\"\",\"Created\"))","v":""},null,null,null,{"$f":"IF(A198=0,\"\",IF(ISBLANK('VPP Hand-Off Form'!R205),\"\",\"99\"))","v":""},null,null,null,"","","","",{"$f":"IF(ISBLANK('VPP Hand-Off Form'!E205),\"\",'VPP Hand-Off Form'!E205)","v":""}]
[{"$f":"IF('VPP Hand-Off Form'!D206=\"Obsolete\",0,IF('VPP Hand-Off Form'!D206=\"Keep\",0,IF('VPP Hand-Off Form'!D206=\"Obsolete-Partial\",0,'VPP Hand-Off Form'!A206)))","v":0},{"$f":"IF('VPP Hand-Off Form'!D206=\"Obsolete\",\"0\",IF('VPP Hand-Off Form'!D206=\"Keep\",\"0\",IF('VPP Hand-Off Form'!D206=\"Obsolete-Partial\",\"0\",'VPP Hand-Off Form'!B206)))","v":0},"",null,null,null,null,"",{"$f":"IF(A199=0,\"\",'VPP Hand-Off Form'!#REF!)","v":""},null,"",{"$f":"IF(A199=0,\"\",'VPP Hand-Off Form'!#REF!)","v":""},"",null,null,null,"H","",{"$f":"IF(A199=0,\"\",'VPP Hand-Off Form'!$B$3)","v":""},null,null,{"$f":"IF(A199=0,\"\",'VPP Hand-Off Form'!$B$4)","v":""},{"$f":"IF(A199=0,\"\",'VPP Hand-Off Form'!#REF!)","v":""},{"$f":"IF(A199=0,\"\",'VPP Hand-Off Form'!#REF!)","v":""},"","",null,"","",{"$f":"IF(A199=0,\"\",IF(ISBLANK('Output (BBY)'!A199),\"\",\"Created\"))","v":""},null,null,null,{"$f":"IF(A199=0,\"\",IF(ISBLANK('VPP Hand-Off Form'!R206),\"\",\"99\"))","v":""},null,null,null,"","","","",{"$f":"IF(ISBLANK('VPP Hand-Off Form'!E206),\"\",'VPP Hand-Off Form'!E206)","v":""}]
[{"$f":"IF('VPP Hand-Off Form'!D207=\"Obsolete\",0,IF('VPP Hand-Off Form'!D207=\"Keep\",0,IF('VPP Hand-Off Form'!D207=\"Obsolete-Partial\",0,'VPP Hand-Off Form'!A207)))","v":0},{"$f":"IF('VPP Hand-Off Form'!D207=\"Obsolete\",\"0\",IF('VPP Hand-Off Form'!D207=\"Keep\",\"0\",IF('VPP Hand-Off Form'!D207=\"Obsolete-Partial\",\"0\",'VPP Hand-Off Form'!B207)))","v":0},"",null,null,null,null,"",{"$f":"IF(A200=0,\"\",'VPP Hand-Off Form'!#REF!)","v":""},null,"",{"$f":"IF(A200=0,\"\",'VPP Hand-Off Form'!#REF!)","v":""},"",null,null,null,"H","",{"$f":"IF(A200=0,\"\",'VPP Hand-Off Form'!$B$3)","v":""},null,null,{"$f":"IF(A200=0,\"\",'VPP Hand-Off Form'!$B$4)","v":""},{"$f":"IF(A200=0,\"\",'VPP Hand-Off Form'!#REF!)","v":""},{"$f":"IF(A200=0,\"\",'VPP Hand-Off Form'!#REF!)","v":""},"","",null,"","",{"$f":"IF(A200=0,\"\",IF(ISBLANK('Output (BBY)'!A200),\"\",\"Created\"))","v":""},null,null,null,{"$f":"IF(A200=0,\"\",IF(ISBLANK('VPP Hand-Off Form'!R207),\"\",\"99\"))","v":""},null,null,null,"","","","",{"$f":"IF(ISBLANK('VPP Hand-Off Form'!E207),\"\",'VPP Hand-Off Form'!E207)","v":""}]
[{"$f":"IF('VPP Hand-Off Form'!D208=\"Obsolete\",0,IF('VPP Hand-Off Form'!D208=\"Keep\",0,IF('VPP Hand-Off Form'!D208=\"Obsolete-Partial\",0,'VPP Hand-Off Form'!A208)))","v":0},{"$f":"IF('VPP Hand-Off Form'!D208=\"Obsolete\",\"0\",IF('VPP Hand-Off Form'!D208=\"Keep\",\"0\",IF('VPP Hand-Off Form'!D208=\"Obsolete-Partial\",\"0\",'VPP Hand-Off Form'!B208)))","v":0},"",null,null,null,null,"",{"$f":"IF(A201=0,\"\",'VPP Hand-Off Form'!#REF!)","v":""},null,"",{"$f":"IF(A201=0,\"\",'VPP Hand-Off Form'!#REF!)","v":""},"",null,null,null,"H","",{"$f":"IF(A201=0,\"\",'VPP Hand-Off Form'!$B$3)","v":""},null,null,{"$f":"IF(A201=0,\"\",'VPP Hand-Off Form'!$B$4)","v":""},{"$f":"IF(A201=0,\"\",'VPP Hand-Off Form'!#REF!)","v":""},{"$f":"IF(A201=0,\"\",'VPP Hand-Off Form'!#REF!)","v":""},"","",null,"","",{"$f":"IF(A201=0,\"\",IF(ISBLANK('Output (BBY)'!A201),\"\",\"Created\"))","v":""},null,null,null,{"$f":"IF(A201=0,\"\",IF(ISBLANK('VPP Hand-Off Form'!R208),\"\",\"99\"))","v":""},null,null,null,"","","","",{"$f":"IF(ISBLANK('VPP Hand-Off Form'!E208),\"\",'VPP Hand-Off Form'!E208)","v":""}]
[{"$f":"IF('VPP Hand-Off Form'!D209=\"Obsolete\",0,IF('VPP Hand-Off Form'!D209=\"Keep\",0,IF('VPP Hand-Off Form'!D209=\"Obsolete-Partial\",0,'VPP Hand-Off Form'!A209)))","v":0},{"$f":"IF('VPP Hand-Off Form'!D209=\"Obsolete\",\"0\",IF('VPP Hand-Off Form'!D209=\"Keep\",\"0\",IF('VPP Hand-Off Form'!D209=\"Obsolete-Partial\",\"0\",'VPP Hand-Off Form'!B209)))","v":0},"",null,null,null,null,"",{"$f":"IF(A202=0,\"\",'VPP Hand-Off Form'!#REF!)","v":""},null,"",{"$f":"IF(A202=0,\"\",'VPP Hand-Off Form'!#REF!)","v":""},"",null,null,null,"H","",{"$f":"IF(A202=0,\"\",'VPP Hand-Off Form'!$B$3)","v":""},null,null,{"$f":"IF(A202=0,\"\",'VPP Hand-Off Form'!$B$4)","v":""},{"$f":"IF(A202=0,\"\",'VPP Hand-Off Form'!#REF!)","v":""},{"$f":"IF(A202=0,\"\",'VPP Hand-Off Form'!#REF!)","v":""},"","",null,"","",{"$f":"IF(A202=0,\"\",IF(ISBLANK('Output (BBY)'!A202),\"\",\"Created\"))","v":""},null,null,null,{"$f":"IF(A202=0,\"\",IF(ISBLANK('VPP Hand-Off Form'!R209),\"\",\"99\"))","v":""},null,null,null,"","","","",{"$f":"IF(ISBLANK('VPP Hand-Off Form'!E209),\"\",'VPP Hand-Off Form'!E209)","v":""}]

{"sheet":"LOV","index":5,"n_rows":338,"n_cols":74,"rows_kept":338,"cut":false,"hidden":true,"merged":[[0,17,0,19],[0,1,0,2],[0,3,0,4],[0,5,0,7],[0,8,0,9],[0,10,0,15]]}
[null,"XX_DEPARTMENT_LOV",null,"XX_WARRANTY_LOV",null,"XX_CAPITALIZATION_LOV",null,null,"XX_ABC_CLASS",null,"XX_PRODUCT_GROUP_ID",null,null,null,null,null,null,"Orgs",null,null,"Item Status","Hazard","Part Type","Capitalize",null,"Item Status",null,null,null,null,null,null,null,"BAG",null,"Description","Sourcing Team","Store Group","Project ID","PO Type","Job Status","Supplier Name",null,null,null,null,"Job Type",null,"Requestor","ID",null,"Update",null,null,null,"Concatenate","Category",null,"Supplier Name","Supplier Number",null,"Lead Time",null,"Item Types",null,null,"Item or Item Org Part?"]
[null,"Value","Description","Value","Description","Value","Description","DFF","Value","Description","Value","Description","Inv Acct","Exp Acct","MK Acct","Movable","Project E-Type","Name","Organization Code","Use ","Active",null,"Electronic",null,"BBY Electronic Item","Created",null,null,"Temp part","100,S01, T01",null,null,null,"BOTTLE",null,"Appliances","Buying Services","PR Stores",500,"Direct Ship","Ready for PO","3C STORE FIXTURES INC",500,"Replenishment","to","Stores","CER Project",null,"Brian Mapp","A338099",1007,"New",null,null,null,"Appliances10100",98000101,null,"3C STORE FIXTURES INC",550242880,null,"BBY-Graphics =28 Days",null,"BBY Electronics","70 Days",null,"Item",null,"Electronic","70 Days","BBY Electronic Item",null,null,{"$error":"#REF!"}]
[null,"Appliances","Appliances","Warranty 1 year","Warranty 1 year","Capitalize","Capitalize",400,"A","Class A - 1.5",10100,"Supplies",13800,73101,86000,"Yes","77101-Supplies","BBY - US Inventory Org",100,"Master Org","Created",99,"Fixture","Capitalize","BBY Fixture Item",null,null,null,"Perm graphic","100, s01, t01",null,null,null,"BOX",null,"BBFB","GNFR Plng","US Stores",1001,"Ship to Consolidator","Open","AAMP OF AMERICA INC",1001,"DI",null,null,"Non-CER Project",null,"Anthony Israel","A845042",1007,"Update","Fixtures","BBY Fixture Item",null,"Appliances16001",98000201,null,"AAMP OF AMERICA INC",543620000,null,"BBY-Fixtures =56 Days",null,"BBY Fixture","56 Days",null,"Item Org",null,"Fixture","56 Days","BBY Fixture Item",null,null,{"$error":"#REF!"}]
[null,"BBFB","BBFB","Warranty 1 year S/N Required","Warranty 1 year S/N Required","Expense","Expense",8.1999999999999993,"B","Class B - 2.0",16001,"Fixtures Non-merchandisable",14803,73160,86160,"No","77160-Fixtures Warehouse","Best Buy Stores","S01","No Inventory","Expired",null,"Graphics - Temp",null,"BBY Graphic Item",null,null,null,"Fixture Electronic","100,S01,T01","Direct to store only (unless riding with the merch kit then add TPL Merch)",null,null,"BUNDLE",null,"BBY Express","Sciquest","US and PR Stores",1002,null,null,"ACME PRESS INC DBA CALITHO",1002,"Computing",null,null,null,null,"Christopher Tri","A1183505",1004,"Obsolete","Electronics","BBY Electronic Item",null,"Appliances16002",98000301,null,"ACME PRESS INC DBA CALITHO",550283131,null,"BBY-Supplies =49 Days",null,"BBY Graphics","28 Days",null,null,null,"Supplies","49 Days","BBY Supplies Item",null,null,{"$error":"#REF!"}]
[null,"BBY Express","BBY Express","Warranty 2 year","Warranty 2 year",null,null,null,"C","Class C - 3.0",16002,"Fixtures Merchandisable",14803,73160,86160,"Yes","77160-Fixtures Customer Facing","TPL MERCH","T01","No Inventory","Expires when gone",null,"Graphics - Perm",null,"BBY Supplies Item",null,null,null,"VPP","100,S01, T01",null,null,null,"CAN",null,"BBY Mobile","Sourcing",null,1004,null,null,"ACME PRESS INC DBA CALITHO",1004,"ME",null,null,null,null,"Todd Kollodge","A1184445",5047,null,"Supplies",null,null,"Appliances16003",98000401,null,"ACME PRESS INC DBA CALITHO",550283131,null,"BBY-Electronics =70 Days",null,"BBY Supplies","49 Days",null,null,null,"BBY Graphic Item","28 Days",null,null,null,{"$error":"#REF!"}]
[null,"BBY Mobile","BBY Mobile","Warranty 2 year S/N Required","Warranty 2 year S/N Required",null,null,null,"D","Class D - 4.0",16003,"Electronics",14803,73160,86160,"Yes","77160-Electronics","TPL R&M","T02","Inventory","GNFR Rev.",null,"Supplies",null,"BBY VPP - Electronic Item",null,null,null,null,null,null,null,null,"CARTON",null,"BBY Mobile SAS",null,null,1005,null,null,"ACOUSTICAL SURFACES INC",1005,"Laptops",null,null,null,null,"Allison Hendel","A1209665",1004,null,null,null,null,"Appliances18000",98000501,null,"ACOUSTICAL SURFACES INC",550187469,null,"VPP All types =21 Days",null,"VPP Electronics","21 Days",null,null,null,"BBY VPP - Electronic Item","21 Days",null,null,null,"49 Days"]
[null,"BBY Mobile SAS","BBY Mobile SAS","Warranty 3 year","Warranty 3 year",null,null,null,"E","Class E - 6.0",18000,"Graphics",13800,73180,86180,"Yes","77180-Graphics","TPL Projects","T03","Inventory","Proc. Ops.",null,"VPP - Electronic",null,"BBY VPP - Fixture Item",null,null,null,null,null,null,null,null,"CONTAINER",null,"Cellular",null,null,1006,null,null,"ACRYLIC DESIGN ASSOCIATES",1006,"HT",null,null,null,null,"Jon Knez","A297903",5047,null,null,null,null,"BBFB16001",98000102,null,"ACRYLIC DESIGN ASSOCIATES",550015388,null,null,null,"VPP Fixture","21 Days",null,null,null,"BBY VPP - Fixture Item","21 Days",null,null,null,{"$error":"#N/A"}]
[null,"Cellular","Cellular","Warranty 3 year S/N Required","Warranty 3 year S/N Required",null,null,null,"F","Class F - 9.0",null,null,null,null,null,null,null,"ACRYLIC DESIGN ASSOCIATES","V01","Inventory","Graphics",null,"VPP - Fixture",null,"BBY VPP - Graphic Item",null,null,null,"Best Buy Stores","S01","All parts assigned",null,null,"CRATE",null,"Check Out",null,null,1007,null,null,"ACTIONLINK LLC",1007,"Majors",null,null,null,null,"Elizabeth Kraetsch","A581895",1007,null,null,null,null,"BBFB16002",98000202,null,"ACTIONLINK LLC",550058587,null,null,null,"VPP Graphics","21 Days",null,null,null,"BBY VPP - Graphic Item","21 Days",null,null,null,{"$error":"#N/A"}]
[null,"Check Out","Check Out","Warranty 5 year","Warranty 5 year",null,null,null,"H","Class H - 2.0 (fixed)",null,null,null,null,null,null,null,"AGI INSTORE","V02","Inventory","Created",null,"VPP - Graphics - Temp",null,"BBY VPP - Supplies Item",null,null,null,"TPL MERCH","T01","All parts need this to ride with MK (leaning to all parts).  If riding with the MK need this assigned.","Group O Merch kit process",null,"USD",null,"Commodities",null,null,1009,null,null,"ADDRESSOGRAPH BARTIZAN LLC",1009,"Tablet","Accy",null,null,null,"Megan Allen","A928670",5047,null,null,null,null,"BBFB16003",98000302,null,"ADDRESSOGRAPH BARTIZAN LLC",550045872,null,null,null,"VPP Supplies","21 Days",null,null,null,"BBY VPP - Supplies Item","21 Days",null,null,null,{"$error":"#N/A"}]
[null,"Commodities","Commodities","Warranty 5 year S/N Required","Warranty 5 year S/N Required",null,null,null,"V","Class V",null,null,null,null,null,null,null,"AMD Industries, Inc.","V03","Inventory",null,null,"VPP - Graphics - Perm",null,null,null,null,null,"TPL R&M","T02","This acts as 106912 sort of (would only be used if we are pulling inventory into Group O)",null,null,"DRUM",null,"Computer Software",null,null,1010,null,null,"ADT SENSORMATIC ELECTRONICS",1010,"Gaming",null,null,null,null,"Jessika Ray","A262081",1007,null,null,null,null,"BBFB16003",98000402,null,"ADT SENSORMATIC ELECTRONICS",611630006,null,null,null,null,null,null,null,null,null,null,null,null,null,{"$error":"#N/A"}]
[null,"Computer Software","Computer Software","Warranty 90 day","Warranty 90 day",null,null,null,null,null,null,null,null,null,null,null,null,"AUDIO AUTHORITY","V04","Inventory",null,null,"VPP - Supplies",null,null,null,null,null,"TPL Projects","T03","Only for projects being stocked at Group O",null,null,"Gallon",null,"Computers",null,null,1011,null,null,"ADVANCE GRAPHIC SYSTEMS INC",1011,"Music",null,null,null,null,"Keaton Nostdahl","A1189669",1004,null,null,null,null,"BBFB18000",98000502,null,"ADVANCE GRAPHIC SYSTEMS INC",550013182,null,null,null,null,null,null,null,null,null,null,null,null,null,{"$error":"#N/A"}]
[null,"Computers","Computers","Warranty Lifetime","Warranty Lifetime",null,null,null,null,null,null,null,null,null,null,null,null,"BAW PLASTICS INC","V05","Inventory",null,null,null,null,null,null,null,null,"Vendor Specific","V0#","If we are putting stock at a vendor use these.",null,null,"Liter",null,"Connected Car",null,null,1012,null,null,"ADVANCE GRAPHIC SYSTEMS INC",1012,"Movies",null,null,null,null,null,null,null,null,null,null,null,"BBY Express10100",98000103,null,"ADVANCE GRAPHIC SYSTEMS INC",550013182,null,null,null,null,null,null,null,null,null,null,null,null,null,{"$error":"#N/A"}]
[null,"Connected Car","Connected Car","Warranty Lifetime S/N Required","Warranty Lifetime S/N Required",null,null,null,null,null,null,null,null,null,null,null,null,"CLASSIC ACRYLICS INC","V06","Inventory",null,null,null,null,null,null,null,null,null,null,null,null,null,"Ounce",null,"Connected Home",null,null,1013,null,null,"ADVANCED DUPLICATION SERVICES",1013,"MP3","Hardware",null,null,null,null,null,null,null,null,null,null,"BBY Express16001",98000203,null,"ADVANCED DUPLICATION SERVICES",475670008,null,null,null,null,null,null,null,null,null,null,null,null,null,{"$error":"#N/A"}]
[null,"Connected Home","Connected Home",null,null,null,null,null,null,null,null,null,null,null,null,null,null,"DARKO INC","V07","Inventory",null,null,null,null,null,null,null,null,"Org 100 is master status and do not need to assign to status when adding orgs, just inventory.  Brian check to see if we can assign all other orgs directly to Active.  Org 100 is the master and has controls",null,null,null,null,"Pint",null,"Customer Service",null,null,1014,null,null,"ADVANCED DUPLICATION SERVICES",1014,"MI",null,null,null,null,null,null,null,null,null,null,null,"BBY Express16002",98000303,null,"ADVANCED DUPLICATION SERVICES",475670008,null,null,null,null,null,null,null,null,null,null,null,null,null,{"$error":"#N/A"}]
[null,"Customer Service","Customer Service",null,null,null,null,null,null,null,null,null,null,null,null,null,null,"EXCEL PLASTICS LLC","V08","Inventory",null,null,null,null,null,null,null,null,"When we want to change the status of an entire part I need to bring in another template and just change the status to org 100.",null,null,null,null,"Quart",null,"Digital Imaging",null,null,1015,null,null,"ALIGNMENT MARKETING",1015,"BBYM","SWAS",null,null,null,null,null,null,null,null,null,null,"BBY Express16003",98000403,null,"ALIGNMENT MARKETING",550181385,null,null,null,null,null,null,null,null,null,null,null,null,null,{"$error":"#N/A"}]
[null,"Digital Imaging","Digital Imaging",null,null,null,null,null,null,null,null,null,null,null,null,null,null,"FASTENERS FOR RETAIL","V09","Inventory",null,null,null,null,null,null,null,null,null,null,null,null,null,"FOOT",null,"Electronics",null,null,1017,null,null,"ALPHA SECURITY PRODUCTS A DIV",1017,"BBYM","SAS","Accy",null,null,null,null,null,null,null,null,null,"BBY Express18000",98000503,null,"ALPHA SECURITY PRODUCTS A DIV",387110001,null,null,null,null,null,null,null,null,null,null,null,null,null,{"$error":"#N/A"}]
[null,"Electronics","Electronics",null,null,null,null,null,null,null,null,null,null,null,null,null,null,"LOZIER STORE FIXTURES LLC","V10","Inventory",null,null,null,null,"BBY Electronic Item",null,null,null,null,null,null,null,null,"Inch",null,"Employee Hub",null,null,1019,null,null,"AMBASSADOR PRESS INC",1019,"General","Merch/Front","Lanes",null,null,null,null,null,null,null,null,null,"BBY Mobile10100",98000104,null,"AMBASSADOR PRESS INC",550056927,null,null,null,null,null,null,null,null,null,null,null,null,null,{"$error":"#N/A"}]
[null,"Employee Hub","Employee Hub",null,null,null,null,null,null,null,null,null,null,null,null,null,null,"LOZIER STORE FIXTURES LLC FORT WORTH","V11","Inventory",null,null,null,null,"BBY Fixture Item",null,null,null,null,null,null,null,null,"Linear Foot",null,"Fixtures",null,null,1020,null,null,"AMD INDUSTRIES INC",1020,"New","Business",null,null,null,null,null,null,null,null,null,null,"BBY Mobile16001",98000204,null,"AMD INDUSTRIES INC",550187080,null,null,null,null,null,null,null,null,null,null,null,null,null,{"$error":"#N/A"}]
[null,"Fixtures","Fixtures",null,null,null,null,null,null,null,null,null,null,null,null,null,null,"MADIX INC","V12","Inventory",null,null,null,null,"BBY Supplies Item",null,null,null,null,null,null,null,null,"Meter",null,"Furniture",null,null,1021,null,null,"AMPAC",1021,"Anomoly","Store","Signage",null,null,null,null,null,null,null,null,null,"BBY Mobile16002",98000304,null,"AMPAC",550153939,null,null,null,null,null,null,null,null,null,null,null,null,null,{"$error":"#N/A"}]
[null,"Furniture","Furniture",null,null,null,null,null,null,null,null,null,null,null,null,null,null,"MILLER ZELL INC","V13","Inventory",null,null,null,null,null,null,null,null,null,null,null,null,null,"Yard",null,"Geek Squad POP",null,null,1022,null,null,"ARCHWAY SCM LLC",1022,"Holiday","Push","Supplies",null,null,null,null,null,null,null,null,null,"BBY Mobile16003",98000404,null,"ARCHWAY SCM LLC",550204011,null,null,null,null,null,null,null,null,null,null,null,null,null,{"$error":"#N/A"}]
[null,"Geek Squad POP","Geek Squad POP",null,null,null,null,null,null,null,null,null,null,null,null,null,null,"NORTHERN METAL PRODUCTS","V14","Inventory",null,null,null,null,null,null,null,null,null,null,null,null,null,"CASE",null,"Geek Squad Precinct (InStore)",null,null,1023,null,null,"ASSEMBLED PRODUCTS CORPORATION",1023,"Geek","Sq",null,null,null,null,null,null,null,null,null,null,"BBY Mobile18000",98000504,null,"ASSEMBLED PRODUCTS CORPORATION",381490003,null,null,null,null,null,null,null,null,null,null,null,null,null,{"$error":"#N/A"}]
[null,"Geek Squad Precinct (InStore)","Geek Squad Precinct (InStore)",null,null,null,null,null,null,null,null,null,null,null,null,null,null,"PHOENIX FIXTURES INC","V15","Inventory",null,null,null,null,null,null,null,null,null,null,null,null,null,"PAD - PAPER",null,"Geek Squad Stand Alone",null,null,1024,null,null,"AT&T MOBILITY NATIONAL ACCOUNTS",1024,"My","BBY","Reward","Zone",null,null,null,null,null,null,null,null,"BBY Mobile SAS10100",98000105,null,"AT&T MOBILITY NATIONAL ACCOUNTS",550069045,null,null,null,null,null,null,null,null,null,null,null,null,null,{"$error":"#REF!"}]
[null,"Geek Squad Stand Alone","Geek Squad Stand Alone",null,null,null,null,null,null,null,null,null,null,null,null,null,null,"SOUTHERN IMPERIAL INC","V16","Inventory",null,null,null,null,null,null,null,null,null,null,null,null,null,"PALLET",null,"General",null,null,1025,null,null,"AT&T MOBILITY NATIONAL ACCOUNTS",1025,"BBFB",null,null,null,null,null,null,null,null,null,null,null,"BBY Mobile SAS16001",98000205,null,"AT&T MOBILITY NATIONAL ACCOUNTS",550069045,null,null,null,null,null,null,null,null,null,null,null,null,null,{"$error":"#N/A"}]
[null,"General","General",null,null,null,null,null,null,null,null,null,null,null,null,null,null,"STREATER INC","V17","Inventory",null,null,null,null,null,null,null,null,null,null,null,null,null,"REAM",null,"Health and Fitness",null,null,1026,null,null,"ATLONA INC",1026,"Marketing","Campaigns",null,null,null,null,null,null,null,null,null,null,"BBY Mobile SAS16002",98000305,null,"ATLONA INC",550218589,null,null,null,null,null,null,null,null,null,null,null,null,null,{"$error":"#N/A"}]
[null,"Health and Fitness","Health and Fitness",null,null,null,null,null,null,null,null,null,null,null,null,null,null,"STYLMARK","V18","No Inventory",null,null,null,null,null,null,null,null,null,null,null,null,null,"Bag",null,"Home Office",null,null,1027,null,null,"AUDIO AUTHORITY",1027,"PAC","Sales",null,null,null,null,null,null,null,null,null,null,"BBY Mobile SAS16003",98000405,null,"AUDIO AUTHORITY","000820002",null,null,null,null,null,null,null,null,null,null,null,null,null,{"$error":"#N/A"}]
[null,"Home Office","Home Office",null,null,null,null,null,null,null,null,null,null,null,null,null,null,"TRIAD MANUFACTURING INC","V19","Inventory",null,null,null,null,null,null,null,null,null,null,null,null,null,"Bag of 10",null,"Home Theater",null,null,1029,null,null,"AUDIO QUEST",1029,"Prototypes","Channel","Design",null,null,null,null,null,null,null,null,null,"BBY Mobile SAS18000",98000505,null,"AUDIO QUEST",550038957,null,null,null,null,null,null,null,null,null,null,null,null,null,{"$error":"#N/A"}]
[null,"Home Theater","Home Theater",null,null,null,null,null,null,null,null,null,null,null,null,null,null,"WESTROCK CONVERTING","V20","Inventory",null,null,null,null,null,null,null,null,null,null,null,null,null,"Bag of 100",null,"LP/Risk Management",null,null,1039,null,null,"AUDIOVOX ELECTRONICS CORP",1039,"MDC",null,null,null,null,null,null,null,null,null,null,null,"Cellular10100",98000106,null,"AUDIOVOX ELECTRONICS CORP",550044671,null,null,null,null,null,null,null,null,null,null,null,null,null,{"$error":"#N/A"}]
[null,"LP/Risk Management","LP/Risk Management",null,null,null,null,null,null,null,null,null,null,null,null,null,null,null,null,null,null,null,null,null,null,null,null,null,null,null,null,null,null,"Bag of 1000",null,"MHT/MAG",null,null,1045,null,null,"AUTEL ROBOTICS USA",1045,"BBY","Express",null,null,null,null,null,null,null,null,null,null,"Cellular16001",98000206,null,"AUTEL ROBOTICS USA",550290291,null,null,null,null,null,null,null,null,null,null,null,null,null,{"$error":"#N/A"}]
[null,"Magnolia (MAV)","Magnolia (MAV)",null,null,null,null,null,null,null,null,null,null,null,null,null,null,null,null,null,null,null,null,null,null,null,null,null,null,null,null,null,null,"Bag of 12",null,"MP3",null,null,1049,null,null,"BAGMASTERS",1049,"Joint","Mktg","Fund","Citi","Bank",null,null,null,null,null,null,null,"Cellular16002",98000306,null,"BAGMASTERS",550021075,null,null,null,null,null,null,null,null,null,null,null,null,null,{"$error":"#N/A"}]
[null,"MHT/MAG","MHT/MAG",null,null,null,null,null,null,null,null,null,null,null,null,null,null,null,null,null,null,null,null,null,null,null,null,null,null,null,null,null,null,"Bag of 150",null,"Magnolia (MAV)",null,null,3001,null,null,"BAGMASTERS",3001,"Back","to","College","Marketing","Campaign",null,null,null,null,null,null,null,"Cellular16003",98000406,null,"BAGMASTERS",550021075,null,null,null,null,null,null,null,null,null,null,null,null,null,{"$error":"#N/A"}]
[null,"Movies","Movies",null,null,null,null,null,null,null,null,null,null,null,null,null,null,null,null,null,null,null,null,null,null,null,null,null,null,null,null,null,null,"Bag of 2",null,"Movies",null,null,3003,null,null,"BALTIC LATVIAN UNIVERSAL ELECTRONICS",3003,"Marketing","Holiday","Campaign",null,null,null,null,null,null,null,null,null,"Cellular18000",98000506,null,"BALTIC LATVIAN UNIVERSAL ELECTRONICS",550282118,null,null,null,null,null,null,null,null,null,null,null,null,null,{"$error":"#N/A"}]
[null,"MP3","MP3",null,null,null,null,null,null,null,null,null,null,null,null,null,null,null,null,null,null,null,null,null,null,null,null,null,null,null,null,null,null,"Bag of 20",null,"Music",null,null,3100,null,null,"BALTIC LATVIAN UNIVERSAL ELECTRONICS",3100,"Environmental","Services",null,null,null,null,null,null,null,null,null,null,"Check Out10100",98000107,null,"BALTIC LATVIAN UNIVERSAL ELECTRONICS",550282118,null,null,null,null,null,null,null,null,null,null,null,null,null,{"$error":"#N/A"}]
[null,"Music","Music",null,null,null,null,null,null,null,null,null,null,null,null,null,null,null,null,null,null,null,null,null,null,null,null,null,null,null,null,null,null,"Bag of 25",null,"Musical Instruments",null,null,3103,null,null,"BANK OF AMERICA MERCHANT SERVICES",3103,"Community","Stores",null,null,null,null,null,null,null,null,null,null,"Check Out16001",98000207,null,"BANK OF AMERICA MERCHANT SERVICES",550239239,null,null,null,null,null,null,null,null,null,null,null,null,null,{"$error":"#N/A"}]
[null,"Musical Instruments","Musical Instruments",null,null,null,null,null,null,null,null,null,null,null,null,null,null,null,null,null,null,null,null,null,null,null,null,null,null,null,null,null,null,"Bag of 250",null,"Non-Retail",null,null,3109,null,null,"BANN BUSINESS SOLUTIONS",3109,"Computer","Accy",null,null,null,null,null,null,null,null,null,null,"Check Out16002",98000307,null,"BANN BUSINESS SOLUTIONS",550004030,null,null,null,null,null,null,null,null,null,null,null,null,null,{"$error":"#N/A"}]
[null,"Non-Retail","Non-Retail",null,null,null,null,null,null,null,null,null,null,null,null,null,null,null,null,null,null,null,null,null,null,null,null,null,null,null,null,null,null,"Bag of 3",null,"PCE",null,null,3110,null,null,"BAW PLASTICS INC",3110,"H&F",null,null,null,null,null,null,null,null,null,null,null,"Check Out16003",98000407,null,"BAW PLASTICS INC",550000000,null,null,null,null,null,null,null,null,null,null,null,null,null,{"$error":"#N/A"}]
[null,"Pac Sales","Pac Sales",null,null,null,null,null,null,null,null,null,null,null,null,null,null,null,null,null,null,null,null,null,null,null,null,null,null,null,null,null,null,"Bag of 36",null,"Pac Sales",null,null,5000,null,null,"BDS MARKETING LLC",5000,"Printers",null,null,null,null,null,null,null,null,null,null,null,"Check Out18000",98000507,null,"BDS MARKETING LLC",550016906,null,null,null,null,null,null,null,null,null,null,null,null,null,{"$error":"#N/A"}]
[null,"PCE","PCE",null,null,null,null,null,null,null,null,null,null,null,null,null,null,null,null,null,null,null,null,null,null,null,null,null,null,null,null,null,null,"Bag of 4",null,"Phones",null,null,5006,null,null,"BDS MARKETING LLC",5006,"Connected","Home",null,null,null,null,null,null,null,null,null,null,"Commodities10100",98000108,null,"BDS MARKETING LLC",550016906,null,null,null,null,null,null,null,null,null,null,null,null,null,{"$error":"#N/A"}]
[null,"Phones","Phones",null,null,null,null,null,null,null,null,null,null,null,null,null,null,null,null,null,null,null,null,null,null,null,null,null,null,null,null,null,null,"Bag of 5",null,"Portable Audio",null,null,5014,null,null,"BECKER DESIGNED INC VIRGINIA",5014,"MP3","Accy",null,null,null,null,null,null,null,null,null,null,"Commodities16001",98000208,null,"BECKER DESIGNED INC VIRGINIA",550181169,null,null,null,null,null,null,null,null,null,null,null,null,null,{"$error":"#N/A"}]
[null,"Portable Audio","Portable Audio",null,null,null,null,null,null,null,null,null,null,null,null,null,null,null,null,null,null,null,null,null,null,null,null,null,null,null,null,null,null,"Bag of 50",null,"Racetrack",null,null,5015,null,null,"BERNARD GROUP INC",5015,"MP3","Headphones",null,null,null,null,null,null,null,null,null,null,"Commodities16002",98000308,null,"BERNARD GROUP INC",550196309,null,null,null,null,null,null,null,null,null,null,null,null,null,{"$error":"#N/A"}]
[null,"Racetrack","Racetrack",null,null,null,null,null,null,null,null,null,null,null,null,null,null,null,null,null,null,null,null,null,null,null,null,null,null,null,null,null,null,"Bag of 500",null,"Restrooms",null,null,5016,null,null,"BLENDTEC",5016,"MP3","Speakers",null,null,null,null,null,null,null,null,null,null,"Commodities16003",98000408,null,"BLENDTEC",550282167,null,null,null,null,null,null,null,null,null,null,null,null,null,{"$error":"#N/A"}]
[null,"Restrooms","Restrooms",null,null,null,null,null,null,null,null,null,null,null,null,null,null,null,null,null,null,null,null,null,null,null,null,null,null,null,null,null,null,"Bag of 6",null,"Sales Development",null,null,5017,null,null,"BLENDTEC",5017,"BBYM","SAS","Hardware",null,null,null,null,null,null,null,null,null,"Commodities18000",98000508,null,"BLENDTEC",550282167,null,null,null,null,null,null,null,null,null,null,null,null,null,{"$error":"#N/A"}]
[null,"Sales Development","Sales Development",null,null,null,null,null,null,null,null,null,null,null,null,null,null,null,null,null,null,null,null,null,null,null,null,null,null,null,null,null,null,"Bag of 675",null,"Services - Customer R&D Team",null,null,5047,null,null,"BLONDER TONGUE LABORATORIES INC",5047,"Smalls",null,null,null,null,null,null,null,null,null,null,null,"Computer Software10100",98000109,null,"BLONDER TONGUE LABORATORIES INC",550203274,null,null,null,null,null,null,null,null,null,null,null,null,null,{"$error":"#N/A"}]
[null,"Services - Customer R&D Team","Services - Customer R&D Team",null,null,null,null,null,null,null,null,null,null,null,null,null,null,null,null,null,null,null,null,null,null,null,null,null,null,null,null,null,null,"Bag of 8",null,"Smart Watches",null,null,5100,null,null,"BLONDER TONGUE LABORATORIES INC",5100,"Tablets","and","eReaders",null,null,null,null,null,null,null,null,null,"Computer Software16001",98000209,null,"BLONDER TONGUE LABORATORIES INC",550203274,null,null,null,null,null,null,null,null,null,null,null,null,null,{"$error":"#N/A"}]
[null,"Smart Watches","Smart Watches",null,null,null,null,null,null,null,null,null,null,null,null,null,null,null,null,null,null,null,null,null,null,null,null,null,null,null,null,null,null,"Bag of 80",null,"Tablets/eReaders",null,null,5115,null,null,"BLUEAIR INCORPORATED",5115,"BBYM","SWAS","no","contract",null,null,null,null,null,null,null,null,"Computer Software16002",98000309,null,"BLUEAIR INCORPORATED",550276877,null,null,null,null,null,null,null,null,null,null,null,null,null,{"$error":"#N/A"}]
[null,"Tablets/eReaders","Tablets/eReaders",null,null,null,null,null,null,null,null,null,null,null,null,null,null,null,null,null,null,null,null,null,null,null,null,null,null,null,null,null,null,"Bin",null,"Vestibule",null,null,5215,null,null,"BLUEAIR INCORPORATED",5215,"BBYM","SWAS","accy",null,null,null,null,null,null,null,null,null,"Computer Software16003",98000409,null,"BLUEAIR INCORPORATED",550276877,null,null,null,null,null,null,null,null,null,null,null,null,null,{"$error":"#N/A"}]
[null,"Vestibule","Vestibule",null,null,null,null,null,null,null,null,null,null,null,null,null,null,null,null,null,null,null,null,null,null,null,null,null,null,null,null,null,null,"Box",null,"Video Games",null,null,5300,null,null,"BOLGER VISION BEYOND PRINT",5300,"Smartwatches",null,null,null,null,null,null,null,null,null,null,null,"Computer Software18000",98000509,null,"BOLGER VISION BEYOND PRINT",550276935,null,null,null,null,null,null,null,null,null,null,null,null,null,{"$error":"#N/A"}]
[null,"Video Games","Video Games",null,null,null,null,null,null,null,null,null,null,null,null,null,null,null,null,null,null,null,null,null,null,null,null,null,null,null,null,null,null,"Box of 10",null,"Warehouse",null,null,5500,null,null,"BOWERS AND WILKINS",5500,"Magnolia","SAS",null,null,null,null,null,null,null,null,null,null,"Computers10100",98000110,null,"BOWERS AND WILKINS",550207677,null,null,null,null,null,null,null,null,null,null,null,null,null,{"$error":"#N/A"}]
[null,"Warehouse","Warehouse",null,null,null,null,null,null,null,null,null,null,null,null,null,null,null,null,null,null,null,null,null,null,null,null,null,null,null,null,null,null,"Box of 100",null,null,null,null,5551,null,null,"BRACKETRON INC",5551,"FY15","Warehouse","Phone","Security","Cage",null,null,null,null,null,null,null,"Computers16001",98000210,null,"BRACKETRON INC",550065465,null,null,null,null,null,null,null,null,null,null,null,null,null,{"$error":"#N/A"}]
[null,null,null,null,null,null,null,null,null,null,null,null,null,null,null,null,null,null,null,null,null,null,null,null,null,null,null,null,null,null,null,null,null,"Box of 1000",null,null,null,null,5553,null,null,"BRACKETRON INC",5553,"Gifting",null,null,null,null,null,null,null,null,null,null,null,"Computers16002",98000310,null,"BRACKETRON INC",550065465,null,null,null,null,null,null,null,null,null,null,null,null,null,{"$error":"#N/A"}]
[null,null,null,null,null,null,null,null,null,null,null,null,null,null,null,null,null,null,null,null,null,null,null,null,null,null,null,null,null,null,null,null,null,"Box of 12",null,null,null,null,5600,null,null,"BRECKENRIDGE PAPER & PACKAGING",5600,"Perpherials",null,null,null,null,null,null,null,null,null,null,null,"Computers16003",98000410,null,"BRECKENRIDGE PAPER & PACKAGING",398830002,null,null,null,null,null,null,null,null,null,null,null,null,null,{"$error":"#N/A"}]
[null,null,null,null,null,null,null,null,null,null,null,null,null,null,null,null,null,null,null,null,null,null,null,null,null,null,null,null,null,null,null,null,null,"Box of 125",null,null,null,null,5601,null,null,"C M GLO LLC",5601,"Apple","iPod","Accy",null,null,null,null,null,null,null,null,null,"Computers18000",98000510,null,"C M GLO LLC",550174427,null,null,null,null,null,null,null,null,null,null,null,null,null,{"$error":"#N/A"}]
[null,null,null,null,null,null,null,null,null,null,null,null,null,null,null,null,null,null,null,null,null,null,null,null,null,null,null,null,null,null,null,null,null,"Box of 14",null,null,null,null,5602,null,null,"C PATHE",5602,"Window","Programs",null,null,null,null,null,null,null,null,null,null,"Connected Car10100",98000111,null,"C PATHE",550269757,null,null,null,null,null,null,null,null,null,null,null,null,null,{"$error":"#N/A"}]
[null,null,null,null,null,null,null,null,null,null,null,null,null,null,null,null,null,null,null,null,null,null,null,null,null,null,null,null,null,null,null,null,null,"Box of 15",null,null,null,null,5603,null,null,"CABLE ELECTRONICS INC",5603,"Brand","&","Plicy","Perm","Signage",null,null,null,null,null,null,null,"Connected Car16001",98000211,null,"CABLE ELECTRONICS INC",550170153,null,null,null,null,null,null,null,null,null,null,null,null,null,{"$error":"#N/A"}]
[null,null,null,null,null,null,null,null,null,null,null,null,null,null,null,null,null,null,null,null,null,null,null,null,null,null,null,null,null,null,null,null,null,"Box of 150",null,null,null,null,null,null,null,"CABLE ELECTRONICS INC",null,null,null,null,null,null,null,null,null,null,null,null,null,"Connected Car16002",98000311,null,"CABLE ELECTRONICS INC",550170153,null,null,null,null,null,null,null,null,null,null,null,null,null,{"$error":"#N/A"}]
[null,null,null,null,null,null,null,null,null,null,null,null,null,null,null,null,null,null,null,null,null,null,null,null,null,null,null,null,null,null,null,null,null,"Box of 1500",null,null,null,null,null,null,null,"CHANDLER EXHIBITS INC",null,null,null,null,null,null,null,null,null,null,null,null,null,"Connected Car16003",98000411,null,"CHANDLER EXHIBITS INC",550064638,null,null,null,null,null,null,null,null,null,null,null,null,null,{"$error":"#N/A"}]
[null,null,null,null,null,null,null,null,null,null,null,null,null,null,null,null,null,null,null,null,null,null,null,null,null,null,null,null,null,null,null,null,null,"Box of 160",null,null,null,null,null,null,null,"CHOCTAW KAUL",null,null,null,null,null,null,null,null,null,null,null,null,null,"Connected Car18000",98000511,null,"CHOCTAW KAUL",550072393,null,null,null,null,null,null,null,null,null,null,null,null,null,{"$error":"#N/A"}]
[null,null,null,null,null,null,null,null,null,null,null,null,null,null,null,null,null,null,null,null,null,null,null,null,null,null,null,null,null,null,null,null,null,"Box of 1600",null,null,null,null,null,null,null,"CLASSIC ACRYLICS INC",null,null,null,null,null,null,null,null,null,null,null,null,null,"Connected Home10100",98000112,null,"CLASSIC ACRYLICS INC",550003494,null,null,null,null,null,null,null,null,null,null,null,null,null,{"$error":"#N/A"}]
[null,null,null,null,null,null,null,null,null,null,null,null,null,null,null,null,null,null,null,null,null,null,null,null,null,null,null,null,null,null,null,null,null,"Box of 18",null,null,null,null,null,null,null,"CLEERLINE TECHNOLOGY GROUP",null,null,null,null,null,null,null,null,null,null,null,null,null,"Connected Home16001",98000212,null,"CLEERLINE TECHNOLOGY GROUP",550172254,null,null,null,null,null,null,null,null,null,null,null,null,null,{"$error":"#N/A"}]
[null,null,null,null,null,null,null,null,null,null,null,null,null,null,null,null,null,null,null,null,null,null,null,null,null,null,null,null,null,null,null,null,null,"Box of 2",null,null,null,null,null,null,null,"CLEERLINE TECHNOLOGY GROUP",null,null,null,null,null,null,null,null,null,null,null,null,null,"Connected Home16002",98000312,null,"CLEERLINE TECHNOLOGY GROUP",550172254,null,null,null,null,null,null,null,null,null,null,null,null,null,{"$error":"#N/A"}]
[null,null,null,null,null,null,null,null,null,null,null,null,null,null,null,null,null,null,null,null,null,null,null,null,null,null,null,null,null,null,null,null,null,"Box of 20",null,null,null,null,null,null,null,"CONNECTION",null,null,null,null,null,null,null,null,null,null,null,null,null,"Connected Home16003",98000412,null,"CONNECTION",550284483,null,null,null,null,null,null,null,null,null,null,null,null,null,{"$error":"#N/A"}]
[null,null,null,null,null,null,null,null,null,null,null,null,null,null,null,null,null,null,null,null,null,null,null,null,null,null,null,null,null,null,null,null,null,"Box of 200",null,null,null,null,null,null,null,"CONNECTION",null,null,null,null,null,null,null,null,null,null,null,null,null,"Connected Home18000",98000512,null,"CONNECTION",550284483,null,null,null,null,null,null,null,null,null,null,null,null,null,{"$error":"#N/A"}]
[null,null,null,null,null,null,null,null,null,null,null,null,null,null,null,null,null,null,null,null,null,null,null,null,null,null,null,null,null,null,null,null,null,"Box of 2000",null,null,null,null,null,null,null,"CORNERSTONE DISPLAY GROUP INC",null,null,null,null,null,null,null,null,null,null,null,null,null,"Customer Service10100",98000113,null,"CORNERSTONE DISPLAY GROUP INC",550234945,null,null,null,null,null,null,null,null,null,null,null,null,null,{"$error":"#N/A"}]
[null,null,null,null,null,null,null,null,null,null,null,null,null,null,null,null,null,null,null,null,null,null,null,null,null,null,null,null,null,null,null,null,null,"Box of 25",null,null,null,null,null,null,null,"Corsair",null,null,null,null,null,null,null,null,null,null,null,null,null,"Customer Service16001",98000213,null,"Corsair",550293020,null,null,null,null,null,null,null,null,null,null,null,null,null,{"$error":"#N/A"}]
[null,null,null,null,null,null,null,null,null,null,null,null,null,null,null,null,null,null,null,null,null,null,null,null,null,null,null,null,null,null,null,null,null,"Box of 250",null,null,null,null,null,null,null,"CPM US LLC",null,null,null,null,null,null,null,null,null,null,null,null,null,"Customer Service16002",98000313,null,"CPM US LLC",550054681,null,null,null,null,null,null,null,null,null,null,null,null,null,{"$error":"#N/A"}]
[null,null,null,null,null,null,null,null,null,null,null,null,null,null,null,null,null,null,null,null,null,null,null,null,null,null,null,null,null,null,null,null,null,"Box of 3",null,null,null,null,null,null,null,"CPM US LLC",null,null,null,null,null,null,null,null,null,null,null,null,null,"Customer Service16003",98000413,null,"CPM US LLC",550054681,null,null,null,null,null,null,null,null,null,null,null,null,null,{"$error":"#N/A"}]
[null,null,null,null,null,null,null,null,null,null,null,null,null,null,null,null,null,null,null,null,null,null,null,null,null,null,null,null,null,null,null,null,null,"Box of 32",null,null,null,null,null,null,null,"CRANE USA INC IL",null,null,null,null,null,null,null,null,null,null,null,null,null,"Customer Service18000",98000513,null,"CRANE USA INC IL",550164861,null,null,null,null,null,null,null,null,null,null,null,null,null,{"$error":"#N/A"}]
[null,null,null,null,null,null,null,null,null,null,null,null,null,null,null,null,null,null,null,null,null,null,null,null,null,null,null,null,null,null,null,null,null,"Box of 36",null,null,null,null,null,null,null,"CRATE & BARREL",null,null,null,null,null,null,null,null,null,null,null,null,null,"Digital Imaging10100",98000114,null,"CRATE & BARREL",550038065,null,null,null,null,null,null,null,null,null,null,null,null,null,{"$error":"#N/A"}]
[null,null,null,null,null,null,null,null,null,null,null,null,null,null,null,null,null,null,null,null,null,null,null,null,null,null,null,null,null,null,null,null,null,"Box of 4",null,null,null,null,null,null,null,"CREATIVE RESOURCES AGENCY LLC",null,null,null,null,null,null,null,null,null,null,null,null,null,"Digital Imaging16001",98000214,null,"CREATIVE RESOURCES AGENCY LLC",619040009,null,null,null,null,null,null,null,null,null,null,null,null,null,{"$error":"#N/A"}]
[null,null,null,null,null,null,null,null,null,null,null,null,null,null,null,null,null,null,null,null,null,null,null,null,null,null,null,null,null,null,null,null,null,"Box of 40",null,null,null,null,null,null,null,"CUSTOM BUSINESS FORMS",null,null,null,null,null,null,null,null,null,null,null,null,null,"Digital Imaging16002",98000314,null,"CUSTOM BUSINESS FORMS",314310004,null,null,null,null,null,null,null,null,null,null,null,null,null,{"$error":"#N/A"}]
[null,null,null,null,null,null,null,null,null,null,null,null,null,null,null,null,null,null,null,null,null,null,null,null,null,null,null,null,null,null,null,null,null,"Box of 5",null,null,null,null,null,null,null,"DARKO INC",null,null,null,null,null,null,null,null,null,null,null,null,null,"Digital Imaging16003",98000414,null,"DARKO INC",550079989,null,null,null,null,null,null,null,null,null,null,null,null,null,{"$error":"#N/A"}]
[null,null,null,null,null,null,null,null,null,null,null,null,null,null,null,null,null,null,null,null,null,null,null,null,null,null,null,null,null,null,null,null,null,"Box of 50",null,null,null,null,null,null,null,"DATA METALCRAFT INC",null,null,null,null,null,null,null,null,null,null,null,null,null,"Digital Imaging18000",98000514,null,"DATA METALCRAFT INC",550278269,null,null,null,null,null,null,null,null,null,null,null,null,null,{"$error":"#N/A"}]
[null,null,null,null,null,null,null,null,null,null,null,null,null,null,null,null,null,null,null,null,null,null,null,null,null,null,null,null,null,null,null,null,null,"Box of 500",null,null,null,null,null,null,null,"DATA METALCRAFT INC",null,null,null,null,null,null,null,null,null,null,null,null,null,"Electronics10100",98000115,null,"DATA METALCRAFT INC",550278269,null,null,null,null,null,null,null,null,null,null,null,null,null,{"$error":"#N/A"}]
[null,null,null,null,null,null,null,null,null,null,null,null,null,null,null,null,null,null,null,null,null,null,null,null,null,null,null,null,null,null,null,null,null,"Box of 5000",null,null,null,null,null,null,null,"DATA SYSTEMS COMPANY INC",null,null,null,null,null,null,null,null,null,null,null,null,null,"Electronics16001",98000215,null,"DATA SYSTEMS COMPANY INC",550153181,null,null,null,null,null,null,null,null,null,null,null,null,null,{"$error":"#N/A"}]
[null,null,null,null,null,null,null,null,null,null,null,null,null,null,null,null,null,null,null,null,null,null,null,null,null,null,null,null,null,null,null,null,null,"Box of 6",null,null,null,null,null,null,null,"DCI MARKETING INC",null,null,null,null,null,null,null,null,null,null,null,null,null,"Electronics16002",98000315,null,"DCI MARKETING INC",550204328,null,null,null,null,null,null,null,null,null,null,null,null,null,{"$error":"#N/A"}]
[null,null,null,null,null,null,null,null,null,null,null,null,null,null,null,null,null,null,null,null,null,null,null,null,null,null,null,null,null,null,null,null,null,"Box of 72",null,null,null,null,null,null,null,"DCI MARKETING INC",null,null,null,null,null,null,null,null,null,null,null,null,null,"Electronics16003",98000415,null,"DCI MARKETING INC",550204328,null,null,null,null,null,null,null,null,null,null,null,null,null,{"$error":"#N/A"}]
[null,null,null,null,null,null,null,null,null,null,null,null,null,null,null,null,null,null,null,null,null,null,null,null,null,null,null,null,null,null,null,null,null,"Box of 750",null,null,null,null,null,null,null,"DECO LABELS & TAGS LTD",null,null,null,null,null,null,null,null,null,null,null,null,null,"Electronics18000",98000515,null,"DECO LABELS & TAGS LTD",550248573,null,null,null,null,null,null,null,null,null,null,null,null,null,{"$error":"#N/A"}]
[null,null,null,null,null,null,null,null,null,null,null,null,null,null,null,null,null,null,null,null,null,null,null,null,null,null,null,null,null,null,null,null,null,"Box of 8",null,null,null,null,null,null,null,"DEFINITIVE TECHNOLOGY LLC",null,null,null,null,null,null,null,null,null,null,null,null,null,"Employee Hub10100",98000116,null,"DEFINITIVE TECHNOLOGY LLC",550283417,null,null,null,null,null,null,null,null,null,null,null,null,null,{"$error":"#N/A"}]
[null,null,null,null,null,null,null,null,null,null,null,null,null,null,null,null,null,null,null,null,null,null,null,null,null,null,null,null,null,null,null,null,null,"Box of 90",null,null,null,null,null,null,null,"DEFINITIVE TECHNOLOGY LLC",null,null,null,null,null,null,null,null,null,null,null,null,null,"Employee Hub16001",98000216,null,"DEFINITIVE TECHNOLOGY LLC",550283417,null,null,null,null,null,null,null,null,null,null,null,null,null,{"$error":"#N/A"}]
[null,null,null,null,null,null,null,null,null,null,null,null,null,null,null,null,null,null,null,null,null,null,null,null,null,null,null,null,null,null,null,null,null,"Bulk",null,null,null,null,null,null,null,"DELONGHI AMERICA 1",null,null,null,null,null,null,null,null,null,null,null,null,null,"Employee Hub16002",98000316,null,"DELONGHI AMERICA 1",550269922,null,null,null,null,null,null,null,null,null,null,null,null,null,{"$error":"#N/A"}]
[null,null,null,null,null,null,null,null,null,null,null,null,null,null,null,null,null,null,null,null,null,null,null,null,null,null,null,null,null,null,null,null,null,"Bundle of 10",null,null,null,null,null,null,null,"DESIGN PHASE INC",null,null,null,null,null,null,null,null,null,null,null,null,null,"Employee Hub16003",98000416,null,"DESIGN PHASE INC",550007596,null,null,null,null,null,null,null,null,null,null,null,null,null,{"$error":"#N/A"}]
[null,null,null,null,null,null,null,null,null,null,null,null,null,null,null,null,null,null,null,null,null,null,null,null,null,null,null,null,null,null,null,null,null,"Bundle of 100",null,null,null,null,null,null,null,"DIESEL DISPLAYS LLC",null,null,null,null,null,null,null,null,null,null,null,null,null,"Employee Hub18000",98000516,null,"DIESEL DISPLAYS LLC",550245857,null,null,null,null,null,null,null,null,null,null,null,null,null,{"$error":"#N/A"}]
[null,null,null,null,null,null,null,null,null,null,null,null,null,null,null,null,null,null,null,null,null,null,null,null,null,null,null,null,null,null,null,null,null,"Bundle of 12",null,null,null,null,null,null,null,"DIGITAL INNOVATIONS INC",null,null,null,null,null,null,null,null,null,null,null,null,null,"Fixtures10100",98000117,null,"DIGITAL INNOVATIONS INC",550012412,null,null,null,null,null,null,null,null,null,null,null,null,null,{"$error":"#N/A"}]
[null,null,null,null,null,null,null,null,null,null,null,null,null,null,null,null,null,null,null,null,null,null,null,null,null,null,null,null,null,null,null,null,null,"Bundle of 15",null,null,null,null,null,null,null,"DISCBURN",null,null,null,null,null,null,null,null,null,null,null,null,null,"Fixtures16001",98000217,null,"DISCBURN",655910000,null,null,null,null,null,null,null,null,null,null,null,null,null,{"$error":"#N/A"}]
[null,null,null,null,null,null,null,null,null,null,null,null,null,null,null,null,null,null,null,null,null,null,null,null,null,null,null,null,null,null,null,null,null,"Bundle of 2",null,null,null,null,null,null,null,"DISH PURCHASING CORPORATION",null,null,null,null,null,null,null,null,null,null,null,null,null,"Fixtures16002",98000317,null,"DISH PURCHASING CORPORATION",550265081,null,null,null,null,null,null,null,null,null,null,null,null,null,{"$error":"#N/A"}]
[null,null,null,null,null,null,null,null,null,null,null,null,null,null,null,null,null,null,null,null,null,null,null,null,null,null,null,null,null,null,null,null,null,"Bundle of 20",null,null,null,null,null,null,null,"DOWNING RETAIL DISPLAYS",null,null,null,null,null,null,null,null,null,null,null,null,null,"Fixtures16003",98000417,null,"DOWNING RETAIL DISPLAYS",550276562,null,null,null,null,null,null,null,null,null,null,null,null,null,{"$error":"#N/A"}]
[null,null,null,null,null,null,null,null,null,null,null,null,null,null,null,null,null,null,null,null,null,null,null,null,null,null,null,null,null,null,null,null,null,"Bundle of 200",null,null,null,null,null,null,null,"DOWNING RETAIL DISPLAYS",null,null,null,null,null,null,null,null,null,null,null,null,null,"Fixtures18000",98000517,null,"DOWNING RETAIL DISPLAYS",550276562,null,null,null,null,null,null,null,null,null,null,null,null,null,{"$error":"#N/A"}]
[null,null,null,null,null,null,null,null,null,null,null,null,null,null,null,null,null,null,null,null,null,null,null,null,null,null,null,null,null,null,null,null,null,"Bundle of 25",null,null,null,null,null,null,null,"EHANG INC",null,null,null,null,null,null,null,null,null,null,null,null,null,"Furniture10100",98000118,null,"EHANG INC",550283626,null,null,null,null,null,null,null,null,null,null,null,null,null,{"$error":"#N/A"}]
[null,null,null,null,null,null,null,null,null,null,null,null,null,null,null,null,null,null,null,null,null,null,null,null,null,null,null,null,null,null,null,null,null,"Bundle of 250",null,null,null,null,null,null,null,"EHANG INC",null,null,null,null,null,null,null,null,null,null,null,null,null,"Furniture16001",98000218,null,"EHANG INC",550283626,null,null,null,null,null,null,null,null,null,null,null,null,null,{"$error":"#N/A"}]
[null,null,null,null,null,null,null,null,null,null,null,null,null,null,null,null,null,null,null,null,null,null,null,null,null,null,null,null,null,null,null,null,null,"Bundle of 3",null,null,null,null,null,null,null,"ELECTRONINKS WRITEABLES",null,null,null,null,null,null,null,null,null,null,null,null,null,"Furniture16002",98000318,null,"ELECTRONINKS WRITEABLES",550293076,null,null,null,null,null,null,null,null,null,null,null,null,null,{"$error":"#N/A"}]
[null,null,null,null,null,null,null,null,null,null,null,null,null,null,null,null,null,null,null,null,null,null,null,null,null,null,null,null,null,null,null,null,null,"Bundle of 5",null,null,null,null,null,null,null,"ELEVEN PRODUCT DEVELOPMENT INC",null,null,null,null,null,null,null,null,null,null,null,null,null,"Furniture16003",98000418,null,"ELEVEN PRODUCT DEVELOPMENT INC",550223733,null,null,null,null,null,null,null,null,null,null,null,null,null,{"$error":"#N/A"}]
[null,null,null,null,null,null,null,null,null,null,null,null,null,null,null,null,null,null,null,null,null,null,null,null,null,null,null,null,null,null,null,null,null,"Bundle of 50",null,null,null,null,null,null,null,"ELLIOT GROUP",null,null,null,null,null,null,null,null,null,null,null,null,null,"Furniture18000",98000518,null,"ELLIOT GROUP",550207728]
[null,null,null,null,null,null,null,null,null,null,null,null,null,null,null,null,null,null,null,null,null,null,null,null,null,null,null,null,null,null,null,null,null,"Bundle of 500",null,null,null,null,null,null,null,"EMPIRE SCREEN PRINT INC",null,null,null,null,null,null,null,null,null,null,null,null,null,"Geek Squad POP10100",98000119,null,"EMPIRE SCREEN PRINT INC",550153332]
[null,null,null,null,null,null,null,null,null,null,null,null,null,null,null,null,null,null,null,null,null,null,null,null,null,null,null,null,null,null,null,null,null,"Bundle of 90",null,null,null,null,null,null,null,"ENGINEERED NETWORK SYSTEMS LLC",null,null,null,null,null,null,null,null,null,null,null,null,null,"Geek Squad POP16001",98000219,null,"ENGINEERED NETWORK SYSTEMS LLC",550273882]
[null,null,null,null,null,null,null,null,null,null,null,null,null,null,null,null,null,null,null,null,null,null,null,null,null,null,null,null,null,null,null,null,null,"Carton",null,null,null,null,null,null,null,"ENTREVERO INTEGRATED",null,null,null,null,null,null,null,null,null,null,null,null,null,"Geek Squad POP16002",98000319,null,"ENTREVERO INTEGRATED",550087354]
[null,null,null,null,null,null,null,null,null,null,null,null,null,null,null,null,null,null,null,null,null,null,null,null,null,null,null,null,null,null,null,null,null,"Carton of 10",null,null,null,null,null,null,null,"EPPCO ENTERPRISES INC",null,null,null,null,null,null,null,null,null,null,null,null,null,"Geek Squad POP16003",98000419,null,"EPPCO ENTERPRISES INC",244040002]
[null,null,null,null,null,null,null,null,null,null,null,null,null,null,null,null,null,null,null,null,null,null,null,null,null,null,null,null,null,null,null,null,null,"Carton of 1000",null,null,null,null,null,null,null,"EPPCO ENTERPRISES INC",null,null,null,null,null,null,null,null,null,null,null,null,null,"Geek Squad POP18000",98000519,null,"EPPCO ENTERPRISES INC",244040002]
[null,null,null,null,null,null,null,null,null,null,null,null,null,null,null,null,null,null,null,null,null,null,null,null,null,null,null,null,null,null,null,null,null,"Carton of 12",null,null,null,null,null,null,null,"EPSON AMERICA IN",null,null,null,null,null,null,null,null,null,null,null,null,null,"Geek Squad Precinct (InStore)10100",98000120,null,"EPSON AMERICA IN",550254613]
[null,null,null,null,null,null,null,null,null,null,null,null,null,null,null,null,null,null,null,null,null,null,null,null,null,null,null,null,null,null,null,null,null,"Carton of 126",null,null,null,null,null,null,null,"ESSENTRA SPECIALTY TAPES",null,null,null,null,null,null,null,null,null,null,null,null,null,"Geek Squad Precinct (InStore)16001",98000220,null,"ESSENTRA SPECIALTY TAPES",127480002]
[null,null,null,null,null,null,null,null,null,null,null,null,null,null,null,null,null,null,null,null,null,null,null,null,null,null,null,null,null,null,null,null,null,"Carton of 1300",null,null,null,null,null,null,null,"ESSENTRA SPECIALTY TAPES",null,null,null,null,null,null,null,null,null,null,null,null,null,"Geek Squad Precinct (InStore)16002",98000320,null,"ESSENTRA SPECIALTY TAPES",127480002]
[null,null,null,null,null,null,null,null,null,null,null,null,null,null,null,null,null,null,null,null,null,null,null,null,null,null,null,null,null,null,null,null,null,"Carton of 16",null,null,null,null,null,null,null,"ESTABLISHED BRANDS INC",null,null,null,null,null,null,null,null,null,null,null,null,null,"Geek Squad Precinct (InStore)16003",98000420,null,"ESTABLISHED BRANDS INC",550256141]
[null,null,null,null,null,null,null,null,null,null,null,null,null,null,null,null,null,null,null,null,null,null,null,null,null,null,null,null,null,null,null,null,null,"Carton of 1600",null,null,null,null,null,null,null,"EXACTEC",null,null,null,null,null,null,null,null,null,null,null,null,null,"Geek Squad Precinct (InStore)18000",98000520,null,"EXACTEC",550267906]
[null,null,null,null,null,null,null,null,null,null,null,null,null,null,null,null,null,null,null,null,null,null,null,null,null,null,null,null,null,null,null,null,null,"Carton of 20",null,null,null,null,null,null,null,"EXCEL PLASTICS LLC",null,null,null,null,null,null,null,null,null,null,null,null,null,"Geek Squad Stand Alone10100",98000121,null,"EXCEL PLASTICS LLC",550021929]
[null,null,null,null,null,null,null,null,null,null,null,null,null,null,null,null,null,null,null,null,null,null,null,null,null,null,null,null,null,null,null,null,null,"Carton of 200",null,null,null,null,null,null,null,"EXPRESS IMAGE",null,null,null,null,null,null,null,null,null,null,null,null,null,"Geek Squad Stand Alone16001",98000221,null,"EXPRESS IMAGE",550201047]
[null,null,null,null,null,null,null,null,null,null,null,null,null,null,null,null,null,null,null,null,null,null,null,null,null,null,null,null,null,null,null,null,null,"Carton of 2300",null,null,null,null,null,null,null,"FABRIC IMAGES INC",null,null,null,null,null,null,null,null,null,null,null,null,null,"Geek Squad Stand Alone16002",98000321,null,"FABRIC IMAGES INC",550075359]
[null,null,null,null,null,null,null,null,null,null,null,null,null,null,null,null,null,null,null,null,null,null,null,null,null,null,null,null,null,null,null,null,null,"Carton of 24",null,null,null,null,null,null,null,"FEDEX OFFICE AND PRINT SERVICES INC",null,null,null,null,null,null,null,null,null,null,null,null,null,"Geek Squad Stand Alone16003",98000421,null,"FEDEX OFFICE AND PRINT SERVICES INC",550078038]
[null,null,null,null,null,null,null,null,null,null,null,null,null,null,null,null,null,null,null,null,null,null,null,null,null,null,null,null,null,null,null,null,null,"Carton of 250",null,null,null,null,null,null,null,"FELBRO INC",null,null,null,null,null,null,null,null,null,null,null,null,null,"Geek Squad Stand Alone18000",98000521,null,"FELBRO INC",550234681]
[null,null,null,null,null,null,null,null,null,null,null,null,null,null,null,null,null,null,null,null,null,null,null,null,null,null,null,null,null,null,null,null,null,"Carton of 4",null,null,null,null,null,null,null,"FFR INC",null,null,null,null,null,null,null,null,null,null,null,null,null,"General10100",98000122,null,"FFR INC",227160009]
[null,null,null,null,null,null,null,null,null,null,null,null,null,null,null,null,null,null,null,null,null,null,null,null,null,null,null,null,null,null,null,null,null,"Carton of 48",null,null,null,null,null,null,null,"FLEXO IMPRESSIONS",null,null,null,null,null,null,null,null,null,null,null,null,null,"General16001",98000222,null,"FLEXO IMPRESSIONS",213220007]
[null,null,null,null,null,null,null,null,null,null,null,null,null,null,null,null,null,null,null,null,null,null,null,null,null,null,null,null,null,null,null,null,null,"Carton of 5",null,null,null,null,null,null,null,"GENERAL INDUSTRIAL SUPPLY CO",null,null,null,null,null,null,null,null,null,null,null,null,null,"General16002",98000322,null,"GENERAL INDUSTRIAL SUPPLY CO",550021438]
[null,null,null,null,null,null,null,null,null,null,null,null,null,null,null,null,null,null,null,null,null,null,null,null,null,null,null,null,null,null,null,null,null,"Carton of 500",null,null,null,null,null,null,null,"GENERAL INDUSTRIAL SUPPLY CO",null,null,null,null,null,null,null,null,null,null,null,null,null,"General16003",98000422,null,"GENERAL INDUSTRIAL SUPPLY CO",550021438]
[null,null,null,null,null,null,null,null,null,null,null,null,null,null,null,null,null,null,null,null,null,null,null,null,null,null,null,null,null,null,null,null,null,"Carton of 5000",null,null,null,null,null,null,null,"GENERAL OFFICE PRODUCTS COMPANY",null,null,null,null,null,null,null,null,null,null,null,null,null,"General18000",98000522,null,"GENERAL OFFICE PRODUCTS COMPANY",197910005]
[null,null,null,null,null,null,null,null,null,null,null,null,null,null,null,null,null,null,null,null,null,null,null,null,null,null,null,null,null,null,null,null,null,"Carton of 6",null,null,null,null,null,null,null,"GENERAL PAPER PRODUCTS INC",null,null,null,null,null,null,null,null,null,null,null,null,null,"Health and Fitness10100",98000123,null,"GENERAL PAPER PRODUCTS INC",550178015]
[null,null,null,null,null,null,null,null,null,null,null,null,null,null,null,null,null,null,null,null,null,null,null,null,null,null,null,null,null,null,null,null,null,"Carton of 80",null,null,null,null,null,null,null,"GLS COMPANIES",null,null,null,null,null,null,null,null,null,null,null,null,null,"Health and Fitness16001",98000223,null,"GLS COMPANIES",550028504]
[null,null,null,null,null,null,null,null,null,null,null,null,null,null,null,null,null,null,null,null,null,null,null,null,null,null,null,null,null,null,null,null,null,"Carton of 9",null,null,null,null,null,null,null,"GOLDLEAF PLASTICS INC",null,null,null,null,null,null,null,null,null,null,null,null,null,"Health and Fitness16002",98000323,null,"GOLDLEAF PLASTICS INC",550000182]
[null,null,null,null,null,null,null,null,null,null,null,null,null,null,null,null,null,null,null,null,null,null,null,null,null,null,null,null,null,null,null,null,null,"Case of 1000",null,null,null,null,null,null,null,"GRAPHIC SYSTEMS INC",null,null,null,null,null,null,null,null,null,null,null,null,null,"Health and Fitness16003",98000423,null,"GRAPHIC SYSTEMS INC","035930008"]
[null,null,null,null,null,null,null,null,null,null,null,null,null,null,null,null,null,null,null,null,null,null,null,null,null,null,null,null,null,null,null,null,null,"Case of 12",null,null,null,null,null,null,null,"GRAYBAR ELECTRIC",null,null,null,null,null,null,null,null,null,null,null,null,null,"Health and Fitness18000",98000523,null,"GRAYBAR ELECTRIC",550002704]
[null,null,null,null,null,null,null,null,null,null,null,null,null,null,null,null,null,null,null,null,null,null,null,null,null,null,null,null,null,null,null,null,null,"Case of 1600",null,null,null,null,null,null,null,"GRAYBAR ELECTRIC",null,null,null,null,null,null,null,null,null,null,null,null,null,"Home Office10100",98000124,null,"GRAYBAR ELECTRIC",550002704]
[null,null,null,null,null,null,null,null,null,null,null,null,null,null,null,null,null,null,null,null,null,null,null,null,null,null,null,null,null,null,null,null,null,"Case of 200",null,null,null,null,null,null,null,"GREAT NORTHERN CORPORATION",null,null,null,null,null,null,null,null,null,null,null,null,null,"Home Office16001",98000224,null,"GREAT NORTHERN CORPORATION",437030000]
[null,null,null,null,null,null,null,null,null,null,null,null,null,null,null,null,null,null,null,null,null,null,null,null,null,null,null,null,null,null,null,null,null,"Case of 2000",null,null,null,null,null,null,null,"GREAT NORTHERN CORPORATION",null,null,null,null,null,null,null,null,null,null,null,null,null,"Home Office16002",98000324,null,"GREAT NORTHERN CORPORATION",437030000]
[null,null,null,null,null,null,null,null,null,null,null,null,null,null,null,null,null,null,null,null,null,null,null,null,null,null,null,null,null,null,null,null,null,"Case of 250",null,null,null,null,null,null,null,"GREAT NORTHERN GRANITE",null,null,null,null,null,null,null,null,null,null,null,null,null,"Home Office16003",98000424,null,"GREAT NORTHERN GRANITE",550231760]
[null,null,null,null,null,null,null,null,null,null,null,null,null,null,null,null,null,null,null,null,null,null,null,null,null,null,null,null,null,null,null,null,null,"Case of 2500",null,null,null,null,null,null,null,"GREAT NORTHERN GRANITE",null,null,null,null,null,null,null,null,null,null,null,null,null,"Home Office18000",98000524,null,"GREAT NORTHERN GRANITE",550231760]
[null,null,null,null,null,null,null,null,null,null,null,null,null,null,null,null,null,null,null,null,null,null,null,null,null,null,null,null,null,null,null,null,null,"Case of 3",null,null,null,null,null,null,null,"GROUP O INC",null,null,null,null,null,null,null,null,null,null,null,null,null,"Home Theater10100",98000125,null,"GROUP O INC",550189653]
[null,null,null,null,null,null,null,null,null,null,null,null,null,null,null,null,null,null,null,null,null,null,null,null,null,null,null,null,null,null,null,null,null,"Case of 4",null,null,null,null,null,null,null,"HARBOR INDUSTRIES INC",null,null,null,null,null,null,null,null,null,null,null,null,null,"Home Theater16001",98000225,null,"HARBOR INDUSTRIES INC",550188749]
[null,null,null,null,null,null,null,null,null,null,null,null,null,null,null,null,null,null,null,null,null,null,null,null,null,null,null,null,null,null,null,null,null,"Case of 400",null,null,null,null,null,null,null,"HATTERAS PRESS INC",null,null,null,null,null,null,null,null,null,null,null,null,null,"Home Theater16002",98000325,null,"HATTERAS PRESS INC",550270381]
[null,null,null,null,null,null,null,null,null,null,null,null,null,null,null,null,null,null,null,null,null,null,null,null,null,null,null,null,null,null,null,null,null,"Case of 48",null,null,null,null,null,null,null,"HEMISPHERE DESIGN & MANUFACTURING",null,null,null,null,null,null,null,null,null,null,null,null,null,"Home Theater16003",98000425,null,"HEMISPHERE DESIGN & MANUFACTURING",550279740]
[null,null,null,null,null,null,null,null,null,null,null,null,null,null,null,null,null,null,null,null,null,null,null,null,null,null,null,null,null,null,null,null,null,"Case of 5",null,null,null,null,null,null,null,"HEMISPHERE DESIGN & MANUFACTURING",null,null,null,null,null,null,null,null,null,null,null,null,null,"Home Theater18000",98000525,null,"HEMISPHERE DESIGN & MANUFACTURING",550279740]
[null,null,null,null,null,null,null,null,null,null,null,null,null,null,null,null,null,null,null,null,null,null,null,null,null,null,null,null,null,null,null,null,null,"Case of 50",null,null,null,null,null,null,null,"HUGHES ENTERPRISES OF NEW JERSEY",null,null,null,null,null,null,null,null,null,null,null,null,null,"LP/Risk Management10100",98000126,null,"HUGHES ENTERPRISES OF NEW JERSEY",550024398]
[null,null,null,null,null,null,null,null,null,null,null,null,null,null,null,null,null,null,null,null,null,null,null,null,null,null,null,null,null,null,null,null,null,"Case of 6",null,null,null,null,null,null,null,"IDD INSTORE DESIGN DISPLAY",null,null,null,null,null,null,null,null,null,null,null,null,null,"LP/Risk Management16001",98000226,null,"IDD INSTORE DESIGN DISPLAY",550241472]
[null,null,null,null,null,null,null,null,null,null,null,null,null,null,null,null,null,null,null,null,null,null,null,null,null,null,null,null,null,null,null,null,null,"Case of 800",null,null,null,null,null,null,null,"IDEAL PRINTERS INC",null,null,null,null,null,null,null,null,null,null,null,null,null,"LP/Risk Management16002",98000326,null,"IDEAL PRINTERS INC",550241166]
[null,null,null,null,null,null,null,null,null,null,null,null,null,null,null,null,null,null,null,null,null,null,null,null,null,null,null,null,null,null,null,null,null,"Coil",null,null,null,null,null,null,null,"IDX DAYTON",null,null,null,null,null,null,null,null,null,null,null,null,null,"LP/Risk Management16003",98000426,null,"IDX DAYTON",550291737]
[null,null,null,null,null,null,null,null,null,null,null,null,null,null,null,null,null,null,null,null,null,null,null,null,null,null,null,null,null,null,null,null,null,"Cylinder",null,null,null,null,null,null,null,"ILUMI SOLUTIONS INCORPORATED",null,null,null,null,null,null,null,null,null,null,null,null,null,"LP/Risk Management18000",98000526,null,"ILUMI SOLUTIONS INCORPORATED",550270384]
[null,null,null,null,null,null,null,null,null,null,null,null,null,null,null,null,null,null,null,null,null,null,null,null,null,null,null,null,null,null,null,null,null,"Dozen",null,null,null,null,null,null,null,"IMAGICORPS",null,null,null,null,null,null,null,null,null,null,null,null,null,"Magnolia (MAV)10100",98000127,null,"IMAGICORPS",550007075]
[null,null,null,null,null,null,null,null,null,null,null,null,null,null,null,null,null,null,null,null,null,null,null,null,null,null,null,null,null,null,null,null,null,"Each",null,null,null,null,null,null,null,"IMAGINE PRINT SOLUTIONS",null,null,null,null,null,null,null,null,null,null,null,null,null,"Magnolia (MAV)16001",98000227,null,"IMAGINE PRINT SOLUTIONS",233970004]
[null,null,null,null,null,null,null,null,null,null,null,null,null,null,null,null,null,null,null,null,null,null,null,null,null,null,null,null,null,null,null,null,null,"Gross",null,null,null,null,null,null,null,"IMMEDIA",null,null,null,null,null,null,null,null,null,null,null,null,null,"Magnolia (MAV)16002",98000327,null,"IMMEDIA",550026383]
[null,null,null,null,null,null,null,null,null,null,null,null,null,null,null,null,null,null,null,null,null,null,null,null,null,null,null,null,null,null,null,null,null,"KIT",null,null,null,null,null,null,null,"IMPACT DISPLAYS GROUP LLC",null,null,null,null,null,null,null,null,null,null,null,null,null,"Magnolia (MAV)16003",98000427,null,"IMPACT DISPLAYS GROUP LLC",550201008]
[null,null,null,null,null,null,null,null,null,null,null,null,null,null,null,null,null,null,null,null,null,null,null,null,null,null,null,null,null,null,null,null,null,"Kit",null,null,null,null,null,null,null,"IN STORE FOCUS LLC",null,null,null,null,null,null,null,null,null,null,null,null,null,"Magnolia (MAV)18000",98000527,null,"IN STORE FOCUS LLC",550281760]
[null,null,null,null,null,null,null,null,null,null,null,null,null,null,null,null,null,null,null,null,null,null,null,null,null,null,null,null,null,null,null,null,null,"Kit of 10",null,null,null,null,null,null,null,"IN STORE FOCUS LLC",null,null,null,null,null,null,null,null,null,null,null,null,null,"MHT/MAG10100",98000128,null,"IN STORE FOCUS LLC",550281760]
[null,null,null,null,null,null,null,null,null,null,null,null,null,null,null,null,null,null,null,null,null,null,null,null,null,null,null,null,null,null,null,null,null,"Kit of 12",null,null,null,null,null,null,null,"INCIPIO TECHNOLOGIES INCORPORATED",null,null,null,null,null,null,null,null,null,null,null,null,null,"MHT/MAG16001",98000228,null,"INCIPIO TECHNOLOGIES INCORPORATED",550257662]
[null,null,null,null,null,null,null,null,null,null,null,null,null,null,null,null,null,null,null,null,null,null,null,null,null,null,null,null,null,null,null,null,null,"Kit of 15",null,null,null,null,null,null,null,"INNOMARK COMMUNICATIONS LLC",null,null,null,null,null,null,null,null,null,null,null,null,null,"MHT/MAG16002",98000328,null,"INNOMARK COMMUNICATIONS LLC",550188779]
[null,null,null,null,null,null,null,null,null,null,null,null,null,null,null,null,null,null,null,null,null,null,null,null,null,null,null,null,null,null,null,null,null,"Kit of 16",null,null,null,null,null,null,null,"INNOMARK COMMUNICATIONS LLC",null,null,null,null,null,null,null,null,null,null,null,null,null,"MHT/MAG16003",98000428,null,"INNOMARK COMMUNICATIONS LLC",550188779]
[null,null,null,null,null,null,null,null,null,null,null,null,null,null,null,null,null,null,null,null,null,null,null,null,null,null,null,null,null,null,null,null,null,"Kit of 18",null,null,null,null,null,null,null,"INREALITY",null,null,null,null,null,null,null,null,null,null,null,null,null,"MHT/MAG18000",98000528,null,"INREALITY",550263055]
[null,null,null,null,null,null,null,null,null,null,null,null,null,null,null,null,null,null,null,null,null,null,null,null,null,null,null,null,null,null,null,null,null,"Kit of 2",null,null,null,null,null,null,null,"INTERACTIVE COMMUNICATIONS INTL",null,null,null,null,null,null,null,null,null,null,null,null,null,"Movies10100",98000129,null,"INTERACTIVE COMMUNICATIONS INTL",550040656]
[null,null,null,null,null,null,null,null,null,null,null,null,null,null,null,null,null,null,null,null,null,null,null,null,null,null,null,null,null,null,null,null,null,"Kit of 20",null,null,null,null,null,null,null,"INTERIORMARK LLC 01",null,null,null,null,null,null,null,null,null,null,null,null,null,"Movies16001",98000229,null,"INTERIORMARK LLC 01",550207380]
[null,null,null,null,null,null,null,null,null,null,null,null,null,null,null,null,null,null,null,null,null,null,null,null,null,null,null,null,null,null,null,null,null,"Kit of 4",null,null,null,null,null,null,null,"INTERNATIONAL PAPER CHICAGO",null,null,null,null,null,null,null,null,null,null,null,null,null,"Movies16002",98000329,null,"INTERNATIONAL PAPER CHICAGO",550020343]
[null,null,null,null,null,null,null,null,null,null,null,null,null,null,null,null,null,null,null,null,null,null,null,null,null,null,null,null,null,null,null,null,null,"Kit of 40",null,null,null,null,null,null,null,"INVUE SECURITY PRODUCTS INC",null,null,null,null,null,null,null,null,null,null,null,null,null,"Movies16003",98000429,null,"INVUE SECURITY PRODUCTS INC",426020004]
[null,null,null,null,null,null,null,null,null,null,null,null,null,null,null,null,null,null,null,null,null,null,null,null,null,null,null,null,null,null,null,null,null,"Kit of 5",null,null,null,null,null,null,null,"IROBOT CORPORATION",null,null,null,null,null,null,null,null,null,null,null,null,null,"Movies18000",98000529,null,"IROBOT CORPORATION",550202579]
[null,null,null,null,null,null,null,null,null,null,null,null,null,null,null,null,null,null,null,null,null,null,null,null,null,null,null,null,null,null,null,null,null,"Kit of 50",null,null,null,null,null,null,null,"IRULE LLC",null,null,null,null,null,null,null,null,null,null,null,null,null,"MP310100",98000130,null,"IRULE LLC",550218918]
[null,null,null,null,null,null,null,null,null,null,null,null,null,null,null,null,null,null,null,null,null,null,null,null,null,null,null,null,null,null,null,null,null,"Kit of 6",null,null,null,null,null,null,null,"J ROBERTS DESIGN INTERNATIONAL INC",null,null,null,null,null,null,null,null,null,null,null,null,null,"MP316001",98000230,null,"J ROBERTS DESIGN INTERNATIONAL INC",550213006]
[null,null,null,null,null,null,null,null,null,null,null,null,null,null,null,null,null,null,null,null,null,null,null,null,null,null,null,null,null,null,null,null,null,"Kit of 7",null,null,null,null,null,null,null,"JDTECK INC",null,null,null,null,null,null,null,null,null,null,null,null,null,"MP316002",98000330,null,"JDTECK INC",550205862]
[null,null,null,null,null,null,null,null,null,null,null,null,null,null,null,null,null,null,null,null,null,null,null,null,null,null,null,null,null,null,null,null,null,"Kit of 9",null,null,null,null,null,null,null,"JDTECK INC",null,null,null,null,null,null,null,null,null,null,null,null,null,"MP316003",98000430,null,"JDTECK INC",550205862]
[null,null,null,null,null,null,null,null,null,null,null,null,null,null,null,null,null,null,null,null,null,null,null,null,null,null,null,null,null,null,null,null,null,"Lot",null,null,null,null,null,null,null,"JEG & SONS INC",null,null,null,null,null,null,null,null,null,null,null,null,null,"MP318000",98000530,null,"JEG & SONS INC",550204474]
[null,null,null,null,null,null,null,null,null,null,null,null,null,null,null,null,null,null,null,null,null,null,null,null,null,null,null,null,null,null,null,null,null,"Pack",null,null,null,null,null,null,null,"JEG & SONS INC",null,null,null,null,null,null,null,null,null,null,null,null,null,"Music10100",98000131,null,"JEG & SONS INC",550204474]
[null,null,null,null,null,null,null,null,null,null,null,null,null,null,null,null,null,null,null,null,null,null,null,null,null,null,null,null,null,null,null,null,null,"Pack of 10",null,null,null,null,null,null,null,"JOHN ROBERTS CO",null,null,null,null,null,null,null,null,null,null,null,null,null,"Music16001",98000231,null,"JOHN ROBERTS CO",448190009]
[null,null,null,null,null,null,null,null,null,null,null,null,null,null,null,null,null,null,null,null,null,null,null,null,null,null,null,null,null,null,null,null,null,"Pack of 100",null,null,null,null,null,null,null,"JR JONES FIXTURE COMPANY",null,null,null,null,null,null,null,null,null,null,null,null,null,"Music16002",98000331,null,"JR JONES FIXTURE COMPANY",550265082]
[null,null,null,null,null,null,null,null,null,null,null,null,null,null,null,null,null,null,null,null,null,null,null,null,null,null,null,null,null,null,null,null,null,"Pack of 104",null,null,null,null,null,null,null,"KENWOOD USA CORP",null,null,null,null,null,null,null,null,null,null,null,null,null,"Music16003",98000431,null,"KENWOOD USA CORP",313060006]
[null,null,null,null,null,null,null,null,null,null,null,null,null,null,null,null,null,null,null,null,null,null,null,null,null,null,null,null,null,null,null,null,null,"Pack of 12",null,null,null,null,null,null,null,"KEY DIGITAL SYSTEMS",null,null,null,null,null,null,null,null,null,null,null,null,null,"Music18000",98000531,null,"KEY DIGITAL SYSTEMS",653520009]
[null,null,null,null,null,null,null,null,null,null,null,null,null,null,null,null,null,null,null,null,null,null,null,null,null,null,null,null,null,null,null,null,null,"Pack of 125",null,null,null,null,null,null,null,"KHN SOLUTIONS INC",null,null,null,null,null,null,null,null,null,null,null,null,null,"Musical Instruments10100",98000132,null,"KHN SOLUTIONS INC",550243729]
[null,null,null,null,null,null,null,null,null,null,null,null,null,null,null,null,null,null,null,null,null,null,null,null,null,null,null,null,null,null,null,null,null,"Pack of 14",null,null,null,null,null,null,null,"KINTER",null,null,null,null,null,null,null,null,null,null,null,null,null,"Musical Instruments16001",98000232,null,"KINTER",550262794]
[null,null,null,null,null,null,null,null,null,null,null,null,null,null,null,null,null,null,null,null,null,null,null,null,null,null,null,null,null,null,null,null,null,"Pack of 16",null,null,null,null,null,null,null,"KLIPSCH GROUP INC",null,null,null,null,null,null,null,null,null,null,null,null,null,"Musical Instruments16002",98000332,null,"KLIPSCH GROUP INC",550273042]
[null,null,null,null,null,null,null,null,null,null,null,null,null,null,null,null,null,null,null,null,null,null,null,null,null,null,null,null,null,null,null,null,null,"Pack of 2",null,null,null,null,null,null,null,"KLIPSCH GROUP INC",null,null,null,null,null,null,null,null,null,null,null,null,null,"Musical Instruments16003",98000432,null,"KLIPSCH GROUP INC",550273042]
[null,null,null,null,null,null,null,null,null,null,null,null,null,null,null,null,null,null,null,null,null,null,null,null,null,null,null,null,null,null,null,null,null,"Pack of 20",null,null,null,null,null,null,null,"KOLLINS COMMUNICATIONS INC",null,null,null,null,null,null,null,null,null,null,null,null,null,"Musical Instruments18000",98000532,null,"KOLLINS COMMUNICATIONS INC",550269227]
[null,null,null,null,null,null,null,null,null,null,null,null,null,null,null,null,null,null,null,null,null,null,null,null,null,null,null,null,null,null,null,null,null,"Pack of 24",null,null,null,null,null,null,null,"LAIRD PLASTICS INC",null,null,null,null,null,null,null,null,null,null,null,null,null,"Non-Retail10100",98000133,null,"LAIRD PLASTICS INC",249470006]
[null,null,null,null,null,null,null,null,null,null,null,null,null,null,null,null,null,null,null,null,null,null,null,null,null,null,null,null,null,null,null,null,null,"Pack of 25",null,null,null,null,null,null,null,"LANDFAIR COMPANY",null,null,null,null,null,null,null,null,null,null,null,null,null,"Non-Retail16001",98000233,null,"LANDFAIR COMPANY",550057940]
[null,null,null,null,null,null,null,null,null,null,null,null,null,null,null,null,null,null,null,null,null,null,null,null,null,null,null,null,null,null,null,null,null,"Pack of 250",null,null,null,null,null,null,null,"LANDFAIR COMPANY",null,null,null,null,null,null,null,null,null,null,null,null,null,"Non-Retail16002",98000333,null,"LANDFAIR COMPANY",550057940]
[null,null,null,null,null,null,null,null,null,null,null,null,null,null,null,null,null,null,null,null,null,null,null,null,null,null,null,null,null,null,null,null,null,"Pack of 3",null,null,null,null,null,null,null,"LENBROOK AMERICA",null,null,null,null,null,null,null,null,null,null,null,null,null,"Non-Retail16003",98000433,null,"LENBROOK AMERICA",550162543]
[null,null,null,null,null,null,null,null,null,null,null,null,null,null,null,null,null,null,null,null,null,null,null,null,null,null,null,null,null,null,null,null,null,"Pack of 36",null,null,null,null,null,null,null,"LENBROOK AMERICA",null,null,null,null,null,null,null,null,null,null,null,null,null,"Non-Retail18000",98000533,null,"LENBROOK AMERICA",550162543]
[null,null,null,null,null,null,null,null,null,null,null,null,null,null,null,null,null,null,null,null,null,null,null,null,null,null,null,null,null,null,null,null,null,"Pack of 4",null,null,null,null,null,null,null,"LG&P IN STORE AGENCY",null,null,null,null,null,null,null,null,null,null,null,null,null,"Pac Sales10100",98000134,null,"LG&P IN STORE AGENCY",550275485]
[null,null,null,null,null,null,null,null,null,null,null,null,null,null,null,null,null,null,null,null,null,null,null,null,null,null,null,null,null,null,null,null,null,"Pack of 40",null,null,null,null,null,null,null,"LG&P IN STORE AGENCY",null,null,null,null,null,null,null,null,null,null,null,null,null,"Pac Sales16001",98000234,null,"LG&P IN STORE AGENCY",550275485]
[null,null,null,null,null,null,null,null,null,null,null,null,null,null,null,null,null,null,null,null,null,null,null,null,null,null,null,null,null,null,null,null,null,"Pack of 48",null,null,null,null,null,null,null,"LIBERTY WIRE & CABLE N31",null,null,null,null,null,null,null,null,null,null,null,null,null,"Pac Sales16002",98000334,null,"LIBERTY WIRE & CABLE N31",550025064]
[null,null,null,null,null,null,null,null,null,null,null,null,null,null,null,null,null,null,null,null,null,null,null,null,null,null,null,null,null,null,null,null,null,"Pack of 5",null,null,null,null,null,null,null,"LIT WORKSHOP INC",null,null,null,null,null,null,null,null,null,null,null,null,null,"Pac Sales16003",98000434,null,"LIT WORKSHOP INC",550268018]
[null,null,null,null,null,null,null,null,null,null,null,null,null,null,null,null,null,null,null,null,null,null,null,null,null,null,null,null,null,null,null,null,null,"Pack of 50",null,null,null,null,null,null,null,"LIT WORKSHOP INC",null,null,null,null,null,null,null,null,null,null,null,null,null,"Pac Sales18000",98000534,null,"LIT WORKSHOP INC",550268018]
[null,null,null,null,null,null,null,null,null,null,null,null,null,null,null,null,null,null,null,null,null,null,null,null,null,null,null,null,null,null,null,null,null,"Pack of 52",null,null,null,null,null,null,null,"LIVESTREAM LLC",null,null,null,null,null,null,null,null,null,null,null,null,null,"PCE10100",98000135,null,"LIVESTREAM LLC",550173037]
[null,null,null,null,null,null,null,null,null,null,null,null,null,null,null,null,null,null,null,null,null,null,null,null,null,null,null,null,null,null,null,null,null,"Pack of 6",null,null,null,null,null,null,null,"LIVESTREAM LLC",null,null,null,null,null,null,null,null,null,null,null,null,null,"PCE16001",98000235,null,"LIVESTREAM LLC",550173037]
[null,null,null,null,null,null,null,null,null,null,null,null,null,null,null,null,null,null,null,null,null,null,null,null,null,null,null,null,null,null,null,null,null,"Pack of 8",null,null,null,null,null,null,null,"LOGISTICS INTERNATIONAL LLC",null,null,null,null,null,null,null,null,null,null,null,null,null,"PCE16002",98000335,null,"LOGISTICS INTERNATIONAL LLC",550084730]
[null,null,null,null,null,null,null,null,null,null,null,null,null,null,null,null,null,null,null,null,null,null,null,null,null,null,null,null,null,null,null,null,null,"Pack of 90",null,null,null,null,null,null,null,"LOGISTICS INTERNATIONAL LLC",null,null,null,null,null,null,null,null,null,null,null,null,null,"PCE16003",98000435,null,"LOGISTICS INTERNATIONAL LLC",550084730]
[null,null,null,null,null,null,null,null,null,null,null,null,null,null,null,null,null,null,null,null,null,null,null,null,null,null,null,null,null,null,null,null,null,"Pad of 100",null,null,null,null,null,null,null,"LOZIER STORE FIXTURES LLC",null,null,null,null,null,null,null,null,null,null,null,null,null,"PCE18000",98000535,null,"LOZIER STORE FIXTURES LLC",533810009]
[null,null,null,null,null,null,null,null,null,null,null,null,null,null,null,null,null,null,null,null,null,null,null,null,null,null,null,null,null,null,null,null,null,"Pad of 25",null,null,null,null,null,null,null,"LOZIER STORE FIXTURES LLC",null,null,null,null,null,null,null,null,null,null,null,null,null,"Phones10100",98000136,null,"LOZIER STORE FIXTURES LLC",533810009]
[null,null,null,null,null,null,null,null,null,null,null,null,null,null,null,null,null,null,null,null,null,null,null,null,null,null,null,null,null,null,null,null,null,"Pad of 31",null,null,null,null,null,null,null,"LUTRON ELECTRONICS CORPORATION",null,null,null,null,null,null,null,null,null,null,null,null,null,"Phones16001",98000236,null,"LUTRON ELECTRONICS CORPORATION",550161224]
[null,null,null,null,null,null,null,null,null,null,null,null,null,null,null,null,null,null,null,null,null,null,null,null,null,null,null,null,null,null,null,null,null,"Pad of 50",null,null,null,null,null,null,null,"LYNCH RETAIL DISPLAY GROUP",null,null,null,null,null,null,null,null,null,null,null,null,null,"Phones16002",98000336,null,"LYNCH RETAIL DISPLAY GROUP",550241688]
[null,null,null,null,null,null,null,null,null,null,null,null,null,null,null,null,null,null,null,null,null,null,null,null,null,null,null,null,null,null,null,null,null,"Pair",null,null,null,null,null,null,null,"LYNX INNOVATION LIMITED",null,null,null,null,null,null,null,null,null,null,null,null,null,"Phones16003",98000436,null,"LYNX INNOVATION LIMITED",550013858]
[null,null,null,null,null,null,null,null,null,null,null,null,null,null,null,null,null,null,null,null,null,null,null,null,null,null,null,null,null,null,null,null,null,"Pair of 2",null,null,null,null,null,null,null,"MADIX INC",null,null,null,null,null,null,null,null,null,null,null,null,null,"Phones18000",98000536,null,"MADIX INC",550086673]
[null,null,null,null,null,null,null,null,null,null,null,null,null,null,null,null,null,null,null,null,null,null,null,null,null,null,null,null,null,null,null,null,null,"Rack",null,null,null,null,null,null,null,"MAGNECORP INC",null,null,null,null,null,null,null,null,null,null,null,null,null,"Portable Audio10100",98000137,null,"MAGNECORP INC",158570004]
[null,null,null,null,null,null,null,null,null,null,null,null,null,null,null,null,null,null,null,null,null,null,null,null,null,null,null,null,null,null,null,null,null,"Reel",null,null,null,null,null,null,null,"MARK IT GRAPHICS",null,null,null,null,null,null,null,null,null,null,null,null,null,"Portable Audio16001",98000237,null,"MARK IT GRAPHICS",550065891]
[null,null,null,null,null,null,null,null,null,null,null,null,null,null,null,null,null,null,null,null,null,null,null,null,null,null,null,null,null,null,null,null,null,"Roll",null,null,null,null,null,null,null,"MARK IT GRAPHICS",null,null,null,null,null,null,null,null,null,null,null,null,null,"Portable Audio16002",98000337,null,"MARK IT GRAPHICS",550065891]
[null,null,null,null,null,null,null,null,null,null,null,null,null,null,null,null,null,null,null,null,null,null,null,null,null,null,null,null,null,null,null,null,null,"Roll of 100",null,null,null,null,null,null,null,"MAS INDUSTRIES INC",null,null,null,null,null,null,null,null,null,null,null,null,null,"Portable Audio16003",98000437,null,"MAS INDUSTRIES INC",550039147]
[null,null,null,null,null,null,null,null,null,null,null,null,null,null,null,null,null,null,null,null,null,null,null,null,null,null,null,null,null,null,null,null,null,"Roll of 1000",null,null,null,null,null,null,null,"MASLAND CARPETS LLC",null,null,null,null,null,null,null,null,null,null,null,null,null,"Portable Audio18000",98000537,null,"MASLAND CARPETS LLC",550229121]
[null,null,null,null,null,null,null,null,null,null,null,null,null,null,null,null,null,null,null,null,null,null,null,null,null,null,null,null,null,null,null,null,null,"Roll of 200",null,null,null,null,null,null,null,"MCM DISTRIBUTION CENTER",null,null,null,null,null,null,null,null,null,null,null,null,null,"Racetrack10100",98000138,null,"MCM DISTRIBUTION CENTER","004870003"]
[null,null,null,null,null,null,null,null,null,null,null,null,null,null,null,null,null,null,null,null,null,null,null,null,null,null,null,null,null,null,null,null,null,"Roll of 250",null,null,null,null,null,null,null,"MEGAWALL CORPORATION",null,null,null,null,null,null,null,null,null,null,null,null,null,"Racetrack16001",98000238,null,"MEGAWALL CORPORATION",550292960]
[null,null,null,null,null,null,null,null,null,null,null,null,null,null,null,null,null,null,null,null,null,null,null,null,null,null,null,null,null,null,null,null,null,"Roll of 300",null,null,null,null,null,null,null,"MENASHA PACKAGING COMPANY LLC 1",null,null,null,null,null,null,null,null,null,null,null,null,null,"Racetrack16002",98000338,null,"MENASHA PACKAGING COMPANY LLC 1",550238247]
[null,null,null,null,null,null,null,null,null,null,null,null,null,null,null,null,null,null,null,null,null,null,null,null,null,null,null,null,null,null,null,null,null,"Roll of 50",null,null,null,null,null,null,null,"METAL FABRICATORS INC",null,null,null,null,null,null,null,null,null,null,null,null,null,"Racetrack16003",98000438,null,"METAL FABRICATORS INC",241920009]
[null,null,null,null,null,null,null,null,null,null,null,null,null,null,null,null,null,null,null,null,null,null,null,null,null,null,null,null,null,null,null,null,null,"Roll of 500",null,null,null,null,null,null,null,"METRA ELECTRONICS CORPORATION",null,null,null,null,null,null,null,null,null,null,null,null,null,"Racetrack18000",98000538,null,"METRA ELECTRONICS CORPORATION",417190006]
[null,null,null,null,null,null,null,null,null,null,null,null,null,null,null,null,null,null,null,null,null,null,null,null,null,null,null,null,null,null,null,null,null,"Roll of 900",null,null,null,null,null,null,null,"MICROSTORE INC",null,null,null,null,null,null,null,null,null,null,null,null,null,"Restrooms10100",98000139,null,"MICROSTORE INC",550240120]
[null,null,null,null,null,null,null,null,null,null,null,null,null,null,null,null,null,null,null,null,null,null,null,null,null,null,null,null,null,null,null,null,null,"SET",null,null,null,null,null,null,null,"MIDDLE ATLANTIC PRODUCTS INC",null,null,null,null,null,null,null,null,null,null,null,null,null,"Restrooms16001",98000239,null,"MIDDLE ATLANTIC PRODUCTS INC",550084273]
[null,null,null,null,null,null,null,null,null,null,null,null,null,null,null,null,null,null,null,null,null,null,null,null,null,null,null,null,null,null,null,null,null,"Segment",null,null,null,null,null,null,null,"MIDDLE ATLANTIC PRODUCTS INC",null,null,null,null,null,null,null,null,null,null,null,null,null,"Restrooms16002",98000339,null,"MIDDLE ATLANTIC PRODUCTS INC",550084273]
[null,null,null,null,null,null,null,null,null,null,null,null,null,null,null,null,null,null,null,null,null,null,null,null,null,null,null,null,null,null,null,null,null,"Set",null,null,null,null,null,null,null,"MIDWEST MERCHANDISING INC",null,null,null,null,null,null,null,null,null,null,null,null,null,"Restrooms16003",98000439,null,"MIDWEST MERCHANDISING INC",550019718]
[null,null,null,null,null,null,null,null,null,null,null,null,null,null,null,null,null,null,null,null,null,null,null,null,null,null,null,null,null,null,null,null,null,"Set of 2",null,null,null,null,null,null,null,"MILESTONE AV TECHNOLOGIES",null,null,null,null,null,null,null,null,null,null,null,null,null,"Restrooms18000",98000539,null,"MILESTONE AV TECHNOLOGIES",550049831]
[null,null,null,null,null,null,null,null,null,null,null,null,null,null,null,null,null,null,null,null,null,null,null,null,null,null,null,null,null,null,null,null,null,"Set of 20",null,null,null,null,null,null,null,"MILESTONE AV TECHNOLOGIES LLC",null,null,null,null,null,null,null,null,null,null,null,null,null,"Sales Development10100",98000140,null,"MILESTONE AV TECHNOLOGIES LLC",550059435]
[null,null,null,null,null,null,null,null,null,null,null,null,null,null,null,null,null,null,null,null,null,null,null,null,null,null,null,null,null,null,null,null,null,"Set of 30",null,null,null,null,null,null,null,"MILLER ZELL INC",null,null,null,null,null,null,null,null,null,null,null,null,null,"Sales Development16001",98000240,null,"MILLER ZELL INC",550250899]
[null,null,null,null,null,null,null,null,null,null,null,null,null,null,null,null,null,null,null,null,null,null,null,null,null,null,null,null,null,null,null,null,null,"Set of 4",null,null,null,null,null,null,null,"MMK MARKETING INC",null,null,null,null,null,null,null,null,null,null,null,null,null,"Sales Development16002",98000340,null,"MMK MARKETING INC",550268889]
[null,null,null,null,null,null,null,null,null,null,null,null,null,null,null,null,null,null,null,null,null,null,null,null,null,null,null,null,null,null,null,null,null,"Set of 5",null,null,null,null,null,null,null,"MOBILE TECHNOLOGIES INC",null,null,null,null,null,null,null,null,null,null,null,null,null,"Sales Development16003",98000440,null,"MOBILE TECHNOLOGIES INC",115970007]
[null,null,null,null,null,null,null,null,null,null,null,null,null,null,null,null,null,null,null,null,null,null,null,null,null,null,null,null,null,null,null,null,null,"Set of 6",null,null,null,null,null,null,null,"MOCO INC",null,null,null,null,null,null,null,null,null,null,null,null,null,"Sales Development18000",98000540,null,"MOCO INC",550157063]
[null,null,null,null,null,null,null,null,null,null,null,null,null,null,null,null,null,null,null,null,null,null,null,null,null,null,null,null,null,null,null,null,null,"Set of 70",null,null,null,null,null,null,null,"MODERNISTIC",null,null,null,null,null,null,null,null,null,null,null,null,null,"Services - Customer R&D Team10100",98000141,null,"MODERNISTIC",330160003]
[null,null,null,null,null,null,null,null,null,null,null,null,null,null,null,null,null,null,null,null,null,null,null,null,null,null,null,null,null,null,null,null,null,"Set of 8",null,null,null,null,null,null,null,"MOHU",null,null,null,null,null,null,null,null,null,null,null,null,null,"Services - Customer R&D Team16001",98000241,null,"MOHU",550255370]
[null,null,null,null,null,null,null,null,null,null,null,null,null,null,null,null,null,null,null,null,null,null,null,null,null,null,null,null,null,null,null,null,null,"Sheet - Quantity",null,null,null,null,null,null,null,"MOSAIC",null,null,null,null,null,null,null,null,null,null,null,null,null,"Services - Customer R&D Team16002",98000341,null,"MOSAIC",550236786]
[null,null,null,null,null,null,null,null,null,null,null,null,null,null,null,null,null,null,null,null,null,null,null,null,null,null,null,null,null,null,null,null,null,"Shipment",null,null,null,null,null,null,null,"MULTI PACKAGING SOLUTIONS",null,null,null,null,null,null,null,null,null,null,null,null,null,"Services - Customer R&D Team16003",98000441,null,"MULTI PACKAGING SOLUTIONS",550164551]
[null,null,null,null,null,null,null,null,null,null,null,null,null,null,null,null,null,null,null,null,null,null,null,null,null,null,null,null,null,null,null,null,null,"Stops",null,null,null,null,null,null,null,"NCR CORPORATION",null,null,null,null,null,null,null,null,null,null,null,null,null,"Services - Customer R&D Team18000",98000541,null,"NCR CORPORATION",550016610]
[null,null,null,null,null,null,null,null,null,null,null,null,null,null,null,null,null,null,null,null,null,null,null,null,null,null,null,null,null,null,null,null,null,"Unit",null,null,null,null,null,null,null,"NCR CORPORATION",null,null,null,null,null,null,null,null,null,null,null,null,null,"Smart Watches10100",98000142,null,"NCR CORPORATION",550016610]
[null,null,null,null,null,null,null,null,null,null,null,null,null,null,null,null,null,null,null,null,null,null,null,null,null,null,null,null,null,null,null,null,null,"dozen",null,null,null,null,null,null,null,"NEATO ROBOTICS INC",null,null,null,null,null,null,null,null,null,null,null,null,null,"Smart Watches16001",98000242,null,"NEATO ROBOTICS INC",550268981]
[null,null,null,null,null,null,null,null,null,null,null,null,null,null,null,null,null,null,null,null,null,null,null,null,null,null,null,null,null,null,null,null,null,"gross",null,null,null,null,null,null,null,"NEATO ROBOTICS INC",null,null,null,null,null,null,null,null,null,null,null,null,null,"Smart Watches16002",98000342,null,"NEATO ROBOTICS INC",550268981]
[null,null,null,null,null,null,null,null,null,null,null,null,null,null,null,null,null,null,null,null,null,null,null,null,null,null,null,null,null,null,null,null,null,null,null,null,null,null,null,null,null,"NESPRESSO USA",null,null,null,null,null,null,null,null,null,null,null,null,null,"Smart Watches16003",98000442,null,"NESPRESSO USA",550275149]
[null,null,null,null,null,null,null,null,null,null,null,null,null,null,null,null,null,null,null,null,null,null,null,null,null,null,null,null,null,null,null,null,null,null,null,null,null,null,null,null,null,"NESPRESSO USA",null,null,null,null,null,null,null,null,null,null,null,null,null,"Smart Watches18000",98000542,null,"NESPRESSO USA",550275149]
[null,null,null,null,null,null,null,null,null,null,null,null,null,null,null,null,null,null,null,null,null,null,null,null,null,null,null,null,null,null,null,null,null,null,null,null,null,null,null,null,null,"NORTHERN METAL PRODUCTS",null,null,null,null,null,null,null,null,null,null,null,null,null,"Tablets/eReaders10100",98000143,null,"NORTHERN METAL PRODUCTS",276410009]
[null,null,null,null,null,null,null,null,null,null,null,null,null,null,null,null,null,null,null,null,null,null,null,null,null,null,null,null,null,null,null,null,null,null,null,null,null,null,null,null,null,"OFFICE DEPOT OH",null,null,null,null,null,null,null,null,null,null,null,null,null,"Tablets/eReaders16001",98000243,null,"OFFICE DEPOT OH",550171977]
[null,null,null,null,null,null,null,null,null,null,null,null,null,null,null,null,null,null,null,null,null,null,null,null,null,null,null,null,null,null,null,null,null,null,null,null,null,null,null,null,null,"OMNI SYSTEMS INC",null,null,null,null,null,null,null,null,null,null,null,null,null,"Tablets/eReaders16002",98000343,null,"OMNI SYSTEMS INC",550247248]
[null,null,null,null,null,null,null,null,null,null,null,null,null,null,null,null,null,null,null,null,null,null,null,null,null,null,null,null,null,null,null,null,null,null,null,null,null,null,null,null,null,"OMNI SYSTEMS INC",null,null,null,null,null,null,null,null,null,null,null,null,null,"Tablets/eReaders16003",98000443,null,"OMNI SYSTEMS INC",550247248]
[null,null,null,null,null,null,null,null,null,null,null,null,null,null,null,null,null,null,null,null,null,null,null,null,null,null,null,null,null,null,null,null,null,null,null,null,null,null,null,null,null,"ONQ SOLUTIONS INC",null,null,null,null,null,null,null,null,null,null,null,null,null,"Tablets/eReaders18000",98000543,null,"ONQ SOLUTIONS INC",550185479]
[null,null,null,null,null,null,null,null,null,null,null,null,null,null,null,null,null,null,null,null,null,null,null,null,null,null,null,null,null,null,null,null,null,null,null,null,null,null,null,null,null,"ORBIS PLASTIC MOLDING",null,null,null,null,null,null,null,null,null,null,null,null,null,"Vestibule10100",98000144,null,"ORBIS PLASTIC MOLDING",544290000]
[null,null,null,null,null,null,null,null,null,null,null,null,null,null,null,null,null,null,null,null,null,null,null,null,null,null,null,null,null,null,null,null,null,null,null,null,null,null,null,null,null,"ORIGIN LLC",null,null,null,null,null,null,null,null,null,null,null,null,null,"Vestibule16001",98000244,null,"ORIGIN LLC",550082570]
[null,null,null,null,null,null,null,null,null,null,null,null,null,null,null,null,null,null,null,null,null,null,null,null,null,null,null,null,null,null,null,null,null,null,null,null,null,null,null,null,null,"OUTFORM INC",null,null,null,null,null,null,null,null,null,null,null,null,null,"Vestibule16002",98000344,null,"OUTFORM INC",550197085]
[null,null,null,null,null,null,null,null,null,null,null,null,null,null,null,null,null,null,null,null,null,null,null,null,null,null,null,null,null,null,null,null,null,null,null,null,null,null,null,null,null,"PACE INTERNATIONAL",null,null,null,null,null,null,null,null,null,null,null,null,null,"Vestibule16003",98000444,null,"PACE INTERNATIONAL",316240001]
[null,null,null,null,null,null,null,null,null,null,null,null,null,null,null,null,null,null,null,null,null,null,null,null,null,null,null,null,null,null,null,null,null,null,null,null,null,null,null,null,null,"PALMER PROMOTIONAL PRODUCTS",null,null,null,null,null,null,null,null,null,null,null,null,null,"Vestibule18000",98000544,null,"PALMER PROMOTIONAL PRODUCTS",550261558]
[null,null,null,null,null,null,null,null,null,null,null,null,null,null,null,null,null,null,null,null,null,null,null,null,null,null,null,null,null,null,null,null,null,null,null,null,null,null,null,null,null,"PAN OSTON COMPANY",null,null,null,null,null,null,null,null,null,null,null,null,null,"Video Games10100",98000145,null,"PAN OSTON COMPANY",550005016]
[null,null,null,null,null,null,null,null,null,null,null,null,null,null,null,null,null,null,null,null,null,null,null,null,null,null,null,null,null,null,null,null,null,null,null,null,null,null,null,null,null,"PANASONIC CORPORATON OF NORTH",null,null,null,null,null,null,null,null,null,null,null,null,null,"Video Games16001",98000245,null,"PANASONIC CORPORATON OF NORTH",550282062]
[null,null,null,null,null,null,null,null,null,null,null,null,null,null,null,null,null,null,null,null,null,null,null,null,null,null,null,null,null,null,null,null,null,null,null,null,null,null,null,null,null,"PANASONIC CORPORATON OF NORTH",null,null,null,null,null,null,null,null,null,null,null,null,null,"Video Games16002",98000345,null,"PANASONIC CORPORATON OF NORTH",550282062]
[null,null,null,null,null,null,null,null,null,null,null,null,null,null,null,null,null,null,null,null,null,null,null,null,null,null,null,null,null,null,null,null,null,null,null,null,null,null,null,null,null,"PERFECT COMPANY",null,null,null,null,null,null,null,null,null,null,null,null,null,"Video Games16003",98000445,null,"PERFECT COMPANY",550278533]
[null,null,null,null,null,null,null,null,null,null,null,null,null,null,null,null,null,null,null,null,null,null,null,null,null,null,null,null,null,null,null,null,null,null,null,null,null,null,null,null,null,"PERFECT COMPANY",null,null,null,null,null,null,null,null,null,null,null,null,null,"Video Games18000",98000545,null,"PERFECT COMPANY",550278533]
[null,null,null,null,null,null,null,null,null,null,null,null,null,null,null,null,null,null,null,null,null,null,null,null,null,null,null,null,null,null,null,null,null,null,null,null,null,null,null,null,null,"PEXCO LLC",null,null,null,null,null,null,null,null,null,null,null,null,null,"Warehouse10100",98000146,null,"PEXCO LLC",550172558]
[null,null,null,null,null,null,null,null,null,null,null,null,null,null,null,null,null,null,null,null,null,null,null,null,null,null,null,null,null,null,null,null,null,null,null,null,null,null,null,null,null,"PEXCO LLC",null,null,null,null,null,null,null,null,null,null,null,null,null,"Warehouse16001",98000246,null,"PEXCO LLC",550172558]
[null,null,null,null,null,null,null,null,null,null,null,null,null,null,null,null,null,null,null,null,null,null,null,null,null,null,null,null,null,null,null,null,null,null,null,null,null,null,null,null,null,"PHOENIX FIXTURES INC",null,null,null,null,null,null,null,null,null,null,null,null,null,"Warehouse16002",98000346,null,"PHOENIX FIXTURES INC","011050002"]
[null,null,null,null,null,null,null,null,null,null,null,null,null,null,null,null,null,null,null,null,null,null,null,null,null,null,null,null,null,null,null,null,null,null,null,null,null,null,null,null,null,"PICTURA",null,null,null,null,null,null,null,null,null,null,null,null,null,"Warehouse16003",98000446,null,"PICTURA",550028640]
[null,null,null,null,null,null,null,null,null,null,null,null,null,null,null,null,null,null,null,null,null,null,null,null,null,null,null,null,null,null,null,null,null,null,null,null,null,null,null,null,null,"PIONEER PLASTICS INC",null,null,null,null,null,null,null,null,null,null,null,null,null,"Warehouse18000",98000546,null,"PIONEER PLASTICS INC",550192286]
[null,null,null,null,null,null,null,null,null,null,null,null,null,null,null,null,null,null,null,null,null,null,null,null,null,null,null,null,null,null,null,null,null,null,null,null,null,null,null,null,null,"PREMIUM RETAIL SERVICES BIN662",null,null,null,null,null,null,null,null,null,null,null,null,null,null,null,null,"PREMIUM RETAIL SERVICES BIN662",550005893]
[null,null,null,null,null,null,null,null,null,null,null,null,null,null,null,null,null,null,null,null,null,null,null,null,null,null,null,null,null,null,null,null,null,null,null,null,null,null,null,null,null,"PREMIUM RETAIL SERVICES BIN662",null,null,null,null,null,null,null,null,null,null,null,null,null,null,null,null,"PREMIUM RETAIL SERVICES BIN662",550005893]
[null,null,null,null,null,null,null,null,null,null,null,null,null,null,null,null,null,null,null,null,null,null,null,null,null,null,null,null,null,null,null,null,null,null,null,null,null,null,null,null,null,"PRIMARY COLOR",null,null,null,null,null,null,null,null,null,null,null,null,null,null,null,null,"PRIMARY COLOR",550261774]
[null,null,null,null,null,null,null,null,null,null,null,null,null,null,null,null,null,null,null,null,null,null,null,null,null,null,null,null,null,null,null,null,null,null,null,null,null,null,null,null,null,"PRIME TIME PACKAGING",null,null,null,null,null,null,null,null,null,null,null,null,null,null,null,null,"PRIME TIME PACKAGING",550247643]
[null,null,null,null,null,null,null,null,null,null,null,null,null,null,null,null,null,null,null,null,null,null,null,null,null,null,null,null,null,null,null,null,null,null,null,null,null,null,null,null,null,"PRINT CRAFT INC",null,null,null,null,null,null,null,null,null,null,null,null,null,null,null,null,"PRINT CRAFT INC",550020741]
[null,null,null,null,null,null,null,null,null,null,null,null,null,null,null,null,null,null,null,null,null,null,null,null,null,null,null,null,null,null,null,null,null,null,null,null,null,null,null,null,null,"PRO MOTION TECHNNOLOGY GROUP",null,null,null,null,null,null,null,null,null,null,null,null,null,null,null,null,"PRO MOTION TECHNNOLOGY GROUP",550021038]
[null,null,null,null,null,null,null,null,null,null,null,null,null,null,null,null,null,null,null,null,null,null,null,null,null,null,null,null,null,null,null,null,null,null,null,null,null,null,null,null,null,"PRO MOTION TECHNNOLOGY GROUP",null,null,null,null,null,null,null,null,null,null,null,null,null,null,null,null,"PRO MOTION TECHNNOLOGY GROUP",550021038]
[null,null,null,null,null,null,null,null,null,null,null,null,null,null,null,null,null,null,null,null,null,null,null,null,null,null,null,null,null,null,null,null,null,null,null,null,null,null,null,null,null,"PROCESS DISPLAYS PRINTING",null,null,null,null,null,null,null,null,null,null,null,null,null,null,null,null,"PROCESS DISPLAYS PRINTING",262200000]
[null,null,null,null,null,null,null,null,null,null,null,null,null,null,null,null,null,null,null,null,null,null,null,null,null,null,null,null,null,null,null,null,null,null,null,null,null,null,null,null,null,"PROCESS RETAIL GROUP INC",null,null,null,null,null,null,null,null,null,null,null,null,null,null,null,null,"PROCESS RETAIL GROUP INC",550263052]
[null,null,null,null,null,null,null,null,null,null,null,null,null,null,null,null,null,null,null,null,null,null,null,null,null,null,null,null,null,null,null,null,null,null,null,null,null,null,null,null,null,"PROMAC INC",null,null,null,null,null,null,null,null,null,null,null,null,null,null,null,null,"PROMAC INC",550208704]
[null,null,null,null,null,null,null,null,null,null,null,null,null,null,null,null,null,null,null,null,null,null,null,null,null,null,null,null,null,null,null,null,null,null,null,null,null,null,null,null,null,"PROTAGON DISPLAY INC",null,null,null,null,null,null,null,null,null,null,null,null,null,null,null,null,"PROTAGON DISPLAY INC",550047241]
[null,null,null,null,null,null,null,null,null,null,null,null,null,null,null,null,null,null,null,null,null,null,null,null,null,null,null,null,null,null,null,null,null,null,null,null,null,null,null,null,null,"PRYNT CORPORATION",null,null,null,null,null,null,null,null,null,null,null,null,null,null,null,null,"PRYNT CORPORATION",550291712]
[null,null,null,null,null,null,null,null,null,null,null,null,null,null,null,null,null,null,null,null,null,null,null,null,null,null,null,null,null,null,null,null,null,null,null,null,null,null,null,null,null,"R&B WHOLESALE DISTRIBUTORS INC",null,null,null,null,null,null,null,null,null,null,null,null,null,null,null,null,"R&B WHOLESALE DISTRIBUTORS INC",550280314]
[null,null,null,null,null,null,null,null,null,null,null,null,null,null,null,null,null,null,null,null,null,null,null,null,null,null,null,null,null,null,null,null,null,null,null,null,null,null,null,null,null,"R&B WHOLESALE DISTRIBUTORS INC",null,null,null,null,null,null,null,null,null,null,null,null,null,null,null,null,"R&B WHOLESALE DISTRIBUTORS INC",550280314]
[null,null,null,null,null,null,null,null,null,null,null,null,null,null,null,null,null,null,null,null,null,null,null,null,null,null,null,null,null,null,null,null,null,null,null,null,null,null,null,null,null,"RAPID DISPLAYS INC",null,null,null,null,null,null,null,null,null,null,null,null,null,null,null,null,"RAPID DISPLAYS INC",550189556]
[null,null,null,null,null,null,null,null,null,null,null,null,null,null,null,null,null,null,null,null,null,null,null,null,null,null,null,null,null,null,null,null,null,null,null,null,null,null,null,null,null,"RETAIL RADIO INC",null,null,null,null,null,null,null,null,null,null,null,null,null,null,null,null,"RETAIL RADIO INC",550196937]
[null,null,null,null,null,null,null,null,null,null,null,null,null,null,null,null,null,null,null,null,null,null,null,null,null,null,null,null,null,null,null,null,null,null,null,null,null,null,null,null,null,"RETAIL RADIO INC",null,null,null,null,null,null,null,null,null,null,null,null,null,null,null,null,"RETAIL RADIO INC",550196937]
[null,null,null,null,null,null,null,null,null,null,null,null,null,null,null,null,null,null,null,null,null,null,null,null,null,null,null,null,null,null,null,null,null,null,null,null,null,null,null,null,null,"ROSE DISPLAYS",null,null,null,null,null,null,null,null,null,null,null,null,null,null,null,null,"ROSE DISPLAYS",380060005]
[null,null,null,null,null,null,null,null,null,null,null,null,null,null,null,null,null,null,null,null,null,null,null,null,null,null,null,null,null,null,null,null,null,null,null,null,null,null,null,null,null,"RR DONNELLEY",null,null,null,null,null,null,null,null,null,null,null,null,null,null,null,null,"RR DONNELLEY",550077544]
[null,null,null,null,null,null,null,null,null,null,null,null,null,null,null,null,null,null,null,null,null,null,null,null,null,null,null,null,null,null,null,null,null,null,null,null,null,null,null,null,null,"RTC INDUSTRIES INC",null,null,null,null,null,null,null,null,null,null,null,null,null,null,null,null,"RTC INDUSTRIES INC",550279637]
[null,null,null,null,null,null,null,null,null,null,null,null,null,null,null,null,null,null,null,null,null,null,null,null,null,null,null,null,null,null,null,null,null,null,null,null,null,null,null,null,null,"RW ROGERS",null,null,null,null,null,null,null,null,null,null,null,null,null,null,null,null,"RW ROGERS",550036921]
[null,null,null,null,null,null,null,null,null,null,null,null,null,null,null,null,null,null,null,null,null,null,null,null,null,null,null,null,null,null,null,null,null,null,null,null,null,null,null,null,null,"SALAMANDER DESIGNS LIMITED",null,null,null,null,null,null,null,null,null,null,null,null,null,null,null,null,"SALAMANDER DESIGNS LIMITED",550227787]
[null,null,null,null,null,null,null,null,null,null,null,null,null,null,null,null,null,null,null,null,null,null,null,null,null,null,null,null,null,null,null,null,null,null,null,null,null,null,null,null,null,"SCREEN INNOVATIONS",null,null,null,null,null,null,null,null,null,null,null,null,null,null,null,null,"SCREEN INNOVATIONS",550089844]
[null,null,null,null,null,null,null,null,null,null,null,null,null,null,null,null,null,null,null,null,null,null,null,null,null,null,null,null,null,null,null,null,null,null,null,null,null,null,null,null,null,"SDI TECHNOLOGIES INC",null,null,null,null,null,null,null,null,null,null,null,null,null,null,null,null,"SDI TECHNOLOGIES INC",550267152]
[null,null,null,null,null,null,null,null,null,null,null,null,null,null,null,null,null,null,null,null,null,null,null,null,null,null,null,null,null,null,null,null,null,null,null,null,null,null,null,null,null,"SEACHANGE",null,null,null,null,null,null,null,null,null,null,null,null,null,null,null,null,"SEACHANGE",550256978]
[null,null,null,null,null,null,null,null,null,null,null,null,null,null,null,null,null,null,null,null,null,null,null,null,null,null,null,null,null,null,null,null,null,null,null,null,null,null,null,null,null,"SECURE SYSTEMS INC",null,null,null,null,null,null,null,null,null,null,null,null,null,null,null,null,"SECURE SYSTEMS INC",408660000]
[null,null,null,null,null,null,null,null,null,null,null,null,null,null,null,null,null,null,null,null,null,null,null,null,null,null,null,null,null,null,null,null,null,null,null,null,null,null,null,null,null,"SECURE SYSTEMS INC",null,null,null,null,null,null,null,null,null,null,null,null,null,null,null,null,"SECURE SYSTEMS INC",408660000]
[null,null,null,null,null,null,null,null,null,null,null,null,null,null,null,null,null,null,null,null,null,null,null,null,null,null,null,null,null,null,null,null,null,null,null,null,null,null,null,null,null,"SELECT SALES INC",null,null,null,null,null,null,null,null,null,null,null,null,null,null,null,null,"SELECT SALES INC",550263053]
[null,null,null,null,null,null,null,null,null,null,null,null,null,null,null,null,null,null,null,null,null,null,null,null,null,null,null,null,null,null,null,null,null,null,null,null,null,null,null,null,null,"SENNCO SOLUTIONS INC",null,null,null,null,null,null,null,null,null,null,null,null,null,null,null,null,"SENNCO SOLUTIONS INC",682260006]
[null,null,null,null,null,null,null,null,null,null,null,null,null,null,null,null,null,null,null,null,null,null,null,null,null,null,null,null,null,null,null,null,null,null,null,null,null,null,null,null,null,"SENNHEISER ELECTRONIC CORP",null,null,null,null,null,null,null,null,null,null,null,null,null,null,null,null,"SENNHEISER ELECTRONIC CORP",550015624]
[null,null,null,null,null,null,null,null,null,null,null,null,null,null,null,null,null,null,null,null,null,null,null,null,null,null,null,null,null,null,null,null,null,null,null,null,null,null,null,null,null,"SHARKNINJA SALES CO",null,null,null,null,null,null,null,null,null,null,null,null,null,null,null,null,"SHARKNINJA SALES CO",550261846]
[null,null,null,null,null,null,null,null,null,null,null,null,null,null,null,null,null,null,null,null,null,null,null,null,null,null,null,null,null,null,null,null,null,null,null,null,null,null,null,null,null,"SHARKNINJA SALES CO",null,null,null,null,null,null,null,null,null,null,null,null,null,null,null,null,"SHARKNINJA SALES CO",550261846]
[null,null,null,null,null,null,null,null,null,null,null,null,null,null,null,null,null,null,null,null,null,null,null,null,null,null,null,null,null,null,null,null,null,null,null,null,null,null,null,null,null,"SHIPYARD LLC",null,null,null,null,null,null,null,null,null,null,null,null,null,null,null,null,"SHIPYARD LLC",550195047]
[null,null,null,null,null,null,null,null,null,null,null,null,null,null,null,null,null,null,null,null,null,null,null,null,null,null,null,null,null,null,null,null,null,null,null,null,null,null,null,null,null,"SIGNATURE GRAPHICS INC",null,null,null,null,null,null,null,null,null,null,null,null,null,null,null,null,"SIGNATURE GRAPHICS INC",375720002]
[null,null,null,null,null,null,null,null,null,null,null,null,null,null,null,null,null,null,null,null,null,null,null,null,null,null,null,null,null,null,null,null,null,null,null,null,null,null,null,null,null,"SONY ELECTRONICS OF AMERICA",null,null,null,null,null,null,null,null,null,null,null,null,null,null,null,null,"SONY ELECTRONICS OF AMERICA",550020742]
[null,null,null,null,null,null,null,null,null,null,null,null,null,null,null,null,null,null,null,null,null,null,null,null,null,null,null,null,null,null,null,null,null,null,null,null,null,null,null,null,null,"SOUND SOLUTIONS LLC DBA MOFI",null,null,null,null,null,null,null,null,null,null,null,null,null,null,null,null,"SOUND SOLUTIONS LLC DBA MOFI",550279067]
[null,null,null,null,null,null,null,null,null,null,null,null,null,null,null,null,null,null,null,null,null,null,null,null,null,null,null,null,null,null,null,null,null,null,null,null,null,null,null,null,null,"SOUND SOLUTIONS LLC DBA MOFI",null,null,null,null,null,null,null,null,null,null,null,null,null,null,null,null,"SOUND SOLUTIONS LLC DBA MOFI",550279067]
[null,null,null,null,null,null,null,null,null,null,null,null,null,null,null,null,null,null,null,null,null,null,null,null,null,null,null,null,null,null,null,null,null,null,null,null,null,null,null,null,null,"SOUTHERN IMPERIAL INC",null,null,null,null,null,null,null,null,null,null,null,null,null,null,null,null,"SOUTHERN IMPERIAL INC",550075889]
[null,null,null,null,null,null,null,null,null,null,null,null,null,null,null,null,null,null,null,null,null,null,null,null,null,null,null,null,null,null,null,null,null,null,null,null,null,null,null,null,null,"SPA INCORPORATED",null,null,null,null,null,null,null,null,null,null,null,null,null,null,null,null,"SPA INCORPORATED",550173546]
[null,null,null,null,null,null,null,null,null,null,null,null,null,null,null,null,null,null,null,null,null,null,null,null,null,null,null,null,null,null,null,null,null,null,null,null,null,null,null,null,null,"SPECTRUM PLASTICS INC",null,null,null,null,null,null,null,null,null,null,null,null,null,null,null,null,"SPECTRUM PLASTICS INC",715050001]
[null,null,null,null,null,null,null,null,null,null,null,null,null,null,null,null,null,null,null,null,null,null,null,null,null,null,null,null,null,null,null,null,null,null,null,null,null,null,null,null,null,"ST CROIX PROMOTIONS INC",null,null,null,null,null,null,null,null,null,null,null,null,null,null,null,null,"ST CROIX PROMOTIONS INC",550040921]
[null,null,null,null,null,null,null,null,null,null,null,null,null,null,null,null,null,null,null,null,null,null,null,null,null,null,null,null,null,null,null,null,null,null,null,null,null,null,null,null,null,"STAR EQUIPMENT",null,null,null,null,null,null,null,null,null,null,null,null,null,null,null,null,"STAR EQUIPMENT",152330008]
[null,null,null,null,null,null,null,null,null,null,null,null,null,null,null,null,null,null,null,null,null,null,null,null,null,null,null,null,null,null,null,null,null,null,null,null,null,null,null,null,null,"STAR EQUIPMENT",null,null,null,null,null,null,null,null,null,null,null,null,null,null,null,null,"STAR EQUIPMENT",152330008]
[null,null,null,null,null,null,null,null,null,null,null,null,null,null,null,null,null,null,null,null,null,null,null,null,null,null,null,null,null,null,null,null,null,null,null,null,null,null,null,null,null,"STEPHEN GOULD CORP",null,null,null,null,null,null,null,null,null,null,null,null,null,null,null,null,"STEPHEN GOULD CORP",550226904]
[null,null,null,null,null,null,null,null,null,null,null,null,null,null,null,null,null,null,null,null,null,null,null,null,null,null,null,null,null,null,null,null,null,null,null,null,null,null,null,null,null,"STERICYCLE INC",null,null,null,null,null,null,null,null,null,null,null,null,null,null,null,null,"STERICYCLE INC",693940001]
[null,null,null,null,null,null,null,null,null,null,null,null,null,null,null,null,null,null,null,null,null,null,null,null,null,null,null,null,null,null,null,null,null,null,null,null,null,null,null,null,null,"STERICYCLE INC",null,null,null,null,null,null,null,null,null,null,null,null,null,null,null,null,"STERICYCLE INC",693940001]
[null,null,null,null,null,null,null,null,null,null,null,null,null,null,null,null,null,null,null,null,null,null,null,null,null,null,null,null,null,null,null,null,null,null,null,null,null,null,null,null,null,"STEW MAC COM",null,null,null,null,null,null,null,null,null,null,null,null,null,null,null,null,"STEW MAC COM",550087276]
[null,null,null,null,null,null,null,null,null,null,null,null,null,null,null,null,null,null,null,null,null,null,null,null,null,null,null,null,null,null,null,null,null,null,null,null,null,null,null,null,null,"STEWART FILMSCREEN CORPORATION",null,null,null,null,null,null,null,null,null,null,null,null,null,null,null,null,"STEWART FILMSCREEN CORPORATION",550048393]
[null,null,null,null,null,null,null,null,null,null,null,null,null,null,null,null,null,null,null,null,null,null,null,null,null,null,null,null,null,null,null,null,null,null,null,null,null,null,null,null,null,"STREATER INC",null,null,null,null,null,null,null,null,null,null,null,null,null,null,null,null,"STREATER INC",656690007]
[null,null,null,null,null,null,null,null,null,null,null,null,null,null,null,null,null,null,null,null,null,null,null,null,null,null,null,null,null,null,null,null,null,null,null,null,null,null,null,null,null,"STRIIV INCORPORATED",null,null,null,null,null,null,null,null,null,null,null,null,null,null,null,null,"STRIIV INCORPORATED",550272739]
[null,null,null,null,null,null,null,null,null,null,null,null,null,null,null,null,null,null,null,null,null,null,null,null,null,null,null,null,null,null,null,null,null,null,null,null,null,null,null,null,null,"STRIIV INCORPORATED",null,null,null,null,null,null,null,null,null,null,null,null,null,null,null,null,"STRIIV INCORPORATED",550272739]
[null,null,null,null,null,null,null,null,null,null,null,null,null,null,null,null,null,null,null,null,null,null,null,null,null,null,null,null,null,null,null,null,null,null,null,null,null,null,null,null,null,"STYLMARK",null,null,null,null,null,null,null,null,null,null,null,null,null,null,null,null,"STYLMARK",504510000]
[null,null,null,null,null,null,null,null,null,null,null,null,null,null,null,null,null,null,null,null,null,null,null,null,null,null,null,null,null,null,null,null,null,null,null,null,null,null,null,null,null,"SYNERGY PRODUCTS",null,null,null,null,null,null,null,null,null,null,null,null,null,null,null,null,"SYNERGY PRODUCTS",550084905]
[null,null,null,null,null,null,null,null,null,null,null,null,null,null,null,null,null,null,null,null,null,null,null,null,null,null,null,null,null,null,null,null,null,null,null,null,null,null,null,null,null,"SYNSOR CORPORATION",null,null,null,null,null,null,null,null,null,null,null,null,null,null,null,null,"SYNSOR CORPORATION",550200976]
[null,null,null,null,null,null,null,null,null,null,null,null,null,null,null,null,null,null,null,null,null,null,null,null,null,null,null,null,null,null,null,null,null,null,null,null,null,null,null,null,null,"TARGUS INC 92806",null,null,null,null,null,null,null,null,null,null,null,null,null,null,null,null,"TARGUS INC 92806",550272741]
[null,null,null,null,null,null,null,null,null,null,null,null,null,null,null,null,null,null,null,null,null,null,null,null,null,null,null,null,null,null,null,null,null,null,null,null,null,null,null,null,null,"TARGUS INC 92806",null,null,null,null,null,null,null,null,null,null,null,null,null,null,null,null,"TARGUS INC 92806",550272741]
[null,null,null,null,null,null,null,null,null,null,null,null,null,null,null,null,null,null,null,null,null,null,null,null,null,null,null,null,null,null,null,null,null,null,null,null,null,null,null,null,null,"TC MOULDING",null,null,null,null,null,null,null,null,null,null,null,null,null,null,null,null,"TC MOULDING",550062407]
[null,null,null,null,null,null,null,null,null,null,null,null,null,null,null,null,null,null,null,null,null,null,null,null,null,null,null,null,null,null,null,null,null,null,null,null,null,null,null,null,null,"TC MOULDING",null,null,null,null,null,null,null,null,null,null,null,null,null,null,null,null,"TC MOULDING",550062407]
[null,null,null,null,null,null,null,null,null,null,null,null,null,null,null,null,null,null,null,null,null,null,null,null,null,null,null,null,null,null,null,null,null,null,null,null,null,null,null,null,null,"TDC INSTORE",null,null,null,null,null,null,null,null,null,null,null,null,null,null,null,null,"TDC INSTORE",550085069]
[null,null,null,null,null,null,null,null,null,null,null,null,null,null,null,null,null,null,null,null,null,null,null,null,null,null,null,null,null,null,null,null,null,null,null,null,null,null,null,null,null,"TECH 21 UK LTD",null,null,null,null,null,null,null,null,null,null,null,null,null,null,null,null,"TECH 21 UK LTD",550281203]
[null,null,null,null,null,null,null,null,null,null,null,null,null,null,null,null,null,null,null,null,null,null,null,null,null,null,null,null,null,null,null,null,null,null,null,null,null,null,null,null,null,"TECH 21 UK LTD",null,null,null,null,null,null,null,null,null,null,null,null,null,null,null,null,"TECH 21 UK LTD",550281203]
[null,null,null,null,null,null,null,null,null,null,null,null,null,null,null,null,null,null,null,null,null,null,null,null,null,null,null,null,null,null,null,null,null,null,null,null,null,null,null,null,null,"TECHNIBILT LTD",null,null,null,null,null,null,null,null,null,null,null,null,null,null,null,null,"TECHNIBILT LTD",658190005]
[null,null,null,null,null,null,null,null,null,null,null,null,null,null,null,null,null,null,null,null,null,null,null,null,null,null,null,null,null,null,null,null,null,null,null,null,null,null,null,null,null,"TELSTAR USA LLC",null,null,null,null,null,null,null,null,null,null,null,null,null,null,null,null,"TELSTAR USA LLC",550241162]
[null,null,null,null,null,null,null,null,null,null,null,null,null,null,null,null,null,null,null,null,null,null,null,null,null,null,null,null,null,null,null,null,null,null,null,null,null,null,null,null,null,"TINNOVATE LLC 1",null,null,null,null,null,null,null,null,null,null,null,null,null,null,null,null,"TINNOVATE LLC 1",550265077]
[null,null,null,null,null,null,null,null,null,null,null,null,null,null,null,null,null,null,null,null,null,null,null,null,null,null,null,null,null,null,null,null,null,null,null,null,null,null,null,null,null,"TIVO INCORPORATED",null,null,null,null,null,null,null,null,null,null,null,null,null,null,null,null,"TIVO INCORPORATED",550002832]
[null,null,null,null,null,null,null,null,null,null,null,null,null,null,null,null,null,null,null,null,null,null,null,null,null,null,null,null,null,null,null,null,null,null,null,null,null,null,null,null,null,"TOCAD AMERICA INCORPORATED",null,null,null,null,null,null,null,null,null,null,null,null,null,null,null,null,"TOCAD AMERICA INCORPORATED",550282063]
[null,null,null,null,null,null,null,null,null,null,null,null,null,null,null,null,null,null,null,null,null,null,null,null,null,null,null,null,null,null,null,null,null,null,null,null,null,null,null,null,null,"TOCAD AMERICA INCORPORATED",null,null,null,null,null,null,null,null,null,null,null,null,null,null,null,null,"TOCAD AMERICA INCORPORATED",550282063]
[null,null,null,null,null,null,null,null,null,null,null,null,null,null,null,null,null,null,null,null,null,null,null,null,null,null,null,null,null,null,null,null,null,null,null,null,null,null,null,null,null,"TRANS WORLD MARKETING",null,null,null,null,null,null,null,null,null,null,null,null,null,null,null,null,"TRANS WORLD MARKETING",550011175]
[null,null,null,null,null,null,null,null,null,null,null,null,null,null,null,null,null,null,null,null,null,null,null,null,null,null,null,null,null,null,null,null,null,null,null,null,null,null,null,null,null,"TRANS WORLD MARKETING",null,null,null,null,null,null,null,null,null,null,null,null,null,null,null,null,"TRANS WORLD MARKETING",550011175]
[null,null,null,null,null,null,null,null,null,null,null,null,null,null,null,null,null,null,null,null,null,null,null,null,null,null,null,null,null,null,null,null,null,null,null,null,null,null,null,null,null,"TRAVEL TAGS AMERICAN VINYLITH",null,null,null,null,null,null,null,null,null,null,null,null,null,null,null,null,"TRAVEL TAGS AMERICAN VINYLITH",561510001]
[null,null,null,null,null,null,null,null,null,null,null,null,null,null,null,null,null,null,null,null,null,null,null,null,null,null,null,null,null,null,null,null,null,null,null,null,null,null,null,null,null,"TRAVEL TAGS AMERICAN VINYLITH",null,null,null,null,null,null,null,null,null,null,null,null,null,null,null,null,"TRAVEL TAGS AMERICAN VINYLITH",561510001]
[null,null,null,null,null,null,null,null,null,null,null,null,null,null,null,null,null,null,null,null,null,null,null,null,null,null,null,null,null,null,null,null,null,null,null,null,null,null,null,null,null,"TRIAD MANUFACTURING INC",null,null,null,null,null,null,null,null,null,null,null,null,null,null,null,null,"TRIAD MANUFACTURING INC",650150007]
[null,null,null,null,null,null,null,null,null,null,null,null,null,null,null,null,null,null,null,null,null,null,null,null,null,null,null,null,null,null,null,null,null,null,null,null,null,null,null,null,null,"TRION",null,null,null,null,null,null,null,null,null,null,null,null,null,null,null,null,"TRION",550043974]
[null,null,null,null,null,null,null,null,null,null,null,null,null,null,null,null,null,null,null,null,null,null,null,null,null,null,null,null,null,null,null,null,null,null,null,null,null,null,null,null,null,"TRION",null,null,null,null,null,null,null,null,null,null,null,null,null,null,null,null,"TRION",550043974]
[null,null,null,null,null,null,null,null,null,null,null,null,null,null,null,null,null,null,null,null,null,null,null,null,null,null,null,null,null,null,null,null,null,null,null,null,null,null,null,null,null,"TWIN CITY HARDWARE",null,null,null,null,null,null,null,null,null,null,null,null,null,null,null,null,"TWIN CITY HARDWARE","004320008"]
[null,null,null,null,null,null,null,null,null,null,null,null,null,null,null,null,null,null,null,null,null,null,null,null,null,null,null,null,null,null,null,null,null,null,null,null,null,null,null,null,null,"UVERITECH INC",null,null,null,null,null,null,null,null,null,null,null,null,null,null,null,null,"UVERITECH INC",550070239]
[null,null,null,null,null,null,null,null,null,null,null,null,null,null,null,null,null,null,null,null,null,null,null,null,null,null,null,null,null,null,null,null,null,null,null,null,null,null,null,null,null,"V MODA LC",null,null,null,null,null,null,null,null,null,null,null,null,null,null,null,null,"V MODA LC",550244263]
[null,null,null,null,null,null,null,null,null,null,null,null,null,null,null,null,null,null,null,null,null,null,null,null,null,null,null,null,null,null,null,null,null,null,null,null,null,null,null,null,null,"VANGUARD PROTEX GLOBAL",null,null,null,null,null,null,null,null,null,null,null,null,null,null,null,null,"VANGUARD PROTEX GLOBAL",550024790]
[null,null,null,null,null,null,null,null,null,null,null,null,null,null,null,null,null,null,null,null,null,null,null,null,null,null,null,null,null,null,null,null,null,null,null,null,null,null,null,null,null,"VICTORY DISPLAY",null,null,null,null,null,null,null,null,null,null,null,null,null,null,null,null,"VICTORY DISPLAY",550271506]
[null,null,null,null,null,null,null,null,null,null,null,null,null,null,null,null,null,null,null,null,null,null,null,null,null,null,null,null,null,null,null,null,null,null,null,null,null,null,null,null,null,"VICTORY DISPLAY",null,null,null,null,null,null,null,null,null,null,null,null,null,null,null,null,"VICTORY DISPLAY",550271506]
[null,null,null,null,null,null,null,null,null,null,null,null,null,null,null,null,null,null,null,null,null,null,null,null,null,null,null,null,null,null,null,null,null,null,null,null,null,null,null,null,null,"VIRA INSIGHT LLC",null,null,null,null,null,null,null,null,null,null,null,null,null,null,null,null,"VIRA INSIGHT LLC",550266613]
[null,null,null,null,null,null,null,null,null,null,null,null,null,null,null,null,null,null,null,null,null,null,null,null,null,null,null,null,null,null,null,null,null,null,null,null,null,null,null,null,null,"VISIONS INC",null,null,null,null,null,null,null,null,null,null,null,null,null,null,null,null,"VISIONS INC",550179857]
[null,null,null,null,null,null,null,null,null,null,null,null,null,null,null,null,null,null,null,null,null,null,null,null,null,null,null,null,null,null,null,null,null,null,null,null,null,null,null,null,null,"VISIONTRON CORPORATION",null,null,null,null,null,null,null,null,null,null,null,null,null,null,null,null,"VISIONTRON CORPORATION",550045913]
[null,null,null,null,null,null,null,null,null,null,null,null,null,null,null,null,null,null,null,null,null,null,null,null,null,null,null,null,null,null,null,null,null,null,null,null,null,null,null,null,null,"VIZIO INCORPORATED",null,null,null,null,null,null,null,null,null,null,null,null,null,null,null,null,"VIZIO INCORPORATED",550218688]
[null,null,null,null,null,null,null,null,null,null,null,null,null,null,null,null,null,null,null,null,null,null,null,null,null,null,null,null,null,null,null,null,null,null,null,null,null,null,null,null,null,"VIZPARTS COM INC",null,null,null,null,null,null,null,null,null,null,null,null,null,null,null,null,"VIZPARTS COM INC",550244077]
[null,null,null,null,null,null,null,null,null,null,null,null,null,null,null,null,null,null,null,null,null,null,null,null,null,null,null,null,null,null,null,null,null,null,null,null,null,null,null,null,null,"VOMELA SPECIALTY CO",null,null,null,null,null,null,null,null,null,null,null,null,null,null,null,null,"VOMELA SPECIALTY CO",550007146]
[null,null,null,null,null,null,null,null,null,null,null,null,null,null,null,null,null,null,null,null,null,null,null,null,null,null,null,null,null,null,null,null,null,null,null,null,null,null,null,null,null,"VUPOINT SOLUTIONS INC",null,null,null,null,null,null,null,null,null,null,null,null,null,null,null,null,"VUPOINT SOLUTIONS INC",550257343]
[null,null,null,null,null,null,null,null,null,null,null,null,null,null,null,null,null,null,null,null,null,null,null,null,null,null,null,null,null,null,null,null,null,null,null,null,null,null,null,null,null,"VUTEC CORPORATION",null,null,null,null,null,null,null,null,null,null,null,null,null,null,null,null,"VUTEC CORPORATION",550160823]
[null,null,null,null,null,null,null,null,null,null,null,null,null,null,null,null,null,null,null,null,null,null,null,null,null,null,null,null,null,null,null,null,null,null,null,null,null,null,null,null,null,"WACOM TECHNOLOGY CORPORATION",null,null,null,null,null,null,null,null,null,null,null,null,null,null,null,null,"WACOM TECHNOLOGY CORPORATION",550241703]
[null,null,null,null,null,null,null,null,null,null,null,null,null,null,null,null,null,null,null,null,null,null,null,null,null,null,null,null,null,null,null,null,null,null,null,null,null,null,null,null,null,"WAHL CLIPPER CORPORATION",null,null,null,null,null,null,null,null,null,null,null,null,null,null,null,null,"WAHL CLIPPER CORPORATION",550275484]
[null,null,null,null,null,null,null,null,null,null,null,null,null,null,null,null,null,null,null,null,null,null,null,null,null,null,null,null,null,null,null,null,null,null,null,null,null,null,null,null,null,"WAHL CLIPPER CORPORATION",null,null,null,null,null,null,null,null,null,null,null,null,null,null,null,null,"WAHL CLIPPER CORPORATION",550275484]
[null,null,null,null,null,null,null,null,null,null,null,null,null,null,null,null,null,null,null,null,null,null,null,null,null,null,null,null,null,null,null,null,null,null,null,null,null,null,null,null,null,"WEBOOST",null,null,null,null,null,null,null,null,null,null,null,null,null,null,null,null,"WEBOOST",550272320]
[null,null,null,null,null,null,null,null,null,null,null,null,null,null,null,null,null,null,null,null,null,null,null,null,null,null,null,null,null,null,null,null,null,null,null,null,null,null,null,null,null,"WEBOOST",null,null,null,null,null,null,null,null,null,null,null,null,null,null,null,null,"WEBOOST",550272320]
[null,null,null,null,null,null,null,null,null,null,null,null,null,null,null,null,null,null,null,null,null,null,null,null,null,null,null,null,null,null,null,null,null,null,null,null,null,null,null,null,null,"WESTERN STATES ENVELOPE COMPANY",null,null,null,null,null,null,null,null,null,null,null,null,null,null,null,null,"WESTERN STATES ENVELOPE COMPANY",469640009]
[null,null,null,null,null,null,null,null,null,null,null,null,null,null,null,null,null,null,null,null,null,null,null,null,null,null,null,null,null,null,null,null,null,null,null,null,null,null,null,null,null,"WESTROCK CONVERTING COMPANY",null,null,null,null,null,null,null,null,null,null,null,null,null,null,null,null,"WESTROCK CONVERTING COMPANY",550270380]
[null,null,null,null,null,null,null,null,null,null,null,null,null,null,null,null,null,null,null,null,null,null,null,null,null,null,null,null,null,null,null,null,null,null,null,null,null,null,null,null,null,"WINDSTER HOODS",null,null,null,null,null,null,null,null,null,null,null,null,null,null,null,null,"WINDSTER HOODS",550273044]
[null,null,null,null,null,null,null,null,null,null,null,null,null,null,null,null,null,null,null,null,null,null,null,null,null,null,null,null,null,null,null,null,null,null,null,null,null,null,null,null,null,"WINDSTER HOODS",null,null,null,null,null,null,null,null,null,null,null,null,null,null,null,null,"WINDSTER HOODS",550273044]
[null,null,null,null,null,null,null,null,null,null,null,null,null,null,null,null,null,null,null,null,null,null,null,null,null,null,null,null,null,null,null,null,null,null,null,null,null,null,null,null,null,"WITHINGS INCORPORATED",null,null,null,null,null,null,null,null,null,null,null,null,null,null,null,null,"WITHINGS INCORPORATED",550261878]
[null,null,null,null,null,null,null,null,null,null,null,null,null,null,null,null,null,null,null,null,null,null,null,null,null,null,null,null,null,null,null,null,null,null,null,null,null,null,null,null,null,"XFACTOR SALES INTERNATIONAL LLC",null,null,null,null,null,null,null,null,null,null,null,null,null,null,null,null,"XFACTOR SALES INTERNATIONAL LLC",550259152]
[null,null,null,null,null,null,null,null,null,null,null,null,null,null,null,null,null,null,null,null,null,null,null,null,null,null,null,null,null,null,null,null,null,null,null,null,null,null,null,null,null,"XPEDX CLEVELAND",null,null,null,null,null,null,null,null,null,null,null,null,null,null,null,null,"XPEDX CLEVELAND",550011266]
[null,null,null,null,null,null,null,null,null,null,null,null,null,null,null,null,null,null,null,null,null,null,null,null,null,null,null,null,null,null,null,null,null,null,null,null,null,null,null,null,null,"XS COMMERCE LLC 1",null,null,null,null,null,null,null,null,null,null,null,null,null,null,null,null,"XS COMMERCE LLC 1",550283223]
[null,null,null,null,null,null,null,null,null,null,null,null,null,null,null,null,null,null,null,null,null,null,null,null,null,null,null,null,null,null,null,null,null,null,null,null,null,null,null,null,null,"XS COMMERCE LLC 1",null,null,null,null,null,null,null,null,null,null,null,null,null,null,null,null,"XS COMMERCE LLC 1",550283223]
[null,null,null,null,null,null,null,null,null,null,null,null,null,null,null,null,null,null,null,null,null,null,null,null,null,null,null,null,null,null,null,null,null,null,null,null,null,null,null,null,null,"ZEPHYR VENTILATION LLC 1",null,null,null,null,null,null,null,null,null,null,null,null,null,null,null,null,"ZEPHYR VENTILATION LLC 1",550271156]
[null,null,null,null,null,null,null,null,null,null,null,null,null,null,null,null,null,null,null,null,null,null,null,null,null,null,null,null,null,null,null,null,null,null,null,null,null,null,null,null,null,"ZEPHYR VENTILATION LLC 1",null,null,null,null,null,null,null,null,null,null,null,null,null,null,null,null,"ZEPHYR VENTILATION LLC 1",550271156]
[null,null,null,null,null,null,null,null,null,null,null,null,null,null,null,null,null,null,null,null,null,null,null,null,null,null,null,null,null,null,null,null,null,null,null,null,null,null,null,null,null,"RUG DOCTOR LLC 1",null,null,null,null,null,null,null,null,null,null,null,null,null,null,null,null,"RUG DOCTOR LLC 1","550293177"]
[null,null,null,null,null,null,null,null,null,null,null,null,null,null,null,null,null,null,null,null,null,null,null,null,null,null,null,null,null,null,null,null,null,null,null,null,null,null,null,null,null,"RUG DOCTOR LLC 1",null,null,null,null,null,null,null,null,null,null,null,null,null,null,null,null,"RUG DOCTOR LLC 1","550293177"]
[null,null,null,null,null,null,null,null,null,null,null,null,null,null,null,null,null,null,null,null,null,null,null,null,null,null,null,null,null,null,null,null,null,null,null,null,null,null,null,null,null,null,null,null,null,null,null,null,null,null,null,null,null,null,null,null,null,null,"EYELEVEL INC",550257194]

{"sheet":"UOM Conversion","index":6,"n_rows":184,"n_cols":2,"rows_kept":184,"cut":false,"hidden":true,"merged":[]}
["UNIT_OF_MEASURE","UOM_CODE"]
["Bag","G01"]
["Bag of 10","G10"]
["Bag of 100","G1H"]
["Bag of 1000","G1K"]
["Bag of 12","G12"]
["Bag of 150","GH1"]
["Bag of 2","G02"]
["Bag of 20","G20"]
["Bag of 25","G25"]
["Bag of 250","GH2"]
["Bag of 3","G03"]
["Bag of 36","G36"]
["Bag of 4","G04"]
["Bag of 5","G05"]
["Bag of 50","G50"]
["Bag of 500","G5H"]
["Bag of 6","G06"]
["Bag of 675","GH3"]
["Bag of 8","G08"]
["Bag of 80","G80"]
["Bin","BIN"]
["Box","X01"]
["Box of 10","X10"]
["Box of 100","X1H"]
["Box of 1000","X1K"]
["Box of 12","X12"]
["Box of 125","XH1"]
["Box of 14","X14"]
["Box of 15","X15"]
["Box of 150","XH2"]
["Box of 1500","XK2"]
["Box of 160","XH5"]
["Box of 1600","XK1"]
["Box of 18","X18"]
["Box of 2","X02"]
["Box of 20","X20"]
["Box of 200","X2H"]
["Box of 2000","X2K"]
["Box of 25","X25"]
["Box of 250","XH3"]
["Box of 3","BX3"]
["Box of 32","X32"]
["Box of 36","X36"]
["Box of 4","X04"]
["Box of 40","X40"]
["Box of 5","X05"]
["Box of 50","X50"]
["Box of 500","X5H"]
["Box of 5000","X5K"]
["Box of 6","X06"]
["Box of 72","X72"]
["Box of 750","XH4"]
["Box of 8","X08"]
["Box of 90","X90"]
["Bulk","BLK"]
["Bundle of 10","D10"]
["Bundle of 100","D1H"]
["Bundle of 12","D12"]
["Bundle of 15","D15"]
["Bundle of 2","D02"]
["Bundle of 20","D20"]
["Bundle of 200","D2H"]
["Bundle of 25","D25"]
["Bundle of 250","DH1"]
["Bundle of 3","D01"]
["Bundle of 5","D05"]
["Bundle of 50","D50"]
["Bundle of 500","D5H"]
["Bundle of 90","D90"]
["Carton","T01"]
["Carton of 10","T10"]
["Carton of 1000","T1K"]
["Carton of 12","T12"]
["Carton of 126","TH2"]
["Carton of 1300","TK1"]
["Carton of 16","T16"]
["Carton of 1600","TK2"]
["Carton of 20","T20"]
["Carton of 200","T2H"]
["Carton of 2300","TK3"]
["Carton of 24","T24"]
["Carton of 250","TH1"]
["Carton of 4","T04"]
["Carton of 48","T48"]
["Carton of 5","T05"]
["Carton of 500","T5H"]
["Carton of 5000","T5K"]
["Carton of 6","T06"]
["Carton of 80","T80"]
["Carton of 9","T09"]
["Case of 1000","S1K"]
["Case of 12","S12"]
["Case of 1600","SK1"]
["Case of 200","S2H"]
["Case of 2000","S2K"]
["Case of 250","SH1"]
["Case of 2500","SK2"]
["Case of 3","S03"]
["Case of 4","S04"]
["Case of 400","S4H"]
["Case of 48","S48"]
["Case of 5","S05"]
["Case of 50","S50"]
["Case of 6","S06"]
["Case of 800","S8H"]
["Coil","CL"]
["Cylinder","CYL"]
["Dozen","DOZ"]
["Each","EA"]
["Gross","GR"]
["Kit","KIT"]
["KIT","Kit"]
["Kit of 10","K10"]
["Kit of 12","K12"]
["Kit of 15","K15"]
["Kit of 16","K16"]
["Kit of 18","K18"]
["Kit of 2","K02"]
["Kit of 20","K20"]
["Kit of 4","K04"]
["Kit of 40","K40"]
["Kit of 5","K05"]
["Kit of 50","K50"]
["Kit of 6","K06"]
["Kit of 7","K07"]
["Kit of 9","K09"]
["Lot","LOT"]
["Pack","PK"]
["Pack of 10","P10"]
["Pack of 100","P1H"]
["Pack of 104","PH1"]
["Pack of 12","P12"]
["Pack of 125","PH3"]
["Pack of 14","P14"]
["Pack of 16","P16"]
["Pack of 2","P02"]
["Pack of 20","P20"]
["Pack of 24","P24"]
["Pack of 25","P25"]
["Pack of 250","PH2"]
["Pack of 3","P03"]
["Pack of 36","P36"]
["Pack of 4","P04"]
["Pack of 40","P40"]
["Pack of 48","P48"]
["Pack of 5","P05"]
["Pack of 50","P50"]
["Pack of 52","P52"]
["Pack of 6","P06"]
["Pack of 8","P08"]
["Pack of 90","P90"]
["Pad of 100","A1H"]
["Pad of 25","A25"]
["Pad of 31","A31"]
["Pad of 50","A50"]
["Pair","PR"]
["Pair of 2","PR2"]
["Rack","RK"]
["Reel","RL"]
["Roll","R01"]
["Roll of 100","R1H"]
["Roll of 1000","R1K"]
["Roll of 200","R2H"]
["Roll of 250","RH1"]
["Roll of 300","R3H"]
["Roll of 50","R50"]
["Roll of 500","R5H"]
["Roll of 900","R9H"]
["Segment","SEG"]
["Set","SET"]
["SET","Set"]
["Set of 2","ST2"]
["Set of 20","STA"]
["Set of 30","STC"]
["Set of 4","ST4"]
["Set of 5","ST5"]
["Set of 6","ST6"]
["Set of 70","STB"]
["Set of 8","ST8"]
["Sheet - Quantity","SHQ"]
["Shipment","SHP"]
["Stops","STP"]
["Unit","UN"]

{"sheet":"Sheet1","index":7,"n_rows":18,"n_cols":1,"rows_kept":18,"cut":false,"hidden":true,"merged":[]}
[]
["Keep"]
["Add"]
["Obsolete"]
[]
[]
[]
["Blue Shirt"]
["Third Party"]
["Other "]
[]
[]
["Plastic/Acrylic"]
["Metal"]
["Cardboard"]
["Cardstock"]
["Particle Board/Wood"]
["N/A"]